Workbook

Sheet Design Regulator
A1: LM5146-Q1 DC-DC Controller Design Tool
A3: About | C3: xx | F3: = Input Box | O3: TERMS OF USE
A5: Step 1: Operating Specifications
D6: Input Voltage ‒ Min, VIN(min) | E6: 10 | F6: V
D7: Input Voltage ‒ Nom, VIN(nom) | E7: 51.8 | F7: V
D8: Input Voltage ‒ Max, VIN(max) | E8: 65 | F8: V
D9: Output Voltage, VOUT | E9: 8.4 | F9: V
D10: Maximum Output Current, IOUT | E10: 10 | F10: A
D11: Free-running Switching Frequency, FSW | E11: 400 | F11: kHz
D12: SYNC Frequency (if used), FSW-SYNC | E12: 400 | F12: kHz
D13: Frequency Set Resistor, RRT | E13: ='Standard Value Calculator'!S4/1000 -> 24.9 | F13: kΩ
A15: Step 2: Filter Inductor
D16: Recommended Filter Inductance | E16: =Lout1*1000000 -> 5.28366204 | F16: µH
D17: Inductance, LF | E17: 6.8 | F17: µH
D18: Inductor DCR | E18: 12 | F18: mΩ
D19: Pk-to-Pk Ripple Current at VIN(nom), DIL | E19: =Iripple1 -> 2.661372018 | F19: Apk-pk
D20: Inductor Ripple Current as a % of Max IOUT | E20: =Iripple1/Iout*100 -> 26.61372018 | F20: %
A22: Step 3: RDS(on) or Shunt-Based Current Limit
D23: Shunt, RS | E23: 2 | F23: mΩ | S23: \
D24: Required Current Limit Setpoint | E24: 12 | F24: A
D25: Current Limit Set Resistor, RILIM | E25: =IF(RDSON_sense=1, Rilim_Rdson, Rilim_shunt) -> 536 | F25: Ω
D26: Min Inductor Sat Current, IL(SAT) | E26: ='Variable Management'!B51 -> 15.6 | F26: A
D27: Power Loss in RS at Full Load, Max VIN | E27: =_Rs3 -> 0.15 | F27: W
A29: Step 4: Output Capacitance
D30: Output Voltage Ripple Specification | E30: 100 | F30: mVpk-pk
D31: Minimum Ideal Output Capacitance | E31: =Coutmin*1000000 -> 8.316787556 | F31: µF
D32: Total Output Capacitance (Derated), COUT | E32: 50 | F32: µF
D33: Maximum Permitted ESR | E33: =IF(ISERROR(Resrmax*1000),"N/A",Resrmax*1000) -> 37.05115889 | F33: mΩ
D34: Output Capacitor ESR | E34: 1 | F34: mΩ
D35: Resulting Output Voltage Ripple | E35: =Vripple2*1000 -> 16.84513942 | F35: mVpk-pk
D36: Output Capacitor Ripple Current | E36: =Icoutrms -> 0.7682719255 | F36: A (rms)
A38: Step 5: Input Capacitance
D39: Input Voltage Ripple Specification | E39: 500 | F39: mVpk-pk
D40: Minimum Ideal Input Capacitance | E40: ='Variable Management'!B80*1000000 -> 6.948743578 | F40: µF
D41: Total Input Capacitance (Derated), CIN | E41: 18 | F41: µF
D42: Maximum Permitted ESR | E42: =IF(CinEsrMax*1000<0,"N/A",CinEsrMax*1000) -> 27.09274132 | F42: mΩ
D43: Input Capacitor ESR | E43: 1 | F43: mΩ
D44: Resulting Input Voltage Ripple | E44: =Vinripple2*1000 -> 204.351341 | F44: mVpk-pk
D45: Input Capacitor Ripple Current | E45: =Icinrms -> 3.727933363 | F45: A (rms)
A47: Step 6: Soft-start, UVLO
D48: Soft-Start Time, tSS | E48: 4 | F48: ms
D49: Soft-Start Capacitance, CSS | E49: =Css_u*1000000000 -> 47 | F49: nF
D50: Input Voltage UVLO Turn-On | E50: 10 | F50: V
D51: Input Voltage UVLO Turn-Off | E51: 9 | F51: V
D52: UVLO Upper Resistor, RUV1 | E52: ='Variable Management'!F97 -> 100 | F52: kΩ
D53: UVLO Lower Resistor, RUV2 | E53: ='Variable Management'!F98 -> 13.7 | F53: kΩ
A54: If the SYNC feature is not required, connect SYNCIN to GND
A55: or VCC for DCM or CCM operation, respectively
A57: Step 7: Compensation Design
D58: LC Complex Pole Frequency | E58: =Fo/1000 -> 8.687655505 | F58: kHz
D59: ESR Zero Frequency | E59: =Fesr/1000 -> 3183.098865 | F59: kHz
D60: Desired Crossover Frequency | E60: 50 | F60: kHz
D61: Appropriate Midband Gain | E61: =Kmidband -> 0.3836861776 | F61: V/V
D62: Upper Feedback Resistor, RFB1 | E62: 18 | F62: kΩ
D63: Lower Feedback Resistor, RFB2 | E63: =IF(Vout=Vref,"OPEN",Rfb2_u/1000) -> 1.91 | F63: =IF(Vout=Vref,"","kΩ") -> kΩ
D64: Actual Output Voltage, VOUT | E64: ='Variable Management'!B129 -> 8.339267016 | F64: V
A66: Pole & Zero Placement | D66: FZ1 | E66: =Fo/1000*0.7 -> 6.081358853 | F66: =" kHz " -> kHz
A67: =" Baseline P/Z Frequencies:" -> Baseline P/Z Frequencies: | D67: FZ2 | E67: =Fo/1000*0.9 -> 7.818889954 | F67: =" kHz" -> kHz
D68: FP1 | E68: =Fesr/1000 -> 3183.098865 | F68: =" kHz" -> kHz
D69: FP2 | E69: =Fsw/2000 -> 200 | F69: =" kHz" -> kHz
A71: Compensation Components
B72: Calculated / | C72: Std Values | D72: =" Selected" -> Selected | F72: Actual P/Z Frequencies
A73: RC1 | B73: =Rcea1/1000 -> 6.906351198 | C73: ='Standard Value Calculator'!S27 -> 6.98 | D73: 8.02 | E73: kΩ | F73: =Fz1_u/1000 -> 4.222288515 | G73: kHz (FZ1)
A74: CC1 | B74: =Cc1ea*1000000000000 -> 3789.403411 | C74: ='Standard Value Calculator'!S28 -> 3900 | D74: 4700 | E74: pF | F74: =Fz2_u/1000 -> 8.816911062 | G74: kHz (FZ2)
A75: CC2 | B75: =Cc2ea*1000000000000 -> 118.8370641 | C75: ='Standard Value Calculator'!S29 -> 120 | D75: 100 | E75: pF | F75: =Fp1_u/1000 -> 3114.578146 | G75: kHz (FP1)
A76: RC2 | B76: =Rcea2 -> 44.32365658 | C76: ='Standard Value Calculator'!S30 -> 44.2 | D76: 51.1 | E76: Ω | F76: =Fp2_u/1000 -> 202.6698487 | G76: kHz (FP2)
A77: CC3 | B77: =Cc3ea*1000000000000 -> 1128.065775 | C77: ='Standard Value Calculator'!S31 -> 1200 | D77: 1000 | E77: pF | L77: ** Specify Inductor Core Loss ** | M77: 0.4 | N77: W
A79: Efficiency / Power Loss Analyzer
A81: Step 8: Efficiency
D83: High-Side MOSFET (Q1) Specifications | E83: NVMFS6B25NL
D84: On-State Resistance, RDS(on) | E84: 22 | F84: mΩ
D85: Total Gate Charge, QG | E85: 10.5 | F85: nC
D86: Gate-Drain Charge, QGD | E86: 1.8 | F86: nC
D87: Gate-Source Charge, QGS | E87: 3.6 | F87: nC
D88: Output Capacitance, COSS | E88: 302 | F88: pF
D89: Gate Resistance, RG | E89: 2 | F89: Ω
D90: Transconductance, gFS | E90: 10 | F90: S
D91: Gate-Source Threshold Voltage, VGS(TH) | E91: 3.7 | F91: V
D92: Body Diode Forward Voltage, VBD1 | E92: 0.8 | F92: V
D93: Thermal Resistance, θJA | E93: 42 | F93: °C/W
D95: Low-Side MOSFET (Q2) Specifications | E95: NVMFS6B14NL
D96: On-State Resistance, RDS(on) | E96: 10 | F96: mΩ
D97: Total Gate Charge, QG | E97: 13 | F97: nC
D98: Output Charge, QOSS | E98: 20 | F98: nC
D99: Output Capacitance, COSS | E99: 580 | F99: pF
D100: Body Diode Forward Voltage, VBD2 | E100: 0.9 | F100: V
D101: Body Diode Recovery Charge, QRR | E101: 50 | F101: nC
D102: Thermal Resistance, θJA | E102: 40 | F102: °C/W
D103: Antiparallel Schottky Diode (if applicable)
D104: Schottky Diode Forward Voltage, VSD | E104: 0 | F104: V
D105: Schottky Diode Recovery Charge, QRR2 | E105: 0 | F105: nC

Sheet Schematic & BOM
B34: ** Tie SYNCIN to VCC and GND for CCM and DCM operation, respectively **
A35: ="VIN = "&Vin&" V, VOUT = "& Vout &" V, IOUT = " &Iout & " A, Fsw = " & Fsw/1000 &" kHz, Current Limit = "&ROUNDUP(DC_Current_Limit_Setpoint,0)&" A" -> VIN = 51.8 V, VOUT = 8.4 V, IOUT = 10 A, Fsw = 400 kHz, Current Limit = 12 A
A36: Wide VIN, High Efficiency Synchronous Buck Regulator BOM
A37: Count | B37: Ref Des | C37: Value | D37: Description | H37: Size | I37: Part Number | J37: MFR | K37: Footprint (mm) | L37: Area (mm2)
A38: 1 | B38: CBOOT | C38: 0.1 | D38: =C38 -> 0.1 | I38: Std | J38: Std | K38: =CHOOSE(Q38, 'Variable Management'!N69,'Variable Management'!N70,'Variable Management'!N71) -> 1.6 x 0.8 | L38: =CHOOSE(Q38, 'Variable Management'!O69,'Variable Management'!O70,'Variable Management'!O71) -> 1.3 | Q38: 2
A39: 1 | B39: CC1 | C39: ='Design Regulator'!D74 -> 4700 | D39: 4700 | I39: Std | J39: Std | K39: =CHOOSE(Q39, 'Variable Management'!N69,'Variable Management'!N70,'Variable Management'!N71) -> 1.0 x 0.5 | L39: =CHOOSE(Q39, 'Variable Management'!O69,'Variable Management'!O70,'Variable Management'!O71) -> 0.5 | Q39: 1
A40: 1 | B40: CC2 | C40: ='Design Regulator'!D75 -> 100 | D40: 100 | I40: Std | J40: Std | K40: =CHOOSE(Q40, 'Variable Management'!N69,'Variable Management'!N70,'Variable Management'!N71) -> 1.0 x 0.5 | L40: =CHOOSE(Q40, 'Variable Management'!O69,'Variable Management'!O70,'Variable Management'!O71) -> 0.5 | Q40: 1
A41: 1 | B41: CC3 | C41: ='Design Regulator'!D77 -> 1000 | D41: 1000 | I41: Std | J41: Std | K41: =CHOOSE(Q41, 'Variable Management'!N69,'Variable Management'!N70,'Variable Management'!N71) -> 1.0 x 0.5 | L41: =CHOOSE(Q41, 'Variable Management'!O69,'Variable Management'!O70,'Variable Management'!O71) -> 0.5 | Q41: 1
A42: 1 | B42: CS | C42: ='Variable Management'!B270 -> 10pF | D42: ="Capacitor, Ceramic, "&'Variable Management'!B270&", 100V, X7R, 20%" -> Capacitor, Ceramic, 10pF, 100V, X7R, 20% | I42: Std | J42: Std | K42: =CHOOSE(Q42, 'Variable Management'!N69,'Variable Management'!N70,'Variable Management'!N71) -> 1.6 x 0.8 | L42: =CHOOSE(RDSON_sense,CHOOSE(Q42,'Variable Management'!O69,'Variable Management'!O70,'Variable Management'!O71),0) -> 1.3 | Q42: 2
A43: =ROUNDUP('Design Regulator'!E41/10,0) -> 2 | B43: CIN | C43: ='Variable Management'!B249 -> 4.7µF | D43: =CHOOSE(Cin_Voltage_Rating, "Capacitor, Ceramic, "&'Variable Management'!B249&", 10V, X7R, 10%", "Capacitor, Ceramic, "&'Variable Management'!B249&", 16V, X7R, 10%", "Capacitor, Ceramic, "&'Variable Management'!B249&", 25V, X7R, 10%", "Capacitor, Ceramic, "&'Variable Management'!B249&", 50V, X7R, 10%", "Capacitor, Ceramic, "&'Variable Management'!B249&", 100V, X7S, 10%") -> Capacitor, Ceramic, 4.7µF, 100V, X7S, 10% | I43: Std | J43: Std | K43: =CHOOSE(Q43, 'Variable Management'!N69,'Variable Management'!N70,'Variable Management'!N71,'Variable Management'!N72,'Variable Management'!N73) -> 3.2 x 2.5 | L43: =CHOOSE(Q43, 'Variable Management'!O69,'Variable Management'!O70,'Variable Management'!O71,'Variable Management'!O72,'Variable Management'!O73)*A43 -> 16 | Q43: 5
A44: ='Variable Management'!D242 -> 3 | B44: COUT | C44: ='Variable Management'!F243 -> 22µF | D44: =CHOOSE(Cout_Voltage_Rating, "Capacitor, Ceramic, "&'Variable Management'!B244&", 6.3V, X7R, 10%", "Capacitor, Ceramic, "&'Variable Management'!B244&", 10V, X7R, 10%", "Capacitor, Ceramic, "&'Variable Management'!B244&", 16V, X7R, 10%", "Capacitor, Ceramic, "&'Variable Management'!B244&", 25V, X7R, 10%", "Capacitor, Ceramic, "&'Variable Management'!B244&", 50V, X7R, 10%", "Capacitor, Ceramic, "&'Variable Management'!B244&", 100V, X7R, 10%") -> Capacitor, Ceramic, 22µF, 16V, X7R, 10% | I44: Std | J44: Std | K44: =CHOOSE(Q44, 'Variable Management'!N69,'Variable Management'!N70,'Variable Management'!N71,'Variable Management'!N72,'Variable Management'!N73) -> 3.2 x 2.5 | L44: =CHOOSE(Q44, 'Variable Management'!O69,'Variable Management'!O70,'Variable Management'!O71,'Variable Management'!O72,'Variable Management'!O73)*A44 -> 24 | Q44: 5
A45: 1 | B45: CSS | C45: ='Design Regulator'!E49 -> 47 | D45: =C45 -> 47 | I45: Std | J45: Std | K45: =CHOOSE(Q45, 'Variable Management'!N69,'Variable Management'!N70,'Variable Management'!N71) -> 1.6 x 0.8 | L45: =CHOOSE(Q45, 'Variable Management'!O69,'Variable Management'!O70,'Variable Management'!O71) -> 1.3 | Q45: 2
A46: 1 | B46: CVCC | C46: 2.2 | D46: 2.2 | I46: Std | J46: Std | K46: =CHOOSE(Q46, 'Variable Management'!N69,'Variable Management'!N70,'Variable Management'!N71) -> 2.0 x 1.25 | L46: =CHOOSE(Q46, 'Variable Management'!O69,'Variable Management'!O70,'Variable Management'!O71) -> 2.5 | Q46: 3
A47: 1 | B47: CVIN | C47: 0.1 | D47: 0.1 | I47: Std | J47: Std | K47: =CHOOSE(Q47, 'Variable Management'!N69,'Variable Management'!N70,'Variable Management'!N71) -> 1.6 x 0.8 | L47: =CHOOSE(Q47, 'Variable Management'!O69,'Variable Management'!O70,'Variable Management'!O71) -> 1.3 | Q47: 2
A48: 1 | B48: LF | C48: ='Design Regulator'!E17 -> 6.8 | D48: ="Inductor, "&Lout2*1000000&"µH, "&Rdcr*1000&"mΩ, >"&ROUNDUP(Ilsat,0)&"A" -> Inductor, 6.8µH, 12mΩ, >16A | I48: Various | J48: Various | K48: =CHOOSE(Q48, 'Variable Management'!N78,'Variable Management'!N79,'Variable Management'!N80, 'Variable Management'!N81, 'Variable Management'!N82, 'Variable Management'!N83, 'Variable Management'!N84, 'Variable Management'!N85) -> 10.0 x 10.0 | L48: =CHOOSE(Q48, 'Variable Management'!O78,'Variable Management'!O79,'Variable Management'!O80, 'Variable Management'!O81, 'Variable Management'!O82, 'Variable Management'!O83, 'Variable Management'!O84, 'Variable Management'!O85) -> 100 | Q48: 7
A49: =R49 -> 1 | B49: Q1 | C49: See description | D49: ='Design Regulator'!E84 -> 22 | I49: ='Design Regulator'!E83 -> NVMFS6B25NL | J49: TI | K49: =CHOOSE(Q49, 'Variable Management'!N48,'Variable Management'!N49,'Variable Management'!N50,'Variable Management'!N51) -> 5.0 x 6.0 | L49: =CHOOSE(Q49, 'Variable Management'!O48,'Variable Management'!O49,'Variable Management'!O50,'Variable Management'!O51)*R49 -> 30 | Q49: 1 | R49: 1
A50: =R50 -> 1 | B50: Q2 | C50: See description | D50: ='Design Regulator'!E96 -> 10 | I50: ='Design Regulator'!E95 -> NVMFS6B14NL | J50: TI | K50: =CHOOSE(Q50, 'Variable Management'!N48,'Variable Management'!N49,'Variable Management'!N50,'Variable Management'!N51) -> 5.0 x 6.0 | L50: =CHOOSE(Q50, 'Variable Management'!O48,'Variable Management'!O49,'Variable Management'!O50,'Variable Management'!O51)*R50 -> 30 | Q50: 1 | R50: 1
A52: 1 | B52: RC1 | C52: ='Design Regulator'!D73 -> 8.02 | D52: =C52 -> 8.02 | I52: Std | J52: Std | K52: =CHOOSE(Q52, 'Variable Management'!N69,'Variable Management'!N70,'Variable Management'!N71) -> 1.0 x 0.5 | L52: =CHOOSE(Q52, 'Variable Management'!O69,'Variable Management'!O70,'Variable Management'!O71) -> 0.5 | Q52: 1
A53: 1 | B53: RC2 | C53: ='Design Regulator'!D76 -> 51.1 | D53: 51.1 | I53: Std | J53: Std | K53: =CHOOSE(Q52, 'Variable Management'!N69,'Variable Management'!N70,'Variable Management'!N71) -> 1.0 x 0.5 | L53: =CHOOSE(Q53, 'Variable Management'!O69,'Variable Management'!O70,'Variable Management'!O71) -> 0.5 | Q53: 1
A54: 1 | B54: RILIM | C54: ='Design Regulator'!E25 -> 536 | D54: 536 | I54: Std | J54: Std | K54: =CHOOSE(Q52, 'Variable Management'!N69,'Variable Management'!N70,'Variable Management'!N71) -> 1.0 x 0.5 | L54: =CHOOSE(Q54, 'Variable Management'!O69,'Variable Management'!O70,'Variable Management'!O71) -> 2.5 | Q54: 3
A55: 1 | B55: RRT | C55: ='Design Regulator'!E13 -> 24.9 | D55: 24.9 | I55: Std | J55: Std | K55: =CHOOSE(Q55, 'Variable Management'!N69,'Variable Management'!N70,'Variable Management'!N71) -> 1.0 x 0.5 | L55: =CHOOSE(Q55, 'Variable Management'!O69,'Variable Management'!O70,'Variable Management'!O71) -> 0.5 | Q55: 1
A56: 1 | B56: RFB1 | C56: ='Design Regulator'!E62 -> 18 | D56: 18 | I56: Std | J56: Std | K56: =CHOOSE(Q56, 'Variable Management'!N69,'Variable Management'!N70,'Variable Management'!N71) -> 1.0 x 0.5 | L56: =CHOOSE(Q56, 'Variable Management'!O69,'Variable Management'!O70,'Variable Management'!O71) -> 0.5 | Q56: 1
A57: 1 | B57: RFB2 | C57: ='Design Regulator'!E63 -> 1.91 | D57: 1.91 | I57: Std | J57: Std | K57: =CHOOSE(Q57, 'Variable Management'!N69,'Variable Management'!N70,'Variable Management'!N71) -> 1.0 x 0.5 | L57: =CHOOSE(Q57, 'Variable Management'!O69,'Variable Management'!O70,'Variable Management'!O71) -> 0.5 | Q57: 1
A58: 1 | B58: RPGOOD | C58: 20 | D58: 20 | I58: Std | J58: Std | K58: =CHOOSE(Q58, 'Variable Management'!N69,'Variable Management'!N70,'Variable Management'!N71) -> 1.0 x 0.5 | L58: =CHOOSE(Q58, 'Variable Management'!O69,'Variable Management'!O70,'Variable Management'!O71) -> 0.5 | Q58: 1
A59: 1 | B59: RS | C59: ='Design Regulator'!E23 -> 2 | D59: 2 | H59: 1206 | I59: Std | J59: Std | K59: 3.2 x 1.6 | L59: =CHOOSE(RDSON_sense, 0,5.1) -> 0
A60: 1 | B60: RUV1 | C60: ='Design Regulator'!E52 -> 100 | D60: 100 | I60: Std | J60: Std | K60: =CHOOSE(Q60, 'Variable Management'!N69,'Variable Management'!N70,'Variable Management'!N71) -> 1.6 x 0.8 | L60: =CHOOSE(Q60, 'Variable Management'!O69,'Variable Management'!O70,'Variable Management'!O71) -> 1.3 | Q60: 2
A61: 1 | B61: RUV2 | C61: ='Design Regulator'!E53 -> 13.7 | D61: 13.7 | I61: Std | J61: Std | K61: =CHOOSE(Q61, 'Variable Management'!N69,'Variable Management'!N70,'Variable Management'!N71) -> 1.0 x 0.5 | L61: =CHOOSE(Q61, 'Variable Management'!O69,'Variable Management'!O70,'Variable Management'!O71) -> 0.5 | Q61: 1
A62: 1 | B62: RVIN | C62: 2.2 | D62: 2.2 | I62: Std | J62: Std | K62: =CHOOSE(Q62, 'Variable Management'!N69,'Variable Management'!N70,'Variable Management'!N71) -> 1.0 x 0.5 | L62: =CHOOSE(Q62, 'Variable Management'!O69,'Variable Management'!O70,'Variable Management'!O71) -> 0.5 | Q62: 1
A63: 1 | B63: U1 | C63: LM5146-Q1 | D63: IC, LM5146-Q1, PWM Controller, 5.5V-95V Input | H63: VQFN-20 | I63: LM5146QRGYRQ1 | J63: TI | K63: 3.5 x 4.5 x 1.0 | L63: 15.75
I65: Total Solution Size (buffered by 25%) | L65: =SUM(L38:L63)*1.25 -> 290.9375 | M65: mm2 = | N65: =L65/25.4/25.4 -> 0.4509540269 | O65: in2
A66: NOTES:
A67: ** Inductor saturation current should be higher than the current limit setpoint at all operating temperatures **
A68: ** Effective output capacitance should be appropriately derated for applied voltage and temperature, particularly with ceramics **
Q455: 2

Sheet EVM
A1: LM5146-Q1 Quickstart Calculator
B3: LM5146-Q1-EVM12V
Y51: x

Sheet Variable Management (hidden)
A1: Excel Variables Names/Calculations
B2: Input from user =
B3: Output =
B4: Constant
A5: Variable Name | B5: Value | C5: STD Units | D5: Notes | H5: iteration
A6: Step 1: Operational Specs
A7: Vin | B7: ='Design Regulator'!E7 -> 51.8 | C7: V | D7: Nominal input voltage | H7: 1
A8: Vinmin | B8: ='Design Regulator'!E6 -> 10 | C8: V | D8: Min input voltage
A9: Vinmax | B9: ='Design Regulator'!E8 -> 65 | C9: V | D9: Max input voltage
A10: Vout | B10: ='Design Regulator'!E9 -> 8.4 | C10: V | D10: Output Voltage | H10: 1
A11: Iout | B11: ='Design Regulator'!E10 -> 10 | C11: A | D11: Maximum output Current | H11: 1
A12: Fsw | B12: =IF(AND('Design Regulator'!E12<='Design Regulator'!E11*1.5, 'Design Regulator'!E12>='Design Regulator'!E11*0.8), 'Design Regulator'!E12*1000, 'Design Regulator'!E11*1000) -> 400000 | C12: Hz | D12: Nominal Operational Frequency | H12: 1
A13: Fsw_freerunning | B13: ='Design Regulator'!E11*1000 -> 400000 | C13: Hz | D13: Free-running switching frequency
A14: Vref | B14: 0.8 | C14: V | D14: Reference Voltage
A15: R_RT | B15: =1/(B13*0.0000000001) -> 25000 | C15: W
A17: Ton at Vin-max | B17: =B38/Fsw*1000000000 -> 332.1516646 | C17: ns
A18: Toff at Vin-min | B18: =B37/Fsw*1000000000 -> 318.8259109 | C18: ns
A22: Step 2: Inductor
A23: Don1 | B23: =Vout/Vin -> 0.1621621622 | C23: index | D23: ideal Duty Cycle | H23: 1
A24: Doff1 | B24: =1-23:23 -> 0.8378378378 | C24: index | D24: Ideal 1- Duty Cycle | H24: 1
A25: Don_Vinmin | B25: =Vout/Vinmin -> 0.84
A26: Doff_Vinmin | B26: =1-B25 -> 0.16
A27: Don_Vinmax | B27: =Vout/Vinmax -> 0.1292307692
A28: Doff_Vinmax | B28: =1-B27 -> 0.8707692308
A30: Lout1 | B30: =(Vin-Vout)*_Don1/(Fsw*Iout*0.333) -> 5.28366204e-06 | C30: H | D30: Calculated Inductor value for 30% ripple | H30: 1
A31: Lout2 | B31: ='Design Regulator'!E17/1000000 -> 6.8e-06 | C31: H | D31: Chosen Inductor Value | H31: 2
A32: Rdcr | B32: ='Design Regulator'!E18/1000 -> 0.012 | C32: W | D32: DCR | H32: 1
A34: Don2 | B34: =(Vout+(Rdcr+RdsonBot)*Iout)/(Vin+(RdsonBot-RdsonTop)*Iout) -> 0.1667956656 | D34: Duty Cycle with DCR accounted for | H34: 2
A35: Doff2 | B35: =1-_Don2 -> 0.8332043344 | D35: 1-Duty Cycle with DCR accounted for | H35: 2
A36: Don2_Vinmin | B36: =(Vout+(Rdcr+RdsonBot)*Iout)/(Vinmin+(RdsonBot-RdsonTop)*Iout) -> 0.8724696356
A37: Doff2_Vinmin | B37: =1-B36 -> 0.1275303644
A38: Don2_Vinmax | B38: =(Vout+(Rdcr+RdsonBot)*Iout)/(Vinmax+(RdsonBot-RdsonTop)*Iout) -> 0.1328606658 | L38: Vout<5V | M38: 100 | N38: 1
A39: Doff2_Vinmax | B39: =1-B38 -> 0.8671393342 | L39: Vout<=8V | M39: 47 | N39: 2
L40: Vout<=12V | M40: 22 | N40: 3
A41: Vripple1 | B41: ='Design Regulator'!E30/1000 -> 0.1 | C41: V | D41: Choosen Initial Voltage ripple Value | H41: 1 | L41: Vout<=20V | M41: 22 | N41: 4
A42: Irripple1 | B42: =(Vin-Vout)*_Don2/(Fsw*Lout2) -> 2.661372018 | C42: A | D42: Ripple Current after Chosen inductor (p-p) | H42: 1 | L42: Vout<=42V | M42: 10 | N42: 5
A43: DCR at hot | B43: =Rdcr*(1+0.0039*(F43-25)) -> 0.01551 | C43: Ohms | E43: Temp | F43: 100 | L43: Vout<60V | M43: 4.7 | N43: 6
A44: TL | B44: =Lout2/Rdcr -> 0.0005666666667 | C44: s | D44: L/R Time Constant | L44: Cout Capacitance | M44: =CHOOSE(N44,"100", "47","22","22","10", "4.7") -> 22 | N44: =IF(Vout<5, 1, IF(Vout<=8, 2, IF(Vout<=12, 3, IF(Vout<=20, 4, IF(Vout<=42, 5, 6))))) -> 3 | Q44: Quantity: 1 | R44: 1
Q45: Quantity: 2 | R45: 2
A46: Step 3: Current Limit
L48: SON 5 x 6 | M48: 1 | N48: 5.0 x 6.0 | O48: 30
A49: DC Current Limit Setpoint | B49: ='Design Regulator'!E24 -> 12 | L49: SON 3 x 3 | M49: 2 | N49: 3.3 x 3.3 | O49: 10.9
A50: Ilimit | B50: ='Design Regulator'!E24-Iripple1/2 -> 10.66931399 | C50: A | D50: Chosen current limit level - valley current | L50: DPAK, TO-252 | M50: 3 | N50: 10.0 x 6.6 | O50: 66
A51: Ilsat | B51: =ROUND('Design Regulator'!E24+Iripple1/2,0)*1.2 -> 15.6 | C51: A | L51: D2PAK, TO-263 | M51: 4 | N51: 15.0 x 10.0 | O51: 150
K52: MOSFET package | L52: =CHOOSE(M52, L48, L49, L50, L51) -> SON 5 x 6 | M52: 1
A53: Ilim1 | B53: 0.0002 | C53: A | D53: Current Limit Current Source - Rdson sensing
A54: Ilim2 | B54: 0.0001 | C54: A | D54: Current Limit Current Source - shunt sensing | L54: RDS(on) sensing | M54: 1
A55: Rilim_Rdson_ideal | B55: =ILimit*RdsonBot/Ilim1 -> 533.4656996 | C55: W | D55: Ideal Rset for the chosen current limit | L55: Shunt sensing | M55: 2
A56: Rilim_Rdson | B56: ='Standard Value Calculator'!S6 -> 536 | C56: W | D56: Standard value current limit set resistor | K56: Current Sensing | L56: =CHOOSE(RDSON_sense, L54,L55) -> RDS(on) sensing | M56: 1 | N56: 1 = Yes, 2 = No
A58: Rshunt | B58: ='Design Regulator'!E23/1000 -> 0.002 | C58: W
A59: Rilim_shunt_ideal | B59: =ILimit*Rshunt/Ilim2 -> 213.3862798 | C59: W | K59: Vout<5V | L59: 6.3V | M59: 1
A60: Rilim_shunt | B60: ='Standard Value Calculator'!S22 -> 215 | C60: W | D60: Standard value current limit set resistor | K60: Vout<=8V | L60: 10V | M60: 2 | Q60: Vin(max)<=8V | R60: 10V | S60: 1
K61: Vout<=12V | L61: 16V | M61: 3 | Q61: Vin(max)<=12V | R61: 16V | S61: 2
A62: Power dissipation in the shunt | B62: =ROUND(((1-Don_Vinmax)*Iout)^2*Rshunt,2) -> 0.15 | C62: W | K62: Vout<=20V | L62: 25V | M62: 4 | Q62: Vin(max)<=20V | R62: 25V | S62: 3
A64: Cilim | B64: =0.000000006/Rilim_Rdson_ideal - 0.000000000002 -> 9.247208593e-12 | C64: F | D64: Choose cap for 6ns time constant | K64: Vout<=42V | L64: 50V | M64: 5 | Q64: Vin(max)<=42V | R64: 50V | S64: 4
A65: Cilim_ideal | B65: ='Standard Value Calculator'!S23 -> 10 | C65: pF | K65: Vout<60V | L65: 100V | M65: 6 | Q65: Vin(max)<100V | R65: 100V | S65: 5
A66: Ilimit2 | B66: =Ics*Rset/Rdcr-Iripple1/2 ->  | C66: A | D66: Current limit setpoint after standard components are selected | K66: Cout Voltage Rating | L66: =CHOOSE(M66,"6.3V","10V","16V","25V","50V","100V") -> 16V | M66: =IF(Vout<5, 1, IF(Vout<=8, 2, IF(Vout<=12, 3, IF(Vout<=20, 4, IF(Vout<=42, 5, 6))))) -> 3 | Q66: Cin Voltage Rating | R66: =CHOOSE(S66,"10V","16V","25V","50V","100V") -> 100V | S66: =IF(Vinmax<=8,1,IF(Vinmax<=12,2,IF(Vinmax<=20,3,IF(Vinmax<=42,4,5)))) -> 5
A68: Step 4: Output Capacitor
A69: Icoutrms | B69: =Iripple1/SQRT(3)/2 -> 0.7682719255 | C69: A | D69: Output Cap rms current | L69: 0402 | M69: 1 | N69: 1.0 x 0.5 | O69: 0.5
A70: Coutmin | B70: =(Iripple1/(Vripple1*Fsw*8)) -> 8.316787556e-06 | C70: F | D70: Minimum Output Capacitnace | H70: 1 | L70: 0603 | M70: 2 | N70: 1.6 x 0.8 | O70: 1.3
A71: Cout | B71: ='Design Regulator'!E32/1000000 -> 5e-05 | C71: F | D71: Choosen Output Capacitor | H71: 1 | L71: 0805 | M71: 3 | N71: 2.0 x 1.25 | O71: 2.5
A72: Resrmax | B72: =SQRT((Vripple1/Iripple1)^2-(1/(Fsw*Cout*8))^2) -> 0.03705115889 | C72: W | D72: Max ESR before ripple exceeds Vripple1 | H72: 1 | L72: 1206 | M72: 4 | N72: 3.2 x 1.6 | O72: 5.1
A73: CoutEsr | B73: ='Design Regulator'!E34/1000 -> 0.001 | C73: W | D73: Chosen ESR | H73: 1 | L73: 1210 | M73: 5 | N73: 3.2 x 2.5 | O73: 8
A74: Vripple | B74: =Iripple1*SQRT(CoutEsr^2+(1/(8*Fsw*Cout))^2) -> 0.01684513942 | C74: Vp-p | K74: Component Size | L74: =CHOOSE(M74,"0402","0603","0805","1206","1210") -> 1210 | M74: 5 | N74: =CHOOSE(M74,N69,N70, N71,N72,N73) -> 3.2 x 2.5
A77: Step 5: Input Capacitor
A78: Vinripple1 | B78: ='Design Regulator'!E39/1000 -> 0.5 | C78: Vp-p | L78: 3mm x 3mm | M78: 1 | N78: 3.0 x 3.0 | O78: 9
A79: Icinrms | B79: =Iout*SQRT(_Don2*Doff2) -> 3.727933363 | C79: A | L79: 4mm x 4mm | M79: 2 | N79: 4.0 x 4.0 | O79: 16
A80: Cinmin | B80: =Iout*_Don2*(1-_Don2)/(Vinripple1*Fsw) -> 6.948743578e-06 | C80: F | L80: 5mm x 5mm | M80: 3 | N80: 5.0 x 5.0 | O80: 25
A81: Cin | B81: ='Design Regulator'!E41/1000000 -> 1.8e-05 | C81: F | D81: Input capacitance | L81: 6mm x 6mm | M81: 4 | N81: 6.0 x 6.0 | O81: 36
A82: CinEsrMax | B82: =-(Iout*_Don2*(1-_Don2)/(Cin*Fsw)-Vinripple1)/(Iout+Iripple1/2) -> 0.02709274132 | C82: W | L82: 7mm x 7mm | M82: 5 | N82: 7.0 x 7.0 | O82: 49
A83: RCinEsr | B83: ='Design Regulator'!E43/1000 -> 0.001 | C83: W | D83: Input capacitance series resistance (ESR) | L83: 8mm x 8mm | M83: 6 | N83: 8.0 x 8.0 | O83: 64
A84: Vinripple2 | B84: =Iout*_Don2*(1-_Don2)/(Cin*Fsw)+(Iout +Iripple1/2)*RCinEsr -> 0.204351341 | C84: Vp-p | L84: 10mm x 10mm | M84: 7 | N84: 10.0 x 10.0 | O84: 100
B85: =Iout*_Don1*(1-_Don1)/(Cin*Fsw) -> 0.1887022157 | L85: 12mm x 12mm | M85: 8 | N85: 12.0 x 12.0 | O85: 144
K86: Inductor Size | L86: =CHOOSE(M86,L78,L79, L80, L81, L82, L83, L84, L85) -> 12mm x 12mm | M86: 8 | N86: =CHOOSE(M86,N78,N79, N80,N81,N82, N83, N84, N85) -> 12.0 x 12.0
A87: Step 6: Soft Start
A88: Tss | B88: ='Design Regulator'!E48/1000 -> 0.004 | C88: s | D88: Soft Start Time
A89: Iss | B89: =Cout*Vout/Tss -> 0.105 | C89: A | D89: Load Cap current during soft start
A90: Css | B90: =0.00001*Tss/0.8 -> 5e-08 | C90: F
A91: Css_u | B91: ='Standard Value Calculator'!B4 -> 4.7e-08 | C91: F
A93: Step 7: Other Components
A95: VINUVLO_ON | B95: ='Design Regulator'!E50 -> 10 | C95: V
A96: VINUVLO_OFF | B96: ='Design Regulator'!E51 -> 9 | C96: V
A97: RUV1 | B97: =(VINuvlo_off-VINuvlo_on*Vuvlo_off/Vuvlo_on)/(Iuvlo1*Vuvlo_off/Vuvlo_on-Iuvlo2) -> 100 | C97: kΩ | D97: ='Standard Value Calculator'!S16 -> 100 | E97: kΩ | F97: =IF(Ruvlo1<0,"N/A",D97) -> 100 | G97: =IF(Ruvlo1<0,"N/A",D97&"kΩ") -> 100kΩ
A98: RUV2 | B98: =D97*Vuvlo_on/(VINuvlo_on-Vuvlo_on+Ruvlo1*Iuvlo1) -> 13.63636364 | C98: kΩ | D98: ='Standard Value Calculator'!S17 -> 13.7 | E98: kΩ | F98: =IF(F97="N/A","N/A",D98) -> 13.7 | G98: =IF(G97="N/A","N/A",D98&"kΩ") -> 13.7kΩ
A100: VINUVLO_ON_ACTUAL | B100: =(D97+D98)/D98*Vuvlo_on-Iuvlo1*D97 -> 9.959124088
A101: VINUVLO_OFF_ACTUAL | B101: =(D97+D98)/D98*Vuvlo_off-Iuvlo2*D97 -> 8.959124088
A104: Rising UVLO/EN Threshold | B104: 1.2
A105: Falling UVLO/EN Threshold | B105: 1.2
A106: Falling UVLO/EN Threshold | B106: =B104-B105 -> 0
A107: UVLO/EN Current Hysteresis | B107: 0
A108: Falling UVLO/EN Falling | B108: 0.01
A109: Rising UVLO/EN Hysteresis | B109: =B108-B107 -> 0.01
A111: RPG | C111: W
A112: RSB | C112: W
A113: Rh | C113: W
A114: Rotp | B114: =80700/(Totp+273)*398 ->  | C114: W
A117: CSBY | B117: 100 | C117: pF
A121: Step 8: Compensation
A122: Eadcg | B122: 10000 | C122: V/V | D122: Error Amplifier Finite DC Gain (AOL)
A123: GBP | B123: 5000000 | C123: Hz | D123: Error Amplifier Gain Bandwidth Product (GBW)
A124: Chosen Crossover | B124: ='Design Regulator'!E60*1000 -> 50000 | C124: Hz
A125: Kmidband | B125: =Fcross/Fo/15 -> 0.3836861776 | C125: V/V | D125: Midband Gain For the Error Amplifier | H125: 1
A126: Rfb1 | B126: ='Design Regulator'!E62*1000 -> 18000 | C126: W | D126: Top Feedback Resistor | H126: 1
A127: Rfb2 | B127: =IF(Vout=Vref,100000000,Vref/((Vout-Vref)/_Rfb1)) -> 1894.736842 | C127: W | D127: Lower Feedback Resistor
A128: Rfb2_u | B128: =IF(Vout=Vref,"N/A",'Standard Value Calculator'!S11) -> 1910 | C128: W | D128: Calculated Lower Feedback Resistor
A129: Vout_actual | B129: =0.8/Rfb2_u*(Rfb2_u+_Rfb1) -> 8.339267016 | C129: V | D129: Actual VOUT
A131: Vramp | B131: =Vin/15 -> 3.453333333 | C131: Vp-p | D131: Peak-to-Peak Ramp Voltage of PWM
A132: Rcea1 | B132: =Kmidband*_Rfb1 -> 6906.351198 | C132: W | D132: This component will first set the midband gain | H132: 1
A133: Cc1ea | B133: =1/(Rcea1*('Design Regulator'!E66*1000)*2*Pi) -> 3.789403411e-09 | C133: F | D133: This along with Rcea1 will set a zero | H133: 1
A134: Cc2ea | B134: =1/((Rcea1*2*Pi*'Design Regulator'!E69*1000)-1/Cc1ea) -> 1.188370641e-10 | C134: F | H134: 1
A135: Rcea2 | B135: =(1/(1000*2*Pi*'Design Regulator'!E68))*_Rfb1/(1/('Design Regulator'!E67*1000*2*Pi)-(1/(1000*2*Pi*'Design Regulator'!E68))) -> 44.32365658 | C135: W | H135: 1
A136: Cc3ea | B136: =(1/(1000*2*Pi*'Design Regulator'!E68))/Rcea2 -> 1.128065775e-09 | C136: F | H136: 1
A138: Choosen Compensation Components from the standard value sheet
A139: Rcea1_u | B139: ='Design Regulator'!D73*1000 -> 8020 | C139: W | H139: 2
A140: Cc1ea_u | B140: ='Design Regulator'!D74*0.000000000001 -> 4.7e-09 | C140: F | H140: 2
A141: Cc2ea_u | B141: ='Design Regulator'!D75*0.000000000001 -> 1e-10 | C141: F | H141: 2
A142: Rcea2_u | B142: ='Design Regulator'!D76 -> 51.1 | C142: W | H142: 2
A143: Cc3ea_u | B143: ='Design Regulator'!D77*0.000000000001 -> 1e-09 | C143: F | H143: 2
A145: Resulting Poles/Zero/Q Locations | D145: =Cout -> 5e-05 | E145: =CoutEsr -> 0.001
A146: Fo | B146: =SQRT((Rfets+Rdcr+Ro)/(Cout*Lout2*(CoutEsr+Ro)))/(2*Pi) -> 8687.655505 | C146: Hz | D146: LC Double Pole Location
A147: Q | B147: =(Rfets+Rdcr+Ro)/(Lout2+Cout*(Rdcr+Rfets)*(CoutEsr+Ro)+Cout*CoutEsr*Ro)/(Fo*2*Pi) -> 2.124486744 | C147: V/V | D147: Quality Factor of LC output Filter
A148: Fesr | B148: =1/(2*Pi*Cout*CoutEsr) -> 3183098.865 | C148: Hz | D148: Cout ESR Zero Location
A149: Fz1 | B149: =1/(2*Pi*Rcea1_u*Cc1ea_u) -> 4222.288515 | C149: Hz | D149: This zero is set at or below the double pole location
A150: Fz2 | B150: =1/(2*Pi*Cc3ea_u*(_Rfb1+Rcea2_u)) -> 8816.911062 | C150: Hz | D150: This zero is set at or below the double pole location
A151: Fp1 | B151: =1/(2*Pi*Rcea2_u*Cc3ea_u) -> 3114578.146 | C151: Hz | D151: This pole cancels the zero from the Output Cap ESR
A152: Fp2 | B152: =1/(2*Pi*Rcea1_u*(Cc1ea_u*Cc2ea_u/(Cc1ea_u+Cc2ea_u))) -> 202669.8487 | C152: Hz | D152: This pole is set at half the switching frequency
A153: Ro | B153: =Vout/(Iout+Vref/_Rfb2) -> 0.8399645348 | D153: Output Resistance
A154: Pi | B154: 3.14159265 | D154: PI
A155: Other Input Variables
A156: Rfets | B156: 0 | C156: W | D156: Series resistance due to FETs | G156: =_Don2*RdsonTop+Doff2*RdsonBot+B161*Vin^2*Fsw/2/(((Iripple1/SQRT(3))^2)) -> 1.148501971
A158: Diode loss eq res | B158: =0.00000002*Fsw*0.6*4/Iripple1 -> 0.007214323992
A159: Fet loss eq res | B159: =_Don2*RdsonTop+Doff2*RdsonBot -> 0.01200154799
A160: cap loss eq res | B160: =B161*Vin^2*Fsw/2/(((Iripple1/SQRT(3))^2)) -> 1.136500423
A161: Sw cap | B161: 5e-09
A164: Step 8: Efficiency
A166: Design
A167: Ta | B167: 25 | D167: Ambient Temperature
A168: Components
A169: LTc | B169: =4000/1000000 -> 0.004 | C169: %/°C | D169: Inductor Series Resistance Temp Co
A170: ThetaCa | B170: 20 | C170: °C/W | D170: Core to Ambient Thermal Resistance
A171: RCinEsr | B171: =RCinEsr -> 0.001 | C171: W | D171: Input Capacitor Series Resistance
A172: Part Characteristics
A173: Vcc | B173: 7.5
A174: Top Driver
A175: RdsonDRT | B175: 1 | C175: W | D175: Drain to Source Resistance of pull up Top FET Driver
A176: RdsonDRT2 | B176: 0.9 | C176: W | D176: Drain to Source Resistance of pull down Top FET Driver
A177: Bottom Driver
A178: RdsonDRB | B178: 1 | C178: W | D178: Drain to Source Resistance of pull up Top FET Driver
A179: RdsonDRB2 | B179: 0.9 | C179: W | D179: Drain to Source Resistance of pull down Top FET Driver
A180: Deadtime | D180: Output Capacitor Capcitance
A181: Deadtime | B181: 3e-08 | C181: s | D181: Total Deadtime
A182: IQ
A183: IQ | B183: 0.003 | C183: A | D183: Quiescent Current Of Controller (Not Switching!)
A184: Top FET
A185: RdsonTop | B185: ='Design Regulator'!E84/1000 -> 0.022 | C185: W | D185: Drain to Source Resistance of Top FET
A186: RdsonTopTc | B186: =4000/1000000 -> 0.004 | C186: %/°C | D186: Drain to Source Resistance Temp Co
A187: QgTop | B187: ='Design Regulator'!E85/1000000000 -> 1.05e-08 | C187: C | D187: Gate Charge Of Top FET
A188: QgdTop | B188: ='Design Regulator'!E86/1000000000 -> 1.8e-09 | C188: C | D188: Gate to Drain Charge
A189: QgsTop | B189: ='Design Regulator'!E87/1000000000 -> 3.6e-09 | C189: C | D189: Gate to Source Charge
A190: CossTop | B190: ='Design Regulator'!E88/1000000000000 -> 3.02e-10 | C190: F | D190: Output Capacitance of High-side FET
A191: RGateTop | B191: ='Design Regulator'!E89 -> 2 | C191: W | D191: Gate Resistance of High-side FET
A192: GfsTop | B192: ='Design Regulator'!E90 -> 10 | C192: S | D192: Transconductance of Top FET
A193: VthTop | B193: ='Design Regulator'!E91 -> 3.7 | C193: V | D193: Threshold Voltage of Top FET
A194: VspTop | B194: =VthTop+Iout/GmTop -> 4.7 | C194: V | D194: Switch Point Voltage of Top FET
A195: VsdTop | B195: ='Design Regulator'!E92 -> 0.8 | C195: V | D195: Diode Forward Voltage of Top FET Body diode
A196: ThetaJaTop | B196: ='Design Regulator'!E93 -> 42 | C196: °C/W | D196: Junction to Ambient Resistance
A197: Bottom FET
A198: RdsonBot | B198: ='Design Regulator'!E96/1000 -> 0.01 | C198: W | D198: Drain To Source Resistance of Bottom FET Driver
A199: RdsonBotTc | B199: =4000/1000000 -> 0.004 | C199: %/°C | D199: Drain To Source Resitance Temp Co
A200: QgBot | B200: ='Design Regulator'!E97/1000000000 -> 1.3e-08 | C200: C | D200: Gate Charge Of Bottom FET | J200: =RGateTop -> 2
A201: QossBot | B201: ='Design Regulator'!E98/1000000000 -> 2e-08 | C201: C | D201: Output Charge Of Bottom FET
A202: CossBot | B202: ='Design Regulator'!E99/1000000000000 -> 5.8e-10 | C202: F | D202: Output Capacitance Of Bottom FET
A203: RGateBot | B203: 1 | C203: W | D203: Gate Resistance
A204: VsdBot | B204: ='Design Regulator'!E100 -> 0.9 | C204: V | D204: Diode Forward Voltage of Bottom FET Body Diode
A205: QrrBot | B205: ='Design Regulator'!E101/1000000000 -> 5e-08 | C205: C | D205: Reverse Recovery Charge of Body Diode
A206: TrrBot | B206: 4e-08 | C206: s | D206: Reverse Recovery Time of Body Diode
A207: ThetaJaBot | B207: ='Design Regulator'!E102 -> 40 | C207: °C/W | D207: Junction to Ambient Resistance
A208: Bottom Schottky
A209: VfdSky | B209: ='Design Regulator'!E104 -> 0 | C209: V | D209: Diode Forward Voltage
A210: QrrSky | B210: ='Design Regulator'!E105/1000000000 -> 0 | C210: C | D210: Diode Reverse Recovery Charge
A211: Ireverse | B211: 0 | C211: A | D211: Reverse Leakage Current
A212: Controller
A213: ThetaJaCtrl | B213: 30
A214: Outputs
A215: Top FET
A216: Tr | B216: =(QgdTop+QgsTop/2)*(RdsonDRT+RGateTop)/(Vdd-VspTop) -> 3.857142857e-09 | C216: s
A217: Tf | B217: =(QgdTop+QgsTop/2)*(RdsonDRT+RGateTop)/(VspTop) -> 2.29787234e-09 | C217: s
A220: Part Power Disipation | B220: Value | C220: Units
A221: Power Dis | B221: ='Power Calculations'!AN9 -> 0.64232 | C221: W
A222: Temp rise | B222: =B221*ThetaJaCtrl -> 19.2696 | C222: °C
A223: Current (switching) | B223: =(QgBot+QgTop)*Fsw+Iq -> 0.0124 | C223: A
A224: Qrr Current | B224: =QrrBot*Fsw -> 0.02 | C224: A
A225: Diode Current | B225: =C225/Vin -> 0.0001645239861 | C225: =Deadtime*Fsw*(Ipp/2)*(VsdTop+VsdBot) -> 0.008522342482
A226: Total Application Switching IQ | B226: =SUM(B223:B225) -> 0.03256452399 | C226: A
A232: Bottom FET/Diode
A233: Part Power
A234: Power Dis
A236: SCHEMATIC LABELS
A237: ="RC1 = "&'Design Regulator'!D73&"kΩ" -> RC1 = 8.02kΩ | B237: ='Design Regulator'!D73&"kΩ" -> 8.02kΩ
A238: ="LOUT = "&'Design Regulator'!E17&"uH" -> LOUT = 6.8uH | B238: ='Design Regulator'!E17&"µH" -> 6.8µH
... 59 more rows

Sheet Standard Value Calculator (hidden)
A2: Capacitors | B2: Css | C2: Cc1ea | D2: Cc2ea | E2: Cc3ea | F2: Cout | G2: Cin | H2: Cilim | I2: Cdd | J2: Csb | K2: Csby | L2: Cby | M2: Cb | N2: Sugested Cs
A3: Inputs | B3: =Css -> 5e-08 | C3: =Cc1ea -> 3.789403411e-09 | D3: =Cc2ea -> 1.188370641e-10 | E3: =Cc3ea -> 1.128065775e-09 | F3: =Cout -> 5e-05 | G3: =Cin -> 1.8e-05 | H3: =Cilim -> 9.247208593e-12 | I3: =Cdd -> 0 | J3: =Csb -> 0 | K3: =Csby -> 100 | L3: =Cby -> 0 | M3: =Cb -> 0 | N3: ='Variable Management'!#REF! ->  | Q3: Resistors | R3: inputs | S3: Standard Result
A4: Standard Result | B4: =SUM(B6:B158)/1000000000000 -> 4.7e-08 | C4: =SUM(C6:C158)/1000000000000 -> 3.9e-09 | D4: 1.2e-10 | E4: 1.2e-09 | F4: 4.7e-05 | G4: 1.8e-05 | H4: 1e-11 | I4: =IF(I3="OPEN","OPEN",SUM(I6:I158)/1000000000000) -> 0 | J4: 0 | K4: 0 | L4: 0 | M4: 0 | Q4: Radj | R4: =Rfadj -> 25000 | S4: =IF(R4>(INT(0.5+100*POWER(10,IF(96*(LOG(R4)-INT(LOG(R4)))-ROUND(96*(LOG(R4)-INT(LOG(R4))),0)<0,ROUND(96*(LOG(R4)-INT(LOG(R4))),0)-1,ROUND(96*(LOG(R4)-INT(LOG(R4))),0))/96))*POWER(10,INT(LOG(R4))-2)+INT(0.5+100*POWER(10,(IF(96*(LOG(R4)-INT(LOG(R4)))-ROUND(96*(LOG(R4)-INT(LOG(R4))),0)<0,ROUND(96*(LOG(R4)-INT(LOG(R4))),0)-1,ROUND(96*(LOG(R4)-INT(LOG(R4))),0))+1)/96))*POWER(10,INT(LOG(R4))-2))/2,INT(0.5+100*POWER(10,(IF(96*(LOG(R4)-INT(LOG(R4)))-ROUND(96*(LOG(R4)-INT(LOG(R4))),0)<0,ROUND(96*(LOG(R4)-INT(LOG(R4))),0)-1,ROUND(96*(LOG(R4)-INT(LOG(R4))),0))+1)/96))*POWER(10,INT(LOG(R4))-2),INT(0.5+100*POWER(10,IF(96*(LOG(R4)-INT(LOG(R4)))-ROUND(96*(LOG(R4)-INT(LOG(R4))),0)<0,ROUND(96*(LOG(R4)-INT(LOG(R4))),0)-1,ROUND(96*(LOG(R4)-INT(LOG(R4))),0))/96))*POWER(10,INT(LOG(R4))-2)) -> 24900 | T4: Ω
A5: (pF) | Q5: Rilim_Rdson | R5: =Rilim_Rdson_ideal -> 533.4656996 | S5: 536 | T5: Ω
A6: 0.47 | B6: =IF(IF((B$3*10^12-$A7)*(B$3*10^12-$A6)*-1<0,0,1)*IF(ABS(B$3*10^12-$A7)>(B$3*10^12-$A6),$A6,$A7)=B7,0,IF((B$3*10^12-$A7)*(B$3*10^12-$A6)*-1<0,0,1)*IF(ABS(B$3*10^12-$A7)>(B$3*10^12-$A6),$A6,$A7)) -> 0 | C6: =IF(IF((C$3*10^12-$A7)*(C$3*10^12-$A6)*-1<0,0,1)*IF(ABS(C$3*10^12-$A7)>(C$3*10^12-$A6),$A6,$A7)=C7,0,IF((C$3*10^12-$A7)*(C$3*10^12-$A6)*-1<0,0,1)*IF(ABS(C$3*10^12-$A7)>(C$3*10^12-$A6),$A6,$A7)) -> 0 | D6: =IF(IF((D$3*10^12-$A7)*(D$3*10^12-$A6)*-1<0,0,1)*IF(ABS(D$3*10^12-$A7)>(D$3*10^12-$A6),$A6,$A7)=D7,0,IF((D$3*10^12-$A7)*(D$3*10^12-$A6)*-1<0,0,1)*IF(ABS(D$3*10^12-$A7)>(D$3*10^12-$A6),$A6,$A7)) -> 0 | E6: =IF(IF((E$3*10^12-$A7)*(E$3*10^12-$A6)*-1<0,0,1)*IF(ABS(E$3*10^12-$A7)>(E$3*10^12-$A6),$A6,$A7)=E7,0,IF((E$3*10^12-$A7)*(E$3*10^12-$A6)*-1<0,0,1)*IF(ABS(E$3*10^12-$A7)>(E$3*10^12-$A6),$A6,$A7)) -> 0 | F6: =IF(IF((F$3*10^12-$A7)*(F$3*10^12-$A6)*-1<0,0,1)*IF(ABS(F$3*10^12-$A7)>(F$3*10^12-$A6),$A6,$A7)=F7,0,IF((F$3*10^12-$A7)*(F$3*10^12-$A6)*-1<0,0,1)*IF(ABS(F$3*10^12-$A7)>(F$3*10^12-$A6),$A6,$A7)) -> 0 | G6: =IF(IF((G$3*10^12-$A7)*(G$3*10^12-$A6)*-1<0,0,1)*IF(ABS(G$3*10^12-$A7)>(G$3*10^12-$A6),$A6,$A7)=G7,0,IF((G$3*10^12-$A7)*(G$3*10^12-$A6)*-1<0,0,1)*IF(ABS(G$3*10^12-$A7)>(G$3*10^12-$A6),$A6,$A7)) -> 0 | H6: =IF(IF((H$3*10^12-$A7)*(H$3*10^12-$A6)*-1<0,0,1)*IF(ABS(H$3*10^12-$A7)>(H$3*10^12-$A6),$A6,$A7)=H7,0,IF((H$3*10^12-$A7)*(H$3*10^12-$A6)*-1<0,0,1)*IF(ABS(H$3*10^12-$A7)>(H$3*10^12-$A6),$A6,$A7)) -> 0 | I6: 0 | J6: 0 | K6: 0 | L6: =IF(IF((L$3*10^12-$A7)*(L$3*10^12-$A6)*-1<0,0,1)*IF(ABS(L$3*10^12-$A7)>(L$3*10^12-$A6),$A6,$A7)=L7,0,IF((L$3*10^12-$A7)*(L$3*10^12-$A6)*-1<0,0,1)*IF(ABS(L$3*10^12-$A7)>(L$3*10^12-$A6),$A6,$A7)) -> 0 | M6: =IF(IF((M$3*10^12-$A7)*(M$3*10^12-$A6)*-1<0,0,1)*IF(ABS(M$3*10^12-$A7)>(M$3*10^12-$A6),$A6,$A7)=M7,0,IF((M$3*10^12-$A7)*(M$3*10^12-$A6)*-1<0,0,1)*IF(ABS(M$3*10^12-$A7)>(M$3*10^12-$A6),$A6,$A7)) -> 0 | N6: =IF(IF((N$3*10^12-$A7)*(N$3*10^12-$A6)*-1<0,0,1)*IF(ABS(N$3*10^12-$A7)>(N$3*10^12-$A6),$A6,$A7)=N7,0,IF((N$3*10^12-$A7)*(N$3*10^12-$A6)*-1<0,0,1)*IF(ABS(N$3*10^12-$A7)>(N$3*10^12-$A6),$A6,$A7)) ->  | Q6: Rilim_Rdson | R6: =Rilim_Rdson_ideal -> 533.4656996 | S6: 536 | T6: Ω
A7: 0.56 | B7: =IF(IF((B$3*10^12-$A8)*(B$3*10^12-$A7)*-1<0,0,1)*IF(ABS(B$3*10^12-$A8)>(B$3*10^12-$A7),$A7,$A8)=B8,0,IF((B$3*10^12-$A8)*(B$3*10^12-$A7)*-1<0,0,1)*IF(ABS(B$3*10^12-$A8)>(B$3*10^12-$A7),$A7,$A8)) -> 0 | C7: =IF(IF((C$3*10^12-$A8)*(C$3*10^12-$A7)*-1<0,0,1)*IF(ABS(C$3*10^12-$A8)>(C$3*10^12-$A7),$A7,$A8)=C8,0,IF((C$3*10^12-$A8)*(C$3*10^12-$A7)*-1<0,0,1)*IF(ABS(C$3*10^12-$A8)>(C$3*10^12-$A7),$A7,$A8)) -> 0 | D7: 0 | E7: 0 | F7: 0 | G7: 0 | H7: 0 | I7: 0 | J7: 0 | K7: 0 | L7: 0 | M7: 0
A8: 0.68 | B8: 0 | C8: 0 | D8: 0 | E8: 0 | F8: 0 | G8: 0 | H8: 0 | I8: 0 | J8: 0 | K8: 0 | L8: 0 | M8: 0 | Q8: Rc1ea | R8: =Rcea1 -> 6906.351198 | S8: =IF(R8>(INT(0.5+100*POWER(10,IF(96*(LOG(R8)-INT(LOG(R8)))-ROUND(96*(LOG(R8)-INT(LOG(R8))),0)<0,ROUND(96*(LOG(R8)-INT(LOG(R8))),0)-1,ROUND(96*(LOG(R8)-INT(LOG(R8))),0))/96))*POWER(10,INT(LOG(R8))-2)+INT(0.5+100*POWER(10,(IF(96*(LOG(R8)-INT(LOG(R8)))-ROUND(96*(LOG(R8)-INT(LOG(R8))),0)<0,ROUND(96*(LOG(R8)-INT(LOG(R8))),0)-1,ROUND(96*(LOG(R8)-INT(LOG(R8))),0))+1)/96))*POWER(10,INT(LOG(R8))-2))/2,INT(0.5+100*POWER(10,(IF(96*(LOG(R8)-INT(LOG(R8)))-ROUND(96*(LOG(R8)-INT(LOG(R8))),0)<0,ROUND(96*(LOG(R8)-INT(LOG(R8))),0)-1,ROUND(96*(LOG(R8)-INT(LOG(R8))),0))+1)/96))*POWER(10,INT(LOG(R8))-2),INT(0.5+100*POWER(10,IF(96*(LOG(R8)-INT(LOG(R8)))-ROUND(96*(LOG(R8)-INT(LOG(R8))),0)<0,ROUND(96*(LOG(R8)-INT(LOG(R8))),0)-1,ROUND(96*(LOG(R8)-INT(LOG(R8))),0))/96))*POWER(10,INT(LOG(R8))-2)) -> 6980 | T8: Ω
A9: 0.82 | B9: 0 | C9: 0 | D9: 0 | E9: 0 | F9: 0 | G9: 0 | H9: 0 | I9: 0 | J9: 0 | K9: 0 | L9: 0 | M9: 0 | Q9: Rc2ea | R9: =Rcea2 -> 44.32365658 | S9: =IF(R9>(INT(0.5+100*POWER(10,IF(96*(LOG(R9)-INT(LOG(R9)))-ROUND(96*(LOG(R9)-INT(LOG(R9))),0)<0,ROUND(96*(LOG(R9)-INT(LOG(R9))),0)-1,ROUND(96*(LOG(R9)-INT(LOG(R9))),0))/96))*POWER(10,INT(LOG(R9))-2)+INT(0.5+100*POWER(10,(IF(96*(LOG(R9)-INT(LOG(R9)))-ROUND(96*(LOG(R9)-INT(LOG(R9))),0)<0,ROUND(96*(LOG(R9)-INT(LOG(R9))),0)-1,ROUND(96*(LOG(R9)-INT(LOG(R9))),0))+1)/96))*POWER(10,INT(LOG(R9))-2))/2,INT(0.5+100*POWER(10,(IF(96*(LOG(R9)-INT(LOG(R9)))-ROUND(96*(LOG(R9)-INT(LOG(R9))),0)<0,ROUND(96*(LOG(R9)-INT(LOG(R9))),0)-1,ROUND(96*(LOG(R9)-INT(LOG(R9))),0))+1)/96))*POWER(10,INT(LOG(R9))-2),INT(0.5+100*POWER(10,IF(96*(LOG(R9)-INT(LOG(R9)))-ROUND(96*(LOG(R9)-INT(LOG(R9))),0)<0,ROUND(96*(LOG(R9)-INT(LOG(R9))),0)-1,ROUND(96*(LOG(R9)-INT(LOG(R9))),0))/96))*POWER(10,INT(LOG(R9))-2)) -> 44.2 | T9: Ω
A10: 1 | B10: 0 | C10: 0 | D10: 0 | E10: 0 | F10: 0 | G10: 0 | H10: 0 | I10: 0 | J10: 0 | K10: 0 | L10: 0 | M10: 0 | Q10: Rfb1 | R10: =_Rfb1 -> 18000 | S10: =IF(R10>(INT(0.5+100*POWER(10,IF(96*(LOG(R10)-INT(LOG(R10)))-ROUND(96*(LOG(R10)-INT(LOG(R10))),0)<0,ROUND(96*(LOG(R10)-INT(LOG(R10))),0)-1,ROUND(96*(LOG(R10)-INT(LOG(R10))),0))/96))*POWER(10,INT(LOG(R10))-2)+INT(0.5+100*POWER(10,(IF(96*(LOG(R10)-INT(LOG(R10)))-ROUND(96*(LOG(R10)-INT(LOG(R10))),0)<0,ROUND(96*(LOG(R10)-INT(LOG(R10))),0)-1,ROUND(96*(LOG(R10)-INT(LOG(R10))),0))+1)/96))*POWER(10,INT(LOG(R10))-2))/2,INT(0.5+100*POWER(10,(IF(96*(LOG(R10)-INT(LOG(R10)))-ROUND(96*(LOG(R10)-INT(LOG(R10))),0)<0,ROUND(96*(LOG(R10)-INT(LOG(R10))),0)-1,ROUND(96*(LOG(R10)-INT(LOG(R10))),0))+1)/96))*POWER(10,INT(LOG(R10))-2),INT(0.5+100*POWER(10,IF(96*(LOG(R10)-INT(LOG(R10)))-ROUND(96*(LOG(R10)-INT(LOG(R10))),0)<0,ROUND(96*(LOG(R10)-INT(LOG(R10))),0)-1,ROUND(96*(LOG(R10)-INT(LOG(R10))),0))/96))*POWER(10,INT(LOG(R10))-2)) -> 17800 | T10: Ω
A11: 1.2 | B11: 0 | C11: 0 | D11: 0 | E11: 0 | F11: 0 | G11: 0 | H11: 0 | I11: 0 | J11: 0 | K11: 0 | L11: 0 | M11: 0 | Q11: Rfb2 | R11: =_Rfb2 -> 1894.736842 | S11: =IF(R11="OPEN","OPEN",IF(R11>(INT(0.5+100*POWER(10,IF(96*(LOG(R11)-INT(LOG(R11)))-ROUND(96*(LOG(R11)-INT(LOG(R11))),0)<0,ROUND(96*(LOG(R11)-INT(LOG(R11))),0)-1,ROUND(96*(LOG(R11)-INT(LOG(R11))),0))/96))*POWER(10,INT(LOG(R11))-2)+INT(0.5+100*POWER(10,(IF(96*(LOG(R11)-INT(LOG(R11)))-ROUND(96*(LOG(R11)-INT(LOG(R11))),0)<0,ROUND(96*(LOG(R11)-INT(LOG(R11))),0)-1,ROUND(96*(LOG(R11)-INT(LOG(R11))),0))+1)/96))*POWER(10,INT(LOG(R11))-2))/2,INT(0.5+100*POWER(10,(IF(96*(LOG(R11)-INT(LOG(R11)))-ROUND(96*(LOG(R11)-INT(LOG(R11))),0)<0,ROUND(96*(LOG(R11)-INT(LOG(R11))),0)-1,ROUND(96*(LOG(R11)-INT(LOG(R11))),0))+1)/96))*POWER(10,INT(LOG(R11))-2),INT(0.5+100*POWER(10,IF(96*(LOG(R11)-INT(LOG(R11)))-ROUND(96*(LOG(R11)-INT(LOG(R11))),0)<0,ROUND(96*(LOG(R11)-INT(LOG(R11))),0)-1,ROUND(96*(LOG(R11)-INT(LOG(R11))),0))/96))*POWER(10,INT(LOG(R11))-2))) -> 1910 | T11: Ω
A12: 1.5 | B12: 0 | C12: 0 | D12: 0 | E12: 0 | F12: 0 | G12: 0 | H12: 0 | I12: 0 | J12: 0 | K12: 0 | L12: 0 | M12: 0 | Q12: Rs1 | R12: =_Rs1 -> 10
A13: 1.8 | B13: 0 | C13: 0 | D13: 0 | E13: 0 | F13: 0 | G13: 0 | H13: 0 | I13: 0 | J13: 0 | K13: 0 | L13: 0 | M13: 0 | Q13: Rs2 | R13: =_Rs2 -> 9.247208593e-12
A14: 2.2 | B14: 0 | C14: 0 | D14: 0 | E14: 0 | F14: 0 | G14: 0 | H14: 0 | I14: 0 | J14: 0 | K14: 0 | L14: 0 | M14: 0 | Q14: Rs3 | R14: =_Rs3 -> 0.15
A15: 2.7 | B15: 0 | C15: 0 | D15: 0 | E15: 0 | F15: 0 | G15: 0 | H15: 0 | I15: 0 | J15: 0 | K15: 0 | L15: 0 | M15: 0
A16: 3.3 | B16: 0 | C16: 0 | D16: 0 | E16: 0 | F16: 0 | G16: 0 | H16: 0 | I16: 0 | J16: 0 | K16: 0 | L16: 0 | M16: 0 | Q16: Ruv1 | R16: =Ruvlo1 -> 100 | S16: =IF(R16="OPEN","OPEN",IF(R16>(INT(0.5+100*POWER(10,IF(96*(LOG(R16)-INT(LOG(R16)))-ROUND(96*(LOG(R16)-INT(LOG(R16))),0)<0,ROUND(96*(LOG(R16)-INT(LOG(R16))),0)-1,ROUND(96*(LOG(R16)-INT(LOG(R16))),0))/96))*POWER(10,INT(LOG(R16))-2)+INT(0.5+100*POWER(10,(IF(96*(LOG(R16)-INT(LOG(R16)))-ROUND(96*(LOG(R16)-INT(LOG(R16))),0)<0,ROUND(96*(LOG(R16)-INT(LOG(R16))),0)-1,ROUND(96*(LOG(R16)-INT(LOG(R16))),0))+1)/96))*POWER(10,INT(LOG(R16))-2))/2,INT(0.5+100*POWER(10,(IF(96*(LOG(R16)-INT(LOG(R16)))-ROUND(96*(LOG(R16)-INT(LOG(R16))),0)<0,ROUND(96*(LOG(R16)-INT(LOG(R16))),0)-1,ROUND(96*(LOG(R16)-INT(LOG(R16))),0))+1)/96))*POWER(10,INT(LOG(R16))-2),INT(0.5+100*POWER(10,IF(96*(LOG(R16)-INT(LOG(R16)))-ROUND(96*(LOG(R16)-INT(LOG(R16))),0)<0,ROUND(96*(LOG(R16)-INT(LOG(R16))),0)-1,ROUND(96*(LOG(R16)-INT(LOG(R16))),0))/96))*POWER(10,INT(LOG(R16))-2))) -> 100 | T16: kΩ
A17: 3.9 | B17: 0 | C17: 0 | D17: 0 | E17: 0 | F17: 0 | G17: 0 | H17: 0 | I17: 0 | J17: 0 | K17: 0 | L17: 0 | M17: 0 | Q17: Ruv2 | R17: =Ruvlo2 -> 13.63636364 | S17: 13.7 | T17: kΩ
A18: 4.7 | B18: 0 | C18: 0 | D18: 0 | E18: 0 | F18: 0 | G18: 0 | H18: 0 | I18: 0 | J18: 0 | K18: 0 | L18: 0 | M18: 0
A19: 5.6 | B19: 0 | C19: 0 | D19: 0 | E19: 0 | F19: 0 | G19: 0 | H19: 0 | I19: 0 | J19: 0 | K19: 0 | L19: 0 | M19: 0
A20: 6.8 | B20: 0 | C20: 0 | D20: 0 | E20: 0 | F20: 0 | G20: 0 | H20: 0 | I20: 0 | J20: 0 | K20: 0 | L20: 0 | M20: 0
A21: 8.2 | B21: 0 | C21: 0 | D21: 0 | E21: 0 | F21: 0 | G21: 0 | H21: 10 | I21: 0 | J21: 0 | K21: 0 | L21: 0 | M21: 0
A22: 10 | B22: 0 | C22: 0 | D22: 0 | E22: 0 | F22: 0 | G22: 0 | H22: 0 | I22: 0 | J22: 0 | K22: 0 | L22: 0 | M22: 0 | Q22: Rilim_shunt | R22: =Rilim_shunt_ideal -> 213.3862798 | S22: =IF(R22=0,0,IF(R22>(INT(0.5+100*POWER(10,IF(96*(LOG(R22)-INT(LOG(R22)))-ROUND(96*(LOG(R22)-INT(LOG(R22))),0)<0,ROUND(96*(LOG(R22)-INT(LOG(R22))),0)-1,ROUND(96*(LOG(R22)-INT(LOG(R22))),0))/96))*POWER(10,INT(LOG(R22))-2)+INT(0.5+100*POWER(10,(IF(96*(LOG(R22)-INT(LOG(R22)))-ROUND(96*(LOG(R22)-INT(LOG(R22))),0)<0,ROUND(96*(LOG(R22)-INT(LOG(R22))),0)-1,ROUND(96*(LOG(R22)-INT(LOG(R22))),0))+1)/96))*POWER(10,INT(LOG(R22))-2))/2,INT(0.5+100*POWER(10,(IF(96*(LOG(R22)-INT(LOG(R22)))-ROUND(96*(LOG(R22)-INT(LOG(R22))),0)<0,ROUND(96*(LOG(R22)-INT(LOG(R22))),0)-1,ROUND(96*(LOG(R22)-INT(LOG(R22))),0))+1)/96))*POWER(10,INT(LOG(R22))-2),INT(0.5+100*POWER(10,IF(96*(LOG(R22)-INT(LOG(R22)))-ROUND(96*(LOG(R22)-INT(LOG(R22))),0)<0,ROUND(96*(LOG(R22)-INT(LOG(R22))),0)-1,ROUND(96*(LOG(R22)-INT(LOG(R22))),0))/96))*POWER(10,INT(LOG(R22))-2))) -> 215 | T22: Ω
A23: 12 | B23: 0 | C23: 0 | D23: 0 | E23: 0 | F23: 0 | G23: 0 | H23: 0 | I23: 0 | J23: 0 | K23: 0 | L23: 0 | M23: 0 | Q23: Cilim | R23: =Cilim -> 9.247208593e-12 | S23: =H4*1000000000000 -> 10 | T23: pF
A24: 15 | B24: 0 | C24: 0 | D24: 0 | E24: 0 | F24: 0 | G24: 0 | H24: 0 | I24: 0 | J24: 0 | K24: 0 | L24: 0 | M24: 0
A25: 18 | B25: 0 | C25: 0 | D25: 0 | E25: 0 | F25: 0 | G25: 0 | H25: 0 | I25: 0 | J25: 0 | K25: 0 | L25: 0 | M25: 0
A26: 22 | B26: 0 | C26: 0 | D26: 0 | E26: 0 | F26: 0 | G26: 0 | H26: 0 | I26: 0 | J26: 0 | K26: 0 | L26: 0 | M26: 0
A27: 27 | B27: 0 | C27: 0 | D27: 0 | E27: 0 | F27: 0 | G27: 0 | H27: 0 | I27: 0 | J27: 0 | K27: 0 | L27: 0 | M27: 0 | Q27: Rc1 | R27: =S8/1000&" kΩ" -> 6.98 kΩ | S27: =S8/1000 -> 6.98 | T27: kΩ
A28: 33 | B28: 0 | C28: 0 | D28: 0 | E28: 0 | F28: 0 | G28: 0 | H28: 0 | I28: 0 | J28: 0 | K28: 0 | L28: 0 | M28: 0 | Q28: Cc1 | R28: =C4*1000000000000&" pF" -> 3900 pF | S28: =C4*1000000000000 -> 3900 | T28: pF
A29: 39 | B29: 0 | C29: 0 | D29: 0 | E29: 0 | F29: 0 | G29: 0 | H29: 0 | I29: 0 | J29: 0 | K29: 0 | L29: 0 | M29: 0 | Q29: Cc2 | R29: =D4*1000000000000&" pF" -> 120 pF | S29: =D4*1000000000000 -> 120 | T29: pF
A30: 47 | B30: 0 | C30: 0 | D30: 0 | E30: 0 | F30: 0 | G30: 0 | H30: 0 | I30: 0 | J30: 0 | K30: 0 | L30: 0 | M30: 0 | Q30: Rc2 | R30: =S9&" Ω" -> 44.2 Ω | S30: =S9 -> 44.2 | T30: Ω
A31: 56 | B31: 0 | C31: 0 | D31: 0 | E31: 0 | F31: 0 | G31: 0 | H31: 0 | I31: 0 | J31: 0 | K31: 0 | L31: 0 | M31: 0 | Q31: Cc3 | R31: =E4*1000000000000&" pF" -> 1200 pF | S31: =E4*1000000000000 -> 1200 | T31: pF
A32: 68 | B32: 0 | C32: 0 | D32: 0 | E32: 0 | F32: 0 | G32: 0 | H32: 0 | I32: 0 | J32: 0 | K32: 0 | L32: 0 | M32: 0
A33: 82 | B33: 0 | C33: 0 | D33: 0 | E33: 0 | F33: 0 | G33: 0 | H33: 0 | I33: 0 | J33: 0 | K33: 0 | L33: 0 | M33: 0
A34: =A22*10 -> 100 | B34: 0 | C34: 0 | D34: 120 | E34: 0 | F34: 0 | G34: 0 | H34: 0 | I34: 0 | J34: 0 | K34: 0 | L34: 0 | M34: 0
A35: =A23*10 -> 120 | B35: 0 | C35: 0 | D35: 0 | E35: 0 | F35: 0 | G35: 0 | H35: 0 | I35: 0 | J35: 0 | K35: 0 | L35: 0 | M35: 0
A36: 150 | B36: 0 | C36: 0 | D36: 0 | E36: 0 | F36: 0 | G36: 0 | H36: 0 | I36: 0 | J36: 0 | K36: 0 | L36: 0 | M36: 0
A37: 180 | B37: 0 | C37: 0 | D37: 0 | E37: 0 | F37: 0 | G37: 0 | H37: 0 | I37: 0 | J37: 0 | K37: 0 | L37: 0 | M37: 0
A38: 220 | B38: 0 | C38: 0 | D38: 0 | E38: 0 | F38: 0 | G38: 0 | H38: 0 | I38: 0 | J38: 0 | K38: 0 | L38: 0 | M38: =IF(IF((M$3*10^12-$A39)*(M$3*10^12-$A38)*-1<0,0,1)*IF(ABS(M$3*10^12-$A39)>(M$3*10^12-$A38),$A38,$A39)=M39,0,IF((M$3*10^12-$A39)*(M$3*10^12-$A38)*-1<0,0,1)*IF(ABS(M$3*10^12-$A39)>(M$3*10^12-$A38),$A38,$A39)) -> 0 | N38: =IF(IF((N$3*10^12-$A39)*(N$3*10^12-$A38)*-1<0,0,1)*IF(ABS(N$3*10^12-$A39)>(N$3*10^12-$A38),$A38,$A39)=N39,0,IF((N$3*10^12-$A39)*(N$3*10^12-$A38)*-1<0,0,1)*IF(ABS(N$3*10^12-$A39)>(N$3*10^12-$A38),$A38,$A39)) -> 
A39: 270 | B39: 0 | C39: =IF(IF((C$3*10^12-$A40)*(C$3*10^12-$A39)*-1<0,0,1)*IF(ABS(C$3*10^12-$A40)>(C$3*10^12-$A39),$A39,$A40)=C40,0,IF((C$3*10^12-$A40)*(C$3*10^12-$A39)*-1<0,0,1)*IF(ABS(C$3*10^12-$A40)>(C$3*10^12-$A39),$A39,$A40)) -> 0 | D39: 0 | E39: 0 | F39: 0 | G39: 0 | H39: 0 | I39: 0 | J39: 0 | K39: 0 | L39: 0 | M39: 0
A40: 330 | B40: 0 | C40: 0 | D40: 0 | E40: 0 | F40: 0 | G40: 0 | H40: 0 | I40: 0 | J40: 0 | K40: 0 | L40: 0 | M40: 0
A41: 390 | B41: 0 | C41: 0 | D41: 0 | E41: 0 | F41: 0 | G41: 0 | H41: 0 | I41: 0 | J41: 0 | K41: 0 | L41: 0 | M41: 0
A42: 470 | B42: 0 | C42: 0 | D42: 0 | E42: 0 | F42: 0 | G42: 0 | H42: 0 | I42: 0 | J42: 0 | K42: 0 | L42: 0 | M42: 0
A43: 560 | B43: 0 | C43: 0 | D43: 0 | E43: 0 | F43: 0 | G43: 0 | H43: 0 | I43: 0 | J43: 0 | K43: 0 | L43: 0 | M43: 0
A44: 680 | B44: 0 | C44: 0 | D44: 0 | E44: 0 | F44: 0 | G44: 0 | H44: 0 | I44: 0 | J44: 0 | K44: 0 | L44: 0 | M44: 0
A45: =A33*10 -> 820 | B45: 0 | C45: 0 | D45: 0 | E45: 0 | F45: 0 | G45: 0 | H45: 0 | I45: 0 | J45: 0 | K45: 0 | L45: 0 | M45: 0
A46: 1000 | B46: 0 | C46: 0 | D46: 0 | E46: 1200 | F46: 0 | G46: 0 | H46: 0 | I46: 0 | J46: 0 | K46: 0 | L46: 0 | M46: 0
A47: 1200 | B47: 0 | C47: 0 | D47: 0 | E47: 0 | F47: 0 | G47: 0 | H47: 0 | I47: 0 | J47: 0 | K47: 0 | L47: 0 | M47: 0
A48: 1500 | B48: 0 | C48: 0 | D48: 0 | E48: 0 | F48: 0 | G48: 0 | H48: 0 | I48: 0 | J48: 0 | K48: 0 | L48: 0 | M48: 0
A49: 1800 | B49: 0 | C49: 0 | D49: 0 | E49: 0 | F49: 0 | G49: 0 | H49: 0 | I49: 0 | J49: 0 | K49: 0 | L49: 0 | M49: 0
A50: 2200 | B50: 0 | C50: 0 | D50: 0 | E50: 0 | F50: 0 | G50: 0 | H50: 0 | I50: 0 | J50: 0 | K50: 0 | L50: 0 | M50: 0
A51: 2700 | B51: 0 | C51: 0 | D51: 0 | E51: 0 | F51: 0 | G51: 0 | H51: 0 | I51: 0 | J51: 0 | K51: 0 | L51: 0 | M51: 0
A52: 3300 | B52: 0 | C52: 3900 | D52: 0 | E52: 0 | F52: 0 | G52: 0 | H52: 0 | I52: 0 | J52: 0 | K52: 0 | L52: 0 | M52: 0
A53: 3900 | B53: 0 | C53: 0 | D53: 0 | E53: 0 | F53: 0 | G53: 0 | H53: 0 | I53: 0 | J53: 0 | K53: 0 | L53: 0 | M53: 0
A54: 4700 | B54: 0 | C54: 0 | D54: 0 | E54: 0 | F54: 0 | G54: 0 | H54: 0 | I54: 0 | J54: 0 | K54: 0 | L54: 0 | M54: 0
A55: 5600 | B55: 0 | C55: 0 | D55: 0 | E55: 0 | F55: 0 | G55: 0 | H55: 0 | I55: 0 | J55: 0 | K55: 0 | L55: 0 | M55: 0
A56: 6800 | B56: 0 | C56: 0 | D56: 0 | E56: 0 | F56: 0 | G56: 0 | H56: 0 | I56: 0 | J56: 0 | K56: 0 | L56: 0 | M56: 0
A57: 8200 | B57: 0 | C57: 0 | D57: 0 | E57: 0 | F57: 0 | G57: 0 | H57: 0 | I57: 0 | J57: 0 | K57: 0 | L57: 0 | M57: 0
A58: 10000 | B58: 0 | C58: 0 | D58: 0 | E58: 0 | F58: 0 | G58: 0 | H58: 0 | I58: 0 | J58: 0 | K58: 0 | L58: 0 | M58: 0
A59: 12000 | B59: 0 | C59: 0 | D59: 0 | E59: 0 | F59: 0 | G59: 0 | H59: 0 | I59: 0 | J59: 0 | K59: 0 | L59: 0 | M59: 0
A60: 15000 | B60: 0 | C60: 0 | D60: 0 | E60: 0 | F60: 0 | G60: 0 | H60: 0 | I60: 0 | J60: 0 | K60: 0 | L60: 0 | M60: 0
A61: 18000 | B61: 0 | C61: 0 | D61: 0 | E61: 0 | F61: 0 | G61: 0 | H61: 0 | I61: 0 | J61: 0 | K61: 0 | L61: 0 | M61: 0
A62: 22000 | B62: 0 | C62: 0 | D62: 0 | E62: 0 | F62: 0 | G62: 0 | H62: 0 | I62: 0 | J62: 0 | K62: 0 | L62: 0 | M62: 0
A63: 27000 | B63: 0 | C63: 0 | D63: 0 | E63: 0 | F63: 0 | G63: 0 | H63: 0 | I63: 0 | J63: 0 | K63: 0 | L63: 0 | M63: 0
A64: 33000 | B64: 0 | C64: 0 | D64: 0 | E64: 0 | F64: 0 | G64: 0 | H64: 0 | I64: 0 | J64: 0 | K64: 0 | L64: 0 | M64: 0
A65: 39000 | B65: 0 | C65: 0 | D65: 0 | E65: 0 | F65: 0 | G65: 0 | H65: 0 | I65: 0 | J65: 0 | K65: 0 | L65: 0 | M65: 0
A66: 47000 | B66: 47000 | C66: 0 | D66: 0 | E66: 0 | F66: 0 | G66: 0 | H66: 0 | I66: 0 | J66: 0 | K66: 0 | L66: 0 | M66: 0
A67: 56000 | B67: 0 | C67: 0 | D67: 0 | E67: 0 | F67: 0 | G67: 0 | H67: 0 | I67: 0 | J67: 0 | K67: 0 | L67: 0 | M67: 0
A68: 68000 | B68: 0 | C68: 0 | D68: 0 | E68: 0 | F68: 0 | G68: 0 | H68: 0 | I68: 0 | J68: 0 | K68: 0 | L68: 0 | M68: 0
A69: 82000 | B69: 0 | C69: 0 | D69: 0 | E69: 0 | F69: 0 | G69: 0 | H69: 0 | I69: 0 | J69: 0 | K69: =IF(IF((K$3*10^12-$A70)*(K$3*10^12-$A69)*-1<0,0,1)*IF(ABS(K$3*10^12-$A70)>(K$3*10^12-$A69),$A69,$A70)=K70,0,IF((K$3*10^12-$A70)*(K$3*10^12-$A69)*-1<0,0,1)*IF(ABS(K$3*10^12-$A70)>(K$3*10^12-$A69),$A69,$A70)) -> 0 | L69: 0 | M69: 0
A70: 100000 | B70: 0 | C70: 0 | D70: =IF(IF((D$3*10^12-$A71)*(D$3*10^12-$A70)*-1<0,0,1)*IF(ABS(D$3*10^12-$A71)>(D$3*10^12-$A70),$A70,$A71)=D71,0,IF((D$3*10^12-$A71)*(D$3*10^12-$A70)*-1<0,0,1)*IF(ABS(D$3*10^12-$A71)>(D$3*10^12-$A70),$A70,$A71)) -> 0 | E70: 0 | F70: 0 | G70: 0 | H70: 0 | I70: 0 | J70: 0 | K70: 0 | L70: 0 | M70: =IF(IF((M$3*10^12-$A71)*(M$3*10^12-$A70)*-1<0,0,1)*IF(ABS(M$3*10^12-$A71)>(M$3*10^12-$A70),$A70,$A71)=M71,0,IF((M$3*10^12-$A71)*(M$3*10^12-$A70)*-1<0,0,1)*IF(ABS(M$3*10^12-$A71)>(M$3*10^12-$A70),$A70,$A71)) -> 0 | N70: =IF(IF((N$3*10^12-$A71)*(N$3*10^12-$A70)*-1<0,0,1)*IF(ABS(N$3*10^12-$A71)>(N$3*10^12-$A70),$A70,$A71)=N71,0,IF((N$3*10^12-$A71)*(N$3*10^12-$A70)*-1<0,0,1)*IF(ABS(N$3*10^12-$A71)>(N$3*10^12-$A70),$A70,$A71)) -> 
A71: 120000 | B71: =IF(IF((B$3*10^12-$A72)*(B$3*10^12-$A71)*-1<0,0,1)*IF(ABS(B$3*10^12-$A72)>(B$3*10^12-$A71),$A71,$A72)=B72,0,IF((B$3*10^12-$A72)*(B$3*10^12-$A71)*-1<0,0,1)*IF(ABS(B$3*10^12-$A72)>(B$3*10^12-$A71),$A71,$A72)) -> 0 | C71: =IF(IF((C$3*10^12-$A72)*(C$3*10^12-$A71)*-1<0,0,1)*IF(ABS(C$3*10^12-$A72)>(C$3*10^12-$A71),$A71,$A72)=C72,0,IF((C$3*10^12-$A72)*(C$3*10^12-$A71)*-1<0,0,1)*IF(ABS(C$3*10^12-$A72)>(C$3*10^12-$A71),$A71,$A72)) -> 0 | D71: 0 | E71: 0 | F71: 0 | G71: =IF(IF((G$3*10^12-$A72)*(G$3*10^12-$A71)*-1<0,0,1)*IF(ABS(G$3*10^12-$A72)>(G$3*10^12-$A71),$A71,$A72)=G72,0,IF((G$3*10^12-$A72)*(G$3*10^12-$A71)*-1<0,0,1)*IF(ABS(G$3*10^12-$A72)>(G$3*10^12-$A71),$A71,$A72)) -> 0 | H71: =IF(IF((H$3*10^12-$A72)*(H$3*10^12-$A71)*-1<0,0,1)*IF(ABS(H$3*10^12-$A72)>(H$3*10^12-$A71),$A71,$A72)=H72,0,IF((H$3*10^12-$A72)*(H$3*10^12-$A71)*-1<0,0,1)*IF(ABS(H$3*10^12-$A72)>(H$3*10^12-$A71),$A71,$A72)) -> 0 | I71: =IF(IF((I$3*10^12-$A72)*(I$3*10^12-$A71)*-1<0,0,1)*IF(ABS(I$3*10^12-$A72)>(I$3*10^12-$A71),$A71,$A72)=I72,0,IF((I$3*10^12-$A72)*(I$3*10^12-$A71)*-1<0,0,1)*IF(ABS(I$3*10^12-$A72)>(I$3*10^12-$A71),$A71,$A72)) -> 0 | J71: =IF(IF((J$3*10^12-$A72)*(J$3*10^12-$A71)*-1<0,0,1)*IF(ABS(J$3*10^12-$A72)>(J$3*10^12-$A71),$A71,$A72)=J72,0,IF((J$3*10^12-$A72)*(J$3*10^12-$A71)*-1<0,0,1)*IF(ABS(J$3*10^12-$A72)>(J$3*10^12-$A71),$A71,$A72)) -> 0 | K71: 0 | L71: 0 | M71: 0
A72: 150000 | B72: 0 | C72: 0 | D72: 0 | E72: 0 | F72: 0 | G72: 0 | H72: 0 | I72: 0 | J72: 0 | K72: 0 | L72: 0 | M72: 0
A73: 180000 | B73: 0 | C73: 0 | D73: 0 | E73: 0 | F73: 0 | G73: 0 | H73: 0 | I73: 0 | J73: 0 | K73: 0 | L73: 0 | M73: 0
A74: 220000 | B74: 0 | C74: 0 | D74: 0 | E74: 0 | F74: 0 | G74: 0 | H74: 0 | I74: 0 | J74: 0 | K74: 0 | L74: 0 | M74: 0
A75: 270000 | B75: 0 | C75: 0 | D75: 0 | E75: 0 | F75: 0 | G75: 0 | H75: 0 | I75: 0 | J75: 0 | K75: 0 | L75: 0 | M75: 0
A76: 330000 | B76: 0 | C76: 0 | D76: 0 | E76: 0 | F76: 0 | G76: 0 | H76: 0 | I76: 0 | J76: 0 | K76: 0 | L76: 0 | M76: 0
A77: 390000 | B77: 0 | C77: 0 | D77: 0 | E77: 0 | F77: 0 | G77: 0 | H77: 0 | I77: 0 | J77: 0 | K77: 0 | L77: 0 | M77: 0
A78: 470000 | B78: 0 | C78: 0 | D78: 0 | E78: 0 | F78: 0 | G78: 0 | H78: 0 | I78: 0 | J78: 0 | K78: 0 | L78: 0 | M78: 0
A79: 560000 | B79: 0 | C79: 0 | D79: 0 | E79: 0 | F79: 0 | G79: 0 | H79: 0 | I79: 0 | J79: 0 | K79: 0 | L79: 0 | M79: 0
A80: 680000 | B80: 0 | C80: 0 | D80: 0 | E80: 0 | F80: 0 | G80: 0 | H80: 0 | I80: 0 | J80: 0 | K80: 0 | L80: 0 | M80: 0
A81: 820000 | B81: 0 | C81: 0 | D81: 0 | E81: 0 | F81: 0 | G81: 0 | H81: 0 | I81: 0 | J81: 0 | K81: 0 | L81: 0 | M81: 0
A82: 1000000 | B82: 0 | C82: 0 | D82: 0 | E82: 0 | F82: 0 | G82: 0 | H82: 0 | I82: 0 | J82: 0 | K82: 0 | L82: 0 | M82: 0
A83: 1200000 | B83: 0 | C83: 0 | D83: 0 | E83: 0 | F83: 0 | G83: 0 | H83: 0 | I83: 0 | J83: 0 | K83: 0 | L83: 0 | M83: 0
A84: 1500000 | B84: 0 | C84: 0 | D84: 0 | E84: 0 | F84: 0 | G84: 0 | H84: 0 | I84: 0 | J84: 0 | K84: 0 | L84: 0 | M84: 0
A85: 1800000 | B85: 0 | C85: 0 | D85: 0 | E85: 0 | F85: 0 | G85: 0 | H85: 0 | I85: 0 | J85: 0 | K85: 0 | L85: 0 | M85: 0
A86: 2200000 | B86: 0 | C86: 0 | D86: 0 | E86: 0 | F86: 0 | G86: 0 | H86: 0 | I86: 0 | J86: 0 | K86: 0 | L86: 0 | M86: 0
A87: 2700000 | B87: 0 | C87: 0 | D87: 0 | E87: 0 | F87: 0 | G87: 0 | H87: 0 | I87: 0 | J87: 0 | K87: 0 | L87: 0 | M87: 0
A88: 3300000 | B88: 0 | C88: 0 | D88: 0 | E88: 0 | F88: 0 | G88: 0 | H88: 0 | I88: 0 | J88: 0 | K88: 0 | L88: 0 | M88: 0
A89: 3900000 | B89: 0 | C89: 0 | D89: 0 | E89: 0 | F89: 0 | G89: 0 | H89: 0 | I89: 0 | J89: 0 | K89: 0 | L89: 0 | M89: 0
A90: 4700000 | B90: 0 | C90: 0 | D90: 0 | E90: 0 | F90: 0 | G90: 0 | H90: 0 | I90: 0 | J90: 0 | K90: 0 | L90: 0 | M90: 0
A91: 5600000 | B91: 0 | C91: 0 | D91: 0 | E91: 0 | F91: 0 | G91: 0 | H91: 0 | I91: 0 | J91: 0 | K91: 0 | L91: 0 | M91: 0
A92: 6800000 | B92: 0 | C92: 0 | D92: 0 | E92: 0 | F92: 0 | G92: 0 | H92: 0 | I92: 0 | J92: 0 | K92: 0 | L92: 0 | M92: 0
A93: 8200000 | B93: 0 | C93: 0 | D93: 0 | E93: 0 | F93: 0 | G93: 0 | H93: 0 | I93: 0 | J93: 0 | K93: 0 | L93: 0 | M93: 0
A94: 10000000 | B94: 0 | C94: 0 | D94: 0 | E94: 0 | F94: 0 | G94: 0 | H94: 0 | I94: 0 | J94: 0 | K94: 0 | L94: 0 | M94: 0
A95: 12000000 | B95: 0 | C95: 0 | D95: 0 | E95: 0 | F95: 0 | G95: 0 | H95: 0 | I95: 0 | J95: 0 | K95: 0 | L95: 0 | M95: 0
A96: 15000000 | B96: 0 | C96: 0 | D96: 0 | E96: 0 | F96: 0 | G96: 0 | H96: 0 | I96: 0 | J96: 0 | K96: 0 | L96: 0 | M96: 0
A97: 18000000 | B97: 0 | C97: 0 | D97: 0 | E97: 0 | F97: 0 | G97: 18000000 | H97: 0 | I97: 0 | J97: 0 | K97: 0 | L97: 0 | M97: 0
A98: 22000000 | B98: 0 | C98: 0 | D98: 0 | E98: 0 | F98: 0 | G98: 0 | H98: 0 | I98: 0 | J98: 0 | K98: 0 | L98: 0 | M98: 0
A99: =A87*10 -> 27000000 | B99: 0 | C99: 0 | D99: 0 | E99: 0 | F99: 0 | G99: 0 | H99: 0 | I99: 0 | J99: 0 | K99: 0 | L99: 0 | M99: 0
A100: 33000000 | B100: 0 | C100: 0 | D100: 0 | E100: 0 | F100: 0 | G100: 0 | H100: 0 | I100: 0 | J100: 0 | K100: 0 | L100: 0 | M100: 0
A101: 39000000 | B101: 0 | C101: 0 | D101: 0 | E101: 0 | F101: 0 | G101: 0 | H101: 0 | I101: 0 | J101: 0 | K101: 0 | L101: 0 | M101: 0
A102: 47000000 | B102: 0 | C102: 0 | D102: 0 | E102: 0 | F102: 47000000 | G102: 0 | H102: 0 | I102: 0 | J102: 0 | K102: 0 | L102: 0 | M102: =IF(IF((M$3*10^12-$A103)*(M$3*10^12-$A102)*-1<0,0,1)*IF(ABS(M$3*10^12-$A103)>(M$3*10^12-$A102),$A102,$A103)=M103,0,IF((M$3*10^12-$A103)*(M$3*10^12-$A102)*-1<0,0,1)*IF(ABS(M$3*10^12-$A103)>(M$3*10^12-$A102),$A102,$A103)) -> 0 | N102: =IF(IF((N$3*10^12-$A103)*(N$3*10^12-$A102)*-1<0,0,1)*IF(ABS(N$3*10^12-$A103)>(N$3*10^12-$A102),$A102,$A103)=N103,0,IF((N$3*10^12-$A103)*(N$3*10^12-$A102)*-1<0,0,1)*IF(ABS(N$3*10^12-$A103)>(N$3*10^12-$A102),$A102,$A103)) -> 
A103: 56000000 | B103: 0 | C103: 0 | D103: 0 | E103: 0 | F103: 0 | G103: =IF(IF((G$3*10^12-$A104)*(G$3*10^12-$A103)*-1<0,0,1)*IF(ABS(G$3*10^12-$A104)>(G$3*10^12-$A103),$A103,$A104)=G104,0,IF((G$3*10^12-$A104)*(G$3*10^12-$A103)*-1<0,0,1)*IF(ABS(G$3*10^12-$A104)>(G$3*10^12-$A103),$A103,$A104)) -> 0 | H103: =IF(IF((H$3*10^12-$A104)*(H$3*10^12-$A103)*-1<0,0,1)*IF(ABS(H$3*10^12-$A104)>(H$3*10^12-$A103),$A103,$A104)=H104,0,IF((H$3*10^12-$A104)*(H$3*10^12-$A103)*-1<0,0,1)*IF(ABS(H$3*10^12-$A104)>(H$3*10^12-$A103),$A103,$A104)) -> 0 | I103: =IF(IF((I$3*10^12-$A104)*(I$3*10^12-$A103)*-1<0,0,1)*IF(ABS(I$3*10^12-$A104)>(I$3*10^12-$A103),$A103,$A104)=I104,0,IF((I$3*10^12-$A104)*(I$3*10^12-$A103)*-1<0,0,1)*IF(ABS(I$3*10^12-$A104)>(I$3*10^12-$A103),$A103,$A104)) -> 0 | J103: =IF(IF((J$3*10^12-$A104)*(J$3*10^12-$A103)*-1<0,0,1)*IF(ABS(J$3*10^12-$A104)>(J$3*10^12-$A103),$A103,$A104)=J104,0,IF((J$3*10^12-$A104)*(J$3*10^12-$A103)*-1<0,0,1)*IF(ABS(J$3*10^12-$A104)>(J$3*10^12-$A103),$A103,$A104)) -> 0 | K103: 0 | L103: 0 | M103: 0
A104: 68000000 | B104: 0 | C104: 0 | D104: 0 | E104: 0 | F104: 0 | G104: 0 | H104: 0 | I104: 0 | J104: 0 | K104: 0 | L104: 0 | M104: 0
A105: 82000000 | B105: 0 | C105: 0 | D105: 0 | E105: 0 | F105: 0 | G105: 0 | H105: 0 | I105: 0 | J105: 0 | K105: 0 | L105: 0 | M105: 0
A106: 100000000 | B106: 0 | C106: 0 | D106: 0 | E106: 0 | F106: 0 | G106: 0 | H106: 0 | I106: 0 | J106: 0 | K106: 0 | L106: 0 | M106: 0
A107: 120000000 | B107: 0 | C107: 0 | D107: 0 | E107: 0 | F107: 0 | G107: 0 | H107: 0 | I107: 0 | J107: 0 | K107: 0 | L107: 0 | M107: 0
A108: 150000000 | B108: 0 | C108: 0 | D108: 0 | E108: 0 | F108: 0 | G108: 0 | H108: 0 | I108: 0 | J108: 0 | K108: 0 | L108: 0 | M108: 0
A109: 180000000 | B109: 0 | C109: 0 | D109: 0 | E109: 0 | F109: 0 | G109: 0 | H109: 0 | I109: 0 | J109: 0 | K109: 0 | L109: 0 | M109: 0
A110: 220000000 | B110: 0 | C110: 0 | D110: 0 | E110: 0 | F110: 0 | G110: 0 | H110: 0 | I110: 0 | J110: 0 | K110: 0 | L110: 0 | M110: 0
A111: 270000000 | B111: 0 | C111: 0 | D111: 0 | E111: 0 | F111: 0 | G111: 0 | H111: 0 | I111: 0 | J111: 0 | K111: 0 | L111: 0 | M111: 0
A112: 330000000 | B112: 0 | C112: 0 | D112: 0 | E112: 0 | F112: 0 | G112: 0 | H112: 0 | I112: 0 | J112: 0 | K112: 0 | L112: 0 | M112: 0
A113: 390000000 | B113: 0 | C113: 0 | D113: 0 | E113: 0 | F113: 0 | G113: 0 | H113: 0 | I113: 0 | J113: 0 | K113: 0 | L113: 0 | M113: 0
A114: 470000000 | B114: 0 | C114: 0 | D114: 0 | E114: 0 | F114: 0 | G114: 0 | H114: 0 | I114: 0 | J114: 0 | K114: 0 | L114: 0 | M114: 0
A115: 560000000 | B115: 0 | C115: 0 | D115: 0 | E115: 0 | F115: 0 | G115: 0 | H115: 0 | I115: 0 | J115: 0 | K115: 0 | L115: 0 | M115: 0
A116: 680000000 | B116: 0 | C116: 0 | D116: 0 | E116: 0 | F116: 0 | G116: 0 | H116: 0 | I116: 0 | J116: 0 | K116: 0 | L116: 0 | M116: 0
A117: 820000000 | B117: 0 | C117: 0 | D117: 0 | E117: 0 | F117: 0 | G117: 0 | H117: 0 | I117: 0 | J117: 0 | K117: 0 | L117: 0 | M117: 0
A118: 1000000000 | B118: 0 | C118: 0 | D118: 0 | E118: 0 | F118: 0 | G118: 0 | H118: 0 | I118: 0 | J118: 0 | K118: 0 | L118: 0 | M118: 0
A119: 1200000000 | B119: 0 | C119: 0 | D119: 0 | E119: 0 | F119: 0 | G119: 0 | H119: 0 | I119: 0 | J119: 0 | K119: 0 | L119: 0 | M119: 0
A120: 1500000000 | B120: 0 | C120: 0 | D120: 0 | E120: 0 | F120: 0 | G120: 0 | H120: 0 | I120: 0 | J120: 0 | K120: 0 | L120: 0 | M120: 0
A121: 1800000000 | B121: 0 | C121: 0 | D121: 0 | E121: 0 | F121: 0 | G121: 0 | H121: 0 | I121: 0 | J121: 0 | K121: 0 | L121: 0 | M121: 0
A122: 2200000000 | B122: 0 | C122: 0 | D122: 0 | E122: 0 | F122: 0 | G122: 0 | H122: 0 | I122: 0 | J122: 0 | K122: 0 | L122: 0 | M122: 0
A123: 2700000000 | B123: 0 | C123: 0 | D123: 0 | E123: 0 | F123: 0 | G123: 0 | H123: 0 | I123: 0 | J123: 0 | K123: 0 | L123: 0 | M123: 0
A124: 3300000000 | B124: 0 | C124: 0 | D124: 0 | E124: 0 | F124: 0 | G124: 0 | H124: 0 | I124: 0 | J124: 0 | K124: 0 | L124: 0 | M124: 0
A125: 3900000000 | B125: 0 | C125: 0 | D125: 0 | E125: 0 | F125: 0 | G125: 0 | H125: 0 | I125: 0 | J125: 0 | K125: 0 | L125: 0 | M125: 0
A126: 4700000000 | B126: 0 | C126: 0 | D126: 0 | E126: 0 | F126: 0 | G126: 0 | H126: 0 | I126: 0 | J126: 0 | K126: 0 | L126: 0 | M126: 0
A127: 5600000000 | B127: 0 | C127: 0 | D127: 0 | E127: 0 | F127: 0 | G127: 0 | H127: 0 | I127: 0 | J127: 0 | K127: 0 | L127: 0 | M127: 0
A128: 6800000000 | B128: 0 | C128: 0 | D128: 0 | E128: 0 | F128: 0 | G128: 0 | H128: 0 | I128: 0 | J128: 0 | K128: 0 | L128: 0 | M128: 0
A129: 8200000000 | B129: 0 | C129: 0 | D129: 0 | E129: 0 | F129: 0 | G129: 0 | H129: 0 | I129: 0 | J129: 0 | K129: 0 | L129: 0 | M129: 0
A130: 10000000000 | B130: 0 | C130: 0 | D130: 0 | E130: 0 | F130: 0 | G130: 0 | H130: 0 | I130: 0 | J130: 0 | K130: 0 | L130: 0 | M130: 0
A131: 12000000000 | B131: 0 | C131: 0 | D131: 0 | E131: 0 | F131: 0 | G131: 0 | H131: 0 | I131: 0 | J131: 0 | K131: 0 | L131: 0 | M131: 0
A132: 15000000000 | B132: 0 | C132: 0 | D132: 0 | E132: 0 | F132: 0 | G132: 0 | H132: 0 | I132: 0 | J132: 0 | K132: 0 | L132: 0 | M132: 0
A133: 18000000000 | B133: 0 | C133: 0 | D133: 0 | E133: 0 | F133: 0 | G133: 0 | H133: 0 | I133: 0 | J133: 0 | K133: =IF(IF((K$3*10^12-$A134)*(K$3*10^12-$A133)*-1<0,0,1)*IF(ABS(K$3*10^12-$A134)>(K$3*10^12-$A133),$A133,$A134)=K134,0,IF((K$3*10^12-$A134)*(K$3*10^12-$A133)*-1<0,0,1)*IF(ABS(K$3*10^12-$A134)>(K$3*10^12-$A133),$A133,$A134)) -> 0 | L133: =IF(IF((L$3*10^12-$A134)*(L$3*10^12-$A133)*-1<0,0,1)*IF(ABS(L$3*10^12-$A134)>(L$3*10^12-$A133),$A133,$A134)=L134,0,IF((L$3*10^12-$A134)*(L$3*10^12-$A133)*-1<0,0,1)*IF(ABS(L$3*10^12-$A134)>(L$3*10^12-$A133),$A133,$A134)) -> 0 | M133: 0
A134: 22000000000 | B134: 0 | C134: 0 | D134: 0 | E134: 0 | F134: =IF(IF((F$3*10^12-$A135)*(F$3*10^12-$A134)*-1<0,0,1)*IF(ABS(F$3*10^12-$A135)>(F$3*10^12-$A134),$A134,$A135)=F135,0,IF((F$3*10^12-$A135)*(F$3*10^12-$A134)*-1<0,0,1)*IF(ABS(F$3*10^12-$A135)>(F$3*10^12-$A134),$A134,$A135)) -> 0 | G134: 0 | H134: 0 | I134: 0 | J134: 0 | K134: =IF(IF((K$3*10^12-$A135)*(K$3*10^12-$A134)*-1<0,0,1)*IF(ABS(K$3*10^12-$A135)>(K$3*10^12-$A134),$A134,$A135)=K135,0,IF((K$3*10^12-$A135)*(K$3*10^12-$A134)*-1<0,0,1)*IF(ABS(K$3*10^12-$A135)>(K$3*10^12-$A134),$A134,$A135)) -> 0 | L134: =IF(IF((L$3*10^12-$A135)*(L$3*10^12-$A134)*-1<0,0,1)*IF(ABS(L$3*10^12-$A135)>(L$3*10^12-$A134),$A134,$A135)=L135,0,IF((L$3*10^12-$A135)*(L$3*10^12-$A134)*-1<0,0,1)*IF(ABS(L$3*10^12-$A135)>(L$3*10^12-$A134),$A134,$A135)) -> 0 | M134: =IF(IF((M$3*10^12-$A135)*(M$3*10^12-$A134)*-1<0,0,1)*IF(ABS(M$3*10^12-$A135)>(M$3*10^12-$A134),$A134,$A135)=M135,0,IF((M$3*10^12-$A135)*(M$3*10^12-$A134)*-1<0,0,1)*IF(ABS(M$3*10^12-$A135)>(M$3*10^12-$A134),$A134,$A135)) -> 0 | N134: =IF(IF((N$3*10^12-$A135)*(N$3*10^12-$A134)*-1<0,0,1)*IF(ABS(N$3*10^12-$A135)>(N$3*10^12-$A134),$A134,$A135)=N135,0,IF((N$3*10^12-$A135)*(N$3*10^12-$A134)*-1<0,0,1)*IF(ABS(N$3*10^12-$A135)>(N$3*10^12-$A134),$A134,$A135)) -> 
A135: 27000000000 | B135: =IF(IF((B$3*10^12-$A136)*(B$3*10^12-$A135)*-1<0,0,1)*IF(ABS(B$3*10^12-$A136)>(B$3*10^12-$A135),$A135,$A136)=B136,0,IF((B$3*10^12-$A136)*(B$3*10^12-$A135)*-1<0,0,1)*IF(ABS(B$3*10^12-$A136)>(B$3*10^12-$A135),$A135,$A136)) -> 0 | C135: =IF(IF((C$3*10^12-$A136)*(C$3*10^12-$A135)*-1<0,0,1)*IF(ABS(C$3*10^12-$A136)>(C$3*10^12-$A135),$A135,$A136)=C136,0,IF((C$3*10^12-$A136)*(C$3*10^12-$A135)*-1<0,0,1)*IF(ABS(C$3*10^12-$A136)>(C$3*10^12-$A135),$A135,$A136)) -> 0 | D135: 0 | E135: 0 | F135: 0 | G135: 0 | H135: 0 | I135: 0 | J135: 0 | K135: 0 | L135: 0 | M135: 0
A136: 33000000000 | B136: 0 | C136: 0 | D136: 0 | E136: 0 | F136: 0 | G136: 0 | H136: 0 | I136: 0 | J136: 0 | K136: 0 | L136: 0 | M136: 0
A137: 39000000000 | B137: 0 | C137: 0 | D137: 0 | E137: 0 | F137: 0 | G137: 0 | H137: 0 | I137: 0 | J137: 0 | K137: 0 | L137: 0 | M137: 0
A138: 47000000000 | B138: 0 | C138: 0 | D138: 0 | E138: 0 | F138: 0 | G138: 0 | H138: 0 | I138: 0 | J138: 0 | K138: 0 | L138: 0 | M138: 0
A139: 56000000000 | B139: 0 | C139: 0 | D139: 0 | E139: 0 | F139: 0 | G139: 0 | H139: 0 | I139: 0 | J139: 0 | K139: 0 | L139: 0 | M139: 0
A140: 68000000000 | B140: 0 | C140: 0 | D140: 0 | E140: 0 | F140: 0 | G140: 0 | H140: 0 | I140: 0 | J140: 0 | K140: 0 | L140: 0 | M140: 0
A141: 82000000000 | B141: 0 | C141: 0 | D141: 0 | E141: 0 | F141: 0 | G141: 0 | H141: 0 | I141: 0 | J141: 0 | K141: 0 | L141: 0 | M141: 0
A142: 100000000000 | B142: 0 | C142: 0 | D142: 0 | E142: 0 | F142: 0 | G142: 0 | H142: 0 | I142: 0 | J142: 0 | K142: 0 | L142: 0 | M142: 0
A143: 120000000000 | B143: 0 | C143: 0 | D143: 0 | E143: 0 | F143: 0 | G143: 0 | H143: 0 | I143: 0 | J143: 0 | K143: 0 | L143: 0 | M143: 0
A144: 150000000000 | B144: 0 | C144: 0 | D144: 0 | E144: 0 | F144: 0 | G144: 0 | H144: 0 | I144: 0 | J144: 0 | K144: 0 | L144: 0 | M144: 0
A145: 180000000000 | B145: 0 | C145: 0 | D145: 0 | E145: 0 | F145: 0 | G145: 0 | H145: 0 | I145: 0 | J145: 0 | K145: 0 | L145: 0 | M145: 0
A146: 220000000000 | B146: 0 | C146: 0 | D146: 0 | E146: 0 | F146: 0 | G146: 0 | H146: 0 | I146: 0 | J146: 0 | K146: 0 | L146: 0 | M146: 0
A147: 270000000000 | B147: 0 | C147: 0 | D147: 0 | E147: 0 | F147: 0 | G147: 0 | H147: 0 | I147: 0 | J147: 0 | K147: 0 | L147: 0 | M147: 0
A148: 330000000000 | B148: 0 | C148: 0 | D148: 0 | E148: 0 | F148: 0 | G148: 0 | H148: 0 | I148: 0 | J148: 0 | K148: 0 | L148: 0 | M148: 0
A149: 390000000000 | B149: 0 | C149: 0 | D149: 0 | E149: 0 | F149: 0 | G149: 0 | H149: 0 | I149: 0 | J149: 0 | K149: 0 | L149: 0 | M149: 0
A150: 470000000000 | B150: 0 | C150: 0 | D150: 0 | E150: 0 | F150: 0 | G150: 0 | H150: 0 | I150: 0 | J150: 0 | K150: 0 | L150: 0 | M150: 0
A151: 560000000000 | B151: 0 | C151: 0 | D151: 0 | E151: 0 | F151: 0 | G151: 0 | H151: 0 | I151: 0 | J151: 0 | K151: 0 | L151: 0 | M151: 0
A152: 680000000000 | B152: 0 | C152: 0 | D152: 0 | E152: 0 | F152: 0 | G152: 0 | H152: 0 | I152: 0 | J152: 0 | K152: 0 | L152: 0 | M152: 0
A153: 820000000000 | B153: 0 | C153: 0 | D153: 0 | E153: 0 | F153: 0 | G153: 0 | H153: 0 | I153: 0 | J153: 0 | K153: 0 | L153: 0 | M153: 0
A154: 1000000000000 | B154: 0 | C154: 0 | D154: 0 | E154: 0 | F154: 0 | G154: 0 | H154: 0 | I154: 0 | J154: 0 | K154: 0 | L154: 0 | M154: 0
A155: 1200000000000 | B155: 0 | C155: 0 | D155: 0 | E155: 0 | F155: 0 | G155: 0 | H155: 0 | I155: 0 | J155: 0 | K155: 0 | L155: 0 | M155: 0
A156: 1500000000000 | B156: 0 | C156: 0 | D156: 0 | E156: 0 | F156: 0 | G156: 0 | H156: 0 | I156: 0 | J156: 0 | K156: 0 | L156: 0 | M156: 0
A157: 1800000000000 | B157: 0 | C157: 0 | D157: 0 | E157: 0 | F157: 0 | G157: 0 | H157: 0 | I157: 0 | J157: 0 | K157: 0 | L157: 0 | M157: 0
A158: 2200000000000 | B158: 0 | C158: 0 | D158: 0 | E158: 0 | F158: 0 | G158: 0 | H158: 0 | I158: 0 | J158: 0 | K158: 0 | L158: 0 | M158: 0
A159: 2700000000000 | B159: 2700000000000 | C159: 2700000000000 | D159: 2700000000000 | E159: 2700000000000 | F159: 2700000000000 | G159: 2700000000000 | H159: 2700000000000 | I159: 2700000000000 | J159: 2700000000000 | K159: 0 | L159: 2700000000000 | M159: 2700000000000

Sheet Bode Plots Calculations (hidden)
A1: Bode Plot Setup | AC1: EA MODELING
AT3: =AT9/10000000000000 -> -5.862501104e-05 | AU3: =AU9/10000000000000 -> -0.03315716264
AT4: =AT3*1000 -> -0.05862501104 | AU4: =AU3*1000 -> -33.15716264 | BJ4: XOVER SEARCH
AC5: a | AD5: b | AE5: c | AF5: d | AJ5: a | AK5: b | AL5: c | AM5: d | BJ5: xover | BK5: =SUM(BJ9:BJ626)/1000 -> 55.5
C6: Output Filter | J6: Pwm | M6: Compensation | X6: Design Output | AC6: Z1 | AJ6: Z3 | AQ6: Ea Gain BW | AT6: Complex EA | BA6: Actual EA Response | BF6: Actual Open Loop System Response | BJ6: phase margin | BK6: =SUM(BK10:BK627) -> 61.68073329 | BM6: Comp To Output
C7: Esr zero | F7: LC Double Pole | M7: Origin Pole | O7: Fz1 | Q7: Fz2 | S7: Fp1 | U7: Fp2 | AC7: Num | AE7: Den | AG7: Total | AJ7: Num | AL7: Den | AN7: Total | AQ7: A(s) | AT7: Num | AW7: Den
A8: Frequency | C8: Gain | D8: Phase | F8: Gain | H8: Phase | J8: Gain | M8: Gain | N8: Phase | O8: Gain | P8: Phase | Q8: Gain | R8: Phase | S8: Gain | T8: Phase | U8: Gain | V8: Phase | X8: Total Gain | Y8: Total Phase | Z8: Phase margin | AC8: Real | AD8: Imag | AE8: Real | AF8: Imag | AG8: Z1 Real | AH8: Z1 Imag | AJ8: Real | AK8: Imag | AL8: Real | AM8: Imag | AN8: Z3 Real | AO8: Z3 Imag | AQ8: Real | AR8: Imag | AT8: Real | AU8: Imag | AV8: Phase | AW8: Real | AX8: Imag | AY8: Phase | BA8: EAGain | BB8: Ea Gain (db) | BC8: Ea Phase | BF8: Total Gain | BG8: Total Phase | BH8: Total Phase Margin | BM8: Total Gain | BN8: Total Phase margin | BT8: Output to Comp 5V In @ 500kHz 0A Iout 25DegC
A9: 1 | B9: =A9/1000 -> 0.001 | C9: =SQRT((A9/Fesr)^2+1) -> 1 | D9: =ATAN(A9/Fesr) -> 3.14159265e-07 | F9: =(Ro/(Ro+Rdcr))/SQRT((A9/(Q*Fo))^2+(1-(A9^2/Fo^2))^2) -> 0.9859149183 | G9: =-ATAN(A9*Fo/(Q*(Fo^2-A9^2))) -> -5.418054738e-05 | H9: =IF(G9>0,G9-Pi,G9) -> -5.418054738e-05 | J9: =Vin/Vramp -> 15 | M9: =1/(2*Pi*_Rfb1*(Cc1ea_u+Cc2ea_u)*A9) -> 1842.071103 | N9: =-Pi/2 -> -1.570796325 | O9: =SQRT(1+(A9/Fz1_u)^2) -> 1.000000028 | P9: =ATAN2(Fz1_u,A9) -> 0.0002368383823 | Q9: =SQRT(1+(A9/Fz2_u)^2) -> 1.000000006 | R9: =ATAN2(Fz2_u,A9) -> 0.0001134184057 | S9: =1/SQRT(1+(A9/Fp1_u)^2) -> 1 | T9: =-ATAN2(Fp1_u,A9) -> -3.210707688e-07 | U9: =1/SQRT(1+(A9/Fp2_u)^2) -> 1 | V9: =-ATAN2(Fp2_u,A9) -> -4.934133056e-06 | X9: =20*LOG(C9*J9*O9*Q9*F9*M9*S9*U9) -> 88.70474204 | Y9: =(180/Pi)*(D9+H9+N9+P9+R9+T9+V9) -> -89.98331918 | Z9: =Y9+180 -> 90.01668082 | AC9: 1 | AD9: =Rcea1_u*Cc1ea_u*A9*2*Pi -> 0.0002368383867 | AE9: =-Rcea1_u*Cc1ea_u*Cc2ea_u*(A9*2*Pi)^2 -> -1.48809947e-13 | AF9: =(Cc2ea_u+Cc1ea_u)*A9*2*Pi -> 3.015928944e-08 | AG9: =AC9*AE9/(AE9^2+AF9^2)+AD9*AF9/(AE9^2+AF9^2) -> 7689.314236 | AH9: =AD9*AE9/(AE9^2+AF9^2)-AC9*AF9/(AE9^2+AF9^2) -> -33157279.89 | AI9: =SQRT(AG9^2+AH9^2) -> 33157280.78 | AJ9: =_Rfb1 -> 18000 | AK9: =_Rfb1*Rcea2_u*Cc3ea_u*A9*2*Pi -> 0.005779273839 | AL9: 1 | AM9: =(_Rfb1+Rcea2_u)*Cc3ea_u*A9*2*Pi -> 0.0001134184062 | AN9: =AJ9*AL9/(AL9^2+AM9^2)+AK9*AM9/(AL9^2+AM9^2) -> 17999.99977 | AO9: =AK9*AL9/(AL9^2+AM9^2)-AJ9*AM9/(AL9^2+AM9^2) -> -2.035752011 | AP9: =SQRT(AN9^2+AO9^2) -> 17999.99988 | AQ9: =Eadcg/(1+(Eadcg*A9/GBP)^2) -> 9999.96 | AR9: =-(A9*Eadcg*Eadcg/GBP)/(1+(Eadcg*A9/GBP)^2) -> -19.99992 | AT9: =-AR9*AH9+AG9*AQ9 -> -586250110.4 | AU9: =AQ9*AH9+AG9*AR9 -> -3.315716264e+11 | AV9: =ATAN2(AT9,AU9) -> -1.57256442 | AW9: =AG9-AH9*AO9/_Rfb2+AG9*AN9/_Rfb2+AN9-AO9*AR9+AQ9*AN9 -> 180062349.8 | AX9: =AH9+AH9*AN9/_Rfb2+AG9*AO9/_Rfb2+AO9+AO9*AQ9+AN9*AR9 -> -348531801.1 | AY9: =ATAN2(AW9,AX9) -> -1.093932573 | BA9: =SQRT(AT9^2+AU9^2)/SQRT(AW9^2+AX9^2) -> 845.2071265 | BB9: =20*LOG(BA9) -> 58.539263 | BC9: =AV9-AY9 -> -0.4786318468 | BD9: =BC9*180/Pi-180 -> -207.4235848 | BF9: =20*LOG(BA9*J9*F9*C9) -> 81.93787695 | BG9: =(180/Pi)*(D9+H9+BC9) -> -27.42667111 | BH9: =IF(BG9>180,BG9-180,BG9+180) -> 152.5733289 | BI9: =IF(BH9>180,BH9-360,BH9) -> 152.5733289 | BJ9: =SUM((BF10<0)*(BF9>0))*A9 -> 0 | BK9: =IF(BJ9>0,BI9,0) -> 0 | BM9: =20*LOG(J9*F9*C9) -> 23.39861394 | BN9: =(H9+D9)*180/Pi -> -0.0030863167 | BQ9: =20*LOG(BA9*7) -> 75.4412238 | BT9: Frequency | BU9: Gain | BV9: Phase
A10: 2 | B10: =A10/1000 -> 0.002 | C10: 1 | D10: 6.2831853e-07 | F10: 0.9859149531 | G10: -0.0001083610988 | H10: -0.0001083610988 | J10: 15 | M10: 921.0355514 | N10: -1.570796325 | O10: 1.000000112 | P10: 0.000473676738 | Q10: 1.000000026 | R10: 0.0002268368084 | S10: 1 | T10: -6.421415377e-07 | U10: 1 | V10: -9.868266112e-06 | X10: =20*LOG(C10*J10*O10*Q10*F10*M10*S10*U10) -> 82.68414333 | Y10: -89.96663837 | Z10: =Y10+180 -> 90.03336163 | AC10: 1 | AD10: 0.0004736767734 | AE10: -5.952397879e-13 | AF10: 6.031857888e-08 | AG10: =AC10*AE10/(AE10^2+AF10^2)+AD10*AF10/(AE10^2+AF10^2) -> 7689.314235 | AH10: =AD10*AE10/(AE10^2+AF10^2)-AC10*AF10/(AE10^2+AF10^2) -> -16578640 | AJ10: 18000 | AK10: 0.01155854768 | AL10: 1 | AM10: 0.0002268368123 | AN10: =AJ10*AL10/(AL10^2+AM10^2)+AK10*AM10/(AL10^2+AM10^2) -> 17999.99908 | AO10: =AK10*AL10/(AL10^2+AM10^2)-AJ10*AM10/(AL10^2+AM10^2) -> -4.071503865 | AQ10: 9999.840003 | AR10: -39.99936001 | AT10: =-AR10*AH10+AG10*AQ10 -> -586243077.8 | AU10: =AQ10*AH10+AG10*AR10 -> -1.65784055e+11 | AV10: =ATAN2(AT10,AU10) -> -1.574332497 | AW10: 180060060.7 | AX10: -174836435.3 | AY10: =ATAN2(AW10,AX10) -> -0.770680497 | BA10: 660.5591638 | BB10: =20*LOG(BA10) -> 56.39823444 | BC10: =AV10-AY10 -> -0.803652 | BD10: -226.0458678 | BF10: 79.79684869 | BG10: -46.05204048 | BH10: =IF(BG10>180,BG10-180,BG10+180) -> 133.9479595 | BI10: =IF(BH10>180,BH10-360,BH10) -> 133.9479595 | BJ10: 0 | BK10: =IF(BJ10>0,BI10,0) -> 0 | BM10: =20*LOG(J10*F10*C10) -> 23.39861425 | BN10: -0.006172633629 | BQ10: =20*LOG(BA10*7) -> 73.30019524 | BT10: 100 | BU10: 35.3593 | BV10: -267.6677
A11: 3 | B11: 0.003 | C11: 1 | D11: 9.42477795e-07 | F11: 0.9859150112 | G11: -0.0001625416581 | H11: -0.0001625416581 | J11: 15 | M11: 614.0237009 | N11: -1.570796325 | O11: 1.000000252 | P11: 0.0007105150405 | Q11: 1.000000058 | R11: 0.0003402552054 | S11: 1 | T11: -9.632123065e-07 | U11: 0.9999999999 | V11: -1.480239917e-05 | X11: 79.16232016 | Y11: -89.94995755 | Z11: 90.05004245 | AC11: 1 | AD11: 0.0007105151601 | AE11: -1.339289523e-12 | AF11: 9.047786832e-08 | AG11: 7689.314234 | AH11: -11052426.73 | AJ11: 18000 | AK11: 0.01733782152 | AL11: 1 | AM11: 0.0003402552185 | AN11: 17999.99792 | AO11: -6.107255405 | AQ11: 9999.640013 | AR11: -59.99784008 | AT11: -586231357.1 | AU11: -1.105207499e+11 | AV11: -1.576100542 | AW11: 180056245.8 | AX11: -117191530.8 | AY11: =ATAN2(AW11,AX11) -> -0.5769800309 | BA11: 514.4518796 | BB11: 54.22689517 | BC11: -0.9991205113 | BD11: -237.2453886 | BF11: 77.62550993 | BG11: -57.25464754 | BH11: 122.7453525 | BI11: 122.7453525 | BJ11: 0 | BK11: 0 | BM11: 23.39861476 | BN11: -0.009258951015 | BQ11: 71.12885597 | BT11: 102.329 | BU11: 34.9368 | BV11: -265.9149
A12: 4 | B12: 0.004 | C12: 1 | D12: 1.25663706e-06 | F12: 0.9859150925 | G12: -0.0002167222294 | H12: -0.0002167222294 | J12: 15 | M12: 460.5177757 | N12: -1.570796325 | O12: 1.000000449 | P12: 0.0009473532634 | Q12: 1.000000103 | R12: 0.0004536735936 | S12: 1 | T12: -1.284283075e-06 | U12: 0.9999999998 | V12: -1.973653222e-05 | X12: 76.66354824 | Y12: -89.93327675 | Z12: 90.06672325 | AC12: 1 | AD12: 0.0009473535468 | AE12: -2.380959152e-12 | AF12: 1.206371578e-07 | AG12: 7689.314233 | AH12: -8289320.114 | AJ12: 18000 | AK12: 0.02311709536 | AL12: 1 | AM12: 0.0004536736247 | AN12: 17999.99631 | AO12: -8.143006473 | AQ12: 9999.360041 | AR12: -79.99488033 | AT12: -586214949 | AU12: -8.288851142e+10 | AV12: -1.577868539 | AW12: 180050905.2 | AX12: -88559218.63 | AY12: -0.4571116587 | BA12: 413.1070238 | BB12: 52.32125158 | BC12: -1.120756881 | BD12: -244.2146392 | BF12: 75.71986706 | BG12: -64.22698447 | BH12: 115.7730155 | BI12: 115.7730155 | BJ12: 0 | BK12: 0 | BM12: 23.39861548 | BN12: -0.01234526909 | BQ12: 69.22321238 | BT12: 104.713 | BU12: 34.1908 | BV12: -264.9322
A13: 5 | B13: 0.005 | C13: 1 | D13: 1.570796325e-06 | F13: 0.985915197 | G13: -0.0002709028167 | H13: -0.0002709028167 | J13: 15 | M13: 368.4142205 | N13: -1.570796325 | O13: 1.000000701 | P13: 0.00118419138 | Q13: 1.000000161 | R13: 0.0005670919701 | S13: 1 | T13: -1.605353844e-06 | U13: 0.9999999997 | V13: -2.467066528e-05 | X13: 74.72535159 | Y13: -89.91659595 | Z13: 90.08340405 | AC13: 1 | AD13: 0.001184191933 | AE13: -3.720248674e-12 | AF13: 1.507964472e-07 | AG13: 7689.314231 | AH13: -6631456.159 | AJ13: 18000 | AK13: 0.02889636919 | AL13: 1 | AM13: 0.0005670920308 | AN13: 17999.99423 | AO13: -10.17875691 | AQ13: 9999.0001 | AR13: -99.990001 | AT13: -586193854.2 | AU13: -6.630869966e+10 | AV13: -1.579636473 | AW13: 180044039.1 | AX13: -71531917.79 | AY13: -0.3781786459 | BA13: 342.2809617 | BB13: 50.68765487 | BC13: -1.201457827 | BD13: -248.8384628 | BF13: 74.08627127 | BG13: -68.85389441 | BH13: 111.1461056 | BI13: 111.1461056 | BJ13: 0 | BK13: 0 | BM13: 23.3986164 | BN13: -0.01543158807 | BQ13: 67.58961567 | BT13: 107.152 | BU13: 34.4777 | BV13: -262.3057
A14: 6 | B14: 0.006 | C14: 1 | D14: 1.88495559e-06 | F14: 0.9859153248 | G14: -0.0003250834239 | H14: -0.0003250834239 | J14: 15 | M14: 307.0118505 | N14: -1.570796325 | O14: 1.00000101 | P14: 0.001421029364 | Q14: 1.000000232 | R14: 0.000680510332 | S14: 1 | T14: -1.926424613e-06 | U14: 0.9999999996 | V14: -2.960479833e-05 | X14: 73.14173109 | Y14: -89.89991516 | Z14: 90.10008484 | AC14: 1 | AD14: 0.00142103032 | AE14: -5.357158091e-12 | AF14: 1.809557366e-07 | AG14: 7689.314229 | AH14: -5526213.536 | AJ14: 18000 | AK14: 0.03467564303 | AL14: 1 | AM14: 0.000680510437 | AN14: 17999.99169 | AO14: -12.21450657 | AQ14: 9998.560207 | AR14: -119.9827225 | AT14: -586168073.8 | AU14: -5.525510134e+10 | AV14: -1.581404326 | AW14: 180035647.9 | AX14: -60307095.15 | AY14: -0.3232255981 | BA14: 291.0351906 | BB14: 49.2789101 | BC14: -1.258178728 | BD14: -252.0883311 | BF14: 72.67752763 | BG14: -72.10684899 | BH14: 107.893151 | BI14: 107.893151 | BJ14: 0 | BK14: 0 | BM14: 23.39861753 | BN14: -0.0185179082 | BQ14: 66.1808709 | BT14: 109.648 | BU14: 34.1144 | BV14: -262.7662
A15: 7 | B15: 0.007 | C15: 1 | D15: 2.199114855e-06 | F15: 0.9859154758 | G15: -0.0003792640551 | H15: -0.0003792640551 | J15: 15 | M15: 263.1530147 | N15: -1.570796325 | O15: 1.000001374 | P15: 0.001657867188 | Q15: 1.000000315 | R15: 0.0007939286764 | S15: 1 | T15: -2.247495382e-06 | U15: 0.9999999994 | V15: -3.453893138e-05 | X15: 71.80280052 | Y15: -89.88323438 | Z15: 90.11676562 | AC15: 1 | AD15: 0.001657868707 | AE15: -7.291687402e-12 | AF15: 2.111150261e-07 | AG15: 7689.314227 | AH15: -4736754.53 | AJ15: 18000 | AK15: 0.04045491687 | AL15: 1 | AM15: 0.0007939288432 | AN15: 17999.98869 | AO15: -14.25025528 | AQ15: 9998.040384 | AR15: -139.9725654 | AT15: -586137608.9 | AU15: -4.735933937e+10 | AV15: -1.583172084 | AW15: 180025731.9 | AX15: -52397945.58 | AY15: -0.2832331527 | BA15: 252.6076649 | BB15: 48.04893048 | BC15: -1.299938931 | BD15: -254.4810145 | BF15: 71.44754934 | BG15: -74.5026187 | BH15: 105.4973813 | BI15: 105.4973813 | BJ15: 0 | BK15: 0 | BM15: 23.39861886 | BN15: -0.0216042297 | BQ15: 64.95089128 | BT15: 112.202 | BU15: 34.2977 | BV15: -267.0128
A16: 8 | B16: 0.008 | C16: 1 | D16: 2.51327412e-06 | F16: 0.9859156501 | G16: -0.0004334447142 | H16: -0.0004334447142 | J16: 15 | M16: 230.2588878 | N16: -1.570796325 | O16: 1.000001795 | P16: 0.001894704826 | Q16: 1.000000412 | R16: 0.0009073470004 | S16: 1 | T16: -2.568566151e-06 | U16: 0.9999999992 | V16: -3.947306443e-05 | X16: 70.6429676 | Y16: -89.86655362 | Z16: 90.13344638 | AC16: 1 | AD16: 0.001894707094 | AE16: -9.523836607e-12 | AF16: 2.412743155e-07 | AG16: 7689.314224 | AH16: -4144660.285 | AJ16: 18000 | AK16: 0.04623419071 | AL16: 1 | AM16: 0.0009073472494 | AN16: 17999.98522 | AO16: -16.28600289 | AQ16: 9997.440655 | AR16: -159.9590505 | AT16: -586102461.1 | AU16: -4.143722521e+10 | AV16: -1.58493973 | AW16: 180014291.7 | AX16: -46561061.94 | AY16: -0.2531050273 | BA16: 222.8769127 | BB16: 46.96130166 | BC16: -1.331834703 | BD16: -256.3085076 | BF16: 70.35992206 | BG16: -76.33319811 | BH16: 103.6668019 | BI16: 103.6668019 | BJ16: 0 | BK16: 0 | BM16: 23.39862039 | BN16: -0.0246905528 | BQ16: 63.86326246 | BT16: 114.815 | BU16: 33.3465 | BV16: -266.2048
A17: 9 | B17: 0.009 | C17: 1 | D17: 2.827433385e-06 | F17: 0.9859158475 | G17: -0.0004876254051 | H17: -0.0004876254051 | J17: 15 | M17: 204.674567 | N17: -1.570796325 | O17: 1.000002272 | P17: 0.002131542252 | Q17: 1.000000521 | R17: 0.001020765301 | S17: 1 | T17: -2.889636919e-06 | U17: 0.999999999 | V17: -4.440719748e-05 | X17: 69.61992398 | Y17: -89.84987287 | Z17: 90.15012713 | AC17: 1 | AD17: 0.00213154548 | AE17: -1.205360571e-11 | AF17: 2.71433605e-07 | AG17: 7689.314221 | AH17: -3684142.547 | AJ17: 18000 | AK17: 0.05201346455 | AL17: 1 | AM17: 0.001020765656 | AN17: 17999.9813 | AO17: -18.32174924 | AQ17: 9996.761049 | AR17: -179.9416989 | AT17: -586062631.9 | AU17: -3.683087634e+10 | AV17: -1.586707248 | AW17: 180001327.8 | AX17: -42105658.42 | AY17: -0.2297869078 | BA17: 199.2613911 | BB17: 45.98846316 | BC17: -1.35692034 | BD17: -257.7458087 | BF17: 69.38708529 | BG17: -77.7735856 | BH17: 102.2264144 | BI17: 102.2264144 | BJ17: 0 | BK17: 0 | BM17: 23.39862213 | BN17: -0.02777687773 | BQ17: 62.89042396 | BT17: 117.49 | BU17: 33.0246 | BV17: -264.9049
A18: 10 | B18: 0.01 | C18: 1 | D18: 3.14159265e-06 | F18: 0.9859160682 | G18: -0.000541806132 | H18: -0.000541806132 | J18: 15 | M18: 184.2071103 | N18: -1.570796325 | O18: 1.000002805 | P18: 0.002368379439 | Q18: 1.000000643 | R18: 0.001134183575 | S18: 1 | T18: -3.210707688e-06 | U18: 0.9999999988 | V18: -4.934133052e-05 | X18: 68.7047818 | Y18: -89.83319214 | Z18: 90.16680786 | AC18: 1 | AD18: 0.002368383867 | AE18: -1.48809947e-11 | AF18: 3.015928944e-07 | AG18: 7689.314217 | AH18: -3315728.364 | AJ18: 18000 | AK18: 0.05779273839 | AL18: 1 | AM18: 0.001134184062 | AN18: 17999.97691 | AO18: -20.35749418 | AQ18: 9996.001599 | AR18: -199.920032 | AT18: -586018123.4 | AU18: -3.314556328e+10 | AV18: -1.588474623 | AW18: 179986840.8 | AX18: -38617259.9 | AY18: -0.2113517558 | BA18: 180.0858362 | BB18: 45.10959114 | BC18: -1.377122867 | BD18: -258.9033282 | BF18: 68.50821521 | BG18: -78.93419144 | BH18: 101.0658086 | BI18: 101.0658086 | BJ18: 0 | BK18: 0 | BM18: 23.39862408 | BN18: -0.03086320472 | BQ18: 62.01155194 | BT18: 120.226 | BU18: 33.736 | BV18: -269.9808
A19: =A10*10 -> 20 | B19: 0.02 | C19: 1 | D19: 6.2831853e-06 | F19: 0.9859195529 | G19: -0.001083616253 | H19: -0.001083616253 | J19: 15 | M19: 92.10355514 | N19: -1.570796325 | O19: 1.000011218 | P19: 0.004736732308 | Q19: 1.000002573 | R19: 0.002268364233 | S19: 1 | T19: -6.421415377e-06 | U19: 0.9999999951 | V19: -9.86826608e-05 | X19: 62.6843024 | Y19: -89.66638619 | Z19: 90.33361381 | AC19: 1 | AD19: 0.004736767734 | AE19: -5.952397879e-11 | AF19: 6.031857888e-07 | AG19: 7689.314161 | AH19: -1657864.751 | AJ19: 18000 | AK19: 0.1155854768 | AL19: 1 | AM19: 0.002268368123 | AN19: 17999.90764 | AO19: -40.71483125 | AQ19: 9984.025559 | AR19: -399.3610224 | AT19: -585316252.9 | AU19: -1.655523486e+10 | AV19: -1.606136964 | AW19: 179758390.6 | AX19: -25002664.46 | AY19: -0.1382037049 | BA19: 91.27599997 | BB19: 39.20713199 | BC19: -1.467933259 | BD19: -264.1063805 | BF19: 62.60578677 | BG19: -84.1681071 | BH19: 95.8318929 | BI19: 95.8318929 | BJ19: 0 | BK19: 0 | BM19: 23.39865478 | BN19: -0.06172663799 | BQ19: 56.10909279 | BT19: 123.027 | BU19: 32.7649 | BV19: -265.7341
A20: =A11*10 -> 30 | B20: 0.03 | C20: 1 | D20: 9.42477795e-06 | F20: 0.9859253608 | G20: -0.001625434352 | H20: -0.001625434352 | J20: 15 | M20: 61.40237009 | N20: -1.570796325 | O20: 1.000025241 | P20: 0.007105032041 | Q20: 1.000005789 | R20: 0.003402539054 | S20: 1 | T20: -9.632123065e-06 | U20: 0.999999989 | V20: -0.0001480239906 | X20: 59.16267807 | Y20: -89.49958408 | Z20: 90.50041592 | AC20: 1 | AD20: 0.007105151601 | AE20: -1.339289523e-10 | AF20: 9.047786832e-07 | AG20: 7689.314068 | AH20: -1105243.8 | AJ20: 18000 | AK20: 0.1733782152 | AL20: 1 | AM20: 0.003402552185 | AN20: 17999.7922 | AO20: -61.07185407 | AQ20: 9964.129135 | AR20: -597.8477481 | AT20: -584150198.5 | AU20: -1.101738899e+10 | AV20: -1.623767474 | AW20: 179378854.3 | AX20: -22974910.67 | AY20: -0.127386819 | BA20: 61.00756874 | BB20: 35.70767436 | BC20: -1.496380655 | BD20: -265.7362962 | BF20: 59.1063803 | BG20: -85.82888669 | BH20: 94.17111331 | BI20: 94.17111331 | BJ20: 0 | BK20: 0 | BM20: 23.39870594 | BN20: -0.09259052838 | BQ20: 52.60963516 | BT20: 125.893 | BU20: 32.2472 | BV20: -266.3711
A21: 40 | B21: 0.04 | C21: 1 | D21: 1.25663706e-05 | F21: 0.985933492 | G21: -0.002167264419 | H21: -0.002167264419 | J21: 15 | M21: 46.05177757 | N21: -1.570796325 | O21: 1.000044873 | P21: 0.009473252073 | Q21: 1.000010291 | R21: 0.004536705122 | S21: 0.9999999999 | T21: -1.284283075e-05 | U21: 0.9999999805 | V21: -0.0001973653197 | X21: 56.66418451 | Y21: -89.33278772 | Z21: 90.66721228 | AC21: 1 | AD21: 0.009473535468 | AE21: -2.380959152e-10 | AF21: 1.206371578e-06 | AG21: 7689.313937 | AH21: -828933.5138 | AJ21: 18000 | AK21: 0.2311709536 | AL21: 1 | AM21: 0.004536736247 | AN21: 17999.63058 | AO21: -81.42840553 | AQ21: 9936.406995 | AR21: -794.9125596 | AT21: -582525508.4 | AU21: -8242733098 | AV21: -1.641350426 | AW21: 178850038.3 | AX21: -23821290.36 | AY21: -0.132412094 | BA21: 45.79790573 | BB21: 33.21691238 | BC21: -1.508938332 | BD21: -266.4557981 | BF21: 56.61568995 | BG21: -86.57925316 | BH21: 93.42074684 | BI21: 93.42074684 | BJ21: 0 | BK21: 0 | BM21: 23.39877758 | BN21: -0.1234551045 | BQ21: 50.11887318 | BT21: 128.825 | BU21: 32.3142 | BV21: -268.0596
A22: 50 | B22: 0.05 | C22: 1 | D22: 1.570796325e-05 | F22: 0.9859439465 | G22: -0.002709110443 | H22: -0.002709110443 | J22: 15 | M22: 36.84142205 | N22: -1.570796325 | O22: 1.000070113 | P22: 0.01184136585 | Q22: 1.00001608 | R22: 0.005670859519 | S22: 0.9999999999 | T22: -1.605353844e-05 | U22: 0.9999999696 | V22: -0.0002467066478 | X22: 54.72634576 | Y22: -89.16599904 | Z22: 90.83400096 | AC22: 1 | AD22: 0.01184191933 | AE22: -3.720248674e-10 | AF22: 1.507964472e-06 | AG22: 7689.313768 | AH22: -663147.494 | AJ22: 18000 | AK22: 0.2889636919 | AL22: 1 | AM22: 0.005670920308 | AN22: 17999.42279 | AO22: -101.7843285 | AQ22: 9900.990099 | AR22: -990.0990099 | AT22: =-AR22*AH22+AG22*AQ22 -> -580449857.7 | AU22: =AQ22*AH22+AG22*AR22 -> -6573429954 | AV22: -1.65887032 | AW22: 178174441.2 | AX22: -25792337.83 | AY22: -0.1437602878 | BA22: 36.65471974 | BB22: 31.28259806 | BC22: -1.515110032 | BD22: -266.8094104 | BF22: 54.68146774 | BG22: -86.96373104 | BH22: 93.03626896 | BI22: 93.03626896 | BJ22: 0 | BK22: 0 | BM22: 23.39886968 | BN22: -0.1543205948 | BQ22: 48.18455886 | BT22: 131.826 | BU22: 32.1558 | BV22: -263.3605
A23: 60 | B23: 0.06 | C23: 1 | D23: 1.88495559e-05 | F23: 0.9859567245 | G23: -0.003250976415 | H23: -0.003250976415 | J23: 15 | M23: 30.70118505 | N23: -1.570796325 | O23: 1.000100961 | P23: 0.01420934681 | Q23: 1.000023154 | R23: 0.006804999326 | S23: 0.9999999998 | T23: -1.926424613e-05 | U23: 0.9999999562 | V23: -0.0002960479747 | X23: 53.14316266 | Y23: -88.99921994 | Z23: 91.00078006 | AC23: 1 | AD23: 0.0142103032 | AE23: -5.357158091e-10 | AF23: 1.809557366e-06 | AG23: 7689.313562 | AH23: -552623.6072 | AJ23: 18000 | AK23: 0.3467564303 | AL23: 1 | AM23: 0.00680510437 | AN23: 17999.16883 | AO23: -122.139466 | AQ23: 9858.044164 | AR23: -1182.9653 | AT23: -577932958.4 | AU23: -5456884117 | AV23: -1.676311954 | AW23: 177355224.6 | AX23: -28299371.66 | AY23: -0.1582293609 | BA23: 30.55367195 | BB23: 29.70126823 | BC23: -1.518082593 | BD23: -266.9797256 | BF23: 53.10025048 | BG23: -87.16491287 | BH23: 92.83508713 | BI23: 92.83508713 | BJ23: 0 | BK23: 0 | BM23: 23.39898225 | BN23: -0.1851872281 | BQ23: 46.60322903 | BT23: 134.896 | BU23: 32.8753 | BV23: -269.4654
A24: 70 | B24: 0.07 | C24: 1 | D24: 2.199114855e-05 | F24: 0.9859718262 | G24: -0.003792866323 | H24: -0.003792866323 | J24: 15 | M24: 26.31530147 | N24: -1.570796325 | O24: 1.000137417 | P24: 0.01657716842 | Q24: 1.000031516 | R24: 0.007939121628 | S24: 0.9999999997 | T24: -2.247495381e-05 | U24: 0.9999999404 | V24: -0.0003453893002 | X24: 51.80474901 | Y24: -88.83245235 | Z24: 91.16754765 | AC24: 1 | AD24: 0.01657868707 | AE24: -7.291687402e-10 | AF24: 2.111150261e-06 | AG24: 7689.313319 | AH24: -473678.0822 | AJ24: 18000 | AK24: 0.4045491687 | AL24: 1 | AM24: 0.007939288432 | AN24: 17998.8687 | AO24: -142.4936609 | AQ24: 9807.767752 | AR24: -1373.087485 | AT24: -574986447.5 | AU24: -4656282720 | AV24: -1.693660489 | AW24: 176396176.9 | AX24: -31085623.91 | AY24: -0.1744351595 | BA24: 26.19361055 | BB24: 28.36390732 | BC24: -1.51922533 | BD24: -267.0451996 | BF24: 51.76302261 | BG24: -87.26125485 | BH24: 92.73874515 | BI24: 92.73874515 | BJ24: 0 | BK24: 0 | BM24: 23.39911529 | BN24: -0.2160552328 | BQ24: 45.26586812 | BT24: 138.038 | BU24: 32.5387 | BV24: -267.9507
A25: 80 | B25: 0.08 | C25: 1 | D25: 2.513274119e-05 | F25: 0.9859892517 | G25: -0.004334784161 | H25: -0.004334784161 | J25: 15 | M25: 23.02588878 | N25: -1.570796325 | O25: 1.00017948 | P25: 0.01894480414 | Q25: 1.000041163 | R25: 0.009073223506 | S25: 0.9999999997 | T25: -2.56856615e-05 | U25: 0.9999999221 | V25: -0.000394730624 | X25: 50.6455125 | Y25: -88.66569818 | Z25: 91.33430182 | AC25: 1 | AD25: 0.01894707094 | AE25: -9.523836607e-10 | AF25: 2.412743155e-06 | AG25: 7689.313038 | AH25: -414469.0333 | AJ25: 18000 | AK25: 0.4623419071 | AL25: 1 | AM25: 0.009073472494 | AN25: 17998.52241 | AO25: -162.8467561 | AQ25: 9750.390016 | AR25: -1560.062402 | AT25: -571623754.8 | AU25: -4053230532 | AV25: -1.710901515 | AW25: 175301670.1 | AX25: -34019062.86 | AY25: -0.191677666 | BA25: 22.92262537 | BB25: 27.20528713 | BC25: -1.519223849 | BD25: -267.0451148 | BF25: 50.60455593 | BG25: -87.29203965 | BH25: 92.70796035 | BI25: 92.70796035 | BJ25: 0 | BK25: 0 | BM25: 23.3992688 | BN25: -0.2469248378 | BQ25: 44.10724793 | BT25: 141.254 | BU25: 32.377 | BV25: -263.1143
A26: 90 | B26: 0.09 | C26: 1 | D26: 2.827433384e-05 | F26: 0.9860090012 | G26: -0.004876733918 | H26: -0.004876733918 | J26: 15 | M26: 20.4674567 | N26: -1.570796325 | O26: 1.000227149 | P26: 0.02131222747 | Q26: 1.000052097 | R26: 0.01020730204 | S26: 0.9999999996 | T26: -2.889636919e-05 | U26: 0.9999999014 | V26: -0.0004440719459 | X26: 49.62314478 | Y26: -88.49895934 | Z26: 91.50104066 | AC26: 1 | AD26: 0.0213154548 | AE26: -1.205360571e-09 | AF26: 2.71433605e-06 | AG26: 7689.31272 | AH26: -368417.6351 | AJ26: 18000 | AK26: 0.5201346455 | AL26: 1 | AM26: 0.01020765656 | AN26: 17998.12997 | AO26: -183.1985947 | AQ26: 9686.168152 | AR26: -1743.510267 | AT26: -567859953.6 | AU26: -3581961560 | AV26: -1.72802111 | AW26: 174076611.4 | AX26: -37023365.01 | AY26: -0.2095617388 | BA26: 20.37809892 | BB26: 26.18327332 | BC26: -1.518459371 | BD26: -267.0013134 | BF26: 49.5827161 | BG26: -87.27910967 | BH26: 92.72089033 | BI26: 92.72089033 | BJ26: 0 | BK26: 0 | BM26: 23.39944278 | BN26: -0.2777962716 | BQ26: 43.08523412 | BT26: 144.544 | BU26: 31.4991 | BV26: -266.2885
A27: 100 | B27: 0.1 | C27: 1 | D27: 3.141592649e-05 | F27: 0.986031075 | G27: -0.005418719588 | H27: -0.005418719588 | J27: 15 | M27: 18.42071103 | N27: -1.570796325 | O27: 1.000280423 | P27: 0.02367941188 | Q27: 1.000064317 | R27: 0.01134135433 | S27: 0.9999999995 | T27: -3.210707687e-05 | U27: 0.9999998783 | V27: -0.0004934132656 | X27: 48.70875797 | Y27: -88.33223776 | Z27: 91.66776224 | AC27: 1 | AD27: 0.02368383867 | AE27: -1.48809947e-09 | AF27: 3.015928944e-06 | AG27: 7689.312364 | AH27: -331576.5925 | AJ27: 18000 | AK27: 0.5779273839 | AL27: 1 | AM27: 0.01134184062 | AN27: 17997.69138 | AO27: -203.5490197 | AQ27: 9615.384615 | AR27: -1923.076923 | AT27: -563711597.5 | AU27: -3203023605 | AV27: -1.745005888 | AW27: 172726389.7 | AX27: -40050326.89 | AY27: -0.2278451306 | BA27: 18.34228707 | BB27: 25.26906972 | BC27: -1.517160757 | BD27: -266.9269083 | BF27: 48.66870695 | BG27: -87.23557811 | BH27: 92.76442189 | BI27: 92.76442189 | BJ27: 0 | BK27: 0 | BM27: 23.39963723 | BN27: -0.3086697631 | BQ27: 42.17103052 | BT27: 147.911 | BU27: 31.4819 | BV27: -266.3463
A28: 200 | B28: 0.2 | C28: 1.000000002 | D28: 6.283185292e-05 | F28: 0.9863797226 | G28: -0.01084143047 | H28: -0.01084143047 | J28: 15 | M28: 9.210355514 | N28: -1.570796325 | O28: 1.00112122 | P28: 0.04733229872 | Q28: 1.000257242 | R28: 0.02267979181 | S28: 0.9999999979 | T28: -6.421415368e-05 | U28: 0.9999995131 | V28: -0.0009868262909 | X28: 42.70019897 | Y28: -86.66639109 | Z28: 93.33360891 | AC28: 1 | AD28: 0.04736767734 | AE28: -5.952397879e-09 | AF28: 6.031857888e-06 | AG28: 7689.306748 | AH28: -165793.9873 | AJ28: 18000 | AK28: 1.155854768 | AL28: 1 | AM28: 0.02268368123 | AN28: 17990.76908 | AO28: -406.9410162 | AQ28: 8620.689655 | AR28: -3448.275862 | AT28: -505416277.2 | AU28: -1455773362 | AV28: -1.904957231 | AW28: 153752674.7 | AX28: -67287334.51 | AY28: -0.4125225614 | BA28: 9.181897425 | BB28: 19.25864873 | BC28: -1.49243467 | BD28: -265.5102079 | BF28: 42.66135665 | BG28: -86.12777611 | BH28: 93.87222389 | BI28: 93.87222389 | BJ28: 0 | BK28: 0 | BM28: 23.40270791 | BN28: -0.6175682107 | BQ28: 36.16060954 | BT28: 151.356 | BU28: 31.0519 | BV28: -267.0283
A29: 300 | B29: 0.3 | C29: 1.000000004 | D29: 9.424777922e-05 | F29: 0.9869612774 | G29: -0.01627213296 | H29: -0.01627213296 | J29: 15 | M29: 6.140237009 | N29: -1.570796325 | O29: 1.002520981 | P29: 0.07093231332 | Q29: 1.000578701 | R29: 0.03401240011 | S29: 0.9999999954 | T29: -9.632123035e-05 | U29: 0.9999989044 | V29: -0.001480238836 | X29: 39.19841513 | Y29: -85.00436561 | Z29: 94.99563439 | AC29: 1 | AD29: 0.07105151601 | AE29: -1.339289523e-08 | AF29: 9.047786832e-06 | AG29: 7689.297388 | AH29: -110535.6482 | AJ29: 18000 | AK29: 1.733782152 | AL29: 1 | AM29: 0.03402552185 | AN29: 17979.24377 | AO29: -610.0193697 | AQ29: 7352.941176 | AR29: -4411.764706 | AT29: -431118319.9 | AU29: -846685489.7 | AV29: -2.041763753 | AW29: 129572105.1 | AX29: -84968128.7 | AY29: -0.5804133739 | BA29: 6.131949176 | BB29: 15.75197093 | BC29: -1.461350379 | BD29: -263.7292092 | BF29: 39.15979843 | BG29: -84.65613373 | BH29: 95.34386627 | BI29: 95.34386627 | BJ29: 0 | BK29: 0 | BM29: 23.4078275 | BN29: -0.9269245435 | BQ29: 32.65393173 | BT29: 154.882 | BU29: 31.2487 | BV29: -260.6973
A30: 400 | B30: 0.4 | C30: 1.000000008 | D30: 0.0001256637053 | F30: 0.9877764539 | G30: -0.02171484542 | H30: -0.02171484542 | J30: 15 | M30: 4.605177757 | N30: -1.570796325 | O30: 1.00447737 | P30: 0.0944534612 | Q30: 1.00102857 | R30: 0.04533627585 | S30: 0.9999999918 | T30: -0.0001284283068 | U30: 0.9999980524 | V30: -0.00197365066 | X30: 36.72764221 | Y30: -83.34804729 | Z30: 96.65195271 | AC30: 1 | AD30: 0.09473535468 | AE30: -2.380959152e-08 | AF30: 1.206371578e-05 | AG30: 7689.284284 | AH30: -82908.3756 | AJ30: 18000 | AK30: 2.311709536 | AL30: 1 | AM30: 0.04536736247 | AN30: 17963.1332 | AO30: -812.6282654 | AQ30: 6097.560976 | AR30: -4878.04878 | AT30: -357545220.7 | AU30: -543047579.4 | AV30: -2.153057458 | AW30: 105630252.3 | AX30: -93453125.61 | AY30: -0.7243083082 | BA30: 4.610047453 | BB30: 13.27410792 | BC30: -1.42874915 | BD30: -261.8612964 | BF30: 36.68910655 | BG30: -83.09826539 | BH30: 96.90173461 | BI30: 96.90173461 | BJ30: 0 | BK30: 0 | BM30: 23.41499864 | BN30: -1.236968997 | BQ30: 30.17606872 | BT30: 158.489 | BU30: 31.0037 | BV30: -259.869
A31: 500 | B31: 0.5 | C31: 1.000000012 | D31: 0.0001570796312 | F31: 0.9888262548 | G31: -0.02717361339 | H31: -0.02717361339 | J31: 15 | M31: 3.684142205 | N31: -1.570796325 | O31: 1.006987143 | P31: 0.1178702696 | Q31: 1.001606676 | R31: 0.0566485291 | S31: 0.9999999871 | T31: -0.000160535383 | U31: 0.9999969568 | V31: -0.002467061523 | X31: 34.82534895 | Y31: -81.69929295 | Z31: 98.30070705 | AC31: 1 | AD31: 0.1184191933 | AE31: -3.720248674e-08 | AF31: 1.507964472e-05 | AG31: 7689.267436 | AH31: -66333.52963 | AJ31: 18000 | AK31: 2.889636919 | AL31: 1 | AM31: 0.05670920308 | AN31: 17942.4621 | AO31: -1014.61309 | AQ31: 5000 | AR31: -5000 | AT31: -293221311 | AU31: -370113985.3 | AV31: -2.240791282 | AW31: 84702170.36 | AX31: -95484995.79 | AY31: -0.8451692434 | BA31: 3.699400922 | BB31: 11.36262801 | BC31: -1.395622039 | BD31: -259.9632527 | BF31: 34.78685308 | BG31: -81.51118607 | BH31: 98.48881393 | BI31: 98.48881393 | BJ31: 0 | BK31: 0 | BM31: 23.42422507 | BN31: -1.547933363 | BQ31: 28.26458881 | BT31: 162.181 | BU31: 30.4293 | BV31: -262.3986
A32: 600 | B32: 0.6 | C32: 1.000000018 | D32: 0.0001884955568 | F32: 0.9901119736 | G32: -0.03265251885 | H32: -0.03265251885 | J32: 15 | M32: 3.070118505 | N32: -1.570796325 | O32: 1.010046173 | P32: 0.1411579481 | Q32: 1.002312798 | R32: 0.06794628775 | S32: 0.9999999814 | T32: -0.0001926424589 | U32: 0.9999956178 | V32: -0.002960471185 | X32: 33.28546621 | Y32: -80.05992142 | Z32: 99.94007858 | AC32: 1 | AD32: 0.142103032 | AE32: -5.357158091e-08 | AF32: 1.809557366e-05 | AG32: 7689.246844 | AH32: -55284.89694 | AJ32: 18000 | AK32: 3.467564303 | AL32: 1 | AM32: 0.0680510437 | AN32: 17917.26212 | AO32: -1215.820824 | AQ32: 4098.360656 | AR32: -4918.032787 | AT32: -240379629 | AU32: -264393414.6 | AV32: -2.3086569 | AW32: 67514798.67 | AX32: -93684781.97 | AY32: -0.9463392778 | BA32: 3.094383512 | BB32: 9.811482768 | BC32: -1.362317623 | BD32: -258.0550502 | BF32: 33.24699435 | BG32: -79.91510175 | BH32: 100.0848983 | BI32: 100.0848983 | BJ32: 0 | BK32: 0 | BM32: 23.43551159 | BN32: -1.860051523 | BQ32: 26.71344357 | BT32: 165.959 | BU32: 29.9194 | BV32: -264.8295
A33: 700 | B33: 0.7 | C33: 1.000000024 | D33: 0.000219911482 | F33: 0.9916351976 | G33: -0.03815568959 | H33: -0.03815568959 | J33: 15 | M33: 2.631530147 | N33: -1.570796325 | O33: 1.013649489 | P33: 0.1642925378 | Q33: 1.003146664 | R33: 0.07922670182 | S33: 0.9999999747 | T33: -0.0002247495344 | U33: 0.9999940354 | V33: -0.003453879405 | X33: 31.99802381 | Y33: -78.43170522 | Z33: 101.5682948 | AC33: 1 | AD33: 0.1657868707 | AE33: -7.291687402e-08 | AF33: 2.111150261e-05 | AG33: 7689.222508 | AH33: -47394.10039 | AJ33: 18000 | AK33: 4.045491687 | AL33: 1 | AM33: 0.07939288432 | AN33: 17887.5717 | AO33: -1416.100419 | AQ33: 3378.378378 | AR33: -4729.72973 | AT33: -198184182.6 | AU33: -196483148.3 | AV33: -2.360504509 | AW33: 53795959.68 | AX33: -89889491.46 | AY33: -1.031504259 | BA33: 2.664006281 | BB33: 8.510704888 | BC33: -1.32900025 | BD33: -256.1461054 | BF33: 31.95956895 | BG33: -78.31966537 | BH33: 101.6803346 | BI33: 101.6803346 | BJ33: 0 | BK33: 0 | BM33: 23.44886406 | BN33: -2.173559981 | BQ33: 25.41266569 | BT33: 169.824 | BU33: 29.8089 | BV33: -267.7277
A34: 800 | B34: 0.8 | C34: 1.000000032 | D34: 0.0002513274067 | F34: 0.993397812 | G34: -0.04368730882 | H34: -0.04368730882 | J34: 15 | M34: 2.302588878 | N34: -1.570796325 | O34: 1.01779131 | P34: 0.187251048 | Q34: 1.004107957 | R34: 0.09048694774 | S34: 0.999999967 | T34: -0.0002568566094 | U34: 0.9999922095 | V34: -0.003947285944 | X34: 30.89733248 | Y34: -76.81636306 | Z34: 103.1836369 | AC34: 1 | AD34: 0.1894707094 | AE34: -9.523836607e-08 | AF34: 2.412743155e-05 | AG34: 7689.194429 | AH34: -41476.95142 | AJ34: 18000 | AK34: 4.623419071 | AL34: 1 | AM34: 0.09073472494 | AN34: 17853.43591 | AO34: -1615.303177 | AQ34: 2808.988764 | AR34: -4494.382022 | AT34: -164814404 | AU34: -151066467.7 | AV34: -2.399689576 | AW34: 42952946.53 | AX34: -85217999.99 | AY34: -1.103925071 | BA34: 2.342772351 | BB34: 7.394601799 | BC34: -1.295764506 | BD34: -254.2418375 | BF34: 30.85889124 | BG34: -76.73053592 | BH34: 103.2694641 | BI34: 103.2694641 | BJ34: 0 | BK34: 0 | BM34: 23.46428944 | BN34: -2.488698417 | BQ34: 24.2965626 | BT34: 173.78 | BU34: 30.0709 | BV34: -269.952
A35: 900 | B35: 0.9 | C35: 1.00000004 | D35: 0.000282743331 | F35: 0.9954020043 | G35: -0.04925162501 | H35: -0.04925162501 | J35: 15 | M35: 2.04674567 | N35: -1.570796325 | O35: 1.022465091 | P35: 0.2100115776 | Q35: 1.005196312 | R35: 0.1017242325 | S35: 0.9999999582 | T35: -0.0002889636839 | U35: 0.9999901401 | V35: -0.004440690561 | X35: 29.94097486 | Y35: -75.21555322 | Z35: 104.7844468 | AC35: 1 | AD35: 0.213154548 | AE35: -1.205360571e-07 | AF35: 2.71433605e-05 | AG35: 7689.162606 | AH35: -36875.56747 | AJ35: 18000 | AK35: 5.201346455 | AL35: 1 | AM35: 0.1020765656 | AN35: 17814.90629 | AO35: -1813.283103 | AQ35: 2358.490566 | AR35: -4245.283019 | AT35: -138412402.9 | AU35: -119613349.4 | AV35: -2.428923262 | AW35: 34380898.12 | AX35: -80298693.28 | AY35: -1.166249973 | BA35: 2.094293248 | BB35: 6.420749851 | BC35: -1.26267329 | BD35: -252.3458505 | BF35: 29.9025456 | BG35: -75.15156073 | BH35: 104.8484393 | BI35: 104.8484393 | BJ35: 0 | BK35: 0 | BM35: 23.48179575 | BN35: -2.805710251 | BQ35: 23.32271065 | BT35: 177.828 | BU35: 29.7201 | BV35: -271.5601
A36: 1000 | B36: 1 | C36: 1.000000049 | D36: 0.0003141592547 | F36: 0.9976502698 | G36: -0.05485296198 | H36: -0.05485296198 | J36: 15 | M36: 1.842071103 | N36: -1.570796325 | O36: 1.027663574 | P36: 0.2325534207 | Q36: 1.006411315 | R36: 0.1129357975 | S36: 0.9999999485 | T36: -0.0003210707578 | U36: 0.9999878274 | V36: -0.004934093015 | X36: 29.09994319 | Y36: -73.63086783 | Z36: 106.3691322 | AC36: 1 | AD36: 0.2368383867 | AE36: -1.48809947e-07 | AF36: 3.015928944e-05 | AG36: 7689.127039 | AH36: -33195.21902 | AJ36: 18000 | AK36: 5.779273839 | AL36: 1 | AM36: 0.1134184062 | AN36: 17772.04066 | AO36: -2009.897252 | AQ36: 2000 | AR36: -4000 | AT36: -117402622 | AU36: -97146946.21 | AV36: -2.450325717 | AW36: 27566862.29 | AX36: -75462679.52 | AY36: -1.220552727 | BA36: 1.896734987 | BB36: 5.560133104 | BC36: -1.22977299 | BD36: -250.4608022 | BF36: 29.0615252 | BG36: -73.58564539 | BH36: 106.4143546 | BI36: 106.4143546 | BJ36: 0 | BK36: 0 | BM36: 23.5013921 | BN36: -3.12484322 | BQ36: 22.4620939 | BT36: 181.97 | BU36: 30.0421 | BV36: -268.8459
A37: =A36+500 -> 1500 | B37: 1.5 | C37: 1.000000111 | D37: 0.0004712388626 | F37: 1.012662416 | G37: -0.08357291854 | H37: -0.08357291854 | J37: 15 | M37: 1.228047402 | N37: -1.570796325 | O37: 1.061229451 | P37: 0.3413509325 | Q37: 1.014368475 | R37: 0.1685141795 | S37: 0.999999884 | T37: -0.000481606116 | U37: 0.9999726122 | V37: -0.007401064448 | X37: 26.05528445 | Y37: -65.99990021 | Z37: 114.0000998 | AC37: 1 | AD37: 0.35525758 | AE37: -3.348223807e-07 | AF37: 4.523893416e-05 | AG37: 7688.893056 | AH37: -22161.76026 | AJ37: 18000 | AK37: 8.668910758 | AL37: 1 | AM37: 0.1701276093 | AN37: 17495.10688 | AO37: -2967.731797 | AQ37: 1000 | AR37: -3000 | AT37: -58796387.74 | AU37: -45228439.43 | AV37: -2.485892231 | AW37: 8653379.078 | AX37: -55694856.33 | AY37: -1.416657514 | BA37: 1.31610408 | BB37: 2.385804711 | BC37: -1.069234718 | BD37: -241.2626367 | BF37: 26.0169247 | BG37: -66.02401222 | BH37: 113.9759878 | BI37: 113.9759878 | BJ37: 0 | BK37: 0 | BM37: 23.63111998 | BN37: -4.761375521 | BQ37: 19.28776551 | BT37: 186.209 | BU37: 29.9018 | BV37: -265.3796
A38: =A37+500 -> 2000 | B38: 2 | C38: 1.000000197 | D38: 0.0006283184473 | F38: 1.034340629 | G38: -0.113929833 | H38: -0.113929833 | J38: 15 | M38: 0.9210355514 | N38: -1.570796325 | O38: 1.106512397 | P38: 0.4423681487 | Q38: 1.025404769 | R38: 0.2230620575 | S38: 0.9999997938 | T38: -0.0006421414494 | U38: 0.9999513122 | V38: -0.009867945798 | X38: 24.1972341 | Y38: -58.96753982 | Z38: 121.0324602 | AC38: 1 | AD38: 0.4736767734 | AE38: -5.952397879e-07 | AF38: 6.031857888e-05 | AG38: 7688.565503 | AH38: -16654.51273 | AJ38: 18000 | AK38: 11.55854768 | AL38: 1 | AM38: 0.2268368123 | AN38: 17121.6295 | AO38: -3872.257309 | AQ38: 588.2352941 | AR38: -2352.941176 | AT38: -34664403.2 | AU38: -27887514.56 | AV38: -2.464113788 | AW38: 1020603.678 | AX38: -42750722.39 | AY38: -1.546927494 | BA38: 1.040380957 | BB38: 0.3438478876 | BC38: -0.9171862937 | BD38: -232.5509037 | BF38: 24.15894646 | BG38: -59.04260232 | BH38: 120.9573977 | BI38: 120.9573977 | BJ38: 0 | BK38: 0 | BM38: 23.81509858 | BN38: -6.491698603 | BQ38: 17.24580869 | BT38: 190.546 | BU38: 29.5667 | BV38: -265.8945
A39: 2500 | B39: 2.5 | C39: 1.000000308 | D39: 0.000785398001 | F39: 1.063394538 | G39: -0.1466207892 | H39: -0.1466207892 | J39: 15 | M39: 0.7368284411 | N39: -1.570796325 | O39: 1.162143551 | P39: 0.5345874402 | Q39: 1.03942212 | R39: 0.2762938856 | S39: 0.9999996779 | T39: -0.0008026767497 | U39: 0.9999239285 | V39: -0.01233470705 | X39: 23.04341504 | Y39: -52.64839137 | Z39: 127.3516086 | AC39: 1 | AD39: 0.5920959667 | AE39: -9.300621686e-07 | AF39: 7.53982236e-05 | AG39: 7688.144405 | AH39: -13357.74776 | AJ39: 18000 | AK39: 14.4481846 | AL39: 1 | AM39: 0.2835460154 | AN39: 16664.31353 | AO39: -4710.651517 | AQ39: 384.6153846 | AR39: -1923.076923 | AT39: -22730997.84 | AU39: -19922488.38 | AV39: -2.421944361 | AW39: -2590833.489 | AX39: -34013210.44 | AY39: -1.646820909 | BA39: 0.8860843357 | BB39: -1.050498817 | BC39: -0.7751234514 | BD39: -224.4113024 | BF39: 23.00521755 | BG39: -52.76705485 | BH39: 127.2329452 | BI39: 127.2329452 | BJ39: 0 | BK39: 0 | BM39: 24.05571637 | BN39: -8.355752429 | BQ39: 15.85146198 | BT39: 194.984 | BU39: 29.6856 | BV39: -265.6327
A40: 3000 | B40: 3 | C40: 1.000000444 | D40: 0.0009424775159 | F40: 1.100807791 | G40: -0.182494603 | H40: -0.182494603 | J40: 15 | M40: 0.6140237009 | N40: -1.570796325 | O40: 1.226715857 | P40: 0.6177483124 | Q40: 1.056301857 | R40: 0.3279672614 | S40: 0.9999995361 | T40: -0.0009632120086 | U40: 0.9998904625 | V40: -0.01480131819 | X40: 22.36944657 | Y40: -47.11990055 | Z40: 132.8800994 | AA40: =20*LOG(7) -> 16.9019608 | AC40: 1 | AD40: 0.7105151601 | AE40: -1.339289523e-06 | AF40: 9.047786832e-05 | AG40: 7687.629792 | AH40: -11166.22198 | AJ40: 18000 | AK40: 17.33782152 | AL40: 1 | AM40: 0.3402552185 | AN40: 16137.59195 | AO40: -5473.562053 | AQ40: 270.2702703 | AR40: -1621.621622 | AT40: -16029649.21 | AU40: -15484324.52 | AV40: -2.373496982 | AW40: -4457491.245 | AX40: -27782360.52 | AY40: -1.729883711 | BA40: 0.7920725552 | BB40: -2.024700689 | BC40: -0.6436132709 | BD40: -216.8763241 | BF40: 22.33135824 | BG40: -47.27849467 | BH40: 132.7215053 | BI40: 132.7215053 | BJ40: 0 | BK40: 0 | BM40: 24.35605893 | BN40: -10.40217056 | BQ40: 14.87726011 | BT40: 199.526 | BU40: 29.051 | BV40: -267.8015
A41: 3500 | B41: 3.5 | C41: 1.000000605 | D41: 0.001099556984 | F41: 1.147892893 | G41: -0.2226212385 | H41: -0.2226212385 | J41: 15 | M41: 0.5263060293 | N41: -1.570796325 | O41: 1.298896517 | P41: 0.6921365341 | Q41: 1.075909268 | R41: 0.3778867631 | S41: 0.9999993686 | T41: -0.001123747218 | U41: 0.9998509161 | V41: -0.01726774922 | X41: 22.05032819 | Y41: -42.43819358 | Z41: 137.5618064 | AC41: 1 | AD41: 0.8289343534 | AE41: -1.82292185e-06 | AF41: 0.000105557513 | AG41: 7687.021701 | AH41: -9606.259286 | AJ41: 18000 | AK41: 20.22745844 | AL41: 1 | AM41: 0.3969644216 | AN41: 15556.60765 | AO41: -6155.192299 | AQ41: 200 | AR41: -1400 | AT41: -11911358.66 | AU41: -12683082.24 | AV41: -2.324826814 | AW41: -5450796.933 | AX41: -23129894.01 | AY41: -1.802233904 | BA41: 0.73219293 | BB41: -2.707489379 | BC41: -0.5225929096 | BD41: -209.9423682 | BF41: 22.0123684 | BG41: -42.63462559 | BH41: 137.3653744 | BI41: 137.3653744 | BJ41: 0 | BK41: 0 | BM41: 24.71985777 | BN41: -12.69225743 | BQ41: 14.19447142 | BT41: 204.174 | BU41: 28.4243 | BV41: -264.1684
A42: 4000 | B42: 4 | C42: 1.00000079 | D42: 0.001256636399 | F42: 1.206352914 | G42: -0.2683890513 | H42: -0.2683890513 | J42: 15 | M42: 0.4605177757 | N42: -1.570796325 | O42: 1.377490015 | P42: 0.7583698753 | Q42: 1.098098246 | R42: 0.4259047119 | S42: 0.9999991753 | T42: -0.001284282369 | U42: 0.9998052915 | V42: -0.01973397016 | X42: 22.00914217 | Y42: -38.65588141 | Z42: 141.3441186 | AC42: 1 | AD42: 0.9473535468 | AE42: -2.380959152e-06 | AF42: 0.0001206371578 | AG42: 7686.320178 | AH42: -8441.021268 | AJ42: 18000 | AK42: 23.11709536 | AL42: 1 | AM42: 0.4536736247 | AN42: 14936.30163 | AO42: -6753.089006 | AQ42: 153.8461538 | AR42: -1230.769231 | AT42: -9206438.456 | AU42: -10758705.03 | AV42: -2.278601754 | AW42: -5960472.248 | AX42: -19531207.38 | AY42: -1.866995728 | BA42: 0.6934266688 | BB42: -3.179989193 | BC42: -0.4116060264 | BD42: -203.5832882 | BF42: 21.9713304 | BG42: -38.88884812 | BH42: 141.1111519 | BI42: 141.1111519 | BJ42: 0 | BK42: 0 | BM42: 25.15131959 | BN42: -15.30555996 | BQ42: 13.72197161 | BT42: 208.93 | BU42: 28.5109 | BV42: -267.6911
A43: 4500 | B43: 4.5 | C43: 1.000000999 | D43: 0.001413715751 | F43: 1.278329893 | G43: -0.3216426659 | H43: -0.3216426659 | J43: 15 | M43: 0.4093491339 | N43: -1.570796325 | O43: 1.461462122 | P43: 0.8172267024 | Q43: 1.122715739 | R43: 0.4719193282 | S43: 0.9999989563 | T43: -0.001444817454 | U43: 0.9997535912 | V43: -0.02219995104 | X43: 22.19556816 | Y43: -35.83988597 | Z43: 144.160114 | AC43: 1 | AD43: 1.06577274 | AE43: -3.013401426e-06 | AF43: 0.0001357168025 | AG43: 7685.525274 | AH43: -7538.93073 | AJ43: 18000 | AK43: 26.00673228 | AL43: 1 | AM43: 0.5103828278 | AN43: 14290.68408 | AO43: -7267.713018 | AQ43: 121.9512195 | AR43: -1097.560976 | AT43: -7337176.988 | AU43: -9354714.414 | AV43: -2.235908681 | AW43: -6182966.41 | AX43: -16672350.84 | AY43: -1.92592501 | BA43: 0.668592593 | BB43: -3.496768781 | BC43: -0.3099836715 | BD43: -197.7607561 | BF43: 22.15792398 | BG43: -36.10852346 | BH43: 143.8914765 | BI43: 143.8914765 | BJ43: 0 | BK43: 0 | BM43: 25.65469276 | BN43: -18.34776734 | BQ43: 13.40519202 | BT43: 213.796 | BU43: 28.179 | BV43: -266.9667
A44: 5000 | B44: 5 | C44: 1.000001234 | D44: 0.001570795033 | F44: 1.366382196 | G44: -0.3848766871 | H44: -0.3848766871 | J44: 15 | M44: 0.3684142205 | N44: -1.570796325 | O44: 1.549938881 | P44: 0.8695286644 | Q44: 1.149605746 | R44: 0.5158709233 | S44: 0.9999987114 | T44: -0.001605352465 | U44: 0.999695818 | V44: -0.02466566191 | X44: 22.57462378 | Y44: -34.08947875 | Z44: 145.9105213 | AC44: 1 | AD44: 1.184191933 | AE44: -3.720248674e-06 | AF44: 0.0001507964472 | AG44: 7684.637045 | AH44: -6821.041078 | AJ44: 18000 | AK44: 28.89636919 | AL44: 1 | AM44: 0.5670920308 | AN44: 13632.32238 | AO44: -7701.885017 | AQ44: 99.00990099 | AR44: -990.0990099 | AT44: -5992650.865 | AU44: -8283902.132 | AV44: -2.197060999 | AW44: -6227013.91 | AX44: -14354748.13 | AY44: -1.980092534 | BA44: 0.6534228956 | BB44: -3.696113043 | BC44: -0.216968465 | BD44: -192.4313773 | BF44: 22.53716674 | BG44: -34.39318725 | BH44: 145.6068128 | BI44: 145.6068128 | BJ44: 0 | BK44: 0 | BM44: 26.23327979 | BN44: -21.9618099 | BQ44: 13.20584776 | BT44: 218.776 | BU44: 27.7064 | BV44: -263.5369
A45: 5500 | B45: 5.5 | C45: 1.000001493 | D45: 0.001727874238 | F45: 1.473240783 | G45: -0.4614951744 | H45: -0.4614951744 | J45: 15 | M45: 0.3349220187 | N45: -1.570796325 | O45: 1.64219236 | P45: 0.916070156 | Q45: 1.178612735 | R45: 0.5577368168 | S45: 0.9999984408 | T45: -0.001765887393 | U45: 0.999631975 | V45: -0.02713107283 | X45: 23.11887919 | Y45: -33.55548029 | Z45: 146.4445197 | AC45: 1 | AD45: 1.302611127 | AE45: -4.501500896e-06 | AF45: 0.0001658760919 | AG45: 7683.655558 | AH45: -6237.11332 | AJ45: 18000 | AK45: 31.78600611 | AL45: 1 | AM45: 0.6238012339 | AN45: 12972.04319 | AO45: -8060.190544 | AQ45: 81.96721311 | AR45: -901.6393443 | AT45: -4993818.931 | AU45: -7439124.956 | AV45: -2.161993683 | AW45: -6157374.561 | AX45: -12446460.87 | AY45: -2.030202078 | BA45: 0.6452318588 | BB45: -3.805683943 | BC45: -0.1317916056 | BD45: -187.5511028 | BF45: 23.08162886 | BG45: -33.89382868 | BH45: 146.1061713 | BI45: 146.1061713 | BJ45: 0 | BK45: 0 | BM45: 26.8873128 | BN45: -26.34272589 | BQ45: 13.09627686 | BT45: 223.872 | BU45: 27.9371 | BV45: -265.1945
A46: 6000 | B46: 6 | C46: 1.000001777 | D46: 0.001884953358 | F46: 1.60098312 | G46: -0.5561121595 | H46: -0.5561121595 | J46: 15 | M46: 0.3070118505 | N46: -1.570796325 | O46: 1.737621124 | P46: 0.9575815885 | Q46: 1.209584414 | R46: 0.5975256159 | S46: 0.9999981444 | T46: -0.00192642223 | U46: 0.9995620658 | V46: -0.0295961539 | X46: 23.80068305 | Y46: -34.45991081 | Z46: 145.5400892 | AC46: 1 | AD46: 1.42103032 | AE46: -5.357158091e-06 | AF46: 0.0001809557366 | AG46: 7682.580884 | AH46: -5753.654566 | AJ46: 18000 | AK46: 34.67564303 | AL46: 1 | AM46: 0.680510437 | AN46: 12318.81993 | AO46: -8348.409894 | AQ46: 68.96551724 | AR46: -827.5862069 | AT46: -4231811.994 | AU46: -6754801.736 | AV46: -2.130465987 | AW46: -6014855.833 | AX46: -10855998.15 | AY46: -2.076749971 | BA46: 0.642250079 | BB46: -3.845916673 | BC46: -0.05371601575 | BD46: -183.077701 | BF46: 23.763659 | BG46: -34.83258083 | BH46: 145.1674192 | BI46: 145.1674192 | BJ46: 0 | BK46: 0 | BM46: 27.60957567 | BN46: -31.75487984 | BQ46: 13.05604413 | BT46: 229.087 | BU46: 27.6763 | BV46: -266.7544
A47: 6500 | B47: 6.5 | C47: 1.000002085 | D47: 0.002042032384 | F47: 1.74884829 | G47: -0.6747434852 | H47: -0.6747434852 | J47: 15 | M47: 0.2833955543 | N47: -1.570796325 | O47: 1.835730047 | P47: 0.9947144145 | Q47: 1.242373856 | R47: 0.6352713772 | S47: 0.9999978223 | T47: -0.002086956968 | U47: 0.9994860942 | V47: -0.03206087523 | X47: 24.5814853 | Y47: -37.10817419 | Z47: 142.8918258 | AC47: 1 | AD47: 1.539449514 | AE47: -6.28722026e-06 | AF47: 0.0001960353814 | AG47: 7681.4131 | AH47: -5347.47722 | AJ47: 18000 | AK47: 37.56527995 | AL47: 1 | AM47: 0.7372196401 | AN47: 11679.80433 | AO47: -8573.015864 | AQ47: 58.82352941 | AR47: -764.7058824 | AT47: -3637399.456 | AU47: -6188579.266 | AV47: -2.102167223 | AW47: -5826271.727 | AX47: -9517549.978 | AY47: -2.120109695 | BA47: 0.6432666724 | BB47: -3.832178975 | BC47: 0.01794247207 | BD47: -178.9719721 | BF47: 24.54470705 | BG47: -37.51492624 | BH47: 142.4850738 | BI47: 142.4850738 | BJ47: 0 | BK47: 0 | BM47: 28.37688603 | BN47: -38.54295416 | BQ47: 13.06978182 | BT47: 234.423 | BU47: 27.6703 | BV47: -266.7612
A48: 7000 | B48: 7 | C48: 1.000002418 | D48: 0.00219911131 | F48: 1.908421672 | G48: -0.8243928726 | H48: -0.8243928726 | J48: 15 | M48: 0.2631530147 | N48: -1.570796325 | O48: 1.936111735 | P48: 1.028038884 | Q48: 1.276841027 | R48: 0.6710280384 | S48: 0.9999974744 | T48: -0.002247491598 | U48: 0.9994040642 | V48: -0.03452520695 | X48: 25.39564518 | Y48: -41.86578904 | Z48: 138.134211 | AC48: 1 | AD48: 1.657868707 | AE48: -7.291687402e-06 | AF48: 0.0002111150261 | AG48: 7680.152292 | AH48: -5002.018517 | AJ48: 18000 | AK48: 40.45491687 | AL48: 1 | AM48: 0.7939288432 | AN48: 11060.45749 | AO48: -8740.761303 | AQ48: 50.76142132 | AR48: -710.6598985 | AT48: -3164878.525 | AU48: -5711885.818 | AV48: -2.076771511 | AW48: -5609765.988 | AX48: -8382288.867 | AY48: -2.1605786 | BA48: 0.6474257435 | BB48: -3.776200715 | BC48: 0.08380708826 | BD48: -175.1982075 | BF48: 25.35913226 | BG48: -42.30644006 | BH48: 137.6935599 | BI48: 137.6935599 | BJ48: 0 | BK48: 0 | BM48: 29.13533298 | BN48: -47.10823251 | BQ48: 13.12576008 | BT48: 239.883 | BU48: 27.2761 | BV48: -267.5957
A49: 7500 | B49: 7.5 | C49: 1.000002776 | D49: 0.002356190127 | F49: 2.055739882 | G49: -1.010866765 | H49: -1.010866765 | J49: 15 | M49: 0.2456094804 | N49: -1.570796325 | O49: 2.038430451 | P49: 1.058048537 | Q49: 1.312853795 | R49: 0.7048643664 | S49: 0.9999971007 | T49: -0.002408026112 | U49: 0.9993159805 | V49: -0.03698911924 | X49: 26.13039175 | Y49: -49.03322059 | Z49: 130.9667794 | AC49: 1 | AD49: 1.7762879 | AE49: -8.370559518e-06 | AF49: 0.0002261946708 | AG49: 7678.798552 | AH49: -4705.13225 | AJ49: 18000 | AK49: 43.34455379 | AL49: 1 | AM49: 0.8506380463 | AN49: 10464.74043 | AO49: -8858.361798 | AQ49: 44.24778761 | AR49: -663.7168142 | AT49: -2783105.54 | AU49: -5304739.404 | AV49: -2.053965072 | AW49: -5377845.728 | AX49: -7413037.575 | AY49: -2.19840451 | BA49: 0.6541051327 | BB49: -3.68704886 | BC49: 0.1444394378 | BD49: -171.7242298 | BF49: 26.09416366 | BG49: -49.50762939 | BH49: 130.4923706 | BI49: 130.4923706 | BJ49: 0 | BK49: 0 | BM49: 29.78121252 | BN49: -57.78339958 | BQ49: 13.21491194 | BT49: 245.471 | BU49: 27.0755 | BV49: -266.8096
A50: 8000 | B50: 8 | C50: 1.000003158 | D50: 0.002513268828 | F50: 2.146386625 | G50: -1.233431925 | H50: -1.233431925 | J50: 15 | M50: 0.2302588878 | N50: -1.570796325 | O50: 2.142408684 | P50: 1.085167752 | Q50: 1.350288499 | R50: 0.7368595577 | S50: 0.9999967013 | T50: -0.002568560502 | U50: 0.9992218478 | V50: -0.0394525823 | X50: 26.62012728 | Y50: -58.53960297 | Z50: 121.460397 | AC50: 1 | AD50: 1.894707094 | AE50: -9.523836607e-06 | AF50: 0.0002412743155 | AG50: 7677.351979 | AH50: -4447.708591 | AJ50: 18000 | AK50: 46.23419071 | AL50: 1 | AM50: 0.9073472494 | AN50: 9895.331521 | AO50: -8932.267646 | AQ50: 38.91050584 | AR50: -622.5680934 | AT50: -2470271.808 | AU50: -4952736.975 | AV50: -2.033458674 | AW50: -5139212.173 | AX50: -6580878 | AY50: -2.233801246 | BA50: 0.6628413443 | BB50: -3.571808212 | BC50: 0.2003425724 | BD50: -168.5212161 | BF50: 26.58420347 | BG50: -59.04766011 | BH50: 120.9523399 | BI50: 120.9523399 | BJ50: 0 | BK50: 0 | BM50: 30.15601168 | BN50: -70.52644398 | BQ50: 13.33015259 | BT50: 251.189 | BU50: 27.0434 | BV50: -265.9205
A51: 8500 | B51: 8.5 | C51: 1.000003565 | D51: 0.002670347405 | F51: 2.13164762 | G51: -1.4782693 | H51: -1.4782693 | J51: 15 | M51: 0.2167142474 | N51: -1.570796325 | O51: 2.247816151 | P51: 1.109760257 | Q51: 1.389030181 | R51: 0.7670995368 | S51: 0.999996276 | T51: -0.00272909476 | U51: 0.9991216713 | V51: -0.04191556636 | X51: 26.69569833 | Y51: -69.56739792 | Z51: 110.4326021 | AC51: 1 | AD51: 2.013126287 | AE51: -1.075151867e-05 | AF51: 0.0002563539602 | AG51: 7675.812677 | AH51: -4222.781042 | AJ51: 18000 | AK51: 49.12382763 | AL51: 1 | AM51: 0.9640564524 | AN51: 9353.847226 | AO51: -8968.512946 | AQ51: 34.48275862 | AR51: -586.2068966 | AT51: -2210740.174 | AU51: -4645227.467 | AV51: -2.01499214 | AW51: -4899922.471 | AX51: -5862919.492 | AY51: -2.266957884 | BA51: 0.6732815139 | BB51: -3.436066194 | BC51: 0.2519657437 | BD51: -165.5634263 | BF51: 26.66009823 | BG51: -70.1090186 | BH51: 109.8909814 | BI51: 109.8909814 | BJ51: 0 | BK51: 0 | BM51: 30.09616442 | BN51: -84.54559232 | BQ51: 13.46589461 | BT51: 257.04 | BU51: 26.6776 | BV51: -267.6031
A52: 9000 | B52: 9 | C52: 1.000003997 | D52: 0.002827425851 | F52: 1.999469556 | G52: 1.421797643 | H52: -1.719795007 | J52: 15 | M52: 0.204674567 | N52: -1.570796325 | O52: 2.354460901 | P52: 1.132137474 | Q52: 1.428972541 | R52: 0.7956739342 | S52: 0.999995825 | T52: -0.002889628877 | U52: 0.9990154563 | V52: -0.04437804168 | X52: 26.29114864 | Y52: -80.62777658 | Z52: 99.37222342 | AC52: 1 | AD52: 2.13154548 | AE52: -1.205360571e-05 | AF52: 0.000271433605 | AG52: 7674.180758 | AH52: -4024.931066 | AJ52: 18000 | AK52: 52.01346455 | AL52: 1 | AM52: 1.020765656 | AN52: 8841.050387 | AO52: -8972.627129 | AQ52: 30.76923077 | AR52: -553.8461538 | AT52: -1993063.952 | AU52: -4374159.529 | AV52: -1.998334716 | AW52: -4664159.179 | AX52: -5240782.408 | AY52: -2.29804441 | BA52: 0.6851517818 | BB52: -3.28426417 | BC52: 0.2997096945 | BD52: -162.8278994 | BF52: 26.25589165 | BG52: -81.20289548 | BH52: 98.79710452 | BI52: 98.79710452 | BJ52: 0 | BK52: 0 | BM52: 29.54015582 | BN52: -98.37499607 | BQ52: 13.61769663 | BT52: 263.027 | BU52: 26.2703 | BV52: -267.3229
A53: 9500 | B53: 9.5 | C53: 1.000004454 | D53: 0.002984504156 | F53: 1.790349881 | G53: 1.20737307 | H53: -1.93421958 | J53: 15 | M53: 0.1939022213 | N53: -1.570796325 | O53: 2.462182169 | P53: 1.15256617 | Q53: 1.470017711 | R53: 0.8226736915 | S53: 0.9999953483 | T53: -0.003050162845 | U53: 0.9989032088 | V53: -0.04683997856 | X53: 25.49556053 | Y53: -90.33720602 | Z53: 89.66279398 | AC53: 1 | AD53: 2.249964674 | AE53: -1.343009771e-05 | AF53: 0.0002865132497 | AG53: 7672.456341 | AH53: -3849.880728 | AJ53: 18000 | AK53: 54.90310147 | AL53: 1 | AM53: 1.077474859 | AN53: 8357.037139 | AO53: -8949.594308 | AQ53: 27.62430939 | AR53: -524.8618785 | AT53: -1808709.323 | AU53: -4133330.144 | AV53: -1.9832834 | AW53: -4434757.937 | AX53: -4699536.614 | AY53: -2.32721529 | BA53: 0.6982359338 | BB53: -3.11995609 | BC53: 0.3439318893 | BD53: -160.2941543 | BF53: 25.46066601 | BG53: -90.94577348 | BH53: 89.05422652 | BI53: 89.05422652 | BJ53: 0 | BK53: 0 | BM53: 28.5806221 | BN53: -110.6516192 | BQ53: 13.78200471 | BT53: 269.153 | BU53: 26.2359 | BV53: -265.677
A54: 10000 | B54: 10 | C54: 1.000004935 | D54: 0.003141582315 | F54: 1.560553863 | G54: 1.030577072 | H54: -2.111015578 | J54: 15 | M54: 0.1842071103 | N54: -1.570796325 | O54: 2.570844636 | P54: 1.171275207 | Q54: 1.512075886 | R54: 0.8481892168 | S54: 0.9999948457 | T54: -0.003210696656 | U54: 0.9987849347 | V54: -0.04930134736 | X54: 24.47595438 | Y54: -98.07421388 | Z54: 81.92578612 | AC54: 1 | AD54: 2.368383867 | AE54: -1.48809947e-05 | AF54: 0.0003015928944 | AG54: 7670.639551 | AH54: -3694.207547 | AJ54: 18000 | AK54: 57.79273839 | AL54: 1 | AM54: 1.134184062 | AN54: 7901.398313 | AO54: -8903.847293 | AQ54: 24.93765586 | AR54: -498.7531172 | AT54: -1651209.76 | AU54: -3917880.263 | AV54: -1.969660399 | AW54: -4213579.251 | AX54: -4226937.967 | AY54: -2.354611802 | BA54: 0.7123606424 | BB54: -2.946001662 | BC54: 0.3849514037 | BD54: -157.9439092 | BF54: 24.44144165 | BG54: -98.71619307 | BH54: 81.28380693 | BI54: 81.28380693 | BJ54: 0 | BK54: 0 | BM54: 27.38744331 | BN54: -120.7722838 | BQ54: 13.95595914 | BT54: 275.423 | BU54: 25.8456 | BV54: -266.4657
A55: 10500 | B55: 10.5 | C55: 1.000005441 | D55: 0.003298660318 | F55: 1.346751063 | G55: 0.8900553143 | H55: -2.251537336 | J55: 15 | M55: 0.1754353431 | N55: -1.570796325 | O55: 2.680333834 | P55: 1.188461363 | Q55: 1.555064876 | R55: 0.8723090086 | S55: 0.9999943174 | T55: -0.003371230301 | U55: 0.9986606406 | V55: -0.05176211845 | X55: 23.37701812 | Y55: -103.9000508 | Z55: 76.09994919 | AC55: 1 | AD55: 2.48680306 | AE55: -1.640629665e-05 | AF55: 0.0003166725391 | AG55: 7668.73052 | AH55: -3555.140812 | AJ55: 18000 | AK55: 60.68237531 | AL55: 1 | AM55: 1.190893265 | AN55: 7473.354638 | AO55: -8839.285328 | AQ55: 22.62443439 | AR55: -475.1131222 | AT55: -1515593.36 | AU55: -3723947.55 | AV55: -1.957310306 | AW55: -4001775.762 | AX55: -3812865.545 | AY55: -2.380363665 | BA55: 0.7273850551 | BB55: -2.764712524 | BC55: 0.4230533591 | BD55: -155.760828 | BF55: 23.34290645 | BG55: -104.5754156 | BH55: 75.42458443 | BI55: 75.42458443 | BJ55: 0 | BK55: 0 | BM55: 26.10761898 | BN55: -128.8145876 | BQ55: 14.13724828 | BT55: 281.838 | BU55: 26.1068 | BV55: -266.6757
A56: 11000 | B56: 11 | C56: 1.000005971 | D56: 0.003455738159 | F56: 1.162706571 | G56: 0.7794054991 | H56: -2.362187151 | J56: 15 | M56: 0.1674610093 | N56: -1.570796325 | O56: 2.790552453 | P56: 1.204294288 | Q56: 1.598909603 | R56: 0.895118667 | S56: 0.9999937633 | T56: -0.003531763773 | U56: 0.9985303333 | V56: -0.05422226226 | X56: 22.28700677 | Y56: -108.1669151 | Z56: 71.83308487 | AC56: 1 | AD56: 2.605222254 | AE56: -1.800600358e-05 | AF56: 0.0003317521838 | AG56: 7666.729386 | AH56: -3430.41346 | AJ56: 18000 | AK56: 63.57201223 | AL56: 1 | AM56: 1.247602468 | AN56: 7071.86713 | AO56: -8759.306872 | AQ56: 20.6185567 | AR56: -453.6082474 | AT56: -1397986.943 | AU56: -3548421.855 | AV56: -1.946097348 | AW56: -3799987.135 | AX56: -3448897.869 | AY56: -2.404590226 | BA56: 0.743193309 | BB56: -2.577964179 | BC56: 0.4584928777 | BD56: -153.7302931 | BF56: 22.2533154 | BG56: -108.8756483 | BH56: 71.12435175 | BI56: 71.12435175 | BJ56: 0 | BK56: 0 | BM56: 24.83127958 | BN56: -135.1453551 | BQ56: 14.32399662 | BT56: 288.403 | BU56: 25.7844 | BV56: -268.0599
A57: 11500 | B57: 11.5 | C57: 1.000006526 | D57: 0.003612815829 | F57: 1.009367328 | G57: 0.6917653329 | H57: -2.449827317 | J57: 15 | M57: 0.1601800959 | N57: -1.570796325 | O57: 2.901417366 | P57: 1.21892068 | Q57: 1.643541583 | R57: 0.9167002179 | S57: 0.9999931835 | T57: -0.003692297062 | U57: 0.9983940197 | V57: -0.05668174927 | X57: 21.24883598 | Y57: -111.2548807 | Z57: 68.74511928 | AC57: 1 | AD57: 2.723641447 | AE57: -1.968011549e-05 | AF57: 0.0003468318286 | AG57: 7664.636294 | AH57: -3318.152582 | AJ57: 18000 | AK57: 66.46164915 | AL57: 1 | AM57: 1.304311671 | AN57: 6695.72522 | AO57: -8666.850901 | AQ57: 18.86792453 | AR57: -433.9622642 | AT57: -1295337.228 | AU57: -3388769.572 | AV57: -1.935902828 | AW57: -3608483.526 | AX57: -3127987.798 | AY57: -2.427401406 | BA57: 0.7596890536 | BB57: -2.387282627 | BC57: 0.4914985781 | BD57: -151.8392058 | BF57: 21.2155841 | BG57: -111.9969727 | BH57: 68.00302733 | BI57: 68.00302733 | BJ57: 0 | BK57: 0 | BM57: 23.60286672 | BN57: -140.1577669 | BQ57: 14.51467817 | BT57: 295.121 | BU57: 25.5811 | BV57: -265.88
A58: 12000 | B58: 12 | C58: 1.000007106 | D58: 0.003769893321 | F58: 0.8828847652 | G58: 0.6214600129 | H58: -2.520132637 | J58: 15 | M58: 0.1535059252 | N58: -1.570796325 | O58: 3.012857229 | P58: 1.232467788 | Q58: 1.688898404 | R58: 0.9371316843 | S58: 0.9999925779 | T58: -0.003852830162 | U58: 0.9982517073 | V58: -0.05914054999 | X58: 20.27884855 | Y58: -113.4773268 | Z58: 66.52267324 | AC58: 1 | AD58: 2.84206064 | AE58: -2.142863236e-05 | AF58: 0.0003619114733 | AG58: 7662.451395 | AH58: -3216.797311 | AJ58: 18000 | AK58: 69.35128607 | AL58: 1 | AM58: 1.361020874 | AN58: 6343.61564 | AO58: -8564.442017 | AQ58: 17.33102253 | AR58: -415.9445407 | AT58: -1205211.162 | AU58: -3242905.213 | AV58: -1.926622836 | AW58: -3427271.77 | AX58: -2844209.187 | AY58: -2.448898485 | BA58: 0.7767913784 | BB58: -2.193912066 | BC58: 0.5222756492 | BD58: -150.0758095 | BF58: 20.24605529 | BG58: -114.2527746 | BH58: 65.74722537 | BI58: 65.74722537 | BJ58: 0 | BK58: 0 | BM58: 22.43996736 | BN58: -144.1769651 | BQ58: 14.70804873 | BT58: 301.995 | BU58: 24.917 | BV58: -267.1358
A59: 12500 | B59: 12.5 | C59: 1.000007711 | D59: 0.003926970626 | F59: 0.7784542358 | G59: 0.5642064093 | H59: -2.577386241 | J59: 15 | M59: 0.1473656882 | N59: -1.570796325 | O59: 3.12481053 | P59: 1.24504636 | Q59: 1.734923218 | R59: 0.9564868493 | S59: 0.9999919465 | T59: -0.004013363062 | U59: 0.9981034039 | V59: -0.06159863499 | X59: 19.38000116 | Y59: -115.0690842 | Z59: 64.9309158 | AC59: 1 | AD59: 2.960479834 | AE59: -2.325155422e-05 | AF59: 0.000376991118 | AG59: 7660.174848 | AH59: -3125.036412 | AJ59: 18000 | AK59: 72.24092299 | AL59: 1 | AM59: 1.417730077 | AN59: 6014.175179 | AO59: -8454.236117 | AQ59: 15.97444089 | AR59: -399.3610224 | AT59: -1125650.726 | AU59: -3109095.968 | AV59: -1.918166242 | AW59: -3256174.195 | AX59: -2592556.822 | AY59: -2.469174789 | BA59: 0.7944317399 | BB59: -1.998868257 | BC59: 0.5510085468 | BD59: -148.4295358 | BF59: 19.34768562 | BG59: -115.8778908 | BH59: 64.12210915 | BI59: 64.12210915 | BJ59: 0 | BK59: 0 | BM59: 21.34655388 | BN59: -147.4483551 | BQ59: 14.90309254 | BT59: 309.03 | BU59: 24.8252 | BV59: -265.0361
A60: 13000 | B60: 13 | C60: 1.00000834 | D60: 0.004084047738 | F60: 0.6917081071 | G60: 0.5168717267 | H60: -2.624720923 | J60: 15 | M60: 0.1416977771 | N60: -1.570796325 | O60: 3.237223999 | P60: 1.256753089 | Q60: 1.781564254 | R60: 0.9748351633 | S60: 0.9999912893 | T60: -0.004173895756 | U60: 0.9979491174 | V60: -0.06405597489 | X60: 18.54919282 | Y60: -116.2001278 | Z60: 63.7998722 | AC60: 1 | AD60: 3.078899027 | AE60: -2.514888104e-05 | AF60: 0.0003920707627 | AG60: 7657.806817 | AH60: -3041.760279 | AJ60: 18000 | AK60: 75.13055991 | AL60: 1 | AM60: 1.47443928 | AN60: 5706.030193 | AO60: -8338.064491 | AQ60: 14.77104874 | AR60: -384.0472674 | AT60: -1055065.885 | AU60: -2985889.772 | AV60: -1.91045295 | AW60: -3094887.096 | AX60: -2368786.685 | AY60: -2.488316307 | BA60: 0.8125516093 | BB60: -1.802980905 | BC60: 0.5778633577 | BD60: -146.8908684 | BF60: 18.51737403 | BG60: -117.0423012 | BH60: 62.95769879 | BI60: 62.95769879 | BJ60: 0 | BK60: 0 | BM60: 20.32035494 | BN60: -150.1514328 | BQ60: 15.0989799 | BT60: 316.228 | BU60: 24.722 | BV60: -265.2184
A61: 13500 | B61: 13.5 | C61: 1.000008994 | D61: 0.004241124649 | F61: 0.6190613176 | G61: 0.477177165 | H61: -2.664415485 | J61: 15 | M61: 0.1364497113 | N61: -1.570796325 | O61: 3.350051313 | P61: 1.267672684 | Q61: 1.828774365 | R61: 0.9922417597 | S61: 0.9999906064 | T61: -0.004334428235 | U61: 0.9977888563 | V61: -0.06651254038 | X61: 17.78095216 | Y61: -116.9924363 | Z61: 63.00756372 | AC61: 1 | AD61: 3.19731822 | AE61: -2.712061284e-05 | AF61: 0.0004071504074 | AG61: 7655.347473 | AH61: -2966.023594 | AJ61: 18000 | AK61: 78.02019683 | AL61: 1 | AM61: 1.531148483 | AN61: 5417.825489 | AO61: -8217.475084 | AQ61: 13.69863014 | AR61: -369.8630137 | AT61: -992154.6517 | AU61: -2872060.348 | AV61: -1.903412394 | AW61: -2943024.024 | AX61: -2169287.233 | AY61: -2.506402267 | BA61: 0.8311006505 | BB61: -1.606927555 | BC61: 0.6029898722 | BD61: -145.4512252 | BF61: 17.7496491 | BG61: -117.867989 | BH61: 62.13201102 | BI61: 62.13201102 | BJ61: 0 | BK61: 0 | BM61: 19.35657665 | BN61: -152.4167638 | BQ61: 15.29503325 | BT61: 323.594 | BU61: 24.5962 | BV61: -266.9949
A62: 14000 | B62: 14 | C62: 1.000009672 | D62: 0.00439820135 | F62: 0.5576845921 | G62: 0.4434547101 | H62: -2.69813794 | J62: 15 | M62: 0.1315765073 | N62: -1.570796325 | O62: 3.463252026 | P62: 1.277879589 | Q62: 1.8765106 | R62: 1.008767547 | S62: 0.9999898977 | T62: -0.00449496049 | U62: 0.9976226292 | V62: -0.06896830217 | X62: 17.06918965 | Y62: -117.5338229 | Z62: 62.46617708 | AC62: 1 | AD62: 3.315737414 | AE62: -2.916674961e-05 | AF62: 0.0004222300522 | AG62: 7652.796993 | AH62: -2897.015993 | AJ62: 18000 | AK62: 80.90983375 | AL62: 1 | AM62: 1.587857686 | AN62: 5148.244774 | AO62: -8093.770202 | AQ62: 12.7388535 | AR62: -356.6878981 | AT62: -935842.6854 | AU62: -2766564.736 | AV62: -1.896982254 | AW62: -2800147.683 | AX62: -1990974.858 | AY62: -2.523505656 | BA62: 0.850035291 | BB62: -1.411260865 | BC62: 0.6265234018 | BD62: -144.1028533 | BF62: 17.03842124 | BG62: -118.4427716 | BH62: 61.55722843 | BI62: 61.55722843 | BJ62: 0 | BK62: 0 | BM62: 18.44968211 | BN62: -154.3399183 | BQ62: 15.49069994 | BT62: 331.131 | BU62: 24.3868 | BV62: -265.0934
A63: 14500 | B63: 14.5 | C63: 1.000010375 | D63: 0.004555277834 | F63: 0.5053755282 | G63: 0.414469278 | H63: -2.727123372 | J63: 15 | M63: 0.1270393864 | N63: -1.570796325 | O63: 3.576790685 | P63: 1.287439439 | Q63: 1.924733814 | R63: 1.024469356 | S63: 0.9999891632 | T63: -0.004655492514 | U63: 0.9974504451 | V63: -0.07142323106 | X63: 16.40798369 | Y63: -117.8880344 | Z63: 62.11196556 | AC63: 1 | AD63: 3.434156607 | AE63: -3.128729135e-05 | AF63: 0.0004373096969 | AG63: 7650.155561 | AH63: -2834.038794 | AJ63: 18000 | AK63: 83.79947066 | AL63: 1 | AM63: 1.644566889 | AN63: 4896.024562 | AO63: -7968.040414 | AQ63: 11.87648456 | AR63: -344.4180523 | AT63: -885237.167 | AU63: -2668510.096 | AV63: -1.891107344 | AW63: -2665793.256 | AX63: -1831208.442 | AY63: -2.53969372 | BA63: 0.8693175885 | BB63: -1.216430668 | BC63: 0.6485863755 | BD63: -142.838738 | BF63: 16.3777688 | BG63: -118.8303994 | BH63: 61.1696006 | BI63: 61.1696006 | BJ63: 0 | BK63: 0 | BM63: 17.59419946 | BN63: -155.9916614 | BQ63: 15.68553013 | BT63: 338.844 | BU63: 24.1369 | BV63: -266.4201
A64: 15000 | B64: 15 | C64: 1.000011103 | D64: 0.004712354093 | F64: 0.4604227961 | G64: 0.3892938226 | H64: -2.752298827 | J64: 15 | M64: 0.1228047402 | N64: -1.570796325 | O64: 3.690636099 | P64: 1.29641028 | Q64: 1.973408306 | R64: 1.039400121 | S64: 0.999988403 | T64: -0.004816024298 | U64: 0.9972723134 | V64: -0.07387729791 | X64: 15.79189865 | Y64: -118.1018263 | Z64: 61.89817371 | AC64: 1 | AD64: 3.5525758 | AE64: -3.348223807e-05 | AF64: 0.0004523893416 | AG64: 7647.423368 | AH64: -2776.48639 | AJ64: 18000 | AK64: 86.68910758 | AL64: 1 | AM64: 1.701276093 | AN64: 4659.963051 | AO64: -7841.194623 | AQ64: 11.09877913 | AR64: -332.963374 | AT64: -839591.2134 | AU64: -2577127.496 | AV64: -1.885738675 | AW64: -2539485.301 | AX64: -1687719.109 | AY64: -2.555028418 | BA64: 0.8889143242 | BB64: -1.022801908 | BC64: 0.6692897429 | BD64: -141.6525224 | BF64: 15.76225607 | BG64: -119.0776314 | BH64: 60.92236864 | BI64: 60.92236864 | BJ64: 0 | BK64: 0 | BM64: 16.78505798 | BN64: -157.4251089 | BQ64: 15.87915889 | BT64: 346.737 | BU64: 24.0404 | BV64: -265.8794
A65: 15500 | B65: 15.5 | C65: 1.000011856 | D65: 0.00486943012 | F65: 0.4214912631 | G65: 0.3672226217 | H65: -2.774370028 | J65: 15 | M65: 0.1188432969 | N65: -1.570796325 | O65: 3.804760734 | P65: 1.304843602 | Q65: 2.022501496 | R65: 1.053609083 | S65: 0.999987617 | T65: -0.004976555833 | U65: 0.9970882436 | V65: -0.07633047361 | X65: 15.21608193 | Y65: -118.2098602 | Z65: 61.79013975 | AC65: 1 | AD65: 3.670994994 | AE65: -3.575158976e-05 | AF65: 0.0004674689863 | AG65: 7644.600608 | AH65: -2723.831232 | AJ65: 18000 | AK65: 89.5787445 | AL65: 1 | AM65: 1.757985296 | AN65: 4438.925197 | AO65: -7713.98648 | AQ65: 10.3950104 | AR65: -322.2453222 | AT65: -798276.1702 | AU65: -2491751.04 | AV65: -1.880832643 | AW65: -2420749.803 | AX65: -1558552.205 | AY65: -2.569566852 | BA65: 0.9087962693 | BB65: -0.8306692886 | BC65: 0.6887342092 | BD65: -140.5384366 | BF65: 15.18703041 | BG65: -119.2191324 | BH65: 60.78086763 | BI65: 60.78086763 | BJ65: 0 | BK65: 0 | BM65: 16.01769969 | BN65: -158.6806958 | BQ65: 16.07129151 | BT65: 354.813 | BU65: 23.629 | BV65: -265.9549
A66: 16000 | B66: 16 | C66: 1.000012633 | D66: 0.005026505907 | F66: 0.3875320781 | G66: 0.3477109567 | H66: -2.793881693 | J66: 15 | M66: 0.1151294439 | N66: -1.570796325 | O66: 3.919140197 | P66: 1.312785211 | Q66: 2.07198362 | R66: 1.067142007 | S66: 0.9999868052 | T66: -0.005137087112 | U66: 0.9968982456 | V66: -0.07878272915 | X66: 14.67626057 | Y66: -118.2380981 | Z66: 61.76190191 | AC66: 1 | AD66: 3.789414187 | AE66: -3.809534643e-05 | AF66: 0.000482548631 | AG66: 7641.687486 | AH66: -2675.611636 | AJ66: 18000 | AK66: 92.46838142 | AL66: 1 | AM66: 1.814694499 | AN66: 4231.844968 | AO66: -7587.037401 | AQ66: 9.756097561 | AR66: -312.195122 | AT66: -760759.8523 | AU66: -2411801.085 | AV66: -1.876350338 | AW66: -2309122.604 | AX66: -1442019.168 | AY66: -2.583361662 | BA66: 0.9289375877 | BB66: -0.640269277 | BC66: 0.7070113236 | BD66: -139.491235 | BF66: 14.64781878 | BG66: -119.2808671 | BH66: 60.71913286 | BI66: 60.71913286 | BJ66: 0 | BK66: 0 | BM66: 15.28808805 | BN66: -159.7896321 | BQ66: 16.26169152 | BT66: 363.078 | BU66: 23.6126 | BV66: -265.3916
A67: 16500 | B67: 16.5 | C67: 1.000013435 | D67: 0.005183581445 | F67: 0.3577144853 | G67: 0.3303328028 | H67: -2.811259847 | J67: 15 | M67: 0.1116406729 | N67: -1.570796325 | O67: 4.03375281 | P67: 1.320275975 | Q67: 2.121827471 | R67: 1.080041398 | S67: 0.9999859677 | T67: -0.005297618126 | U67: 0.9967023298 | V67: -0.08123403556 | X67: 14.16869588 | Y67: -118.2061707 | Z67: 61.79382933 | AC67: 1 | AD67: 3.907833381 | AE67: -4.051350806e-05 | AF67: 0.0004976282758 | AG67: 7638.684209 | AH67: -2631.421802 | AJ67: 18000 | AK67: 95.35801834 | AL67: 1 | AM67: 1.871403702 | AN67: 4037.725536 | AO67: -7460.856496 | AQ67: 9.174311927 | AR67: -302.7522936 | AT67: -726589.3144 | AU67: -2336770.649 | AV67: -1.872256954 | AW67: -2204155.132 | AX67: -1336657.437 | AY67: -2.596461394 | BA67: 0.9493153445 | BB67: -0.4517899846 | BC67: 0.7242044396 | BD67: -138.5061421 | BF67: 14.14088243 | BG67: -119.2824693 | BH67: 60.71753074 | BI67: 60.71753074 | BJ67: 0 | BK67: 0 | BM67: 14.59267241 | BN67: -160.7763272 | BQ67: 16.45017082 | BT67: 371.535 | BU67: 23.316 | BV67: -265.2439
A68: 17000 | B68: 17 | C68: 1.000014261 | D68: 0.005340656728 | F68: 0.3313747252 | G68: 0.3147508188 | H68: -2.826841831 | J68: 15 | M68: 0.1083571237 | N68: -1.570796325 | O68: 4.148579249 | P68: 1.327352451 | Q68: 2.172008143 | R68: 1.09234672 | S68: 0.9999851043 | T68: -0.005458148868 | U68: 0.9965005066 | V68: -0.08368436395 | X68: 13.69012392 | Y68: -118.1290488 | Z68: 61.87095119 | AC68: 1 | AD68: 4.026252574 | AE68: -4.300607468e-05 | AF68: 0.0005127079205 | AG68: 7635.590994 | AH68: -2590.903599 | AJ68: 18000 | AK68: 98.24765526 | AL68: 1 | AM68: 1.928112905 | AN68: 3855.638009 | AO68: -7335.857747 | AQ68: 8.643042351 | AR68: -293.8634399 | AT68: -695377.1078 | AU68: -2266214.325 | AV68: -1.868521278 | AW68: -2105418.112 | AX68: -1241196.959 | AY68: -2.608910842 | BA68: 0.9699090999 | BB68: -0.2653793204 | BC68: 0.7403895639 | BD68: -137.5788027 | BF68: 13.66295735 | BG68: -119.2389121 | BH68: 60.76108788 | BI68: 60.76108788 | BJ68: 0 | BK68: 0 | BM68: 13.92833667 | BN68: -161.6601094 | BQ68: 16.63658148 | BT68: 380.189 | BU68: 23.2133 | BV68: -265.4987
A69: 17500 | B69: 17.5 | C69: 1.000015113 | D69: 0.005497731747 | F69: 0.3079778202 | G69: 0.3006947912 | H69: -2.840897859 | J69: 15 | M69: 0.1052612059 | N69: -1.570796325 | O69: 4.26360224 | P69: 1.334047431 | Q69: 2.222502823 | R69: 1.104094607 | S69: 0.9999842153 | T69: -0.005618679327 | U69: 0.9962927869 | V69: -0.08613368551 | X69: 13.23769476 | Y69: -118.0182352 | Z69: 61.9817648 | AC69: 1 | AD69: 4.144671767 | AE69: -4.557304626e-05 | AF69: 0.0005277875652 | AG69: 7632.408061 | AH69: -2553.739752 | AJ69: 18000 | AK69: 101.1372922 | AL69: 1 | AM69: 1.984822108 | AN69: 3684.719154 | AO69: -7212.374746 | AQ69: 8.156606852 | AR69: -285.4812398 | AT69: -666790.2385 | AU69: -2199739.167 | AV69: -1.86511525 | AW69: -2012503.799 | AX69: -1154532.101 | AY69: -2.620751358 | BA69: 0.9907005702 | BB69: -0.08115174127 | BC69: 0.7556361072 | BD69: -136.7052402 | BF69: 13.21119352 | BG69: -119.1617009 | BH69: 60.83829914 | BI69: 60.83829914 | BJ69: 0 | BK69: 0 | BM69: 13.29234526 | BN69: -162.4564607 | BQ69: 16.82080906 | BT69: 389.045 | BU69: 22.9552 | BV69: -266.0672
A70: 18000 | B70: 18 | C70: 1.000015989 | D70: 0.005654806495 | F70: 0.28708891 | G70: 0.2879459535 | H70: -2.853646697 | J70: 15 | M70: 0.1023372835 | N70: -1.570796325 | O70: 4.378806291 | P70: 1.3403904 | Q70: 2.273290587 | R70: 1.115319065 | S70: 0.9999833004 | T70: -0.005779209498 | U70: 0.996079182 | V70: -0.08858197148 | X70: 12.80891603 | Y70: -117.8826248 | Z70: 62.11737522 | AC70: 1 | AD70: 4.263090961 | AE70: -4.821442282e-05 | AF70: 0.0005428672099 | AG70: 7629.135639 | AH70: -2519.648169 | AJ70: 18000 | AK70: 104.0269291 | AL70: 1 | AM70: 2.041531311 | AN70: 3524.168446 | AO70: -7090.673298 | AQ70: 7.710100231 | AR70: -277.5636083 | AT70: -640541.237 | AU70: -2136997.156 | AV70: -1.862013589 | AW70: -1925027.126 | AX70: -1075698.036 | AY70: -2.632021139 | BA70: 1.011673344 | BB70: 0.100806144 | BC70: 0.7700075499 | BD70: -135.8818171 | BF70: 12.78309853 | BG70: -119.0597327 | BH70: 60.94026728 | BI70: 60.94026728 | BJ70: 0 | BK70: 0 | BM70: 12.68229238 | BN70: -163.1779156 | BQ70: 17.00276694 | BT70: 398.107 | BU70: 22.7385 | BV70: -265.2319
A71: 18500 | B71: 18.5 | C71: 1.000016889 | D71: 0.005811880964 | F71: 0.2683516257 | G71: 0.2763254319 | H71: -2.865267218 | J71: 15 | M71: 0.09957141096 | N71: -1.570796325 | O71: 4.494177481 | P71: 1.346407937 | Q71: 2.324352223 | R71: 1.126051666 | S71: 0.9999823598 | T71: -0.00593973937 | U71: 0.9958597032 | V71: -0.0910291932 | X71: 12.40160286 | Y71: -117.7291329 | Z71: 62.27086713 | AC71: 1 | AD71: 4.381510154 | AE71: -5.093020435e-05 | AF71: 0.0005579468546 | AG71: 7625.77396 | AH71: -2488.37719 | AJ71: 18000 | AK71: 106.916566 | AL71: 1 | AM71: 2.098240514 | AN71: 3373.244726 | AO71: -6970.962183 | AQ71: 7.299270073 | AR71: -270.0729927 | AT71: -616380.8909 | AU71: -2077678.932 | AV71: -1.859193461 | AW71: -1842626.066 | AX71: -1003850.819 | AY71: -2.642755493 | BA71: 1.032812643 | BB71: 0.2804309122 | BC71: 0.7835620325 | BD71: -135.1052025 | BF71: 12.3764874 | BG71: -118.9399252 | BH71: 61.06007479 | BI71: 61.06007479 | BJ71: 0 | BK71: 0 | BM71: 12.09605649 | BN71: -163.8347227 | BQ71: 17.18239171 | BT71: 407.38 | BU71: 22.7593 | BV71: -265.7319
A72: 19000 | B72: 19 | C72: 1.000017814 | D72: 0.005968955146 | F72: 0.2514716571 | G72: 0.2656856281 | H72: -2.875907022 | J72: 15 | M72: 0.09695111067 | N72: -1.570796325 | O72: 4.609703258 | P72: 1.352124056 | Q72: 2.37567007 | R72: 1.136321729 | S72: 0.9999813934 | T72: -0.006100268936 | U72: 0.9956343623 | V72: -0.09347532205 | X72: 12.0138344 | Y72: -117.5631588 | Z72: 62.43684122 | AC72: 1 | AD72: 4.499929347 | AE72: -5.372039086e-05 | AF72: 0.0005730264994 | AG72: 7622.323264 | AH72: -2459.701579 | AJ72: 18000 | AK72: 109.8062029 | AL72: 1 | AM72: 2.154949717 | AN72: 3231.262639 | AO72: -6853.402306 | AQ72: 6.920415225 | AR72: -262.9757785 | AT72: -594092.2956 | AU72: -2021508.551 | AV72: -1.856634202 | AW72: -1764961.44 | AX72: -938250.5517 | AY72: -2.652987083 | BA72: 1.054105118 | BB72: 0.4576784367 | BC72: 0.7963528802 | BD72: -134.3723409 | BF72: 11.98943922 | BG72: -118.8076798 | BH72: 61.19232021 | BI72: 61.19232021 | BJ72: 0 | BK72: 0 | BM72: 11.53176079 | BN72: -164.4353389 | BQ72: 17.35963924 | BT72: 416.869 | BU72: 22.4206 | BV72: -265.2494
A73: 19500 | B73: 19.5 | C73: =SQRT((A73/Fesr)^2+1) -> 1.000018764 | D73: =ATAN(A73/Fesr) -> 0.006126029033 | F73: =(Ro/(Ro+Rdcr))/SQRT((A73/(Q*Fo))^2+(1-(A73^2/Fo^2))^2) -> 0.2362041673 | G73: =-ATAN(A73*Fo/(Q*(Fo^2-A73^2))) -> 0.2559037167 | H73: =IF(G73>0,G73-Pi,G73) -> -2.885688933 | J73: =Vin/Vramp -> 15 | M73: =1/(2*Pi*_Rfb1*(Cc1ea_u+Cc2ea_u)*A73) -> 0.09446518475 | N73: =-Pi/2 -> -1.570796325 | O73: =SQRT(1+(A73/Fz1_u)^2) -> 4.725372286 | P73: =ATAN2(Fz1_u,A73) -> 1.357560504 | Q73: =SQRT(1+(A73/Fz2_u)^2) -> 2.42722788 | R73: =ATAN2(Fz2_u,A73) -> 1.146156492 | S73: =1/SQRT(1+(A73/Fp1_u)^2) -> 0.9999804013 | T73: =-ATAN2(Fp1_u,A73) -> -0.006260798188 | U73: =1/SQRT(1+(A73/Fp2_u)^2) -> 0.9954031713 | V73: =-ATAN2(Fp2_u,A73) -> -0.09592032952 | X73: 11.64391664 | Y73: =(180/Pi)*(D73+H73+N73+P73+R73+T73+V73) -> -117.3889317 | Z73: 62.61106829 | AC73: 1 | AD73: =Rcea1_u*Cc1ea_u*A73*2*Pi -> 4.618348541 | AE73: =-Rcea1_u*Cc1ea_u*Cc2ea_u*(A73*2*Pi)^2 -> -5.658498234e-05 | AF73: =(Cc2ea_u+Cc1ea_u)*A73*2*Pi -> 0.0005881061441 | AG73: 7618.783797 | AH73: -2433.419139 | AJ73: =_Rfb1 -> 18000 | AK73: =_Rfb1*Rcea2_u*Cc3ea_u*A73*2*Pi -> 112.6958399 | AL73: 1 | AM73: =(_Rfb1+Rcea2_u)*Cc3ea_u*A73*2*Pi -> 2.21165892 | AN73: 3097.588992 | AO73: -6738.114486 | AQ73: =Eadcg/(1+(Eadcg*A73/GBP)^2) -> 6.570302234 | AR73: =-(A73*Eadcg*Eadcg/GBP)/(1+(Eadcg*A73/GBP)^2) -> -256.2417871 | AT73: -573485.9567 | AU73: -1968239.075 | AV73: -1.854317071 | AW73: -1691716.338 | AX73: -878247.0943 | AY73: -2.66274614 | BA73: =SQRT(AT73^2+AU73^2)/SQRT(AW73^2+AX73^2) -> 1.075538676 | BB73: 0.6325206381 | BC73: 0.8084290698 | BD73: =BC73*180/Pi-180 -> -133.6804262 | BF73: =20*LOG(BA73*J73*F73*C73) -> 11.62025991 | BG73: =(180/Pi)*(D73+H73+BC73) -> -118.6672277 | BH73: 61.33277234 | BI73: 61.33277234 | BJ73: =SUM((BF74<0)*(BF73>0))*A73 -> 0 | BK73: 0 | BM73: 10.98773927 | BN73: =(H73+D73)*180/Pi -> -164.9868014 | BQ73: 17.53448144 | BT73: 426.58 | BU73: 22.3737 | BV73: -265.1406
A74: 20000 | B74: =A74/1000 -> 20 | C74: 1.000019739 | D74: 0.006283102619 | F74: 0.2223440749 | G74: 0.2468766833 | H74: -2.894715967 | J74: 15 | M74: 0.09210355514 | N74: -1.570796325 | O74: 4.841174296 | P74: 1.362737017 | Q74: 2.479010678 | R74: 1.155581267 | S74: 0.9999793833 | T74: -0.006421327117 | U74: 0.9951661427 | V74: -0.09836418717 | X74: =20*LOG(C74*J74*O74*Q74*F74*M74*S74*U74) -> 11.29035082 | Y74: -117.2097711 | Z74: =Y74+180 -> 62.79022888 | AC74: 1 | AD74: 4.736767734 | AE74: -5.952397879e-05 | AF74: 0.0006031857888 | AG74: =AC74*AE74/(AE74^2+AF74^2)+AD74*AF74/(AE74^2+AF74^2) -> 7615.155811 | AH74: =AD74*AE74/(AE74^2+AF74^2)-AC74*AF74/(AE74^2+AF74^2) -> -2409.347833 | AJ74: 18000 | AK74: 115.5854768 | AL74: 1 | AM74: 2.268368123 | AN74: =AJ74*AL74/(AL74^2+AM74^2)+AK74*AM74/(AL74^2+AM74^2) -> 2971.639152 | AO74: =AK74*AL74/(AL74^2+AM74^2)-AJ74*AM74/(AL74^2+AM74^2) -> -6625.18605 | AQ74: 6.24609619 | AR74: -249.8438476 | AT74: -554395.737 | AU74: -1917648.846 | AV74: =ATAN2(AT74,AU74) -> -1.85222503 | AW74: =AG74-AH74*AO74/_Rfb2+AG74*AN74/_Rfb2+AN74-AO74*AR74+AQ74*AN74 -> -1622595.278 | AX74: =AH74+AH74*AN74/_Rfb2+AG74*AO74/_Rfb2+AO74+AO74*AQ74+AN74*AR74 -> -823267.9313 | AY74: -2.672060676 | BA74: 1.097102332 | BB74: =20*LOG(BA74) -> 0.8049427637 | BC74: =AV74-AY74 -> 0.819835646 | BD74: -133.0268775 | BF74: 11.26745061 | BG74: -118.5218902 | BH74: =IF(BG74>180,BG74-180,BG74+180) -> 61.47810976 | BI74: =IF(BH74>180,BH74-360,BH74) -> 61.47810976 | BJ74: 0 | BK74: =IF(BJ74>0,BI74,0) -> 0 | BM74: =20*LOG(J74*F74*C74) -> 10.46250784 | BN74: -165.4950127 | BQ74: =20*LOG(BA74*7) -> 17.70690356 | BT74: 436.516 | BU74: 22.0741 | BV74: -264.9151
A75: 20500 | B75: 20.5 | C75: 1.000020738 | D75: 0.006440175894 | F75: 0.2097184894 | G75: 0.2385174996 | H75: -2.90307515 | J75: 15 | M75: 0.08985712696 | N75: -1.570796325 | O75: 4.957099969 | P75: 1.367671543 | Q75: 2.531004657 | R75: 1.164619596 | S75: 0.9999783397 | T75: -0.006581855716 | U75: 0.9949232891 | V75: -0.1008068666 | X75: 10.95180653 | Y75: -117.0282847 | Z75: 62.97171533 | AC75: 1 | AD75: 4.855186927 | AE75: -6.253738022e-05 | AF75: 0.0006182654335 | AG75: 7611.439563 | AH75: -2387.323324 | AJ75: 18000 | AK75: 118.4751137 | AL75: 1 | AM75: 2.325077326 | AN75: 2852.873526 | AO75: -6514.676437 | AQ75: 5.94530321 | AR75: -243.7574316 | AT75: -536675.4859 | AU75: -1869538.32 | AV75: -1.850342568 | AW75: -1557323.205 | AX75: -772807.8265 | AY75: =ATAN2(AW75,AX75) -> -2.68095666 | BA75: 1.118786083 | BB75: 0.9749411068 | BC75: 0.830614092 | BD75: -132.4093181 | BF75: 10.92968083 | BG75: -118.3742771 | BH75: 61.62572291 | BI75: 61.62572291 | BJ75: 0 | BK75: 0 | BM75: 9.954739726 | BN75: -165.964959 | BQ75: 17.87690191 | BT75: 446.684 | BU75: 21.7611 | BV75: -265.3082
A76: 21000 | B76: 21 | C76: 1.000021762 | D76: 0.006597248851 | F76: 0.1981807755 | G76: 0.2307521446 | H76: -2.910840505 | J76: 15 | M76: 0.08771767156 | N76: -1.570796325 | O76: 5.073140826 | P76: 1.372380439 | Q76: 2.583197064 | R76: 1.173293378 | S76: 0.9999772702 | T76: -0.006742383975 | U76: 0.9946746235 | V76: -0.1032483397 | X76: 10.62709904 | Y76: -116.8465198 | Z76: 63.15348017 | AC76: 1 | AD76: 4.973606121 | AE76: -6.562518662e-05 | AF76: 0.0006333450782 | AG76: 7607.635316 | AH76: -2367.196871 | AJ76: 18000 | AK76: 121.3647506 | AL76: 1 | AM76: 2.38178653 | AN76: 2740.794189 | AO76: -6406.621929 | AQ76: 5.66572238 | AR76: -237.9603399 | AT76: -520196.2224 | AU76: -1823727.366 | AV76: -1.848655528 | AW76: -1495644.387 | AX76: -726419.9884 | AY76: -2.689458189 | BA76: 1.140580795 | BB76: 1.142521092 | BC76: 0.8408026614 | BD76: -131.825556 | BF76: 10.60576577 | BG76: -118.2264375 | BH76: 61.77356249 | BI76: 61.77356249 | BJ76: 0 | BK76: 0 | BM76: 9.463244673 | BN76: -166.4008815 | BQ76: 18.04448189 | BT76: 457.088 | BU76: 21.6126 | BV76: -265.6514
A77: 21500 | B77: 21.5 | C77: 1.000022811 | D77: 0.006754321483 | F77: 0.1876058596 | G77: 0.2235172642 | H77: -2.918075386 | J77: 15 | M77: 0.08567772571 | N77: -1.570796325 | O77: 5.189289142 | P77: 1.376878639 | Q77: 2.635576111 | R77: 1.181623003 | S77: 0.999976175 | T77: -0.006902911886 | U77: 0.9944201591 | V77: -0.105688578 | X77: 10.31516998 | Y77: -116.666081 | Z77: 63.33391898 | AC77: 1 | AD77: 5.092025314 | AE77: -6.878739799e-05 | AF77: 0.000648424723 | AG77: 7603.74334 | AH77: -2348.833512 | AJ77: 18000 | AK77: 124.2543875 | AL77: 1 | AM77: 2.438495733 | AN77: 2634.941682 | AO77: -6301.039659 | AQ77: 5.405405405 | AR77: -232.4324324 | AT77: -504843.7712 | AU77: -1780052.957 | AV77: -1.847150969 | AW77: -1437321.272 | AX77: -683708.5076 | AY77: -2.697587645 | BA77: 1.162478109 | BB77: 1.307695664 | BC77: 0.8504366751 | BD77: -131.2735677 | BF77: 10.29464695 | BG77: -118.0799777 | BH77: 61.9200223 | BI77: 61.9200223 | BJ77: 0 | BK77: 0 | BM77: 8.986951287 | BN77: -166.80641 | BQ77: 18.20965646 | BT77: 467.735 | BU77: 21.3672 | BV77: -265.0501
A78: 22000 | B78: 22 | C78: 1.000023884 | D78: 0.006911393782 | F78: 0.1778864907 | G78: 0.2167583158 | H78: -2.924834334 | J78: 15 | M78: 0.08373050467 | N78: -1.570796325 | O78: 5.305537858 | P78: 1.381179805 | Q78: 2.688130888 | R78: 1.189627466 | S78: 0.999975054 | T78: -0.007063439442 | U78: 0.9941599094 | V78: -0.1081275536 | X78: 10.01507097 | Y78: -116.4882206 | Z78: 63.51177937 | AC78: 1 | AD78: 5.210444507 | AE78: -7.202401434e-05 | AF78: 0.0006635043677 | AG78: 7599.763909 | AH78: -2332.110503 | AJ78: 18000 | AK78: 127.1440245 | AL78: 1 | AM78: 2.495204936 | AN78: 2534.891995 | AO78: -6197.930993 | AQ78: 5.162622612 | AR78: -227.1553949 | AT78: -490516.7694 | AU78: -1738367.179 | AV78: -1.845817042 | AW78: -1382133.336 | AX78: -644321.8666 | AY78: -2.705365828 | BA78: 1.184470358 | BB78: 1.470483935 | BC78: 0.8595487868 | BD78: -130.7514822 | BF78: 9.995375918 | BG78: -117.9361518 | BH78: 62.06384821 | BI78: 62.06384821 | BJ78: 0 | BK78: 0 | BM78: 8.524891983 | BN78: -167.1846696 | BQ78: 18.37244474 | BT78: 478.63 | BU78: 21.1958 | BV78: -264.3513
A79: 22500 | B79: 22.5 | C79: 1.000024982 | D79: 0.007068465739 | F79: 0.1689302405 | G79: 0.2104280857 | H79: -2.931164564 | J79: 15 | M79: 0.08186982679 | N79: -1.570796325 | O79: 5.421880517 | P79: 1.385296455 | Q79: 2.740851286 | R79: 1.197324474 | S79: 0.9999739073 | T79: -0.007223966633 | U79: 0.9938938883 | V79: -0.1105652385 | X79: 9.725949663 | Y79: -116.3139104 | Z79: 63.68608964 | AC79: 1 | AD79: 5.328863701 | AE79: -7.533503566e-05 | AF79: 0.0006785840124 | AG79: 7595.697305 | AH79: -2316.915958 | AJ79: 18000 | AK79: 130.0336614 | AL79: 1 | AM79: 2.551914139 | AN79: 2440.253752 | AO79: -6097.284392 | AQ79: 4.935834156 | AR79: -222.112537 | AT79: -477124.9793 | AU79: -1698535.512 | AV79: -1.844642872 | AW79: -1329875.94 | AX79: -607947.3591 | AY79: -2.712812093 | BA79: 1.206550495 | BB79: 1.630910043 | BC79: 0.8681692217 | BD79: -130.2575676 | BF79: 9.70710022 | BG79: -117.7959332 | BH79: 62.20406683 | BI79: 62.20406683 | BJ79: 0 | BK79: 0 | BM79: 8.076190177 | BN79: -167.5383655 | BQ79: 18.53287084 | BT79: 489.779 | BU79: 20.9448 | BV79: -263.9108
A80: 23000 | B80: 23 | C80: 1.000026105 | D80: 0.007225537348 | F80: 0.1606570804 | G80: 0.2044854951 | H80: -2.937107155 | J80: 15 | M80: 0.08009004794 | N80: -1.570796325 | O80: 5.538311198 | P80: 1.389240083 | Q80: 2.793727929 | R80: 1.204730546 | S80: 0.9999727348 | T80: -0.007384493453 | U80: 0.9936221098 | V80: -0.1130016046 | X80: 9.447037799 | Y80: -116.1438973 | Z80: 63.85610272 | AC80: 1 | AD80: 5.447282894 | AE80: -7.872046195e-05 | AF80: 0.0006936636571 | AG80: 7591.543814 | AH80: -2303.14767 | AJ80: 18000 | AK80: 132.9232983 | AL80: 1 | AM80: 2.608623342 | AN80: 2350.665584 | AO80: -5999.077814 | AQ80: 4.723665564 | AR80: -217.288616 | AT80: -464587.8556 | AU80: -1660435.348 | AV80: -1.843618469 | AW80: -1280359.238 | AX80: -574306.28 | AY80: -2.719944459 | BA80: 1.228712027 | BB80: 1.789002189 | BC80: 0.8763259905 | BD80: -129.7902192 | BF80: 9.429051515 | BG80: -117.6600706 | BH80: 62.33992944 | BI80: 62.33992944 | BJ80: 0 | BK80: 0 | BM80: 7.640049326 | BN80: -167.8698514 | BQ80: 18.69096299 | BT80: 501.187 | BU80: 20.7819 | BV80: -264.7826
A81: 23500 | B81: 23.5 | C81: 1.000027252 | D81: 0.0073826086 | F81: 0.1529974111 | G81: 0.1988946315 | H81: -2.942698018 | J81: 15 | M81: 0.07838600437 | N81: -1.570796325 | O81: 5.654824465 | P81: 1.393021257 | Q81: 2.84675211 | R81: 1.211861104 | S81: 0.9999715365 | T81: -0.007545019892 | U81: 0.9933445884 | V81: -0.1154366243 | X81: 9.177641035 | Y81: -115.9787483 | Z81: 64.02125165 | AC81: 1 | AD81: 5.565702087 | AE81: -8.218029322e-05 | AF81: 0.0007087433018 | AG81: 7587.303729 | AH81: -2290.712083 | AJ81: 18000 | AK81: 135.8129352 | AL81: 1 | AM81: 2.665332545 | AN81: 2265.793698 | AO81: -5903.280749 | AQ81: 4.524886878 | AR81: -212.6696833 | AT81: -452833.322 | AU81: -1623954.694 | AV81: -1.842734635 | AW81: -1233407.111 | AX81: -543149.7718 | AY81: -2.726779717 | BA81: 1.250948963 | BB81: 1.944791831 | BC81: 0.8840450824 | BD81: -129.3479478 | BF81: 9.160535361 | BG81: -117.5291325 | BH81: 62.47086746 | BI81: 62.47086746 | BJ81: 0 | BK81: 0 | BM81: 7.21574353 | BN81: -168.1811847 | BQ81: 18.84675263 | BT81: 512.861 | BU81: 20.6348 | BV81: -265.043
A82: 24000 | B82: 24 | C82: 1.000028424 | D82: 0.007539679488 | F82: 0.1458904517 | G82: 0.193623958 | H82: -2.947968692 | J82: 15 | M82: 0.07675296261 | N82: -1.570796325 | O82: 5.771415315 | P82: 1.39664971 | Q82: 2.899915736 | R82: 1.218730553 | S82: 0.9999703124 | T82: -0.007705545942 | U82: 0.9930613388 | V82: -0.1178702696 | X82: 8.91713015 | Y82: -115.8188857 | Z82: 64.18111428 | AC82: 1 | AD82: 5.684121281 | AE82: -8.571452946e-05 | AF82: 0.0007238229466 | AG82: 7582.977346 | AH82: -2279.523388 | AJ82: 18000 | AK82: 138.7025721 | AL82: 1 | AM82: 2.722041748 | AN82: 2185.329633 | AO82: -5809.855921 | AQ82: 4.338394794 | AR82: -208.2429501 | AT82: -441796.7256 | AU82: -1588991.046 | AV82: -1.841982893 | AW82: -1188856.172 | AX82: -514255.2288 | AY82: -2.733333531 | BA82: 1.273255761 | BB82: 2.098312997 | BC82: 0.8913506385 | BD82: -128.9293703 | BF82: 8.900922439 | BG82: -117.4035429 | BH82: 62.59645714 | BI82: 62.59645714 | BJ82: 0 | BK82: 0 | BM82: 6.802609442 | BN82: -168.4741726 | BQ82: 19.0002738 | BT82: 524.807 | BU82: 20.2436 | BV82: -263.9557
A83: 24500 | B83: 24.5 | C83: 1.000029621 | D83: 0.007696750004 | F83: 0.1392829131 | G83: 0.1886456629 | H83: -2.952946987 | J83: 15 | M83: 0.07518657562 | N83: -1.570796325 | O83: 5.88807914 | P83: 1.400134423 | Q83: 2.953211277 | R83: 1.225352365 | S83: 0.9999690626 | T83: -0.007866071594 | U83: 0.9927723759 | V83: -0.1203025131 | X83: 8.664933495 | Y83: -115.6646151 | Z83: 64.33538493 | AC83: 1 | AD83: 5.802540474 | AE83: -8.932317067e-05 | AF83: 0.0007389025913 | AG83: 7578.564969 | AH83: -2269.502736 | AJ83: 18000 | AK83: 141.5922091 | AL83: 1 | AM83: 2.778750951 | AN83: 2108.988189 | AO83: -5718.760727 | AQ83: 4.163197336 | AR83: -203.9966694 | AT83: -431419.9379 | AU83: -1555450.401 | AV83: -1.841355413 | AW83: -1146554.82 | AX83: -487423.1796 | AY83: -2.739620521 | BA83: 1.295627286 | BB83: 2.249601712 | BC83: 0.8982651086 | BD83: -128.5332003 | BF83: 8.649641002 | BG83: -117.2836087 | BH83: 62.71639127 | BI83: 62.71639127 | BJ83: 0 | BK83: 0 | BM83: 6.40003929 | BN83: -168.7504084 | BQ83: 19.15156251 | BT83: 537.032 | BU83: 20.2926 | BV83: -264.5682
A84: 25000 | B84: 25 | C84: 1.000030842 | D84: 0.00785382014 | F84: 0.133127902 | G84: 0.1839351222 | H84: -2.957657528 | J84: 15 | M84: 0.07368284411 | N84: -1.570796325 | O84: 6.004811686 | P84: 1.403483691 | Q84: 3.006631718 | R84: 1.231739142 | S84: 0.999967787 | T84: -0.008026596842 | U84: 0.992477715 | V84: -0.1227333272 | X84: 8.420530456 | Y84: -115.5161482 | Z84: 64.48385175 | AC84: 1 | AD84: 5.920959667 | AE84: -9.300621686e-05 | AF84: 0.000753982236 | AG84: 7574.066907 | AH84: -2260.577541 | AJ84: 18000 | AK84: 144.481846 | AL84: 1 | AM84: 2.835460154 | AN84: 2036.50553 | AO84: -5629.948439 | AQ84: 3.99840064 | AR84: -199.920032 | AT84: -421650.5804 | AU84: -1523246.393 | AV84: -1.840844955 | AW84: -1106362.352 | AX84: -462474.5776 | AY84: -2.745654348 | BA84: 1.318058772 | BB84: 2.398695513 | BC84: 0.9048093922 | BD84: -128.1582405 | BF84: 8.406170336 | BG84: -117.1695435 | BH84: 62.83045646 | BI84: 62.83045646 | BJ84: 0 | BK84: 0 | BM84: 6.007474823 | BN84: -169.011303 | BQ84: 19.30065631 | BT84: 549.541 | BU84: 19.992 | BV84: -264.4762
A85: 25500 | B85: 25.5 | C85: 1.000032088 | D85: 0.008010889889 | F85: 0.1273840077 | G85: 0.1794704529 | H85: -2.962122197 | J85: 15 | M85: 0.07223808246 | N85: -1.570796325 | O85: 6.121609022 | P85: 1.406705189 | Q85: 3.060170517 | R85: 1.237902685 | S85: 0.9999664857 | T85: -0.008187121676 | U85: 0.9921773715 | V85: -0.1251626843 | X85: 8.183445794 | Y85: -115.3736216 | Z85: 64.62637841 | AC85: 1 | AD85: 6.039378861 | AE85: -9.676366802e-05 | AF85: 0.0007690618807 | AG85: 7569.483475 | AH85: -2252.680869 | AJ85: 18000 | AK85: 147.3714829 | AL85: 1 | AM85: 2.892169357 | AN85: 1967.637434 | AO85: -5543.36921 | AQ85: 3.84319754 | AR85: -196.0030746 | AT85: -412441.3561 | AU85: -1492299.531 | AV85: -1.840444818 | AW85: -1068148.141 | AX85: -439248.4418 | AY85: -2.751447785 | BA85: 1.340545787 | BB85: 2.54563304 | BC85: 0.9110029669 | BD85: -127.8033748 | BF85: 8.170035096 | BG85: -117.0614851 | BH85: 62.93851488 | BI85: 62.93851488 | BJ85: 0 | BK85: 0 | BM85: 5.624402057 | BN85: -169.2581103 | BQ85: 19.44759384 | BT85: 562.341 | BU85: 19.6823 | BV85: -264.604
A86: 26000 | B86: 26 | C86: 1.000033359 | D86: 0.008167959242 | F86: 0.1220145403 | G86: 0.1752321388 | H86: -2.966360511 | J86: 15 | M86: 0.07084888857 | N86: -1.570796325 | O86: 6.23846751 | P86: 1.409806029 | Q86: 3.113821569 | R86: 1.243854052 | S86: 0.9999651586 | T86: -0.008347646087 | U86: 0.9918713612 | V86: -0.1275905573 | X86: 7.95324471 | Y86: -115.2371107 | Z86: 64.76288932 | AC86: 1 | AD86: 6.157798054 | AE86: -0.0001005955242 | AF86: 0.0007841415254 | AG86: 7564.81499 | AH86: -2245.750891 | AJ86: 18000 | AK86: 150.2611198 | AL86: 1 | AM86: 2.94887856 | AN86: 1902.157693 | AO86: -5458.97092 | AQ86: 3.696857671 | AR86: -192.2365989 | AT86: =-AR86*AH86+AG86*AQ86 -> -403749.4688 | AU86: =AQ86*AH86+AG86*AR86 -> -1462536.526 | AV86: -1.840148783 | AW86: -1031790.867 | AX86: -417599.7989 | AY86: -2.757012787 | BA86: 1.363084203 | BB86: 2.690453695 | BC86: 0.9168640036 | BD86: -127.4675621 | BF86: 7.940800382 | BG86: -116.9595106 | BH86: 63.04048945 | BI86: 63.04048945 | BJ86: 0 | BK86: 0 | BM86: 5.250346687 | BN86: -169.4919484 | BQ86: 19.59241449 | BT86: 575.44 | BU86: 19.596 | BV86: -264.9076
A87: 26500 | B87: 26.5 | C87: 1.000034654 | D87: 0.008325028192 | F87: 0.1169868899 | G87: 0.1712027164 | H87: -2.970389934 | J87: 15 | M87: 0.06951211708 | N87: -1.570796325 | O87: 6.355383776 | P87: 1.412792808 | Q87: 3.167579171 | R87: 1.249603614 | S87: 0.9999638057 | T87: -0.008508170069 | U87: 0.9915597003 | V87: -0.1300169188 | X87: 7.729528553 | Y87: -115.1066424 | Z87: 64.89335762 | AC87: 1 | AD87: 6.276217248 | AE87: -0.0001045017853 | AF87: 0.0007992211702 | AG87: 7560.06178 | AH87: -2239.730402 | AJ87: 18000 | AK87: 153.1507567 | AL87: 1 | AM87: 3.005587763 | AN87: 1839.856649 | AO87: -5376.699875 | AQ87: 3.558718861 | AR87: -188.6120996 | AT87: -395536.1193 | AU87: -1433889.697 | AV87: -1.839951079 | AW87: -997177.8025 | AX87: -397397.8846 | AY87: -2.762360551 | BA87: 1.385670169 | BB87: 2.833197352 | BC87: 0.922409472 | BD87: -127.1498302 | BF87: 7.718067436 | BG87: -116.8636481 | BH87: 63.13635187 | BI87: 63.13635187 | BJ87: 0 | BK87: 0 | BM87: 4.884870084 | BN87: -169.7138179 | BQ87: 19.73515815 | BT87: 588.844 | BU87: 19.3732 | BV87: -263.8817
A88: 27000 | B88: 27 | C88: 1.000035974 | D88: 0.008482096732 | F88: 0.1122719863 | G88: 0.1673665101 | H88: -2.97422614 | J88: 15 | M88: 0.06822485566 | N88: -1.570796325 | O88: 6.472354688 | P88: 1.415671655 | Q88: 3.221437988 | R88: 1.255161101 | S88: 0.9999624271 | T88: -0.008668693612 | U88: 0.991242405 | V88: -0.1324417417 | X88: 7.511931061 | Y88: -114.9822045 | Z88: 65.01779551 | AC88: 1 | AD88: 6.394636441 | AE88: -0.0001084824513 | AF88: 0.0008143008149 | AG88: 7555.224173 | AH88: -2234.566398 | AJ88: 18000 | AK88: 156.0403937 | AL88: 1 | AM88: 3.062296967 | AN88: 1780.539852 | AO88: -5296.501393 | AQ88: 3.428179637 | AR88: -185.1217004 | AT88: -387766.0655 | AU88: -1406296.441 | AV88: -1.839846339 | AW88: -964204.1561 | AX88: -378524.5689 | AY88: -2.767501574 | BA88: 1.408300086 | BB88: 2.973904119 | BC88: 0.9276552352 | BD88: -126.8492701 | BF88: 7.501469885 | BG88: -116.7738871 | BH88: 63.2261129 | BI88: 63.2261129 | BJ88: 0 | BK88: 0 | BM88: 4.527565766 | BN88: -169.924617 | BQ88: 19.87586492 | BT88: 602.56 | BU88: 19.198 | BV88: -264.0026
A89: 27500 | B89: 27.5 | C89: 1.000037319 | D89: 0.008639164853 | F89: 0.1078438415 | G89: 0.1637094063 | H89: -2.977883244 | J89: 15 | M89: 0.06698440373 | N89: -1.570796325 | O89: 6.589377337 | P89: 1.418448272 | Q89: 3.275393028 | R89: 1.260535656 | S89: 0.9999610227 | T89: -0.008829216708 | U89: 0.990919492 | V89: -0.134864999 | X89: 7.300115056 | Y89: -114.8637538 | Z89: 65.13624622 | AC89: 1 | AD89: 6.513055634 | AE89: -0.0001125375224 | AF89: 0.0008293804596 | AG89: 7550.302505 | AH89: -2230.209689 | AJ89: 18000 | AK89: 158.9300306 | AL89: 1 | AM89: 3.11900617 | AN89: 1724.026829 | AO89: -5218.320287 | AQ89: 3.304692664 | AR89: -181.7580965 | AT89: -380407.2386 | AU89: -1379698.769 | AV89: -1.839829566 | AW89: -932772.4615 | AX89: -360872.9741 | AY89: -2.772445703 | BA89: 1.430970586 | BB89: 3.112614135 | BC89: 0.9326161371 | BD89: -126.5650314 | BF89: 7.290670444 | BG89: -116.6901856 | BH89: 63.30981437 | BI89: 63.30981437 | BJ89: 0 | BK89: 0 | BM89: 4.178056309 | BN89: -170.1251543 | BQ89: 20.01457493 | BT89: 616.595 | BU89: 18.9837 | BV89: -264.1331
A90: 28000 | B90: 28 | C90: 1.000038688 | D90: 0.008796232547 | F90: 0.10367916 | G90: 0.1602186624 | H90: -2.981373988 | J90: 15 | M90: 0.06578825367 | N90: -1.570796325 | O90: 6.706449015 | P90: 1.421127968 | Q90: 3.329439612 | R90: 1.265735866 | S90: 0.9999595926 | T90: -0.00898973935 | U90: 0.9905909781 | V90: -0.1372866638 | X90: 7.093769551 | Y90: -114.7512224 | Z90: 65.24877763 | AC90: 1 | AD90: 6.631474828 | AE90: -0.0001166669984 | AF90: 0.0008444601043 | AG90: 7545.297116 | AH90: -2226.614564 | AJ90: 18000 | AK90: 161.8196675 | AL90: 1 | AM90: 3.175715373 | AN90: 1670.149969 | AO90: -5142.101264 | AQ90: 3.187759005 | AR90: -178.5145043 | AT90: -373430.4063 | AU90: -1354042.885 | AV90: -1.839896104 | AW90: -902792.017 | AX90: -344346.2609 | AY90: -2.777202184 | BA90: 1.453678509 | BB90: 3.249367401 | BC90: 0.9373060803 | BD90: -126.2963174 | BF90: 7.085358012 | BG90: -116.6124773 | BH90: 63.38752274 | BI90: 63.38752274 | BJ90: 0 | BK90: 0 | BM90: 3.835990611 | BN90: -170.3161598 | BQ90: 20.1513282 | BT90: 630.957 | BU90: 18.8029 | BV90: -263.7485
A91: 28500 | B91: 28.5 | C91: 1.000040082 | D91: 0.008953299808 | F91: 0.09975700627 | G91: 0.156882742 | H91: -2.984709908 | J91: 15 | M91: 0.06463407378 | N91: -1.570796325 | O91: 6.823567197 | P91: 1.423715695 | Q91: 3.383573353 | R91: 1.270769813 | S91: 0.9999581366 | T91: -0.009150261528 | U91: 0.9902568803 | V91: -0.1397067092 | X91: 6.892607184 | Y91: -114.6445231 | Z91: 65.35547689 | AC91: 1 | AD91: 6.749894021 | AE91: -0.0001208708794 | AF91: 0.000859539749 | AG91: 7540.208353 | AH91: -2223.73848 | AJ91: 18000 | AK91: 164.7093044 | AL91: 1 | AM91: 3.232424576 | AN91: 1618.753487 | AO91: -5067.789249 | AQ91: 3.076923077 | AR91: -175.3846154 | AT91: -366808.8769 | AU91: -1329278.814 | AV91: -1.840041607 | AW91: -874178.3678 | AX91: -328856.5596 | AY91: -2.781779706 | BA91: 1.476420893 | BB91: 3.384203646 | BC91: 0.9417380985 | BD91: -126.0423815 | BF91: 6.885245116 | BG91: -116.5406762 | BH91: 63.45932381 | BI91: 63.45932381 | BJ91: 0 | BK91: 0 | BM91: 3.501041471 | BN91: -170.4982947 | BQ91: 20.28616445 | BT91: 645.654 | BU91: 18.5986 | BV91: -263.7636
A92: 29000 | B92: 29 | C92: 1.000041501 | D92: 0.009110366627 | F92: 0.0960585197 | G92: 0.1536911744 | H92: -2.987901476 | J92: 15 | M92: 0.0635196932 | N92: -1.570796325 | O92: 6.94072953 | P92: 1.426216075 | Q92: 3.437790135 | R92: 1.275645102 | S92: 0.999956655 | T92: -0.009310783234 | U92: 0.9899172162 | V92: -0.1421251086 | X92: 6.696361964 | Y92: -114.5435538 | Z92: 65.45644616 | AC92: 1 | AD92: 6.868313214 | AE92: -0.0001251491654 | AF92: 0.0008746193938 | AG92: 7535.036565 | AH92: -2221.541794 | AJ92: 18000 | AK92: 167.5989413 | AL92: 1 | AM92: 3.289133779 | AN92: 1569.692492 | AO92: -4995.329656 | AQ92: 2.971768202 | AR92: -172.3625557 | AT92: -360518.2393 | AU92: -1305360.067 | AV92: -1.840262016 | AW92: -846852.8288 | AX92: -314324.0277 | AY92: -2.786186438 | BA92: 1.499194949 | BB92: 3.517162208 | BC92: 0.9459244215 | BD92: -125.8025228 | BF92: 6.690065647 | BG92: -116.4746816 | BH92: 63.52531836 | BI92: 63.52531836 | BJ92: 0 | BK92: 0 | BM92: 3.172903439 | BN92: -170.6721588 | BQ92: 20.41912301 | BT92: 660.693 | BU92: 18.468 | BV92: -263.6098
A93: 29500 | B93: 29.5 | C93: 1.000042944 | D93: 0.009267432996 | F93: 0.09256666911 | G93: 0.1506344328 | H93: -2.990958217 | J93: 15 | M93: 0.06244308823 | N93: -1.570796325 | O93: 7.057933815 | P93: 1.428633427 | Q93: 3.49208609 | R93: 1.280368895 | S93: 0.9999551475 | T93: -0.009471304461 | U93: 0.9895720033 | V93: -0.1445418354 | X93: 6.504787255 | Y93: -114.448201 | Z93: 65.55179901 | AC93: 1 | AD93: 6.986732408 | AE93: -0.0001295018564 | AF93: 0.0008896990385 | AG93: 7529.78211 | AH93: -2219.987519 | AJ93: 18000 | AK93: 170.4885782 | AL93: 1 | AM93: 3.345842982 | AN93: 1522.832125 | AO93: -4924.6686 | AQ93: 2.871912694 | AR93: -169.4428489 | AT93: -354536.133 | AU93: -1282243.343 | AV93: -1.840553533 | AW93: -820742.0466 | AX93: -300676.0172 | AY93: -2.790430068 | BA93: 1.521998054 | BB93: 3.648281943 | BC93: 0.9498765354 | BD93: -125.5760834 | BF93: 6.499572854 | BG93: -116.4143813 | BH93: 63.58561865 | BI93: 63.58561865 | BJ93: 0 | BK93: 0 | BM93: 2.851290911 | BN93: -170.8382979 | BQ93: 20.55024274 | BT93: 676.083 | BU93: 18.2744 | BV93: -263.3252
A94: 30000 | B94: 30 | C94: 1.000044412 | D94: 0.009424498908 | F94: 0.08926604104 | G94: 0.1477038291 | H94: -2.993888821 | J94: 15 | M94: 0.06140237009 | N94: -1.570796325 | O94: 7.175177996 | P94: 1.430971791 | Q94: 3.546457581 | R94: 1.284947944 | S94: 0.9999536143 | T94: -0.009631825199 | U94: 0.9892212596 | V94: -0.1469568632 | X94: 6.317654006 | Y94: -114.3583424 | Z94: 65.64165758 | AC94: 1 | AD94: 7.105151601 | AE94: -0.0001339289523 | AF94: 0.0009047786832 | AG94: 7524.445346 | AH94: -2219.041097 | AJ94: 18000 | AK94: 173.3782152 | AL94: 1 | AM94: 3.402552185 | AN94: 1478.046776 | AO94: -4855.753072 | AQ94: 2.777006387 | AR94: -166.6203832 | AT94: -348842.0452 | AU94: -1259888.258 | AV94: -1.840912602 | AW94: -795777.5956 | AX94: -287846.3386 | AY94: -2.794517838 | BA94: 1.544827734 | BB94: 3.77760115 | BC94: 0.9536052365 | BD94: -125.3624446 | BF94: 6.313537566 | BG94: -116.3596545 | BH94: 63.64034548 | BI94: 63.64034548 | BJ94: 0 | BK94: 0 | BM94: 2.535936416 | BN94: -170.99721 | BQ94: 20.67956195 | BT94: 691.831 | BU94: 18.0926 | BV94: -263.5782
A95: 30500 | B95: 30.5 | C95: 1.000045905 | D95: 0.009581564356 | F95: 0.08614265634 | G95: 0.1448914224 | H95: -2.996701228 | J95: 15 | M95: 0.06039577386 | N95: -1.570796325 | O95: 7.292460149 | P95: 1.433234954 | Q95: 3.600901186 | R95: 1.289388619 | S95: 0.9999520554 | T95: -0.009792345441 | U95: 0.9888650031 | V95: -0.1493701655 | X95: 6.134749156 | Y95: -114.2738498 | Z95: 65.72615017 | AC95: 1 | AD95: 7.223570794 | AE95: -0.0001384304532 | AF95: 0.0009198583279 | AG95: 7519.02664 | AH95: -2218.670205 | AJ95: 18000 | AK95: 176.2678521 | AL95: 1 | AM95: 3.459261388 | AN95: 1435.219362 | AO95: -4788.53107 | AQ95: 2.686727566 | AR95: -163.8903815 | AT95: -343417.1302 | AU95: -1238257.107 | AV95: -1.841335891 | AW95: -771895.6072 | AX95: -275774.6077 | AY95: -2.798456573 | BA95: 1.567681652 | BB95: 3.905157509 | BC95: 0.957120682 | BD95: -125.1610244 | BF95: 6.131746602 | BG95: -116.3103742 | BH95: 63.68962583 | BI95: 63.68962583 | BJ95: 0 | BK95: 0 | BM95: 2.226589093 | BN95: -171.1493498 | BQ95: 20.80711831 | BT95: 707.946 | BU95: 17.887 | BV95: -262.8499
A96: 31000 | B96: 31 | C96: 1.000047422 | D96: 0.00973862933 | F96: 0.08318381081 | G96: 0.1421899396 | H96: -2.99940271 | J96: 15 | M96: 0.05942164847 | N96: -1.570796325 | O96: 7.40977847 | P96: 1.435426462 | Q96: 3.655413684 | R96: 1.293696931 | S96: 0.9999504706 | T96: -0.009952865179 | U96: 0.9885032523 | V96: -0.1517817162 | X96: 5.955874221 | Y96: -114.1945907 | Z96: 65.80540927 | AC96: 1 | AD96: 7.341989988 | AE96: -0.000143006359 | AF96: 0.0009349379726 | AG96: 7513.526361 | AH96: -2218.844575 | AJ96: 18000 | AK96: 179.157489 | AL96: 1 | AM96: 3.515970591 | AN96: 1394.240673 | AO96: -4722.951713 | AQ96: 2.600780234 | AR96: -161.2483745 | AT96: -338244.0502 | AU96: -1217314.64 | AV96: -1.841820274 | AW96: -749036.4283 | AX96: -264405.6669 | AY96: -2.802252709 | BA96: 1.590557602 | BB96: 4.030988031 | BC96: 0.9604324353 | BD96: -124.9712749 | BF96: 5.954001355 | BG96: -116.2664091 | BH96: 63.73359091 | BI96: 63.73359091 | BJ96: 0 | BK96: 0 | BM96: 1.923013324 | BN96: -171.2951342 | BQ96: 20.93294883 | BT96: 724.436 | BU96: 17.7536 | BV96: -262.8169
A97: 31500 | B97: 31.5 | C97: 1.000048964 | D97: 0.009895693824 | F97: 0.08037793633 | G97: 0.1395927058 | H97: -3.001999944 | J97: 15 | M97: 0.0584784477 | N97: -1.570796325 | O97: 7.527131269 | P97: 1.437549646 | Q97: 3.709992037 | R97: 1.297878558 | S97: 0.9999488602 | T97: -0.0101133844 | U97: 0.9881360258 | V97: -0.1541914891 | X97: 5.780844027 | Y97: -114.1204299 | Z97: 65.87957006 | AC97: 1 | AD97: 7.460409181 | AE97: -0.0001476566699 | AF97: 0.0009500176174 | AG97: 7507.944886 | AH97: -2219.535829 | AJ97: 18000 | AK97: 182.0471259 | AL97: 1 | AM97: 3.572679794 | AN97: 1355.008766 | AO97: -4658.965312 | AQ97: 2.518891688 | AR97: -158.6901763 | AT97: -333306.832 | AU97: -1197027.868 | AV97: -1.842362813 | AW97: -727144.3079 | AX97: -253689.0701 | AY97: -2.805912321 | BA97: 1.613453492 | BB97: 4.155129026 | BC97: 0.9635495082 | BD97: -124.7926798 | BF97: 5.780116529 | BG97: -116.2276254 | BH97: 63.77237463 | BI97: 63.77237463 | BJ97: 0 | BK97: 0 | BM97: 1.624987503 | BN97: -171.4349456 | BQ97: 21.05708983 | BT97: 741.31 | BU97: 17.4164 | BV97: -262.1972
A98: 32000 | B98: 32 | C98: 1.000050531 | D98: 0.01005275783 | F98: 0.07771447951 | G98: 0.1370935828 | H98: -3.004499067 | J98: 15 | M98: 0.05756472196 | N98: -1.570796325 | O98: 7.644516958 | P98: 1.439607635 | Q98: 3.764633381 | R98: 1.301938867 | S98: 0.9999472239 | T98: -0.01027390311 | U98: 0.9877633426 | V98: -0.1565994582 | X98: 5.609485579 | Y98: -114.051231 | Z98: 65.94876905 | AC98: 1 | AD98: 7.578828374 | AE98: -0.0001523813857 | AF98: 0.0009650972621 | AG98: 7502.282593 | AH98: -2220.717333 | AJ98: 18000 | AK98: 184.9367628 | AL98: 1 | AM98: 3.629388997 | AN98: 1317.428416 | AO98: -4596.523436 | AQ98: 2.440810349 | AR98: -156.2118623 | AT98: -328590.7412 | AU98: -1177365.886 | AV98: -1.842960749 | AW98: -706167.1078 | AX98: -243578.6242 | AY98: -2.809441148 | BA98: 1.636367342 | BB98: 4.27761607 | BC98: 0.9664803991 | BD98: -124.6247521 | BF98: 5.609919001 | BG98: -116.1938878 | BH98: 63.80611222 | BI98: 63.80611222 | BJ98: 0 | BK98: 0 | BM98: 1.332302931 | BN98: -171.5691357 | BQ98: 21.17957687 | BT98: 758.578 | BU98: 17.2832 | BV98: -262.5669
A99: 32500 | B99: 32.5 | C99: 1.000052122 | D99: 0.01020982134 | F99: 0.07518379538 | G99: 0.1346869162 | H99: -3.006905734 | J99: 15 | M99: 0.05667911085 | N99: -1.570796325 | O99: 7.761934045 | P99: 1.441603367 | Q99: 3.819335013 | R99: 1.305882934 | S99: 0.9999455619 | T99: -0.01043442128 | U99: 0.9873852216 | V99: -0.1590055978 | X99: 5.441637033 | Y99: -113.9868569 | Z99: 66.01314306 | AC99: 1 | AD99: 7.697247568 | AE99: -0.0001571805065 | AF99: 0.0009801769068 | AG99: 7496.539867 | AH99: -2222.364063 | AJ99: 18000 | AK99: 187.8263998 | AL99: 1 | AM99: 3.6860982 | AN99: 1281.41061 | AO99: -4535.578946 | AQ99: 2.366303833 | AR99: -153.8097492 | AT99: -324082.1681 | AU99: -1158299.705 | AV99: -1.843611482 | AW99: -686056.0381 | AX99: -234031.9809 | AY99: -2.812844611 | BA99: 1.659297273 | BB99: 4.398483988 | BC99: 0.969233129 | BD99: -124.4670323 | BF99: 5.443246802 | BG99: -116.1650607 | BH99: 63.83493926 | BI99: 63.83493926 | BJ99: 0 | BK99: 0 | BM99: 1.044762814 | BN99: -171.6980285 | BQ99: 21.30044479 | BT99: 776.247 | BU99: 17.0071 | BV99: -262.7177
A100: 33000 | B100: 33 | C100: 1.000053739 | D100: 0.01036688434 | F100: 0.07277705396 | G100: 0.1323674876 | H100: -3.009225162 | J100: 15 | M100: 0.05582033645 | N100: -1.570796325 | O100: 7.879381125 | P100: 1.443539612 | Q100: 3.874094379 | R100: 1.309715562 | S100: 0.9999438742 | T100: -0.01059493892 | U100: 0.9870016824 | V100: -0.1614098819 | X100: 5.277146787 | Y100: -113.9271716 | Z100: 66.07282839 | AC100: 1 | AD100: 7.815666761 | AE100: -0.0001620540323 | AF100: 0.0009952565515 | AG100: 7490.717097 | AH100: -2224.452486 | AJ100: 18000 | AK100: 190.7160367 | AL100: 1 | AM100: 3.742807404 | AN100: 1246.872083 | AO100: -4476.086026 | AQ100: 2.295157218 | AR100: -151.4803764 | AT100: -319768.5264 | AU100: -1139802.114 | AV100: -1.844312567 | AW100: -666765.4121 | AX100: -225010.2714 | AY100: -2.816127841 | BA100: 1.682241498 | BB100: 4.517766839 | BC100: 0.9718152733 | BD100: -124.3190863 | BF100: 5.279948199 | BG100: -116.1410092 | BH100: 63.8589908 | BI100: 63.8589908 | BJ100: 0 | BK100: 0 | BM100: 0.7621813599 | BN100: -171.8219229 | BQ100: 21.41972764 | BT100: 794.328 | BU100: 16.8354 | BV100: -262.7938
A101: 33500 | B101: 33.5 | C101: 1.000055379 | D101: 0.01052394684 | F101: 0.07048615796 | G101: 0.1301304729 | H101: -3.011462177 | J101: 15 | M101: 0.0549871971 | N101: -1.570796325 | O101: 7.996856878 | P101: 1.445418977 | Q101: 3.928909065 | R101: 1.3134413 | S101: 0.9999421606 | T101: -0.01075545601 | U101: 0.9866127445 | V101: -0.1638122851 | X101: 5.115872649 | Y101: -113.8720399 | Z101: 66.12796012 | AC101: 1 | AD101: 7.934085954 | AE101: -0.000167001963 | AF101: 0.001010336196 | AG101: 7484.814676 | AH101: -2226.960443 | AJ101: 18000 | AK101: 193.6056736 | AL101: 1 | AM101: 3.799516607 | AN101: 1213.73489 | AO101: -4418.000195 | AQ101: 2.227171492 | AR101: -149.22049 | AT101: -315638.1626 | AU101: -1121847.536 | AV101: -1.845061697 | AW101: -648252.4221 | AX101: -216477.7806 | AY101: -2.81929569 | BA101: 1.705198317 | BB101: 4.635497908 | BC101: 0.9742339924 | BD101: -124.1805039 | BF101: 5.119880871 | BG101: -116.1215993 | BH101: 63.87840072 | BI101: 63.87840072 | BJ101: 0 | BK101: 0 | BM101: 0.4843829627 | BN101: -171.9410954 | BQ101: 21.53745871 | BT101: 812.831 | BU101: 16.6614 | BV101: -262.2369
A102: =A101+500 -> 34000 | B102: 34 | C102: 1.000057045 | D102: 0.01068100881 | F102: 0.06830367015 | G102: 0.1279714052 | H102: -3.013621245 | J102: 15 | M102: 0.05417856184 | N102: -1.570796325 | O102: 8.114360058 | P102: 1.447243917 | Q102: 3.983776788 | R102: 1.31706446 | S102: 0.9999404214 | T102: -0.01091597254 | U102: 0.9862184277 | V102: -0.1662127818 | X102: 4.957681091 | Y102: -113.8213284 | Z102: 66.17867156 | AC102: 1 | AD102: 8.052505148 | AE102: -0.0001720242987 | AF102: 0.001025415841 | AG102: 7478.833001 | AH102: -2229.867056 | AJ102: 18000 | AK102: 196.4953105 | AL102: 1 | AM102: 3.85622581 | AN102: 1181.926019 | AO102: -4361.27831 | AQ102: 2.162162162 | AR102: -147.027027 | AT102: -311680.2741 | AU102: -1104411.916 | AV102: -1.845856696 | AW102: -630476.9321 | AX102: -208401.6548 | AY102: -2.822352755 | BA102: 1.728166114 | BB102: 4.751709704 | BC102: 0.9764960592 | BD102: -124.050897 | BF102: 4.962911159 | BG102: -116.1066989 | BH102: 63.89330112 | BI102: 63.89330112 | BJ102: 0 | BK102: 0 | BM102: 0.2112014542 | BN102: -172.0558019 | BQ102: 21.6536705 | BT102: 831.764 | BU102: 16.5098 | BV102: -262.3432
A103: 34500 | B103: 34.5 | C103: 1.000058735 | D103: 0.01083807026 | F103: 0.06622274901 | G103: 0.125886142 | H103: -3.015706508 | J103: 15 | M103: 0.0533933653 | N103: -1.570796325 | O103: 8.231889491 | P103: 1.449016753 | Q103: 4.038695385 | R103: 1.320589129 | S103: 0.9999386563 | T103: -0.01107648852 | U103: 0.9858187522 | V103: -0.1686113466 | X103: 4.802446577 | Y103: -113.7749061 | Z103: 66.22509389 | AC103: 1 | AD103: 8.170924341 | AE103: -0.0001771210394 | AF103: 0.001040495486 | AG103: 7472.772476 | AH103: -2233.152628 | AJ103: 18000 | AK103: 199.3849474 | AL103: 1 | AM103: 3.912935013 | AN103: 1151.377033 | AO103: -4305.878557 | AQ103: 2.099958001 | AR103: -144.8971021 | AT103: -307884.8359 | AU103: -1087472.603 | AV103: -1.846695508 | AW103: -613401.2875 | AX103: -200751.6401 | AY103: -2.825303392 | BA103: 1.751143345 | BB103: 4.866433959 | BC103: 0.9786078842 | BD103: -123.9298984 | BF103: 4.80891339 | BG103: -116.096178 | BH103: 63.90382195 | BI103: 63.90382195 | BJ103: 0 | BK103: 0 | BM103: -0.0575205693 | BN103: -172.1662797 | BQ103: 21.76839476 | BT103: 851.138 | BU103: 16.2768 | BV103: -262.197
A104: 35000 | B104: 35 | C104: 1.000060449 | D104: 0.01099513118 | F104: 0.06423709175 | G104: 0.1238708359 | H104: -3.017721814 | J104: 15 | M104: 0.05263060293 | N104: -1.570796325 | O104: 8.349444067 | P104: 1.450739673 | Q104: 4.09366281 | R104: 1.324019186 | S104: 0.9999368655 | T104: -0.01123700392 | U104: 0.9854137382 | V104: -0.1710079544 | X104: 4.650050944 | Y104: -113.7326443 | Z104: 66.26735572 | AC104: 1 | AD104: 8.289343534 | AE104: -0.000182292185 | AF104: 0.00105557513 | AG104: 7466.633506 | AH104: -2236.798565 | AJ104: 18000 | AK104: 202.2745844 | AL104: 1 | AM104: 3.969644216 | AN104: 1122.023735 | AO104: -4251.760447 | AQ104: 2.040399918 | AR104: -142.8279943 | AT104: -304242.5342 | AU104: -1071008.251 | AV104: -1.847576192 | AW104: -596990.1391 | AX104: -193499.8471 | AY104: -2.828151732 | BA104: 1.774128537 | BB104: 4.979701633 | BC104: 0.9805755395 | BD104: -123.81716 | BF104: 4.657769268 | BG104: -116.0899093 | BH104: 63.91009069 | BI104: 63.91009069 | BJ104: 0 | BK104: 0 | BM104: -0.3219323646 | BN104: -172.2727493 | BQ104: 21.88166243 | BT104: 870.964 | BU104: 16.1061 | BV104: -261.768
A105: 35500 | B105: 35.5 | C105: 1.000062189 | D105: 0.01115219155 | F105: 0.06234088357 | G105: 0.1219219082 | H105: -3.019670742 | J105: 15 | M105: 0.05188932684 | N105: -1.570796325 | O105: 8.46702274 | P105: 1.452414747 | Q105: 4.148677121 | R105: 1.32735831 | S105: 0.999935049 | T105: -0.01139751874 | U105: 0.9850034062 | V105: -0.17340258 | X105: 4.500382849 | Y105: -113.694417 | Z105: 66.30558296 | AC105: 1 | AD105: 8.407762728 | AE105: -0.0001875377357 | AF105: 0.001070654775 | AG105: 7460.416502 | AH105: -2240.787296 | AJ105: 18000 | AK105: 205.1642213 | AL105: 1 | AM105: 4.026353419 | AN105: 1093.805872 | AO105: -4198.88479 | AQ105: 1.983339944 | AR105: -140.8171361 | AT105: -300744.7074 | AU105: -1054998.729 | AV105: -1.84849691 | AW105: -581210.2818 | AX105: -186620.5399 | AY105: -2.830901691 | BA105: 1.797120283 | BB105: 5.091542918 | BC105: 0.9824047804 | BD105: -123.7123522 | BF105: 4.509367315 | BG105: -116.087768 | BH105: 63.91223204 | BI105: 63.91223204 | BJ105: 0 | BK105: 0 | BM105: -0.5821756036 | BN105: -172.3754157 | BQ105: 21.99350372 | BT105: 891.251 | BU105: 15.8824 | BV105: -261.3831
A106: 36000 | B106: 36 | C106: 1.000063953 | D106: 0.01130925137 | F106: 0.06052875247 | G106: 0.1200360257 | H106: -3.021556624 | J106: 15 | M106: 0.05116864174 | N106: -1.570796325 | O106: 8.58462452 | P106: 1.454043932 | Q106: 4.203736478 | R106: 1.330610001 | S106: 0.9999332067 | T106: -0.01155803298 | U106: 0.9845877771 | V106: -0.1757951985 | X106: 4.353337267 | Y106: -113.6601015 | Z106: 66.33989852 | AC106: 1 | AD106: 8.526181921 | AE106: -0.0001928576913 | AF106: 0.00108573442 | AG106: 7454.121879 | AH106: -2245.102201 | AJ106: 18000 | AK106: 208.0538582 | AL106: 1 | AM106: 4.083062622 | AN106: 1066.666848 | AO106: -4147.213678 | AQ106: 1.928640309 | AR106: -138.8621022 | AT106: -297383.2915 | AU106: -1039425.029 | AV106: -1.849455924 | AW106: -566030.5049 | AX106: -180089.9456 | AY106: -2.83355699 | BA106: 1.820117237 | BB106: 5.201987252 | BC106: 0.9841010655 | BD106: -123.6151623 | BF106: 4.363602363 | BG106: -116.0896322 | BH106: 63.91036777 | BI106: 63.91036777 | BJ106: 0 | BK106: 0 | BM106: -0.8383848883 | BN106: -172.47447 | BQ106: 22.10394805 | BT106: 912.011 | BU106: 15.6715 | BV106: -261.7487
A107: 36500 | B107: 36.5 | C107: 1.000065742 | D107: 0.01146631063 | F107: 0.058795729 | G107: 0.1182100797 | H107: -3.02338257 | J107: 15 | M107: 0.05046770144 | N107: -1.570796325 | O107: 8.70224847 | P107: 1.455629079 | Q107: 4.258839133 | R107: 1.33377758 | S107: 0.9999313386 | T107: -0.01171854662 | U107: 0.9841668717 | V107: -0.1781857849 | X107: 4.208815023 | Y107: -113.6295777 | Z107: 66.37042225 | AC107: 1 | AD107: 8.644601114 | AE107: -0.0001982520519 | AF107: 0.001100814065 | AG107: 7447.750056 | AH107: -2249.727552 | AJ107: 18000 | AK107: 210.9434951 | AL107: 1 | AM107: 4.139771825 | AN107: 1040.553474 | AO107: -4096.710457 | AQ107: 1.876172608 | AR107: -136.9606004 | AT107: -294150.7715 | AU107: -1024269.196 | AV107: -1.850451586 | AW107: -551421.4541 | AX107: -173886.0832 | AY107: -2.836121162 | BA107: 1.843118109 | BB107: 5.311063324 | BC107: 0.9856695752 | BD107: -123.5252933 | BF107: 4.220375102 | BG107: -116.0953834 | BH107: 63.90461659 | BI107: 63.90461659 | BJ107: 0 | BK107: 0 | BM107: -1.090688222 | BN107: -172.5700901 | BQ107: 22.21302412 | BT107: 933.254 | BU107: 15.4714 | BV107: -261.2073
A108: 37000 | B108: 37 | C108: 1.000067555 | D108: 0.01162336933 | F108: 0.05713721014 | G108: 0.116441167 | H108: -3.025151483 | J108: 15 | M108: 0.04978570548 | N108: -1.570796325 | O108: 8.819893702 | P108: 1.457171942 | Q108: 4.313983428 | R108: 1.33686421 | S108: 0.9999294448 | T108: -0.01187905966 | U108: 0.9837407112 | V108: -0.1805743147 | X108: 4.066722379 | Y108: -113.6027292 | Z108: 66.39727083 | AC108: 1 | AD108: 8.763020308 | AE108: -0.0002037208174 | AF108: 0.001115893709 | AG108: 7441.301456 | AH108: -2254.648444 | AJ108: 18000 | AK108: 213.833132 | AL108: 1 | AM108: 4.196481028 | AN108: 1015.415727 | AO108: -4047.339702 | AQ108: 1.825817053 | AR108: -135.1104619 | AT108: -291040.1377 | AU108: -1009514.253 | AV108: -1.851482335 | AW108: -537355.505 | AX108: -167988.6092 | AY108: -2.838597565 | BA108: 1.866121663 | BB108: 5.418799089 | BC108: 0.9871152293 | BD108: -123.4424634 | BF108: 4.07959165 | BG108: -116.104906 | BH108: 63.89509404 | BI108: 63.89509404 | BJ108: 0 | BK108: 0 | BM108: -1.339207439 | BN108: -172.6624426 | BQ108: 22.32075989 | BT108: 954.993 | BU108: 15.3525 | BV108: -261.2661
A109: 37500 | B109: 37.5 | C109: 1.000069393 | D109: 0.01178042745 | F109: 0.05554892701 | G109: 0.1147265731 | H109: -3.026866077 | J109: 15 | M109: 0.04912189607 | N109: -1.570796325 | O109: 8.937559377 | P109: 1.458674184 | Q109: 4.369167786 | R109: 1.339872897 | S109: 0.9999275252 | T109: -0.01203957208 | U109: 0.9833093171 | V109: -0.1829607633 | X109: 3.926970645 | Y109: -113.5794423 | Z109: 66.4205577 | AC109: 1 | AD109: 8.881439501 | AE109: -0.0002092639879 | AF109: 0.001130973354 | AG109: 7434.776506 | AH109: -2259.850749 | AJ109: 18000 | AK109: 216.722769 | AL109: 1 | AM109: 4.253190231 | AN109: 991.2065344 | AO109: -3999.06718 | AQ109: 1.777461785 | AR109: -133.3096338 | AT109: -288044.8448 | AU109: -995144.1321 | AV109: -1.852546689 | AW109: -523806.6451 | AX109: -162378.6772 | AY109: -2.840989392 | BA109: 1.889126713 | BB109: 5.525221782 | BC109: 0.9884427027 | BD109: -123.3664048 | BF109: 3.941163175 | BG109: -116.1180876 | BH109: 63.88191244 | BI109: 63.88191244 | BJ109: 0 | BK109: 0 | BM109: -1.584058607 | BN109: -172.7516828 | BQ109: 22.42718258 | BT109: 977.237 | BU109: 15.0807 | BV109: -260.9324
A110: 38000 | B110: 38 | C110: 1.000071256 | D110: 0.01193748499 | F110: 0.05402691588 | G110: 0.1130637569 | H110: -3.028528893 | J110: 15 | M110: 0.04847555533 | N110: -1.570796325 | O110: 9.055244697 | P110: 1.460137382 | Q110: 4.424390708 | R110: 1.342806504 | S110: 0.9999255799 | T110: -0.01220008388 | U110: 0.982872711 | V110: -0.1853451061 | X110: 3.789475833 | Y110: -113.559607 | Z110: 66.44039304 | AC110: 1 | AD110: 8.999858695 | AE110: -0.0002148815634 | AF110: 0.001146052999 | AG110: 7428.175637 | AH110: -2265.32106 | AJ110: 18000 | AK110: 219.6124059 | AL110: 1 | AM110: 4.309899434 | AN110: 967.8815702 | AO110: -3951.859826 | AQ110: 1.73100225 | AR110: -131.556171 | AT110: -285158.7761 | AU110: -981143.6203 | AV110: -1.853643242 | AW110: -510750.3654 | AX110: -157038.8124 | AY110: -2.843299682 | BA110: 1.912132119 | BB110: 5.630357931 | BC110: 0.9896564403 | BD110: -123.2968627 | BF110: 3.805005543 | BG110: -116.1348191 | BH110: 63.86518087 | BI110: 63.86518087 | BJ110: 0 | BK110: 0 | BM110: -1.825352388 | BN110: -172.8379564 | BQ110: 22.53231873 | BT110: 1000 | BU110: 14.8838 | BV110: -260.5154
A111: 38500 | B111: 38.5 | C111: 1.000073143 | D111: 0.01209454195 | F111: 0.05256749205 | G111: 0.1114503366 | H111: -3.030142313 | J111: 15 | M111: 0.04784600267 | N111: -1.570796325 | O111: 9.172948906 | P111: 1.461563033 | Q111: 4.479650767 | R111: 1.345667759 | S111: 0.9999236088 | T111: -0.01236059506 | U111: 0.9824309147 | V111: -0.187727319 | X111: 3.654158329 | Y111: -113.5431162 | Z111: 66.45688379 | AC111: 1 | AD111: 9.118277888 | AE111: -0.0002205735439 | AF111: 0.001161132643 | AG111: 7421.499283 | AH111: -2271.046648 | AJ111: 18000 | AK111: 222.5020428 | AL111: 1 | AM111: 4.366608637 | AN111: 945.3990704 | AO111: -3905.685704 | AQ111: 1.686340641 | AR111: -129.8482293 | AT111: -282376.2102 | AU111: -967498.2992 | AV111: -1.854770657 | AW111: -498163.5598 | AX111: -151952.7967 | AY111: -2.845531328 | BA111: 1.935136785 | BB111: 5.73423337 | BC111: 0.9907606711 | BD111: -123.233595 | BF111: 3.671038997 | BG111: -116.1549948 | BH111: 63.84500516 | BI111: 63.84500516 | BJ111: 0 | BK111: 0 | BM111: -2.063194373 | BN111: -172.9213999 | BQ111: 22.63619417 | BT111: 1023.293 | BU111: 14.7437 | BV111: -261.1239
A112: 39000 | B112: 39 | C112: 1.000075056 | D112: 0.0122515983 | F112: 0.05116722641 | G112: 0.1098840777 | H112: -3.031708572 | J112: 15 | M112: 0.04723259238 | N112: -1.570796325 | O112: 9.290671287 | P112: 1.462952557 | Q112: 4.534946606 | R112: 1.34845926 | S112: 0.999921612 | T112: -0.0125211056 | U112: 0.9819839502 | V112: -0.1901073778 | X112: 3.520942604 | Y112: -113.5298664 | Z112: 66.47013363 | AC112: 1 | AD112: 9.236697081 | AE112: -0.0002263399294 | AF112: 0.001176212288 | AG112: 7414.747882 | AH112: -2277.015415 | AJ112: 18000 | AK112: 225.3916797 | AL112: 1 | AM112: 4.423317841 | AN112: 923.7196607 | AO112: -3860.513975 | AQ112: 1.643385374 | AR112: -128.1840592 | AT112: -279691.7905 | AU112: -954194.4951 | AV112: -1.855927664 | AW112: -486024.4326 | AX112: -147105.5654 | AY112: -2.847687084 | BA112: 1.958139657 | BB112: 5.836873259 | BC112: 0.9917594205 | BD112: -123.1763708 | BF112: 3.539187861 | BG112: -116.1785121 | BH112: 63.82148793 | BI112: 63.82148793 | BJ112: 0 | BK112: 0 | BM112: -2.297685398 | BN112: -173.0021412 | BQ112: 22.73883406 | BT112: 1047.129 | BU112: 14.5866 | BV112: -260.4077
A113: 39500 | B113: 39.5 | C113: 1.000076992 | D113: 0.01240865406 | F113: 0.0498229242 | G113: 0.1083628812 | H113: -3.033229769 | J113: 15 | M113: 0.04663471146 | N113: -1.570796325 | O113: 9.408411158 | P113: 1.464307306 | Q113: 4.590276932 | R113: 1.351183485 | S113: 0.9999195894 | T113: -0.01268161549 | U113: 0.9815318398 | V113: -0.1924852584 | X113: 3.389756943 | Y113: -113.5197569 | Z113: 66.48024307 | AC113: 1 | AD113: 9.355116275 | AE113: -0.0002321807198 | AF113: 0.001191291933 | AG113: 7407.921878 | AH113: -2283.215859 | AJ113: 18000 | AK113: 228.2813166 | AL113: 1 | AM113: 4.480027044 | AN113: 902.8061979 | AO113: -3816.314865 | AQ113: 1.602050625 | AR113: -126.5619994 | AT113: -277100.4982 | AU113: -941219.2314 | AV113: -1.857113054 | AW113: -474312.412 | AX113: -142483.1126 | AY113: -2.849769577 | BA113: 1.981139718 | BB113: 5.938302097 | BC113: 0.9926565229 | BD113: -123.1249707 | BF113: 3.409380268 | BG113: -116.2052714 | BH113: 63.7947286 | BI113: 63.7947286 | BJ113: 0 | BK113: 0 | BM113: -2.528921828 | BN113: -173.0803007 | BQ113: 22.8402629 | BT113: 1071.519 | BU113: 14.3581 | BV113: -260.5301
A114: 40000 | B114: 40 | C114: 1.000078954 | D114: 0.0125657092 | F114: 0.04853160588 | G114: 0.1068847734 | H114: -3.034707877 | J114: 15 | M114: 0.04605177757 | N114: -1.570796325 | O114: 9.526167869 | P114: 1.465628565 | Q114: 4.645640513 | R114: 1.353842799 | S114: 0.999917541 | T114: -0.01284212473 | U114: 0.9810746058 | V114: -0.1948609371 | X114: 3.260533191 | Y114: -113.5126906 | Z114: 66.48730944 | AC114: 1 | AD114: 9.473535468 | AE114: -0.0002380959152 | AF114: 0.001206371578 | AG114: 7401.021716 | AH114: -2289.637032 | AJ114: 18000 | AK114: 231.1709536 | AL114: 1 | AM114: 4.536736247 | AN114: 882.6236228 | AO114: -3773.059628 | AQ114: 1.562255898 | AR114: -124.9804718 | AT114: -274597.6267 | AU114: -928560.1848 | AV114: -1.858325677 | AW114: -463008.0706 | AX114: -138072.4063 | AY114: -2.851781309 | BA114: 2.004135989 | BB114: 6.038543737 | BC114: 0.9934556322 | BD114: -123.0791851 | BF114: 3.281547916 | BG114: -116.2351766 | BH114: 63.76482345 | BI114: 63.76482345 | BJ114: 0 | BK114: 0 | BM114: -2.756995821 | BN114: -173.1559915 | BQ114: 22.94050454 | BT114: 1096.478 | BU114: 14.1501 | BV114: -260.5471
A115: 40500 | B115: 40.5 | C115: 1.00008094 | D115: 0.01272276372 | F115: 0.04729048977 | G115: 0.1054478969 | H115: -3.036144753 | J115: 15 | M115: 0.0454832371 | N115: -1.570796325 | O115: 9.643940804 | P115: 1.466917554 | Q115: 4.701036173 | R115: 1.356439457 | S115: 0.999915467 | T115: -0.01300263331 | U115: 0.980612271 | V115: -0.19723439 | X115: 3.133206526 | Y115: -113.508573 | Z115: 66.49142698 | AC115: 1 | AD115: 9.591954661 | AE115: -0.0002440855155 | AF115: 0.001221451222 | AG115: 7394.047845 | AH115: -2296.268511 | AJ115: 18000 | AK115: 234.0605905 | AL115: 1 | AM115: 4.59344545 | AN115: 863.1388245 | AO115: -3730.720515 | AQ115: 1.523925632 | AR115: -123.4379762 | AT115: -272178.7589 | AU115: -916205.6445 | AV115: -1.859564438 | AW115: -452093.052 | AX115: -133861.3106 | AY115: -2.85372467 | BA115: 2.027127523 | BB115: 6.137621407 | BC115: 0.9941602326 | BD115: -123.0388144 | BF115: 3.155625832 | BG115: -116.2681343 | BH115: 63.73186568 | BI115: 63.73186568 | BJ115: 0 | BK115: 0 | BM115: -2.981995575 | BN115: -173.2293199 | BQ115: 23.03958221 | BT115: 1122.018 | BU115: 13.9679 | BV115: -259.931
A116: 41000 | B116: 41 | C116: 1.000082951 | D116: 0.01287981761 | F116: 0.04609697636 | G116: 0.1040505016 | H116: -3.037542148 | J116: 15 | M116: 0.04492856348 | N116: -1.570796325 | O116: 9.761729375 | P116: 1.468175439 | Q116: 4.756462792 | R116: 1.358975615 | S116: 0.9999133671 | T116: -0.01316314122 | U116: 0.9801448581 | V116: -0.1996055937 | X116: 3.007715251 | Y116: -113.5073131 | Z116: 66.49268691 | AC116: 1 | AD116: 9.710373855 | AE116: -0.0002501495209 | AF116: 0.001236530867 | AG116: 7387.000717 | AH116: -2303.100364 | AJ116: 18000 | AK116: 236.9502274 | AL116: 1 | AM116: 4.650154653 | AN116: 844.3205136 | AO116: -3689.270738 | AQ116: 1.486988848 | AR116: -121.9330855 | AT116: -269839.7459 | AU116: -904144.4746 | AV116: -1.860828291 | AW116: -441550.0014 | AX116: -129838.5145 | AY116: -2.855601939 | BA116: 2.050113408 | BB116: 6.23555772 | BC116: 0.9947736481 | BD116: -123.0036683 | BF116: 3.031552164 | BG116: -116.3040545 | BH116: 63.69594546 | BI116: 63.69594546 | BJ116: 0 | BK116: 0 | BM116: -3.204005556 | BN116: -173.3003862 | BQ116: 23.13751852 | BT116: 1148.154 | BU116: 13.7508 | BV116: -259.948
A117: 41500 | B117: 41.5 | C117: 1.000084986 | D117: 0.01303687087 | F117: 0.04494863402 | G117: 0.1026909371 | H117: -3.038901713 | J117: 15 | M117: 0.04438725549 | N117: -1.570796325 | O117: 9.879533024 | P117: 1.469403328 | Q117: 4.811919301 | R117: 1.361453331 | S117: 0.9999112415 | T117: -0.01332364845 | U117: 0.9796723901 | V117: -0.2019745246 | X117: 2.884000594 | Y117: -113.5088225 | Z117: 66.49117748 | AC117: 1 | AD117: 9.828793048 | AE117: -0.0002562879312 | AF117: 0.001251610512 | AG117: 7379.88079 | AH117: -2310.12312 | AJ117: 18000 | AK117: 239.8398643 | AL117: 1 | AM117: 4.706863856 | AN117: 826.1391065 | AO117: -3648.684436 | AQ117: 1.45137881 | AR117: -120.4644412 | AT117: -267576.6882 | AU117: -892366.0794 | AV117: -1.86211624 | AW117: -431362.5028 | AX117: -125993.4679 | AY117: -2.857415292 | BA117: 2.073092759 | BB117: 6.332374696 | BC117: 0.9952990513 | BD117: -122.9735649 | BF117: 2.909267987 | BG117: -116.34285 | BH117: 63.65715004 | BI117: 63.65715004 | BJ117: 0 | BK117: 0 | BM117: -3.423106708 | BN117: -173.369285 | BQ117: 23.2343355 | BT117: 1174.898 | BU117: 13.6038 | BV117: -260.1987
A118: 42000 | B118: 42 | C118: 1.000087046 | D118: 0.01319392348 | F118: 0.04384318604 | G118: 0.1013676457 | H118: -3.040225004 | J118: 15 | M118: 0.04385883578 | N118: -1.570796325 | O118: 9.997351218 | P118: 1.470602277 | Q118: 4.867404677 | R118: 1.363874573 | S118: 0.9999090902 | T118: -0.01348415499 | U118: 0.9791948903 | V118: -0.2043411596 | X118: 2.762006529 | Y118: -113.5130159 | Z118: 66.48698406 | AC118: 1 | AD118: 9.947212241 | AE118: -0.0002625007465 | AF118: 0.001266690156 | AG118: 7372.688523 | AH118: -2317.327743 | AJ118: 18000 | AK118: 242.7295012 | AL118: 1 | AM118: 4.763573059 | AN118: 808.566616 | AO118: -3608.936647 | AQ118: 1.417032733 | AR118: -119.0307496 | AT118: -265385.9173 | AU118: -880860.3708 | AV118: -1.863427336 | AW118: -421515.0196 | AX118: -122316.3226 | AY118: -2.859166809 | BA118: 2.096064722 | BB118: 6.428093773 | BC118: 0.9957394725 | BD118: -122.9483307 | BF118: 2.788717121 | BG118: -116.3844362 | BH118: 63.61556375 | BI118: 63.61556375 | BJ118: 0 | BK118: 0 | BM118: -3.639376652 | BN118: -173.4361056 | BQ118: 23.33005457 | BT118: 1202.264 | BU118: 13.4128 | BV118: -259.341
A119: 42500 | B119: 42.5 | C119: 1.000089131 | D119: 0.01335097544 | F119: 0.04277849883 | G119: 0.1000791558 | H119: -3.041513494 | J119: 15 | M119: 0.04334284948 | N119: -1.570796325 | O119: 10.11518345 | P119: 1.471773295 | Q119: 4.922917944 | R119: 1.366241223 | S119: 0.9999069131 | T119: -0.01364466084 | U119: 0.978712382 | V119: -0.2067054754 | X119: 2.641679611 | Y119: -113.5198108 | Z119: 66.4801892 | AC119: 1 | AD119: 10.06563143 | AE119: -0.0002687879667 | AF119: 0.001281769801 | AG119: 7365.424379 | AH119: -2324.705606 | AJ119: 18000 | AK119: 245.6191382 | AL119: 1 | AM119: 4.820282262 | AN119: 791.5765515 | AO119: -3570.003272 | AQ119: 1.383891503 | AR119: -117.6307777 | AT119: -263263.9803 | AU119: -869617.7384 | AV119: -1.864760671 | AW119: -411992.84 | AX119: -118797.8787 | AY119: -2.860858478 | BA119: 2.119028469 | BB119: 6.522735828 | BC119: 0.9960978068 | BD119: -122.9277996 | BF119: 2.669845963 | BG119: -116.4287318 | BH119: 63.57126817 | BI119: 63.57126817 | BJ119: 0 | BK119: 0 | BM119: -3.852889866 | BN119: -173.5009322 | BQ119: 23.42469663 | BT119: 1230.269 | BU119: 13.1837 | BV119: -259.551
A120: 43000 | B120: 43 | C120: 1.00009124 | D120: 0.01350802675 | F120: 0.04175257115 | G120: 0.09882407583 | H120: -3.042768574 | J120: 15 | M120: 0.04283886285 | N120: -1.570796325 | O120: 10.23302923 | P120: 1.472917343 | Q120: 4.97845817 | R120: 1.368555079 | S120: 0.9999047102 | T120: -0.01380516598 | U120: 0.9782248889 | V120: -0.2090674491 | X120: 2.522968819 | Y120: -113.5291272 | Z120: 66.47087275 | AC120: 1 | AD120: 10.18405063 | AE120: -0.000275149592 | AF120: 0.001296849446 | AG120: 7358.088823 | AH120: -2332.248471 | AJ120: 18000 | AK120: 248.5087751 | AL120: 1 | AM120: 4.876991465 | AN120: 775.1438253 | AO120: -3531.861045 | AQ120: 1.351899419 | AR120: -116.26335 | AT120: -261207.6243 | AU120: -858629.0215 | AV120: -1.866115377 | AW120: -402782.0257 | AX120: -115429.5352 | AY120: -2.862492199 | BA120: 2.141983196 | BB120: 6.616321189 | BC120: 0.9963768219 | BD120: -122.9118132 | BF120: 2.552603334 | BG120: -116.4756578 | BH120: 63.52434215 | BI120: 63.52434215 | BJ120: 0 | BK120: 0 | BM120: -4.063717855 | BN120: -173.5638446 | BQ120: 23.51828199 | BT120: 1258.925 | BU120: 13.0792 | BV120: -259.272
A121: 43500 | B121: 43.5 | C121: 1.000093374 | D121: 0.01366507738 | F121: 0.04076352432 | G121: 0.09760108913 | H121: -3.043991561 | J121: 15 | M121: 0.04234646213 | N121: -1.570796325 | O121: 10.3508881 | P121: 1.474035339 | Q121: 5.034024462 | R121: 1.370817867 | S121: 0.9999024816 | T121: -0.01396567042 | U121: 0.9777324346 | V121: -0.2114270578 | X121: 2.405825414 | Y121: -113.5408881 | Z121: 66.4591119 | AC121: 1 | AD121: 10.30246982 | AE121: -0.0002815856222 | AF121: 0.001311929091 | AG121: 7350.682325 | AH121: -2339.94846 | AJ121: 18000 | AK121: 251.398412 | AL121: 1 | AM121: 4.933700668 | AN121: 759.244666 | AO121: -3494.487504 | AQ121: 1.321003963 | AR121: -114.9273448 | AT121: -259213.783 | AU121: -847885.4831 | AV121: -1.867490625 | AW121: -393869.365 | AX121: -112203.2457 | AY121: -2.86406979 | BA121: 2.164928126 | BB121: 6.708869653 | BC121: 0.9965791647 | BD121: -122.9002198 | BF121: 2.436940337 | BG121: -116.5251381 | BH121: 63.4748619 | BI121: 63.4748619 | BJ121: 0 | BK121: 0 | BM121: -4.271929316 | BN121: -173.6249182 | BQ121: 23.61083045 | BT121: 1288.25 | BU121: 12.807 | BV121: -258.861
A122: 44000 | B122: 44 | C122: 1.000095533 | D122: 0.01382212735 | F122: 0.03980959319 | G122: 0.09640894856 | H122: -3.045183701 | J122: 15 | M122: 0.04186525233 | N122: -1.570796325 | O122: 10.46875961 | P122: 1.475128161 | Q122: 5.089615966 | R122: 1.373031234 | S122: 0.9999002273 | T122: -0.01412617413 | U122: 0.9772350431 | V122: -0.2137842789 | X122: 2.290202807 | Y122: -113.5550187 | Z122: 66.44498127 | AC122: 1 | AD122: 10.42088901 | AE122: -0.0002880960573 | AF122: 0.001327008735 | AG122: 7343.205358 | AH122: -2347.798043 | AJ122: 18000 | AK122: 254.2880489 | AL122: 1 | AM122: 4.990409871 | AN122: 743.8565375 | AO122: -3457.860959 | AQ122: 1.291155584 | AR122: -113.6216914 | AT122: -257279.5641 | AU122: -837378.7857 | AV122: -1.868885624 | AW122: -385242.328 | AX122: -109111.4766 | AY122: -2.865592992 | BA122: 2.187862502 | BB122: 6.800400497 | BC122: 0.9967073683 | BD122: -122.8928743 | BF122: 2.322810222 | BG122: -116.5770989 | BH122: 63.4229011 | BI122: 63.4229011 | BJ122: 0 | BK122: 0 | BM122: -4.477590276 | BN122: -173.6842246 | BQ122: 23.7023613 | BT122: 1318.257 | BU122: 12.6826 | BV122: -258.683
A123: 44500 | B123: 44.5 | C123: 1.000097717 | D123: 0.01397917663 | F123: 0.03888911798 | G123: 0.09524647205 | H123: -3.046346178 | J123: 15 | M123: 0.04139485624 | N123: -1.570796325 | O123: 10.58664335 | P123: 1.476196647 | Q123: 5.145231866 | R123: 1.375196763 | S123: 0.9998979472 | T123: -0.01428667712 | U123: 0.9767327386 | V123: -0.2161390898 | X123: 2.176056434 | Y123: -113.571447 | Z123: 66.42855303 | AC123: 1 | AD123: 10.53930821 | AE123: -0.0002946808975 | AF123: 0.00134208838 | AG123: 7335.658396 | AH123: -2355.790011 | AJ123: 18000 | AK123: 257.1776858 | AL123: 1 | AM123: 5.047119075 | AN123: 728.9580643 | AO123: -3421.960465 | AQ123: 1.262307498 | AR123: -112.3453673 | AT123: -255402.2376 | AU123: -827100.9685 | AV123: -1.870299615 | AW123: -376889.026 | AX123: -106147.1699 | AY123: -2.867063472 | BA123: 2.210785589 | BB123: 6.890932501 | BC123: 0.9967638574 | BD123: -122.8896377 | BF123: 2.210168262 | BG123: -116.631469 | BH123: 63.36853095 | BI123: 63.36853095 | BJ123: 0 | BK123: 0 | BM123: -4.680764239 | BN123: -173.7418313 | BQ123: 23.7928933 | BT123: 1348.963 | BU123: 12.4759 | BV123: -258.797
A124: 45000 | B124: 45 | C124: 1.000099925 | D124: 0.01413622522 | F124: 0.03800053673 | G124: 0.09411253839 | H124: -3.047480112 | J124: 15 | M124: 0.04093491339 | N124: -1.570796325 | O124: 10.70453891 | P124: 1.477241598 | Q124: 5.200871378 | R124: 1.377315967 | S124: 0.9998956413 | T124: -0.01444717937 | U124: 0.9762255451 | V124: -0.2184914682 | X124: 2.06334364 | Y124: -113.5901031 | Z124: 66.40989692 | AC124: 1 | AD124: 10.6577274 | AE124: -0.0003013401426 | AF124: 0.001357168025 | AG124: 7328.041918 | AH124: -2363.917465 | AJ124: 18000 | AK124: 260.0673228 | AL124: 1 | AM124: 5.103828278 | AN124: 714.5289615 | AO124: -3386.765796 | AQ124: 1.234415504 | AR124: -111.0973954 | AT124: -253579.2247 | AU124: -817044.4267 | AV124: -1.87173187 | AW124: -368798.1732 | AX124: -103303.7087 | AY124: -2.868482825 | BA124: 2.233696675 | BB124: 6.980483953 | BC124: 0.9967509543 | BD124: -122.890377 | BF124: 2.098971642 | BG124: -116.6881797 | BH124: 63.31182027 | BI124: 63.31182027 | BJ124: 0 | BK124: 0 | BM124: -4.881512311 | BN124: -173.7978027 | BQ124: 23.88244475 | BT124: 1380.384 | BU124: 12.2584 | BV124: -258.41
A125: 45500 | B125: 45.5 | C125: 1.000102158 | D125: 0.01429327312 | F125: 0.03714237843 | G125: 0.09300608322 | H125: -3.048586567 | J125: 15 | M125: 0.04048507918 | N125: -1.570796325 | O125: 10.82244591 | P125: 1.478263781 | Q125: 5.256533752 | R125: 1.379390299 | S125: 0.9998933097 | T125: -0.01460768088 | U125: 0.9757134873 | V125: -0.2208413917 | X125: 1.952023576 | Y125: -113.6109196 | Z125: 66.38908039 | AC125: 1 | AD125: 10.77614659 | AE125: -0.0003080737927 | AF125: 0.00137224767 | AG125: 7320.356405 | AH125: -2372.173795 | AJ125: 18000 | AK125: 262.9569597 | AL125: 1 | AM125: 5.160537481 | AN125: 700.5499693 | AO125: -3352.257414 | AQ125: 1.207437817 | AR125: -109.8768413 | AT125: -251808.0885 | AU125: -807201.8916 | AV125: -1.873181696 | AW125: -360959.0506 | AX125: -100574.8848 | AY125: -2.86985258 | BA125: 2.256595062 | BB125: 7.069072671 | BC125: 0.9966708843 | BD125: -122.8949647 | BF125: 1.989179346 | BG125: -116.7471644 | BH125: 63.25283557 | BI125: 63.25283557 | BJ125: 0 | BK125: 0 | BM125: -5.079893324 | BN125: -173.8521997 | BQ125: 23.97103347 | BT125: 1412.538 | BU125: 12.0929 | BV125: -258.136
A126: 46000 | B126: 46 | C126: 1.000104415 | D126: 0.01445032031 | F126: 0.03631325665 | G126: 0.09192609548 | H126: -3.049666555 | J126: 15 | M126: 0.04004502397 | N126: -1.570796325 | O126: 10.94036397 | P126: 1.479263931 | Q126: 5.312218271 | R126: 1.381421152 | S126: 0.9998909524 | T126: -0.01476818163 | U126: 0.9751965897 | V126: -0.2231888384 | X126: 1.842057096 | Y126: -113.6338314 | Z126: 66.36616864 | AC126: 1 | AD126: 10.89456579 | AE126: -0.0003148818478 | AF126: 0.001387327314 | AG126: 7312.602341 | AH126: -2380.552667 | AJ126: 18000 | AK126: 265.8465966 | AL126: 1 | AM126: 5.217246684 | AN126: 687.0027931 | AO126: -3318.416448 | AQ126: 1.181334908 | AR126: -108.6828116 | AT126: -250086.5245 | AU126: -797566.4123 | AV126: -1.874648424 | AW126: -353361.4732 | AX126: -97954.87037 | AY126: -2.871174205 | BA126: 2.279480076 | BB126: 7.156716012 | BC126: 0.9965257805 | BD126: -122.9032785 | BF126: 1.880752065 | BG126: -116.8083589 | BH126: 63.19164114 | BI126: 63.19164114 | BJ126: 0 | BK126: 0 | BM126: -5.275963947 | BN126: -173.9050803 | BQ126: 24.05867681 | BT126: 1445.44 | BU126: 11.9189 | BV126: -257.929
A127: 46500 | B127: 46.5 | C127: 1.000106697 | D127: 0.01460736678 | F127: 0.03551186376 | G127: 0.09087161405 | H127: -3.050721036 | J127: 15 | M127: 0.03961443232 | N127: -1.570796325 | O127: 11.05829273 | P127: 1.480242749 | Q127: 5.367924245 | R127: 1.383409863 | S127: 0.9998885693 | T127: -0.01492868162 | U127: 0.9746748771 | V127: -0.2255337864 | X127: 1.733406665 | Y127: -113.6587753 | Z127: 66.34122471 | AC127: 1 | AD127: 11.01298498 | AE127: -0.0003217643079 | AF127: 0.001402406959 | AG127: 7304.780212 | AH127: -2389.048006 | AJ127: 18000 | AK127: 268.7362335 | AL127: 1 | AM127: 5.273955887 | AN127: 673.8700462 | AO127: -3285.224664 | AQ127: 1.156069364 | AR127: -107.5144509 | AT127: -248412.3519 | AU127: -788131.3384 | AV127: -1.876131417 | AW127: -345995.7585 | AX127: -95438.19068 | AY127: -2.872449105 | BA127: 2.302351056 | BB127: 7.243430888 | BC127: 0.9963176886 | BD127: -122.9152013 | BF127: 1.773652096 | BG127: -116.8717009 | BH127: 63.12829911 | BI127: 63.12829911 | BJ127: 0 | BK127: 0 | BM127: -5.469778792 | BN127: -173.9564996 | BQ127: 24.14539169 | BT127: 1479.108 | BU127: 11.7147 | BV127: -257.745
A128: 47000 | B128: 47 | C128: 1.000109004 | D128: 0.01476441254 | F128: 0.03473696554 | G128: 0.08984172465 | H128: -3.051750925 | J128: 15 | M128: 0.03919300219 | N128: -1.570796325 | O128: 11.17623187 | P128: 1.481200911 | Q128: 5.423651012 | R128: 1.385357713 | S128: 0.9998861605 | T128: -0.01508918085 | U128: 0.9741483743 | V128: -0.2278762138 | X128: 1.626036272 | Y128: -113.6856904 | Z128: 66.31430957 | AC128: 1 | AD128: 11.13140417 | AE128: -0.0003287211729 | AF128: 0.001417486604 | AG128: 7296.890508 | AH128: -2397.653987 | AJ128: 18000 | AK128: 271.6258704 | AL128: 1 | AM128: 5.33066509 | AN128: 661.1351971 | AO128: -3252.664444 | AQ128: 1.131605749 | AR128: -106.3709404 | AT128: -246783.506 | AU128: -778890.3042 | AV128: -1.87763006 | AW128: -338852.6978 | AX128: -93019.69943 | AY128: -2.873678631 | BA128: 2.32520736 | BB128: 7.32923378 | BC128: 0.9960485712 | BD128: -122.9306206 | BF128: 1.667843262 | BG128: -116.9371304 | BH128: 63.06286956 | BI128: 63.06286956 | BJ128: 0 | BK128: 0 | BM128: -5.661390518 | BN128: -174.0065098 | BQ128: 24.23119458 | BT128: 1513.561 | BU128: 11.5252 | BV128: -257.61
A129: 47500 | B129: 47.5 | C129: 1.000111335 | D129: 0.01492145757 | F129: 0.03398739629 | G129: 0.088835557 | H129: -3.052757093 | J129: 15 | M129: 0.03878044427 | N129: -1.570796325 | O129: 11.29418106 | P129: 1.48213906 | Q129: 5.479397939 | R129: 1.387265937 | S129: 0.9998837259 | T129: -0.01524967929 | U129: 0.9736171065 | V129: -0.2302160991 | X129: 1.519911351 | Y129: -113.7145179 | Z129: 66.28548214 | AC129: 1 | AD129: 11.24982337 | AE129: -0.0003357524429 | AF129: 0.001432566248 | AG129: 7288.933721 | AH129: -2406.365016 | AJ129: 18000 | AK129: 274.5155073 | AL129: 1 | AM129: 5.387374293 | AN129: 648.7825204 | AO129: -3220.718765 | AQ129: 1.107910481 | AR129: -105.2514957 | AT129: -245198.031 | AU129: -769837.2131 | AV129: -1.879143765 | AW129: -331923.5288 | AX129: -90694.55612 | AY129: -2.874864078 | BA129: 2.34804836 | BB129: 7.414140748 | BC129: 0.9957203121 | BD129: -122.9494285 | BF129: 1.563290829 | BG129: -117.0045894 | BH129: 62.99541056 | BI129: 62.99541056 | BJ129: 0 | BK129: 0 | BM129: -5.85084992 | BN129: -174.055161 | BQ129: 24.31610155 | BT129: 1548.817 | BU129: 11.3354 | BV129: -257.471
A130: 48000 | B130: 48 | C130: 1.000113691 | D130: 0.01507850186 | F130: 0.03326205423 | G130: 0.08785228213 | H130: -3.053740368 | J130: 15 | M130: 0.03837648131 | N130: -1.570796325 | O130: 11.41213998 | P130: 1.483057817 | Q130: 5.535164416 | R130: 1.389135717 | S130: 0.9998812656 | T130: -0.01541017695 | U130: 0.973081099 | V130: -0.2325534207 | X130: 1.414998704 | Y130: -113.7452006 | Z130: 66.25479945 | AC130: 1 | AD130: 11.36824256 | AE130: -0.0003428581178 | AF130: 0.001447645893 | AG130: 7280.910345 | AH130: -2415.175723 | AJ130: 18000 | AK130: 277.4051443 | AL130: 1 | AM130: 5.444083496 | AN130: 636.7970507 | AO130: -3189.37117 | AQ130: 1.08495172 | AR130: -104.1553651 | AT130: -243654.073 | AU130: -760966.2242 | AV130: -1.880671968 | AW130: -325199.9105 | AX130: -88458.20505 | AY130: -2.876006688 | BA130: 2.370873445 | BB130: 7.498167446 | BC130: 0.9953347203 | BD130: -122.9715213 | BF130: 1.459961427 | BG130: -117.0740217 | BH130: 62.92597825 | BI130: 62.92597825 | BJ130: 0 | BK130: 0 | BM130: -6.038206019 | BN130: -174.1025005 | BQ130: 24.40012825 | BT130: 1584.893 | BU130: 11.1604 | BV130: -256.942
A131: 48500 | B131: 48.5 | C131: 1.000116072 | D131: 0.01523554541 | F131: 0.03255989735 | G131: 0.08689111 | H131: -3.05470154 | J131: 15 | M131: 0.03798084748 | N131: -1.570796325 | O131: 11.53010834 | P131: 1.483957773 | Q131: 5.590949858 | R131: 1.39096819 | S131: 0.9998787795 | T131: -0.01557067382 | U131: 0.972540377 | V131: -0.2348881576 | X131: 1.311266429 | Y131: -113.7776834 | Z131: 66.22231663 | AC131: 1 | AD131: 11.48666175 | AE131: -0.0003500381978 | AF131: 0.001462725538 | AG131: 7272.820876 | AH131: -2424.080951 | AJ131: 18000 | AK131: 280.2947812 | AL131: 1 | AM131: 5.500792699 | AN131: 625.1645392 | AO131: -3158.605752 | AQ131: 1.062699256 | AR131: -103.0818278 | AT131: -242149.8739 | AU131: -752271.7385 | AV131: -1.882214125 | AW131: -318673.8993 | AX131: -86306.35595 | AY131: -2.877107658 | BA131: 2.393682014 | BB131: 7.581329131 | BC131: 0.9948935332 | BD131: -122.9967994 | BF131: 1.357822984 | BG131: -117.1453731 | BH131: 62.85462692 | BI131: 62.85462692 | BJ131: 0 | BK131: 0 | BM131: -6.223506147 | BN131: -174.1485737 | BQ131: 24.48328993 | BT131: 1621.81 | BU131: 10.9787 | BV131: -256.753
A132: 49000 | B132: 49 | C132: 1.000118478 | D132: 0.01539258821 | F132: 0.03187993951 | G132: 0.0859512871 | H132: -3.055641363 | J132: 15 | M132: 0.03759328781 | N132: -1.570796325 | O132: 11.64808584 | P132: 1.4848395 | Q132: 5.646753704 | R132: 1.39276445 | S132: 0.9998762677 | T132: -0.01573116988 | U132: 0.9719949661 | V132: -0.2372202884 | X132: 1.208683854 | Y132: -113.811913 | Z132: 66.18808703 | AC132: 1 | AD132: 11.60508095 | AE132: -0.0003572926827 | AF132: 0.001477805183 | AG132: 7264.665814 | AH132: -2433.07574 | AJ132: 18000 | AK132: 283.1844181 | AL132: 1 | AM132: 5.557501902 | AN132: 613.8714138 | AO132: -3128.407132 | AQ132: 1.041124414 | AR132: -102.0301926 | AT132: -240683.7654 | AU132: -743748.3868 | AV132: -1.883769714 | AW132: -312337.9267 | AX132: -84234.96616 | AY132: -2.878168135 | BA132: 2.416473484 | BB132: 7.66364068 | BC132: 0.9943984205 | BD132: -123.0251673 | BF132: 1.256844657 | BG132: -117.2185909 | BH132: 62.78140906 | BI132: 62.78140906 | BJ132: 0 | BK132: 0 | BM132: -6.406796022 | BN132: -174.1934237 | BQ132: 24.56560148 | BT132: 1659.587 | BU132: 10.7578 | BV132: -256.857
A133: 49500 | B133: 49.5 | C133: 1.000120908 | D133: 0.01554963024 | F133: 0.03122124687 | G133: 0.08503209445 | H133: -3.056560556 | J133: 15 | M133: 0.03721355763 | N133: -1.570796325 | O133: 11.76607222 | P133: 1.485703545 | Q133: 5.702575413 | R133: 1.39452555 | S133: 0.9998737301 | T133: -0.01589166513 | U133: 0.971444892 | V133: -0.2395497923 | X133: 1.107221477 | Y133: -113.8478378 | Z133: 66.15216224 | AC133: 1 | AD133: 11.72350014 | AE133: -0.0003646215726 | AF133: 0.001492884827 | AG133: 7256.445661 | AH133: -2442.155323 | AJ133: 18000 | AK133: 286.074055 | AL133: 1 | AM133: 5.614211105 | AN133: 602.904741 | AO133: -3098.760437 | AQ133: 1.020199959 | AR133: -100.999796 | AT133: -239254.1638 | AU133: -735391.0179 | AV133: -1.885338234 | AW133: -306184.7788 | AX133: -82240.22411 | AY133: -2.879189222 | BA133: 2.439247282 | BB133: 7.745116596 | BC133: 0.9938509876 | BD133: -123.0565329 | BF133: 1.156996772 | BG133: -117.2936246 | BH133: 62.70637545 | BI133: 62.70637545 | BJ133: 0 | BK133: 0 | BM133: -6.588119825 | BN133: -174.2370917 | BQ133: 24.6470774 | BT133: 1698.244 | BU133: 10.5805 | BV133: -256.313
A134: 50000 | B134: 50 | C134: 1.000123362 | D134: 0.01570667151 | F134: 0.03058293456 | G134: 0.08413284552 | H134: -3.057459804 | J134: 15 | M134: 0.03684142205 | N134: -1.570796325 | O134: 11.88406721 | P134: 1.486550432 | Q134: 5.758414464 | R134: 1.3962525 | S134: 0.9998711669 | T134: -0.01605215957 | U134: 0.9708901804 | V134: -0.2418766484 | X134: 1.006850906 | Y134: -113.8854078 | Z134: 66.1145922 | AC134: 1 | AD134: 11.84191933 | AE134: -0.0003720248674 | AF134: 0.001507964472 | AG134: 7248.160919 | AH134: -2451.315116 | AJ134: 18000 | AK134: 288.9636919 | AL134: 1 | AM134: 5.670920308 | AN134: 592.2521908 | AO134: -3069.651285 | AQ134: 0.99990001 | AR134: -99.990001 | AT134: -237859.5648 | AU134: -727194.6876 | AV134: -1.886919203 | AW134: -300207.5768 | AX134: -80318.53405 | AY134: -2.880171981 | BA134: 2.462002849 | BB134: 7.825771024 | BC134: 0.9932527781 | BD134: -123.0908078 | BF134: 1.058250761 | BG134: -117.3704248 | BH134: 62.6295752 | BI134: 62.6295752 | BJ134: 0 | BK134: 0 | BM134: -6.767520263 | BN134: -174.279617 | BQ134: 24.72773182 | BT134: 1737.801 | BU134: 10.4643 | BV134: -256.379
A135: 50500 | B135: 50.5 | C135: 1.000125842 | D135: 0.01586371201 | F135: 0.02996416361 | G135: 0.08325288447 | H135: -3.058339766 | J135: 15 | M135: 0.0364766555 | N135: -1.570796325 | O135: 12.00207056 | P135: 1.487380667 | Q135: 5.81427036 | R135: 1.397946275 | S135: 0.9998685778 | T135: -0.01621265318 | U135: 0.9703308574 | V135: -0.2442008361 | X135: 0.9075448038 | Y135: -113.9245748 | Z135: 66.07542523 | AC135: 1 | AD135: 11.96033853 | AE135: -0.0003795025673 | AF135: 0.001523044117 | AG135: 7239.812096 | AH135: -2460.550706 | AJ135: 18000 | AK135: 291.8533289 | AL135: 1 | AM135: 5.727629512 | AN135: 581.9020037 | AO135: -3041.06576 | AQ135: 0.9801999608 | AR135: -99.00019604 | AT135: -236498.5387 | AU135: -719154.6485 | AV135: -1.888512156 | AW135: -294399.7585 | AX135: -78466.50193 | AY135: -2.881117434 | BA135: 2.484739636 | BB135: 7.905617758 | BC135: 0.9926052772 | BD135: -123.1279068 | BF135: 0.9605791136 | BG135: -117.4489442 | BH135: 62.55105584 | BI135: 62.55105584 | BJ135: 0 | BK135: 0 | BM135: -6.945038644 | BN135: -174.3210373 | BQ135: 24.80757856 | BT135: 1778.279 | BU135: 10.2137 | BV135: -256.015
A136: 51000 | B136: 51 | C136: 1.000128346 | D136: 0.01602075172 | F136: 0.02936413811 | G136: 0.08239158436 | H136: -3.059201066 | J136: 15 | M136: 0.03611904123 | N136: -1.570796325 | O136: 12.12008202 | P136: 1.488194734 | Q136: 5.870142619 | R136: 1.399607811 | S136: 0.999865963 | T136: -0.01637314595 | U136: 0.969766949 | V136: -0.246522335 | X136: 0.8092768374 | Y136: -113.9652919 | Z136: 66.03470809 | AC136: 1 | AD136: 12.07875772 | AE136: -0.0003870546721 | AF136: 0.001538123761 | AG136: 7231.399698 | AH136: -2469.857845 | AJ136: 18000 | AK136: 294.7429658 | AL136: 1 | AM136: 5.784338715 | AN136: 571.8429596 | AO136: -3012.990404 | AQ136: 0.9610764056 | AR136: -98.02979337 | AT136: -235169.7266 | AU136: -711266.3402 | AV136: -1.890116647 | AW136: -288755.0611 | AX136: -76680.92234 | AY136: -2.882026561 | BA136: 2.507457106 | BB136: 7.984670251 | BC136: 0.9919099143 | BD136: -123.1677482 | BF136: 0.8639553205 | BG136: -117.5291367 | BH136: 62.47086333 | BI136: 62.47086333 | BJ136: 0 | BK136: 0 | BM136: -7.12071493 | BN136: -174.3613885 | BQ136: 24.88663105 | BT136: 1819.701 | BU136: 10.0452 | BV136: -255.833
A137: 51500 | B137: 51.5 | C137: =SQRT((A137/Fesr)^2+1) -> 1.000130875 | D137: =ATAN(A137/Fesr) -> 0.01617779064 | F137: =(Ro/(Ro+Rdcr))/SQRT((A137/(Q*Fo))^2+(1-(A137^2/Fo^2))^2) -> 0.02878210256 | G137: =-ATAN(A137*Fo/(Q*(Fo^2-A137^2))) -> 0.08154834562 | H137: =IF(G137>0,G137-Pi,G137) -> -3.060044304 | J137: =Vin/Vramp -> 15 | M137: =1/(2*Pi*_Rfb1*(Cc1ea_u+Cc2ea_u)*A137) -> 0.03576837093 | N137: =-Pi/2 -> -1.570796325 | O137: =SQRT(1+(A137/Fz1_u)^2) -> 12.23810135 | P137: =ATAN2(Fz1_u,A137) -> 1.488993101 | Q137: =SQRT(1+(A137/Fz2_u)^2) -> 5.926030778 | R137: =ATAN2(Fz2_u,A137) -> 1.401238012 | S137: =1/SQRT(1+(A137/Fp1_u)^2) -> 0.9998633225 | T137: =-ATAN2(Fp1_u,A137) -> -0.01653363788 | U137: =1/SQRT(1+(A137/Fp2_u)^2) -> 0.9691984814 | V137: =-ATAN2(Fp2_u,A137) -> -0.2488411246 | X137: 0.7120216295 | Y137: =(180/Pi)*(D137+H137+N137+P137+R137+T137+V137) -> -114.0075139 | Z137: 65.99248606 | AC137: 1 | AD137: =Rcea1_u*Cc1ea_u*A137*2*Pi -> 12.19717691 | AE137: =-Rcea1_u*Cc1ea_u*Cc2ea_u*(A137*2*Pi)^2 -> -0.0003946811819 | AF137: =(Cc2ea_u+Cc1ea_u)*A137*2*Pi -> 0.001553203406 | AG137: 7222.924235 | AH137: -2479.232442 | AJ137: =_Rfb1 -> 18000 | AK137: =_Rfb1*Rcea2_u*Cc3ea_u*A137*2*Pi -> 297.6326027 | AL137: 1 | AM137: =(_Rfb1+Rcea2_u)*Cc3ea_u*A137*2*Pi -> 5.841047918 | AN137: 562.0643484 | AO137: -2985.412189 | AQ137: =Eadcg/(1+(Eadcg*A137/GBP)^2) -> 0.9425070688 | AR137: =-(A137*Eadcg*Eadcg/GBP)/(1+(Eadcg*A137/GBP)^2) -> -97.07822809 | AT137: -233871.8353 | AU137: -703525.3805 | AV137: -1.891732244 | AW137: -283267.5058 | AX137: -74958.76636 | AY137: -2.88290031 | BA137: =SQRT(AT137^2+AU137^2)/SQRT(AW137^2+AX137^2) -> 2.530154733 | BB137: 8.062941629 | BC137: 0.9911680656 | BD137: =BC137*180/Pi-180 -> -123.210253 | BF137: =20*LOG(BA137*J137*F137*C137) -> 0.768353828 | BG137: =(180/Pi)*(D137+H137+BC137) -> -117.6109578 | BH137: 62.38904218 | BI137: 62.38904218 | BJ137: =SUM((BF138<0)*(BF137>0))*A137 -> 0 | BK137: 0 | BM137: -7.294587801 | BN137: =(H137+D137)*180/Pi -> -174.4007048 | BQ137: 24.96490243 | BT137: 1862.087 | BU137: 9.87672 | BV137: -255.47
A138: 52000 | B138: =A138/1000 -> 52 | C138: 1.000133428 | D138: 0.01633482877 | F138: 0.02821733943 | G138: 0.08072259452 | H138: -3.060870055 | J138: 15 | M138: 0.03542444428 | N138: -1.570796325 | O138: 12.35612834 | P138: 1.489776216 | Q138: 5.981934391 | R138: 1.402837748 | S138: 0.9998606563 | T138: -0.01669412896 | U138: 0.9686254809 | V138: -0.251157185 | X138: =20*LOG(C138*J138*O138*Q138*F138*M138*S138*U138) -> 0.615754713 | Y138: -114.051197 | Z138: =Y138+180 -> 65.94880298 | AC138: 1 | AD138: 12.31559611 | AE138: -0.0004023820966 | AF138: 0.001568283051 | AG138: =AC138*AE138/(AE138^2+AF138^2)+AD138*AF138/(AE138^2+AF138^2) -> 7214.38622 | AH138: =AD138*AE138/(AE138^2+AF138^2)-AC138*AF138/(AE138^2+AF138^2) -> -2488.670557 | AJ138: 18000 | AK138: 300.5222396 | AL138: 1 | AM138: 5.897757121 | AN138: =AJ138*AL138/(AL138^2+AM138^2)+AK138*AM138/(AL138^2+AM138^2) -> 552.5559433 | AO138: =AK138*AL138/(AL138^2+AM138^2)-AJ138*AM138/(AL138^2+AM138^2) -> -2958.31851 | AQ138: 0.9244707405 | AR138: -96.14495701 | AT138: -232603.6347 | AU138: -695927.5561 | AV138: =ATAN2(AT138,AU138) -> -1.893358534 | AW138: =AG138-AH138*AO138/_Rfb2+AG138*AN138/_Rfb2+AN138-AO138*AR138+AQ138*AN138 -> -277931.3819 | AX138: =AH138+AH138*AN138/_Rfb2+AG138*AO138/_Rfb2+AO138+AO138*AQ138+AN138*AR138 -> -73297.17033 | AY138: -2.88373959 | BA138: 2.552831999 | BB138: =20*LOG(BA138) -> 8.140444699 | BC138: =AV138-AY138 -> 0.9903810564 | BD138: -123.2553453 | BF138: 0.6737499911 | BG138: -117.6943646 | BH138: =IF(BG138>180,BG138-180,BG138+180) -> 62.30563544 | BI138: =IF(BH138>180,BH138-360,BH138) -> 62.30563544 | BJ138: 0 | BK138: =IF(BJ138>0,BI138,0) -> 0 | BM138: =20*LOG(J138*F138*C138) -> -7.466694708 | BN138: -174.4390193 | BQ138: =20*LOG(BA138*7) -> 25.0424055 | BT138: 1905.461 | BU138: 9.71342 | BV138: -255.059
A139: 52500 | B139: 52.5 | C139: 1.000136006 | D139: 0.01649186609 | F139: 0.02766916683 | G139: 0.07991378177 | H139: -3.061678868 | J139: 15 | M139: 0.03508706862 | N139: -1.570796325 | O139: 12.47416276 | P139: 1.490544512 | Q139: 6.037853029 | R139: 1.404407856 | S139: 0.9998579643 | T139: -0.01685461917 | U139: 0.9680479741 | V139: -0.2534704959 | X139: 0.5204524881 | Y139: -114.0962987 | Z139: 65.90370129 | AC139: 1 | AD139: 12.4340153 | AE139: -0.0004101574164 | AF139: 0.001583362696 | AG139: 7205.786167 | AH139: -2498.168391 | AJ139: 18000 | AK139: 303.4118765 | AL139: 1 | AM139: 5.954466324 | AN139: 543.3079747 | AO139: -2931.697162 | AQ139: 0.9069472157 | AR139: -95.22945765 | AT139: -231363.9532 | AU139: -688468.8154 | AV139: -1.894995116 | AW139: -272741.233 | AX139: -71693.42544 | AY139: =ATAN2(AW139,AX139) -> -2.88454528 | BA139: 2.575488398 | BB139: 8.217191956 | BC139: 0.9895501637 | BD139: -123.3029519 | BF139: 0.5801200315 | BG139: -117.7793152 | BH139: 62.22068481 | BI139: 62.22068481 | BJ139: 0 | BK139: 0 | BM139: -7.637071924 | BN139: -174.4763632 | BQ139: 25.11915276 | BT139: 1949.845 | BU139: 9.52685 | BV139: -254.971
A140: 53000 | B140: 53 | C140: 1.000138609 | D140: 0.01664890259 | F140: 0.02713693648 | G140: 0.07912138123 | H140: -3.062471269 | J140: 15 | M140: 0.03475605854 | N140: -1.570796325 | O140: 12.5922044 | P140: 1.491298404 | Q140: 6.093786279 | R140: 1.405949144 | S140: 0.9998552465 | T140: -0.01701510852 | U140: 0.9674659874 | V140: -0.2557810377 | X140: 0.4260921819 | Y140: -114.1427779 | Z140: 65.8572221 | AC140: 1 | AD140: 12.5524345 | AE140: -0.0004180071411 | AF140: 0.00159844234 | AG140: 7197.12459 | AH140: -2507.722282 | AJ140: 18000 | AK140: 306.3015135 | AL140: 1 | AM140: 6.011175527 | AN140: 534.3111063 | AO140: -2905.536332 | AQ140: 0.8899172377 | AR140: -94.3312272 | AT140: -230151.6751 | AU140: -681145.2601 | AV140: -1.896641605 | AW140: -267691.8439 | AX140: -70144.96801 | AY140: -2.885318223 | BA140: 2.598123432 | BB140: 8.293195595 | BC140: 0.9886766183 | BD140: -123.3530024 | BF140: 0.487440997 | BG140: -117.8657693 | BH140: 62.13423067 | BI140: 62.13423067 | BJ140: 0 | BK140: 0 | BM140: -7.805754598 | BN140: -174.5127669 | BQ140: 25.1951564 | BT140: 1995.262 | BU140: 9.33494 | BV140: -254.804
A141: 53500 | B141: 53.5 | C141: 1.000141236 | D141: 0.01680593828 | F141: 0.02662003163 | G141: 0.07834488868 | H141: -3.063247761 | J141: 15 | M141: 0.03443123556 | N141: -1.570796325 | O141: 12.71025307 | P141: 1.492038292 | Q141: 6.149733742 | R141: 1.407462393 | S141: 0.9998525031 | T141: -0.01717559699 | U141: 0.9668795476 | V141: -0.2580887908 | X141: 0.3326518105 | Y141: -114.1905948 | Z141: 65.80940523 | AC141: 1 | AD141: 12.67085369 | AE141: -0.0004259312707 | AF141: 0.001613521985 | AG141: 7188.402007 | AH141: -2517.3287 | AJ141: 18000 | AK141: 309.1911504 | AL141: 1 | AM141: 6.06788473 | AN141: 525.5564124 | AO141: -2879.824579 | AQ141: 0.8733624454 | AR141: -93.44978166 | AT141: -228965.7371 | AU141: -673953.1384 | AV141: -1.89829763 | AW141: -262778.2277 | AX141: -68649.3705 | AY141: -2.886059236 | BA141: 2.620736613 | BB141: 8.368467521 | BC141: 0.9877616065 | BD141: -123.4054287 | BF141: 0.3956907234 | BG141: -117.9536879 | BH141: 62.04631209 | BI141: 62.04631209 | BJ141: 0 | BK141: 0 | BM141: -7.972776797 | BN141: -174.5482592 | BQ141: 25.27042832 | BT141: 2041.738 | BU141: 9.08847 | BV141: -254.411
A142: 54000 | B142: 54 | C142: 1.000143888 | D142: 0.01696297313 | F142: 0.0261178653 | G142: 0.07758382066 | H142: -3.064008829 | J142: 15 | M142: 0.03411242783 | N142: -1.570796325 | O142: 12.82830857 | P142: 1.492764563 | Q142: 6.205695033 | R142: 1.408948352 | S142: 0.9998497338 | T142: -0.01733608458 | U142: 0.9662886815 | V142: -0.2603937355 | X142: 0.2401101432 | Y142: -114.2397107 | Z142: 65.76028927 | AC142: 1 | AD142: 12.78927288 | AE142: -0.0004339298054 | AF142: 0.00162860163 | AG142: 7179.618938 | AH142: -2526.984238 | AJ142: 18000 | AK142: 312.0807873 | AL142: 1 | AM142: 6.124593933 | AN142: 517.0353567 | AO142: -2854.550822 | AQ142: 0.8572653236 | AR142: -92.58465495 | AT142: -227805.1254 | AU142: -666888.838 | AV142: -1.899962832 | AW142: -257995.6141 | AX142: -67204.33313 | AY142: -2.886769104 | BA142: 2.64332746 | BB142: 8.443019352 | BC142: 0.9868062727 | BD142: -123.4601653 | BF142: 0.3048477987 | BG142: -118.0430331 | BH142: 61.95696695 | BI142: 61.95696695 | BJ142: 0 | BK142: 0 | BM142: -8.138171554 | BN142: -174.5828677 | BQ142: 25.34498015 | BT142: 2089.296 | BU142: 8.96986 | BV142: -254.113
A143: 54500 | B143: 54.5 | C143: 1.000146565 | D143: 0.01712000715 | F143: 0.02562987853 | G143: 0.07683771345 | H143: -3.064754937 | J143: 15 | M143: 0.03379946977 | N143: -1.570796325 | O143: 12.94637072 | P143: 1.493477588 | Q143: 6.261669782 | R143: 1.410407748 | S143: 0.9998469389 | T143: -0.01749657127 | U143: 0.965693416 | V143: -0.2626958525 | X143: 0.1484466682 | Y143: -114.2900884 | Z143: 65.7099116 | AC143: 1 | AD143: 12.90769208 | AE143: -0.000442002745 | AF143: 0.001643681274 | AG143: 7170.775902 | AH143: -2536.685608 | AJ143: 18000 | AK143: 314.9704242 | AL143: 1 | AM143: 6.181303136 | AN143: 508.7397724 | AO143: -2829.704326 | AQ143: 0.8416091567 | AR143: -91.73539808 | AT143: -226668.8734 | AU143: -659948.8797 | AV143: -1.901636864 | AW143: -253339.4387 | AX143: -65807.67612 | AY143: -2.887448585 | BA143: 2.665895501 | BB143: 8.516862435 | BC143: 0.985811721 | BD143: -123.5171489 | BF143: 0.2148915294 | BG143: -118.1337681 | BH143: 61.86623192 | BI143: 61.86623192 | BJ143: 0 | BK143: 0 | BM143: -8.301970905 | BN143: -174.6166192 | BQ143: 25.41882324 | BT143: 2137.962 | BU143: 8.68736 | BV143: -254.34
A144: 55000 | B144: 55 | C144: 1.000149267 | D144: 0.01727704033 | F144: 0.02515553876 | G144: 0.07610612199 | H144: -3.065486528 | J144: 15 | M144: 0.03349220187 | N144: -1.570796325 | O144: 13.06443932 | P144: 1.494177725 | Q144: 6.317657631 | R144: 1.41184128 | S144: 0.9998441182 | T144: -0.01765705707 | U144: 0.9650937782 | V144: -0.2649951229 | X144: 0.05764156123 | Y144: -114.3416915 | Z144: 65.65830846 | AC144: 1 | AD144: 13.02611127 | AE144: -0.0004501500896 | AF144: 0.001658760919 | AG144: 7161.873422 | AH144: -2546.429635 | AJ144: 18000 | AK144: 317.8600611 | AL144: 1 | AM144: 6.238012339 | AN144: 500.6618431 | AO144: -2805.274694 | AQ144: 0.8263779853 | AR144: -90.90157838 | AT144: -225556.0586 | AU144: -653129.9116 | AV144: -1.903319393 | AW144: -248805.3318 | AX144: -64457.33241 | AY144: -2.888098409 | BA144: 2.688440272 | BB144: 8.590007847 | BC144: 0.9847790166 | BD144: -123.5763185 | BF144: 0.1258019083 | BG144: -118.2258574 | BH144: 61.77414255 | BI144: 61.77414255 | BJ144: 0 | BK144: 0 | BM144: -8.464205938 | BN144: -174.6495389 | BQ144: 25.49196865 | BT144: 2187.762 | BU144: 8.53088 | BV144: -253.785
A145: 55500 | B145: 55.5 | C145: 1.000151993 | D145: 0.01743407265 | F145: 0.0246943384 | G145: 0.07538861899 | H145: -3.066204031 | J145: 15 | M145: 0.03319047032 | N145: -1.570796325 | O145: 13.18251422 | P145: 1.494865321 | Q145: 6.373658235 | R145: 1.413249624 | S145: 0.9998412718 | T145: -0.01781754195 | U145: 0.9644897953 | V145: -0.2672915274 | X145: -0.03232434513 | Y145: -114.394485 | Z145: 65.60551497 | AC145: 1 | AD145: 13.14453046 | AE145: -0.0004583718392 | AF145: 0.001673840564 | AG145: 7152.912021 | AH145: -2556.213256 | AJ145: 18000 | AK145: 320.7496981 | AL145: 1 | AM145: 6.294721542 | AN145: 492.7940853 | AO145: -2781.251847 | AQ145: 0.8115565655 | AR145: -90.08277877 | AT145: -224465.8005 | AU145: -646428.7028 | AV145: -1.905010095 | AW145: -244389.1096 | AX145: -63151.34093 | AY145: -2.888719283 | BA145: 2.710961315 | BB145: 8.662466407 | BC145: 0.9837091881 | BD145: -123.6376152 | BF145: 0.03755958452 | BG145: -118.3192667 | BH145: 61.68073329 | BI145: 61.68073329 | BJ145: 55500 | BK145: 61.68073329 | BM145: -8.624906822 | BN145: -174.6816515 | BQ145: 25.56442721 | BT145: 2238.721 | BU145: 8.34969 | BV145: -253.783
A146: 56000 | B146: 56 | C146: 1.000154743 | D146: 0.01759110411 | F146: 0.02424579337 | G146: 0.07468479404 | H146: -3.066907856 | J146: 15 | M146: 0.03289412683 | N146: -1.570796325 | O146: 13.30059523 | P146: 1.495540708 | Q146: 6.42967126 | R146: 1.414633433 | S146: 0.9998383996 | T146: -0.01797802591 | U146: 0.9638814943 | V146: -0.2695850473 | X146: -0.1214695899 | Y146: -114.4484348 | Z146: 65.55156519 | AC146: 1 | AD146: 13.26294966 | AE146: -0.0004666679937 | AF146: 0.001688920209 | AG146: 7143.892224 | AH146: -2566.03351 | AJ146: 18000 | AK146: 323.639335 | AL146: 1 | AM146: 6.351430745 | AN146: 485.1293315 | AO146: -2757.626017 | AQ146: 0.7971303308 | AR146: -89.27859705 | AT146: -223397.2586 | AU146: -639842.1384 | AV146: -1.906708659 | AW146: -240086.7639 | AX146: -61887.84026 | AY146: -2.889311888 | BA146: 2.733458181 | BB146: 8.734248682 | BC146: 0.9826032287 | BD146: -123.700982 | BF146: -0.04985416535 | BG146: -118.4139625 | BH146: 61.58603753 | BI146: 61.58603753 | BJ146: 0 | BK146: 0 | BM146: -8.784102847 | BN146: -174.7129805 | BQ146: 25.63620948 | BT146: 2290.868 | BU146: 8.28183 | BV146: -253.62
A147: 56500 | B147: 56.5 | C147: 1.000157519 | D147: 0.01774813471 | F147: 0.02380944181 | G147: 0.07399425272 | H147: -3.067598397 | J147: 15 | M147: 0.03260302837 | N147: -1.570796325 | O147: 13.41868221 | P147: 1.496204208 | Q147: 6.485696385 | R147: 1.415993337 | S147: 0.9998355018 | T147: -0.01813850895 | U147: 0.9632689028 | V147: -0.271875664 | X147: -0.2098121108 | Y147: -114.5035079 | Z147: 65.49649215 | AC147: 1 | AD147: 13.38136885 | AE147: -0.0004750385532 | AF147: 0.001703999853 | AG147: 7134.814557 | AH147: -2575.887537 | AJ147: 18000 | AK147: 326.5289719 | AL147: 1 | AM147: 6.408139949 | AN147: 477.6607147 | AO147: -2734.387736 | AQ147: 0.7830853563 | AR147: -88.48864526 | AT147: -222349.6297 | AU147: -633367.2142 | AV147: -1.908414783 | AW147: -235894.4542 | AX147: -60665.06282 | AY147: -2.88987688 | BA147: 2.755930427 | BB147: 8.805364995 | BC147: 0.9814620977 | BD147: -123.766364 | BF147: -0.136457464 | BG147: -118.5099124 | BH147: 61.49008762 | BI147: 61.49008762 | BJ147: 0 | BK147: 0 | BM147: -8.941822459 | BN147: -174.7435484 | BQ147: 25.7073258 | BT147: 2344.229 | BU147: 8.06623 | BV147: -253.171
A148: 57000 | B148: 57 | C148: 1.000160319 | D148: 0.01790516442 | F148: 0.02338484288 | G148: 0.0733166159 | H148: -3.068276034 | J148: 15 | M148: 0.03231703689 | N148: -1.570796325 | O148: 13.53677499 | P148: 1.496856132 | Q148: 6.541733299 | R148: 1.417329946 | S148: 0.9998325781 | T148: -0.01829899106 | U148: 0.9626520481 | V148: -0.274163359 | X148: -0.2973692696 | Y148: -114.5596721 | Z148: 65.44032787 | AC148: 1 | AD148: 13.49978804 | AE148: -0.0004834835177 | AF148: 0.001719079498 | AG148: 7125.679549 | AH148: -2585.772572 | AJ148: 18000 | AK148: 329.4186088 | AL148: 1 | AM148: 6.464849152 | AN148: 470.3816532 | AO148: -2711.527823 | AQ148: 0.769408325 | AR148: -87.71254905 | AT148: -221322.1464 | AU148: -627001.0319 | AV148: -1.910128175 | AW148: -231808.4988 | AX148: -59481.32932 | AY148: -2.890414897 | BA148: 2.778377617 | BB148: 8.875825432 | BC148: 0.9802867221 | BD148: -123.833708 | BF148: -0.2222678591 | BG148: -118.607085 | BH148: 61.39291497 | BI148: 61.39291497 | BJ148: 0 | BK148: 0 | BM148: -9.098093291 | BN148: -174.773377 | BQ148: 25.77778623 | BT148: 2398.833 | BU148: 7.81402 | BV148: -252.658
A149: 57500 | B149: 57.5 | C149: 1.000163144 | D149: 0.01806219326 | F149: 0.02297157563 | G149: 0.07265151892 | H149: -3.068941131 | J149: 15 | M149: 0.03203601918 | N149: -1.570796325 | O149: 13.65487343 | P149: 1.49749678 | Q149: 6.597781701 | R149: 1.418643848 | S149: 0.9998296288 | T149: -0.01845947222 | U149: 0.9620309577 | V149: -0.276448114 | X149: -0.384157877 | Y149: -114.6168966 | Z149: 65.38310343 | AC149: 1 | AD149: 13.61820724 | AE149: -0.0004920028872 | AF149: 0.001734159143 | AG149: 7116.487728 | AH149: -2595.685942 | AJ149: 18000 | AK149: 332.3082457 | AL149: 1 | AM149: 6.521558355 | AN149: 463.2858371 | AO149: -2689.037376 | AQ149: 0.7560864963 | AR149: -86.94994707 | AT149: -220314.075 | AU149: -620740.7943 | AV149: -1.911848554 | AW149: -227825.3676 | AX149: -58335.04369 | AY149: -2.890926552 | BA149: 2.800799321 | BB149: 8.945639848 | BC149: 0.9790779979 | BD149: -123.9029628 | BF149: -0.3073023477 | BG149: -118.70545 | BH149: 61.29455002 | BI149: 61.29455002 | BJ149: 0 | BK149: 0 | BM149: -9.252942196 | BN149: -174.8024871 | BQ149: 25.84760065 | BT149: 2454.709 | BU149: 7.64239 | BV149: -251.974
A150: 58000 | B150: 58 | C150: 1.000165993 | D150: 0.01821922121 | F150: 0.02256923785 | G150: 0.07199861096 | H150: -3.069594039 | J150: 15 | M150: 0.0317598466 | N150: -1.570796325 | O150: 13.77297737 | P150: 1.498126441 | Q150: 6.653841301 | R150: 1.419935612 | S150: 0.9998266537 | T150: -0.01861995243 | U150: 0.9614056594 | V150: -0.2787299107 | X150: -0.4701942149 | Y150: -114.675151 | Z150: 65.32484898 | AC150: 1 | AD150: 13.73662643 | AE150: -0.0005005966616 | AF150: 0.001749238788 | AG150: 7107.239622 | AH150: -2605.625064 | AJ150: 18000 | AK150: 335.1978827 | AL150: 1 | AM150: 6.578267558 | AN150: 456.3672144 | AO150: -2666.907758 | AQ150: 0.7431076763 | AR150: -86.20049045 | AT150: =-AR150*AH150+AG150*AQ150 -> -219324.7142 | AU150: =AQ150*AH150+AG150*AR150 -> -614583.8012 | AV150: -1.913575647 | AW150: -223941.6744 | AX150: -57224.68828 | AY150: -2.891412439 | BA150: 2.823195114 | BB150: 9.014817874 | BC150: 0.9778367913 | BD150: -123.9740787 | BF150: -0.3915773989 | BG150: -118.8049777 | BH150: 61.19502229 | BI150: 61.19502229 | BJ150: 0 | BK150: 0 | BM150: -9.406395273 | BN150: -174.830899 | BQ150: 25.91677867 | BT150: 2511.886 | BU150: 7.45716 | BV150: -252.252
A151: 58500 | B151: 58.5 | C151: 1.000168867 | D151: 0.01837624825 | F151: 0.02217744517 | G151: 0.07135755434 | H151: -3.070235096 | J151: 15 | M151: 0.03148839492 | N151: -1.570796325 | O151: 13.89108668 | P151: 1.498745394 | Q151: 6.709911819 | R151: 1.421205789 | S151: 0.9998236529 | T151: -0.01878043168 | U151: 0.9607761808 | V151: -0.2810087313 | X151: -0.5554940588 | Y151: -114.7344062 | Z151: 65.26559378 | AC151: 1 | AD151: 13.85504562 | AE151: -0.000509264841 | AF151: 0.001764318432 | AG151: 7097.935765 | AH151: -2615.587439 | AJ151: 18000 | AK151: 338.0875196 | AL151: 1 | AM151: 6.634976761 | AN151: 449.6199793 | AO151: -2645.130594 | AQ151: 0.7304601899 | AR151: -85.46384222 | AT151: -218353.3927 | AU151: -608527.4448 | AV151: -1.91530919 | AW151: -220154.1701 | AX151: -56148.8194 | AY151: -2.89187313 | BA151: 2.845564579 | BB151: 9.083368923 | BC151: 0.9765639402 | BD151: -124.0470077 | BF151: -0.4751089759 | BG151: -118.9056396 | BH151: 61.09436044 | BI151: 61.09436044 | BJ151: 0 | BK151: 0 | BM151: -9.558477899 | BN151: -174.8586318 | BQ151: 25.98532972 | BT151: 2570.396 | BU151: 7.31271 | BV151: -251.702
A152: 59000 | B152: 59 | C152: 1.000171766 | D152: 0.01853327439 | F152: 0.02179583004 | G152: 0.07072802392 | H152: -3.070864626 | J152: 15 | M152: 0.03122154411 | N152: -1.570796325 | O152: 14.00920122 | P152: 1.499353911 | Q152: 6.765992983 | R152: 1.422454913 | S152: 0.9998206263 | T152: -0.01894090997 | U152: 0.9601425497 | V152: -0.283284558 | X152: -0.640072698 | Y152: -114.7946338 | Z152: 65.20536622 | AC152: 1 | AD152: 13.97346482 | AE152: -0.0005180074254 | AF152: 0.001779398077 | AG152: 7088.576686 | AH152: -2625.570647 | AJ152: 18000 | AK152: 340.9771565 | AL152: 1 | AM152: 6.691685964 | AN152: 443.0385597 | AO152: -2623.697755 | AQ152: 0.7181328546 | AR152: -84.73967684 | AT152: -217399.4683 | AU152: -602569.2062 | AV152: -1.917048927 | AW152: -216459.736 | AX152: -55106.06311 | AY152: -2.892309182 | BA152: 2.867907303 | BB152: 9.151302197 | BC152: 0.9752602549 | BD152: -124.1217034 | BF152: -0.5579125567 | BG152: -119.0074077 | BH152: 60.99259227 | BI152: 60.99259227 | BJ152: 0 | BK152: 0 | BM152: -9.709214754 | BN152: -174.8857043 | BQ152: 26.053263 | BT152: 2630.268 | BU152: 7.13504 | BV152: -251.401
A153: 59500 | B153: 59.5 | C153: 1.000174689 | D153: 0.01869029962 | F153: 0.0214240409 | G153: 0.07010970652 | H153: -3.071482943 | J153: 15 | M153: 0.0309591782 | N153: -1.570796325 | O153: 14.12732087 | P153: 1.499952252 | Q153: 6.82208453 | R153: 1.423683497 | S153: 0.999817574 | T153: -0.01910138728 | U153: 0.959504794 | V153: -0.2855573731 | X153: -0.7239449558 | Y153: -114.8558061 | Z153: 65.14419388 | AC153: 1 | AD153: 14.09188401 | AE153: -0.0005268244148 | AF153: 0.001794477722 | AG153: 7079.16292 | AH153: -2635.572348 | AJ153: 18000 | AK153: 343.8667934 | AL153: 1 | AM153: 6.748395167 | AN153: 436.6176067 | AO153: -2602.601353 | AQ153: 0.7061149555 | AR153: -84.02767971 | AT153: -216462.3263 | AU153: -596706.6515 | AV153: -1.918794611 | AW153: -212855.378 | AX153: -54095.11133 | AY153: -2.89272113 | BA153: 2.89022288 | BB153: 9.218626694 | BC153: 0.9739265197 | BD153: -124.1981208 | BF153: -0.6400031535 | BG153: -119.1102552 | BH153: 60.88974478 | BI153: 60.88974478 | BJ153: 0 | BK153: 0 | BM153: -9.858629847 | BN153: -174.9121344 | BQ153: 26.12058749 | BT153: 2691.535 | BU153: 6.88093 | BV153: -251.244
A154: 60000 | B154: 60 | C154: 1.000177637 | D154: 0.01884732392 | F154: 0.02106174129 | G154: 0.06950230036 | H154: -3.07209035 | J154: 15 | M154: 0.03070118505 | N154: -1.570796325 | O154: 14.24544549 | P154: 1.500540671 | Q154: 6.878186206 | R154: 1.424892042 | S154: 0.999814496 | T154: -0.0192618636 | U154: 0.9588629417 | V154: -0.2878271591 | X154: -0.8071252076 | Y154: -114.9178965 | Z154: 65.08210351 | AC154: 1 | AD154: 14.2103032 | AE154: -0.0005357158091 | AF154: 0.001809557366 | AG154: 7069.695 | AH154: -2645.590279 | AJ154: 18000 | AK154: 346.7564303 | AL154: 1 | AM154: 6.80510437 | AN154: 430.3519834 | AO154: -2581.833733 | AQ154: 0.6943962225 | AR154: -83.3275467 | AT154: -215541.378 | AU154: -590937.4281 | AV154: -1.920546001 | AW154: -209338.2203 | AX154: -53114.71818 | AY154: -2.893109495 | BA154: 2.912510908 | BB154: 9.28535121 | BC154: 0.9725634937 | BD154: -124.2762164 | BF154: -0.7213953315 | BG154: -119.2141558 | BH154: 60.78584416 | BI154: 60.78584416 | BJ154: 0 | BK154: 0 | BM154: -10.00674654 | BN154: -174.9379394 | BQ154: 26.18731201 | BT154: 2754.229 | BU154: 6.70094 | BV154: -251.051
A155: 60500 | B155: 60.5 | C155: 1.00018061 | D155: 0.0190043473 | F155: 0.02070860915 | G155: 0.06890551453 | H155: -3.072687135 | J155: 15 | M155: 0.03044745624 | N155: -1.570796325 | O155: 14.36357495 | P155: 1.501119411 | Q155: 6.934297766 | R155: 1.426081029 | S155: 0.9998113923 | T155: -0.01942233893 | U155: 0.9582170207 | V155: -0.2900938988 | X155: -0.8896273993 | Y155: -114.9808789 | Z155: 65.01912112 | AC155: 1 | AD155: 14.3287224 | AE155: -0.0005446816084 | AF155: 0.001824637011 | AG155: 7060.17346 | AH155: -2655.622245 | AJ155: 18000 | AK155: 349.6460673 | AL155: 1 | AM155: 6.861813573 | AN155: 424.2367556 | AO155: -2561.387461 | AQ155: 0.6829668078 | AR155: -82.63898375 | AT155: -214636.0594 | AU155: -585259.2616 | AV155: -1.922302867 | AW155: -205905.5001 | AX155: -52163.69652 | AY155: -2.893474779 | BA155: 2.93477099 | BB155: 9.351484348 | BC155: 0.9711719117 | BD155: -124.3559482 | BF155: -0.8021032268 | BG155: -119.3190841 | BH155: 60.68091585 | BI155: 60.68091585 | BJ155: 0 | BK155: 0 | BM155: -10.15358758 | BN155: -174.9631359 | BQ155: 26.25344515 | BT155: 2818.383 | BU155: 6.53562 | BV155: -250.48
A156: 61000 | B156: 61 | C156: 1.000183607 | D156: 0.01916136974 | F156: 0.02036433602 | G156: 0.06831906854 | H156: -3.073273581 | J156: 15 | M156: 0.03019788693 | N156: -1.570796325 | O156: 14.48170916 | P156: 1.501688709 | Q156: 6.990418972 | R156: 1.427250927 | S156: 0.9998082628 | T156: -0.01958281327 | U156: 0.9575670593 | V156: -0.292357575 | X156: -0.9714650635 | Y156: -115.044728 | Z156: 64.95527196 | AC156: 1 | AD156: 14.44714159 | AE156: -0.0005537218127 | AF156: 0.001839716656 | AG156: 7050.598835 | AH156: -2665.666124 | AJ156: 18000 | AK156: 352.5357042 | AL156: 1 | AM156: 6.918522776 | AN156: 418.267182 | AO156: -2541.255321 | AQ156: 0.6718172657 | AR156: -81.96170642 | AT156: -213745.8302 | AU156: -579669.9523 | AV156: -1.924064982 | AW156: -202554.5624 | AX156: -51240.91475 | AY156: -2.893817467 | BA156: 2.957002735 | BB156: 9.417034523 | BC156: 0.9697524857 | BD156: -124.4372753 | BF156: -0.8821405627 | BG156: -119.4250154 | BH156: 60.57498457 | BI156: 60.57498457 | BJ156: 0 | BK156: 0 | BM156: -10.29917509 | BN156: -174.9877401 | BQ156: 26.31899532 | BT156: 2884.032 | BU156: 6.32652 | BV156: -250.202
A157: 61500 | B157: 61.5 | C157: 1.000186629 | D157: 0.01931839123 | F157: 0.02002862637 | G157: 0.0677426918 | H157: -3.073849958 | J157: 15 | M157: 0.02995237565 | N157: -1.570796325 | O157: 14.59984797 | P157: 1.502248794 | Q157: 7.046549593 | R157: 1.428402188 | S157: 0.9998051076 | T157: -0.01974328659 | U157: 0.9569130855 | V157: -0.2946181708 | X157: -1.052651336 | Y157: -115.1094194 | Z157: 64.89058055 | AC157: 1 | AD157: 14.56556078 | AE157: -0.000562836422 | AF157: 0.001854796301 | AG157: 7040.971661 | AH157: -2675.71986 | AJ157: 18000 | AK157: 355.4253411 | AL157: 1 | AM157: 6.975231979 | AN157: 412.4387052 | AO157: -2521.430305 | AQ157: 0.6609385327 | AR157: -81.29543952 | AT157: -212870.1726 | AU157: -574167.3723 | AV157: -1.925832128 | AW157: -199282.8547 | AX157: -50345.29379 | AY157: -2.894138033 | BA157: 2.979205755 | BB157: 9.482009966 | BC157: 0.9683059049 | BD157: -124.5201583 | BF157: -0.9615206666 | BG157: -119.5319257 | BH157: 60.46807432 | BI157: 60.46807432 | BJ157: 0 | BK157: 0 | BM157: -10.44353063 | BN157: -175.0117674 | BQ157: 26.38397077 | BT157: 2951.209 | BU157: 6.18308 | BV157: -249.926
A158: 62000 | B158: 62 | C158: 1.000189676 | D158: 0.01947541177 | F158: 0.01970119696 | G158: 0.06717612321 | H158: -3.074416527 | J158: 15 | M158: 0.02971082424 | N158: -1.570796325 | O158: 14.7179913 | P158: 1.502799888 | Q158: 7.102689406 | R158: 1.429535252 | S158: 0.9998019267 | T158: -0.0199037589 | U158: 0.9562551277 | V158: -0.2968756695 | X158: -1.133198971 | Y158: -115.1749293 | Z158: 64.82507074 | AC158: 1 | AD158: 14.68397998 | AE158: -0.0005720254362 | AF158: 0.001869875945 | AG158: 7031.292476 | AH158: -2685.781459 | AJ158: 18000 | AK158: 358.314978 | AL158: 1 | AM158: 7.031941182 | AN158: 406.7469435 | AO158: -2501.905605 | AQ158: 0.6503219093 | AR158: -80.63991676 | AT158: -212008.5898 | AU158: -568749.4625 | AV158: -1.927604094 | AW158: -196087.9228 | AX158: -49475.80425 | AY158: -2.894436932 | BA158: 3.00137967 | BB158: 9.546418729 | BC158: 0.9668328377 | BD158: -124.6045588 | BF158: -1.040256484 | BG158: -119.6397916 | BH158: 60.3602084 | BI158: 60.3602084 | BJ158: 0 | BK158: 0 | BM158: -10.58667521 | BN158: -175.0352328 | BQ158: 26.44837953 | BT158: 3019.952 | BU158: 6.01306 | BV158: -249.651
A159: 62500 | B159: 62.5 | C159: 1.000192747 | D159: 0.01963243135 | F159: 0.01938177625 | G159: 0.06661911076 | H159: -3.074973539 | J159: 15 | M159: 0.02947313764 | N159: -1.570796325 | O159: 14.83613902 | P159: 1.503342204 | Q159: 7.158838194 | R159: 1.430650543 | S159: 0.9997987201 | T159: -0.02006423018 | U159: 0.9555932141 | V159: -0.2991300544 | X159: -1.213120355 | Y159: -115.2412343 | Z159: 64.75876568 | AC159: 1 | AD159: 14.80239917 | AE159: -0.0005812888554 | AF159: 0.00188495559 | AG159: 7021.561815 | AH159: -2695.848994 | AJ159: 18000 | AK159: 361.2046149 | AL159: 1 | AM159: 7.088650386 | AN159: 401.1876829 | AO159: -2482.674608 | AQ159: 0.6399590426 | AR159: -79.99488033 | AT159: -211160.6056 | AU159: -563414.23 | AV159: -1.929380675 | AW159: -192967.4062 | AX159: -48631.46374 | AY159: -2.894714606 | BA159: 3.0235241 | BB159: 9.610268692 | BC159: 0.9653339314 | BD159: -124.6904398 | BF159: -1.118360595 | BG159: -119.7485905 | BH159: 60.2514095 | BI159: 60.2514095 | BJ159: 0 | BK159: 0 | BM159: -10.72862929 | BN159: -175.0581507 | BQ159: 26.51222949 | BT159: 3090.295 | BU159: 5.85449 | BV159: -248.418
A160: 63000 | B160: 63 | C160: 1.000195843 | D160: 0.01978944996 | F160: 0.01907010377 | G160: 0.06607141108 | H160: -3.075521239 | J160: 15 | M160: 0.02923922385 | N160: -1.570796325 | O160: 14.95429104 | P160: 1.503875951 | Q160: 7.214995749 | R160: 1.431748474 | S160: 0.9997954877 | T160: -0.02022470042 | U160: 0.9549273731 | V160: -0.301381309 | X160: -1.292427522 | Y160: -115.3083121 | Z160: 64.6916879 | AC160: 1 | AD160: 14.92081836 | AE160: -0.0005906266796 | AF160: 0.001900035235 | AG160: 7011.780216 | AH160: -2705.920592 | AJ160: 18000 | AK160: 364.0942519 | AL160: 1 | AM160: 7.145359589 | AN160: 395.7568693 | AO160: -2463.730889 | AQ160: 0.6298419097 | AR160: -79.36008062 | AT160: -210325.7633 | AU160: -558159.7454 | AV160: -1.931161671 | AW160: -189919.0334 | AX160: -47811.33442 | AY160: -2.894971484 | BA160: 3.045638672 | BB160: 9.673567565 | BC160: 0.9638098138 | BD160: -124.7777654 | BF160: -1.195845226 | BG160: -119.8583004 | BH160: 60.14169962 | BI160: 60.14169962 | BJ160: 0 | BK160: 0 | BM160: -10.86941279 | BN160: -175.080535 | BQ160: 26.57552837 | BT160: 3162.278 | BU160: 5.60993 | BV160: -248.626
A161: 63500 | B161: 63.5 | C161: 1.000198964 | D161: 0.0199464676 | F161: 0.0187659296 | G161: 0.06553278913 | H161: -3.076059861 | J161: 15 | M161: 0.02900899374 | N161: -1.570796325 | O161: 15.07244725 | P161: 1.50440133 | Q161: 7.271161866 | R161: 1.432829444 | S161: 0.9997922296 | T161: -0.02038516963 | U161: 0.9542576332 | V161: -0.3036294172 | X161: -1.371132166 | Y161: -115.3761407 | Z161: 64.62385928 | AC161: 1 | AD161: 15.03923756 | AE161: -0.0006000389087 | AF161: 0.001915114879 | AG161: 7001.948217 | AH161: -2715.994441 | AJ161: 18000 | AK161: 366.9838888 | AL161: 1 | AM161: 7.202068792 | AN161: 390.4506015 | AO161: -2445.068203 | AQ161: 0.6199628022 | AR161: -78.73527588 | AT161: -209503.6242 | AU161: -552984.1401 | AV161: -1.932946888 | AW161: -186940.6186 | AX161: -47014.52063 | AY161: -2.895207982 | BA161: 3.067723016 | BB161: 9.736322894 | BC161: 0.9622610937 | BD161: -124.8665005 | BF161: -1.272722263 | BG161: -119.9688998 | BH161: 60.03110017 | BI161: 60.03110017 | BJ161: 0 | BK161: 0 | BM161: -11.00904516 | BN161: -175.1023993 | BQ161: 26.63828369 | BT161: 3235.937 | BU161: 5.43209 | BV161: -248.575
A162: 64000 | B162: 64 | C162: 1.000202109 | D162: 0.02010348425 | F162: 0.01846901391 | G162: 0.0650030178 | H162: -3.076589632 | J162: 15 | M162: 0.02878236098 | N162: -1.570796325 | O162: 15.19060756 | P162: 1.504918535 | Q162: 7.327336349 | R162: 1.433893841 | S162: 0.9997889458 | T162: -0.02054563779 | U162: 0.9535840228 | V162: -0.3058743629 | X162: -1.449245654 | Y162: -115.4446989 | Z162: 64.55530111 | AC162: 1 | AD162: 15.15765675 | AE162: -0.0006095255428 | AF162: 0.001930194524 | AG162: 6992.066356 | AH162: -2726.068785 | AJ162: 18000 | AK162: 369.8735257 | AL162: 1 | AM162: 7.258777995 | AN162: 385.2651243 | AO162: -2426.680481 | AQ162: 0.6103143119 | AR162: -78.12023192 | AT162: -208693.7675 | AU162: -547885.6041 | AV162: -1.93473614 | AW162: -184030.0575 | AX162: -46240.16666 | AY162: -2.895424502 | BA162: 3.089776767 | BB162: 9.798542066 | BC162: 0.9606883616 | BD162: -124.9566114 | BF162: -1.349003268 | BG162: -120.080368 | BH162: 59.91963199 | BI162: 59.91963199 | BJ162: 0 | BK162: 0 | BM162: -11.14754533 | BN162: -175.1237566 | BQ162: 26.70050287 | BT162: 3311.311 | BU162: 5.23561 | BV162: -247.758
A163: 64500 | B163: 64.5 | C163: 1.000205279 | D163: 0.02026049991 | F163: 0.01817912637 | G163: 0.06448187759 | H163: -3.077110772 | J163: 15 | M163: 0.0285592419 | N163: -1.570796325 | O163: 15.30877187 | P163: 1.505427756 | Q163: 7.383519008 | R163: 1.434942041 | S163: 0.9997856363 | T163: -0.02070610488 | U163: 0.9529065704 | V163: -0.3081161301 | X163: -1.526779035 | Y163: -115.5139659 | Z163: 64.48603409 | AC163: 1 | AD163: 15.27607594 | AE163: -0.0006190865819 | AF163: 0.001945274169 | AG163: 6982.135172 | AH163: -2736.141919 | AJ163: 18000 | AK163: 372.7631626 | AL163: 1 | AM163: 7.315487198 | AN163: 380.1968221 | AO163: -2408.561823 | AQ163: 0.6008893162 | AR163: -77.51472179 | AT163: -207895.7892 | AU163: -542862.3838 | AV163: -1.936529244 | AW163: -181185.3238 | AX163: -45487.45473 | AY163: -2.895621435 | BA163: 3.111799564 | BB163: 9.860232313 | BC163: 0.9590921903 | BD163: -125.0480653 | BF163: -1.424699484 | BG163: -120.1926847 | BH163: 59.80731531 | BI163: 59.80731531 | BJ163: 0 | BK163: 0 | BM163: -11.2849318 | BN163: -175.1446194 | BQ163: 26.76219311 | BT163: 3388.442 | BU163: 5.05282 | BV163: -247.756
A164: 65000 | B164: 65 | C164: 1.000208474 | D164: 0.02041751457 | F164: 0.01789604582 | G164: 0.0639691563 | H164: -3.077623494 | J164: 15 | M164: 0.02833955543 | N164: -1.570796325 | O164: 15.42694009 | P164: 1.505929177 | Q164: 7.439709657 | R164: 1.435974408 | S164: 0.999782301 | T164: -0.02086657092 | U164: 0.9522253047 | V164: -0.3103547031 | X164: -1.603743057 | Y164: -115.5839217 | Z164: 64.41607835 | AC164: 1 | AD164: 15.39449514 | AE164: -0.000628722026 | AF164: 0.001960353814 | AG164: 6972.155203 | AH164: -2746.212193 | AJ164: 18000 | AK164: 375.6527995 | AL164: 1 | AM164: 7.372196401 | AN164: 375.2422128 | AO164: -2390.706491 | AQ164: 0.5916809656 | AR164: -76.91852553 | AT164: -207109.3011 | AU164: -537912.7795 | AV164: -1.938326024 | AW164: -178404.4657 | AX164: -44755.60297 | AY164: -2.89579916 | BA164: 3.133791049 | BB164: 9.921400714 | BC164: 0.9574731358 | BD164: -125.1408303 | BF164: -1.499821854 | BG164: -120.3058302 | BH164: 59.69416983 | BI164: 59.69416983 | BJ164: 0 | BK164: 0 | BM164: -11.42122257 | BN164: -175.1649999 | BQ164: 26.82336151 | BT164: 3467.369 | BU164: 4.9029 | BV164: -247.513
A165: 65500 | B165: 65.5 | C165: 1.000211693 | D165: 0.02057452822 | F165: 0.01761955973 | G165: 0.0634646487 | H165: -3.078128001 | J165: 15 | M165: 0.02812322294 | N165: -1.570796325 | O165: 15.54511212 | P165: 1.506422974 | Q165: 7.495908115 | R165: 1.436991297 | S165: 0.99977894 | T165: -0.02102703587 | U165: 0.9515402543 | V165: -0.3125900664 | X165: -1.680148174 | Y165: -115.6545465 | Z165: 64.34545347 | AC165: 1 | AD165: 15.51291433 | AE165: -0.000638431875 | AF165: 0.001975433458 | AG165: 6962.126989 | AH165: -2756.278003 | AJ165: 18000 | AK165: 378.5424365 | AL165: 1 | AM165: 7.428905604 | AN165: 370.3979415 | AO165: -2373.108907 | AQ165: 0.582682671 | AR165: -76.3314299 | AT165: -206333.9304 | AU165: -533035.1437 | AV165: -1.940126307 | AW165: -175685.6028 | AX165: -44043.86364 | AY165: -2.895958044 | BA165: 3.155750867 | BB165: 9.982054203 | BC165: 0.9558317377 | BD165: -125.2348754 | BF165: -1.574381026 | BG165: -120.4197853 | BH165: 59.58021471 | BI165: 59.58021471 | BJ165: 0 | BK165: 0 | BM165: -11.55643523 | BN165: -175.1849098 | BQ165: 26.884015 | BT165: 3548.134 | BU165: 4.65226 | BV165: -246.726
A166: =A165+500 -> 66000 | B166: 66 | C166: 1.000214937 | D166: 0.02073154086 | F166: 0.01734946385 | G166: 0.06296815627 | H166: -3.078624494 | J166: 15 | M166: 0.02791016822 | N166: -1.570796325 | O166: 15.66328789 | P166: 1.50690932 | Q166: 7.55211421 | R166: 1.43799305 | S166: 0.9997755533 | T166: -0.02118749975 | U166: 0.9508514479 | V166: -0.3148222045 | X166: -1.756004558 | Y166: -115.7258215 | Z166: 64.27417853 | AC166: 1 | AD166: 15.63133352 | AE166: -0.000648216129 | AF166: 0.001990513103 | AG166: 6952.051068 | AH166: -2766.337797 | AJ166: 18000 | AK166: 381.4320734 | AL166: 1 | AM166: 7.485614807 | AN166: 365.6607759 | AO166: -2355.763645 | AQ166: 0.5738880918 | AR166: -75.75322812 | AT166: -205569.3189 | AU166: -528227.8788 | AV166: -1.941929926 | AW166: -173026.923 | AX166: -43351.52136 | AY166: -2.896098445 | BA166: 3.177678667 | BB166: 10.04219957 | BC166: 0.9541685198 | BD166: -125.3301708 | BF166: -1.648387367 | BG166: -120.5345314 | BH166: 59.46546859 | BI166: 59.46546859 | BJ166: 0 | BK166: 0 | BM166: -11.69058694 | BN166: -175.2043606 | BQ166: 26.94416037 | BT166: 3630.781 | BU166: 4.4951 | BV166: -246.212
A167: 66500 | B167: 66.5 | C167: 1.000218205 | D167: 0.02088855248 | F167: 0.01708556182 | G167: 0.06247948691 | H167: -3.079113163 | J167: 15 | M167: 0.02770031733 | N167: -1.570796325 | O167: 15.78146731 | P167: 1.507388382 | Q167: 7.608327771 | R167: 1.438980002 | S167: 0.9997721409 | T167: -0.02134796253 | U167: 0.9501589141 | V167: -0.3170511022 | X167: -1.831322106 | Y167: -115.7977279 | Z167: 64.20227207 | AC167: 1 | AD167: 15.74975272 | AE167: -0.000658074788 | AF167: 0.002005592748 | AG167: 6941.927979 | AH167: -2776.390067 | AJ167: 18000 | AK167: 384.3217103 | AL167: 1 | AM167: 7.54232401 | AN167: 361.0276002 | AO167: -2338.665427 | AQ167: 0.5652911249 | AR167: -75.18371962 | AT167: -204815.1221 | AU167: -523489.4354 | AV167: -1.943736719 | AW167: -170426.6794 | AX167: -42677.89149 | AY167: -2.89622071 | BA167: 3.199574104 | BB167: 10.10184346 | BC167: 0.9524839911 | BD167: -125.4266872 | BF167: -1.721850972 | BG167: -120.6500504 | BH167: 59.34994962 | BI167: 59.34994962 | BJ167: 0 | BK167: 0 | BM167: -11.82369444 | BN167: -175.2233632 | BQ167: 27.00380426 | BT167: 3715.352 | BU167: 4.3437 | BV167: -245.97
A168: 67000 | B168: 67 | C168: 1.000221499 | D168: 0.02104556307 | F168: 0.01682766479 | G168: 0.06199845469 | H168: -3.079594195 | J168: 15 | M168: 0.02749359855 | N168: -1.570796325 | O168: 15.8996503 | P168: 1.507860322 | Q168: 7.664548635 | R168: 1.439952476 | S168: 0.9997687028 | T168: -0.02150842421 | U168: 0.9494626818 | V168: -0.3192767445 | X168: -1.906110457 | Y168: -115.8702479 | Z168: 64.12975213 | AC168: 1 | AD168: 15.86817191 | AE168: -0.000668007852 | AF168: 0.002020672392 | AG168: 6931.758262 | AH168: -2786.433352 | AJ168: 18000 | AK168: 387.2113472 | AL168: 1 | AM168: 7.599033213 | AN168: 356.4954103 | AO168: -2321.809116 | AQ168: 0.5568858941 | AR168: -74.62270981 | AT168: -204071.009 | AU168: -518818.3106 | AV168: -1.945546528 | AW168: -167883.1875 | AX168: -42022.31861 | AY168: -2.896325173 | BA168: 3.221436833 | BB168: 10.1609924 | BC168: 0.9507786457 | BD168: -125.5243963 | BF168: -1.794781673 | BG168: -120.7663246 | BH168: 59.23367545 | BI168: 59.23367545 | BJ168: 0 | BK168: 0 | BM168: -11.95577407 | BN168: -175.2419283 | BQ168: 27.0629532 | BT168: 3801.894 | BU168: 4.14374 | BV168: -245.169
A169: 67500 | B169: 67.5 | C169: 1.000224817 | D169: 0.02120257262 | F169: 0.01657559111 | G169: 0.06152487958 | H169: -3.08006777 | J169: 15 | M169: 0.02728994226 | N169: -1.570796325 | O169: 16.01783678 | P169: 1.508325299 | Q169: 7.720776641 | R169: 1.440910786 | S169: 0.9997652389 | T169: -0.02166888479 | U169: 0.9487627797 | V169: -0.3214991165 | X169: -1.98037899 | Y169: -115.9433637 | Z169: 64.0566363 | AC169: 1 | AD169: 15.9865911 | AE169: -0.0006780153209 | AF169: 0.002035752037 | AG169: 6921.542455 | AH169: -2796.466232 | AJ169: 18000 | AK169: 390.1009841 | AL169: 1 | AM169: 7.655742416 | AN169: 352.0613095 | AO169: -2305.189717 | AQ169: 0.5486667398 | AR169: -74.07000988 | AT169: -203336.6613 | AU169: -514213.046 | AV169: -1.9473592 | AW169: -165394.8231 | AX169: -41384.17502 | AY169: -2.896412163 | BA169: 3.243266513 | BB169: 10.21965276 | BC169: 0.9490529638 | BD169: -125.6232706 | BF169: -1.867189047 | BG169: -120.8833367 | BH169: 59.11666329 | BI169: 59.11666329 | BJ169: 0 | BK169: 0 | BM169: -12.08684181 | BN169: -175.2600661 | BQ169: 27.12161356 | BT169: 3890.451 | BU169: 3.9573 | BV169: -244.768
A170: 68000 | B170: 68 | C170: 1.000228159 | D170: 0.02135958112 | F170: 0.01632916595 | G170: 0.06105858723 | H170: -3.080534063 | J170: 15 | M170: 0.02708928092 | N170: -1.570796325 | O170: 16.13602667 | P170: 1.508783463 | Q170: 7.777011636 | R170: 1.441855238 | S170: 0.9997617493 | T170: -0.02182934424 | U170: 0.9480592367 | V170: -0.3237182035 | X170: -2.054136844 | Y170: -116.0170583 | Z170: 63.98294169 | AC170: 1 | AD170: 16.1050103 | AE170: -0.0006880971948 | AF170: 0.002050831682 | AG170: 6911.281096 | AH170: -2806.487332 | AJ170: 18000 | AK170: 392.990621 | AL170: 1 | AM170: 7.712451619 | AN170: 347.7225034 | AO170: -2288.802364 | AQ170: 0.54062821 | AR170: -73.52543656 | AT170: -202611.7727 | AU170: -509672.226 | AV170: -1.949174585 | AW170: -162960.0189 | AX170: -40762.85943 | AY170: -2.896481997 | BA170: 3.265062808 | BB170: 10.2778308 | BC170: 0.9473074121 | BD170: -125.7232833 | BF170: -1.939082429 | BG170: -121.0010701 | BH170: 58.99892988 | BI170: 58.99892988 | BJ170: 0 | BK170: 0 | BM170: -12.21691323 | BN170: -175.2777868 | BQ170: 27.1797916 | BT170: 3981.072 | BU170: 3.89809 | BV170: -244.315
A171: 68500 | B171: 68.5 | C171: 1.000231526 | D171: 0.02151658857 | F171: 0.01608822102 | G171: 0.06059940878 | H171: -3.080993241 | J171: 15 | M171: 0.02689154894 | N171: -1.570796325 | O171: 16.25421989 | P171: 1.509234965 | Q171: 7.833253468 | R171: 1.442786128 | S171: 0.999758234 | T171: -0.02198980258 | U171: 0.9473520816 | V171: -0.325933991 | X171: -2.127392919 | Y171: -116.091315 | Z171: 63.90868496 | AC171: 1 | AD171: 16.22342949 | AE171: -0.0006982534737 | AF171: 0.002065911327 | AG171: 6900.974726 | AH171: -2816.495316 | AJ171: 18000 | AK171: 395.880258 | AL171: 1 | AM171: 7.769160823 | AN171: 343.4762959 | AO171: -2272.642324 | AQ171: 0.5327650506 | AR171: -72.98881193 | AT171: -201896.0488 | AU171: -505194.4767 | AV171: -1.950992539 | AW171: -160577.2627 | AX171: -40157.79563 | AY171: -2.896534983 | BA171: 3.286825382 | BB171: 10.33553264 | BC171: 0.945542444 | BD171: -125.8244085 | BF171: -2.010470916 | BG171: -121.1195085 | BH171: 58.88049154 | BI171: 58.88049154 | BJ171: 0 | BK171: 0 | BM171: -12.34600356 | BN171: -175.2950999 | BQ171: 27.23749344 | BT171: 4073.803 | BU171: 3.5601 | BV171: -244.142
A172: 69000 | B172: 69 | C172: 1.000234918 | D172: 0.02167359496 | F172: 0.0158525943 | G172: 0.06014718057 | H172: -3.081445469 | J172: 15 | M172: 0.02669668265 | N172: -1.570796325 | O172: 16.37241639 | P172: 1.509679948 | Q172: 7.889501991 | R172: 1.443703746 | S172: 0.999754693 | T172: -0.02215025978 | U172: 0.9466413433 | V172: -0.3281464646 | X172: -2.200155887 | Y172: -116.1661177 | Z172: 63.83388234 | AC172: 1 | AD172: 16.34184868 | AE172: -0.0007084841576 | AF172: 0.002080990971 | AG172: 6890.623881 | AH172: -2826.488888 | AJ172: 18000 | AK172: 398.7698949 | AL172: 1 | AM172: 7.825870026 | AN172: 339.320085 | AO172: -2256.704987 | AQ172: 0.5250721974 | AR172: -72.45996324 | AT172: -201189.2059 | AU172: -500778.4639 | AV172: -1.95281292 | AW172: -158245.0952 | AX172: -39568.43127 | AY172: -2.896571421 | BA172: 3.308553906 | BB172: 10.3927643 | BC172: 0.9437585007 | BD172: -125.926621 | BF172: -2.081363377 | BG172: -121.2386358 | BH172: 58.76136415 | BI172: 58.76136415 | BJ172: 0 | BK172: 0 | BM172: -12.47412768 | BN172: -175.3120149 | BQ172: 27.2947251 | BT172: 4168.694 | BU172: 3.40988 | BV172: -243.709
A173: 69500 | B173: 69.5 | C173: 1.000238335 | D173: 0.02183060028 | F173: 0.01562212973 | G173: 0.059701744 | H173: -3.081890906 | J173: 15 | M173: 0.02650462018 | N173: -1.570796325 | O173: 16.49061608 | P173: 1.510118552 | Q173: 7.945757063 | R173: 1.444608371 | S173: 0.9997511263 | T173: -0.02231071584 | U173: 0.9459270507 | V173: -0.3303556101 | X173: -2.272434199 | Y173: -116.2414504 | Z173: 63.75854964 | AC173: 1 | AD173: 16.46026788 | AE173: -0.0007187892464 | AF173: 0.002096070616 | AG173: 6880.229101 | AH173: -2836.466789 | AJ173: 18000 | AK173: 401.6595318 | AL173: 1 | AM173: 7.882579229 | AN173: 335.2513589 | AO173: -2240.985866 | AQ173: 0.5175447676 | AR173: -71.9387227 | AT173: -200490.9712 | AU173: -496422.8919 | AV173: -1.954635592 | AW173: -155962.1072 | AX173: -38994.23673 | AY173: -2.896591603 | BA173: 3.33024805 | BB173: 10.44953165 | BC173: 0.9419560108 | BD173: -126.029896 | BF173: -2.151768459 | BG173: -121.3584368 | BH173: 58.6415632 | BI173: 58.6415632 | BJ173: 0 | BK173: 0 | BM173: -12.60130011 | BN173: -175.3285408 | BQ173: 27.35149245 | BT173: 4265.795 | BU173: 3.2245 | BV173: -243.324
A174: 70000 | B174: 70 | C174: 1.000241776 | D174: 0.02198760453 | F174: 0.01539667696 | G174: 0.0592629453 | H174: -3.082329705 | J174: 15 | M174: 0.02631530147 | N174: -1.570796325 | O174: 16.60881889 | P174: 1.510550913 | Q174: 8.002018546 | R174: 1.445500277 | S174: 0.9997475339 | T174: -0.02247117076 | U174: 0.9452092328 | V174: -0.3325614136 | X174: -2.344236091 | Y174: -116.3172977 | Z174: 63.68270226 | AC174: 1 | AD174: 16.57868707 | AE174: -0.0007291687402 | AF174: 0.002111150261 | AG174: 6869.790922 | AH174: -2846.4278 | AJ174: 18000 | AK174: 404.5491687 | AL174: 1 | AM174: 7.939288432 | AN174: 331.2676925 | AO174: -2225.480591 | AQ174: 0.5101780521 | AR174: -71.4249273 | AT174: -199801.0821 | AU174: -492126.5021 | AV174: -1.956460419 | AW174: -153726.9383 | AX174: -38434.70401 | AY174: -2.896595811 | BA174: 3.35190749 | BB174: 10.50584048 | BC174: 0.9401353916 | BD174: -126.1342098 | BF174: -2.221694598 | BG174: -121.4788962 | BH174: 58.52110377 | BI174: 58.52110377 | BJ174: 0 | BK174: 0 | BM174: -12.72753508 | BN174: -175.3446864 | BQ174: 27.40780128 | BT174: 4365.158 | BU174: 3.07782 | BV174: -242.172
A175: 70500 | B175: 70.5 | C175: 1.000245242 | D175: 0.02214460769 | F175: 0.01517609108 | G175: 0.05883063538 | H175: -3.082762015 | J175: 15 | M175: 0.02612866812 | N175: -1.570796325 | O175: 16.72702477 | P175: 1.510977163 | Q175: 8.058286305 | R175: 1.446379727 | S175: 0.9997439157 | T175: -0.02263162451 | U175: 0.9444879185 | V175: -0.3347638611 | X175: -2.415569594 | Y175: -116.3936448 | Z175: 63.60635521 | AC175: 1 | AD175: 16.69710626 | AE175: -0.000739622639 | AF175: 0.002126229906 | AG175: 6859.309882 | AH175: -2856.370734 | AJ175: 18000 | AK175: 407.4388056 | AL175: 1 | AM175: 7.995997635 | AN175: 327.3667437 | AO175: -2210.184903 | AQ175: 0.5029675083 | AR175: -70.91841867 | AT175: -199119.2856 | AU175: -487888.0717 | AV175: -1.958287272 | AW175: -151538.2744 | AX175: -37889.3457 | AY175: -2.896584321 | BA175: 3.373531902 | BB175: 10.56169643 | BC175: 0.9382970488 | BD175: -126.2395391 | BF175: -2.291150021 | BG175: -121.5999994 | BH175: 58.40000056 | BI175: 58.40000056 | BJ175: 0 | BK175: 0 | BM175: -12.85284645 | BN175: -175.3604603 | BQ175: 27.46365723 | BT175: 4466.836 | BU175: 2.92332 | BV175: -240.903
A176: 71000 | B176: 71 | C176: 1.000248732 | D176: 0.02230160976 | F176: 0.01496023242 | G176: 0.05840466961 | H176: -3.08318798 | J176: 15 | M176: 0.02594466342 | N176: -1.570796325 | O176: 16.84523364 | P176: 1.511397431 | Q176: 8.114560211 | R176: 1.44724698 | S176: 0.9997402719 | T176: -0.0227920771 | U176: 0.9437631367 | V176: -0.3369629391 | X176: -2.486442539 | Y176: -116.4704769 | Z176: 63.52952311 | AC176: 1 | AD176: 16.81552546 | AE176: -0.0007501509427 | AF176: 0.00214130955 | AG176: 6848.786518 | AH176: -2866.294442 | AJ176: 18000 | AK176: 410.3284426 | AL176: 1 | AM176: 8.052706838 | AN176: 323.5462499 | AO176: -2195.094656 | AQ176: 0.4959087528 | AR176: -70.4190429 | AT176: -198445.3381 | AU176: -483706.4121 | AV176: -1.960116025 | AW176: -149394.8459 | AX176: -37357.69402 | AY176: -2.896557402 | BA176: 3.395120968 | BB176: 10.61710506 | BC176: 0.9364413772 | BD176: -126.3458613 | BF176: -2.360142757 | BG176: -121.7217321 | BH176: 58.27826793 | BI176: 58.27826793 | BJ176: 0 | BK176: 0 | BM176: -12.97724781 | BN176: -175.3758708 | BQ176: 27.51906586 | BT176: 4570.882 | BU176: 2.72669 | BV176: -241.252
A177: 71500 | B177: 71.5 | C177: 1.000252248 | D177: 0.02245861073 | F177: 0.01474896629 | G177: 0.05798490767 | H177: -3.083607742 | J177: 15 | M177: 0.02576323221 | N177: -1.570796325 | O177: 16.96344545 | P177: 1.511811842 | Q177: 8.170840136 | R177: 1.448102287 | S177: 0.9997366023 | T177: -0.02295252852 | U177: 0.9430349165 | V177: -0.339158634 | X177: -2.556862564 | Y177: -116.5477798 | Z177: 63.45222023 | AC177: 1 | AD177: 16.93394465 | AE177: -0.0007607536514 | AF177: 0.002156389195 | AG177: 6838.221365 | AH177: -2876.197807 | AJ177: 18000 | AK177: 413.2180795 | AL177: 1 | AM177: 8.109416041 | AN177: 319.804025 | AO177: -2180.205811 | AQ177: 0.488997555 | AR177: -69.92665037 | AT177: -197779.0049 | AU177: -479580.3682 | AV177: -1.961946553 | AW177: -147295.4261 | AX177: -36839.2999 | AY177: -2.896515314 | BA177: 3.41667437 | BB177: 10.6720718 | BC177: 0.9345687611 | BD177: -126.4531543 | BF177: -2.428680641 | BG177: -121.8440802 | BH177: 58.15591984 | BI177: 58.15591984 | BJ177: 0 | BK177: 0 | BM177: -13.10075244 | BN177: -175.3909259 | BQ177: 27.5740326 | BT177: 4677.351 | BU177: 2.54392 | BV177: -240.638
A178: 72000 | B178: 72 | C178: 1.000255787 | D178: 0.02261561059 | F178: 0.01454216281 | G178: 0.05757121342 | H178: -3.084021437 | J178: 15 | M178: 0.02558432087 | N178: -1.570796325 | O178: 17.08166012 | P178: 1.512220516 | Q178: 8.227125956 | R178: 1.448945891 | S178: 0.999732907 | T178: -0.02311297875 | U178: 0.9423032868 | V178: -0.3413509325 | X178: -2.626837119 | Y178: -116.6255395 | Z178: 63.37446046 | AC178: 1 | AD178: 17.05236384 | AE178: -0.0007714307651 | AF178: 0.00217146884 | AG178: 6827.614961 | AH178: -2886.079744 | AJ178: 18000 | AK178: 416.1077164 | AL178: 1 | AM178: 8.166125244 | AN178: 316.1379563 | AO178: -2165.514429 | AQ178: 0.4822298307 | AR178: -69.44109563 | AT178: -197120.0599 | AU178: -475508.8171 | AV178: -1.963778737 | AW178: -145238.8294 | AX178: -36333.73208 | AY178: -2.896458312 | BA178: 3.438191793 | BB178: 10.72660199 | BC178: 0.9326795747 | BD178: -126.5613967 | BF178: -2.496771322 | BG178: -121.9670301 | BH178: 58.03296993 | BI178: 58.03296993 | BJ178: 0 | BK178: 0 | BM178: -13.22337331 | BN178: -175.4056334 | BQ178: 27.62856279 | BT178: 4786.301 | BU178: 2.53075 | BV178: -240.031
A179: 72500 | B179: 72.5 | C179: 1.000259352 | D179: 0.02277260933 | F179: 0.01433969665 | G179: 0.05716345469 | H179: -3.084429195 | J179: 15 | M179: 0.02540787728 | N179: -1.570796325 | O179: 17.19987762 | P179: 1.512623574 | Q179: 8.283417552 | R179: 1.44977803 | S179: 0.999729186 | T179: -0.02327342779 | U179: 0.9415682767 | V179: -0.3435398215 | X179: -2.696373473 | Y179: -116.7037426 | Z179: 63.29625735 | AC179: 1 | AD179: 17.17078304 | AE179: -0.0007821822838 | AF179: 0.002186548484 | AG179: 6816.967839 | AH179: -2895.939202 | AJ179: 18000 | AK179: 418.9973533 | AL179: 1 | AM179: 8.222834447 | AN179: 312.5460014 | AO179: -2151.016673 | AQ179: 0.4756016361 | AR179: -68.96223723 | AT179: -196468.2852 | AU179: -471490.6667 | AV179: -1.965612459 | AW179: -143223.9096 | AX179: -35840.57632 | AY179: -2.896386641 | BA179: 3.459672926 | BB179: 10.78070086 | BC179: 0.9307741822 | BD179: -126.6705676 | BF179: -2.564422268 | BG179: -122.0905685 | BH179: 57.90943149 | BI179: 57.90943149 | BJ179: 0 | BK179: 0 | BM179: -13.34512313 | BN179: -175.4200009 | BQ179: 27.68266166 | BT179: 4897.788 | BU179: 2.17956 | BV179: -239.481
A180: 73000 | B180: 73 | C180: 1.000262941 | D180: 0.02292960696 | F180: 0.01414144687 | G180: 0.05676150317 | H180: -3.084831147 | J180: 15 | M180: 0.02523385072 | N180: -1.570796325 | O180: 17.31809787 | P180: 1.513021128 | Q180: 8.339714807 | R180: 1.450598935 | S180: 0.9997254393 | T180: -0.02343387564 | U180: 0.9408299151 | V180: -0.3457252879 | X180: -2.76547872 | Y180: -116.7823759 | Z180: 63.21762411 | AC180: 1 | AD180: 17.28920223 | AE180: -0.0007930082074 | AF180: 0.002201628129 | AG180: 6806.280534 | AH180: -2905.775159 | AJ180: 18000 | AK180: 421.8869902 | AL180: 1 | AM180: 8.27954365 | AN180: 309.0261858 | AO180: -2136.708804 | AQ180: 0.4691091617 | AR180: -68.48993761 | AT180: -195823.4708 | AU180: -467524.8549 | AV180: -1.967447605 | AW180: -141249.5582 | AX180: -35359.43458 | AY180: -2.896300544 | BA180: 3.481117459 | BB180: 10.83437355 | BC180: 0.9288529384 | BD180: -126.7806468 | BF180: -2.631640769 | BG180: -122.2146825 | BH180: 57.7853175 | BI180: 57.7853175 | BJ180: 0 | BK180: 0 | BM180: -13.46601432 | BN180: -175.4340357 | BQ180: 27.73633435 | BT180: 5011.872 | BU180: 2.08934 | BV180: -238.507
A181: 73500 | B181: 73.5 | C181: 1.000266555 | D181: 0.02308660345 | F181: 0.01394729674 | G181: 0.05636523426 | H181: -3.085227416 | J181: 15 | M181: 0.02506219187 | N181: -1.570796325 | O181: 17.43632082 | P181: 1.513413291 | Q181: 8.396017606 | R181: 1.451408831 | S181: 0.9997216669 | T181: -0.02359432228 | U181: 0.9400882311 | V181: -0.347907319 | X181: -2.834159785 | Y181: -116.8614264 | Z181: 63.13857363 | AC181: 1 | AD181: 17.40762142 | AE181: -0.0008039085361 | AF181: 0.002216707774 | AG181: 6795.55358 | AH181: -2915.586622 | AJ181: 18000 | AK181: 424.7766272 | AL181: 1 | AM181: 8.336252853 | AN181: 305.5765999 | AO181: -2122.587176 | AQ181: 0.4627487274 | AR181: -68.02406293 | AT181: -195185.4141 | AU181: -463610.3484 | AV181: -1.969284065 | AW181: -139314.7035 | AX181: -34889.9243 | AY181: -2.896200254 | BA181: 3.502525086 | BB181: 10.88762509 | BC181: 0.9269161887 | BD181: -126.8916144 | BF181: -2.69843395 | BG181: -122.3393594 | BH181: 57.66064062 | BI181: 57.66064062 | BJ181: 0 | BK181: 0 | BM181: -13.58605904 | BN181: -175.447745 | BQ181: 27.78958589 | BT181: 5128.614 | BU181: 1.79547 | BV181: -237.881
A182: 74000 | B182: 74 | C182: 1.000270193 | D182: 0.02324359881 | F182: 0.01375713356 | G182: 0.05597452695 | H182: -3.085618123 | J182: 15 | M182: 0.02489285274 | N182: -1.570796325 | O182: 17.55454641 | P182: 1.513800173 | Q182: 8.452325839 | R182: 1.452207936 | S182: 0.9997178688 | T182: -0.0237547677 | U182: 0.9393432537 | V182: -0.3500859022 | X182: -2.902423426 | Y182: -116.9408815 | Z182: 63.05911848 | AC182: 1 | AD182: 17.52604062 | AE182: -0.0008148832697 | AF182: 0.002231787419 | AG182: 6784.78751 | AH182: -2925.37263 | AJ182: 18000 | AK182: 427.6662641 | AL182: 1 | AM182: 8.392962056 | AN182: 302.1953965 | AO182: -2108.648232 | AQ182: 0.456516777 | AR182: -67.56448299 | AT182: -194553.92 | AU182: -459746.142 | AV182: -1.971121729 | AW182: -137418.3084 | AX182: -34431.67772 | AY182: -2.896085999 | BA182: 3.523895502 | BB182: 10.94046043 | BC182: 0.9249642698 | BD182: -127.0034511 | BF182: -2.764808766 | BG182: -122.4645868 | BH182: 57.53541319 | BI182: 57.53541319 | BJ182: 0 | BK182: 0 | BM182: -13.70526919 | BN182: -175.4611357 | BQ182: 27.84242123 | BT182: 5248.075 | BU182: 1.60241 | BV182: -238.28
A183: 74500 | B183: 74.5 | C183: 1.000273856 | D183: 0.02340059301 | F183: 0.01357084848 | G183: 0.05558926364 | H183: -3.086003386 | J183: 15 | M183: 0.02472578661 | N183: -1.570796325 | O183: 17.6727746 | P183: 1.514181878 | Q183: 8.508639397 | R183: 1.452996464 | S183: 0.9997140449 | T183: -0.0239152119 | U183: 0.9385950119 | V183: -0.3522610249 | X183: -2.970276244 | Y183: -117.0207291 | Z183: 62.97927092 | AC183: 1 | AD183: 17.64445981 | AE183: -0.0008259324082 | AF183: 0.002246867063 | AG183: 6773.982855 | AH183: -2935.132247 | AJ183: 18000 | AK183: 430.555901 | AL183: 1 | AM183: 8.44967126 | AN183: 298.8807885 | AO183: -2094.888507 | AQ183: 0.450409873 | AR183: -67.11107107 | AT183: -193928.8001 | AU183: -455931.2574 | AV183: -1.972960492 | AW183: -135559.3698 | AX183: -33984.34117 | AY183: -2.895958002 | BA183: 3.545228405 | BB183: 10.99288441 | BC183: 0.9229975098 | BD183: -127.1161381 | BF183: -2.830772018 | BG183: -122.5903527 | BH183: 57.40964729 | BI183: 57.40964729 | BJ183: 0 | BK183: 0 | BM183: -13.82365642 | BN183: -175.4742146 | BQ183: 27.89484521 | BT183: 5370.318 | BU183: 1.48515 | BV183: -237.347
A184: 75000 | B184: 75 | C184: 1.000277544 | D184: 0.02355758607 | F184: 0.01338833637 | G184: 0.0552093301 | H184: -3.08638332 | J184: 15 | M184: 0.02456094804 | N184: -1.570796325 | O184: 17.79100532 | P184: 1.514558509 | Q184: 8.564958177 | R184: 1.453774623 | S184: 0.9997101954 | T184: -0.02407565487 | U184: 0.9378435347 | V184: -0.3544326749 | X184: -3.037724684 | Y184: -117.1009571 | Z184: 62.89904291 | AC184: 1 | AD184: 17.762879 | AE184: -0.0008370559518 | AF184: 0.002261946708 | AG184: 6763.140146 | AH184: -2944.864567 | AJ184: 18000 | AK184: 433.4455379 | AL184: 1 | AM184: 8.506380463 | AN184: 295.6310464 | AO184: -2081.30462 | AQ184: 0.4444246922 | AR184: -66.66370384 | AT184: -193309.8728 | AU184: -452164.7422 | AV184: -1.974800251 | AW184: -133736.9166 | AX184: -33547.57444 | AY184: -2.89581648 | BA184: 3.566523495 | BB184: 11.04490179 | BC184: 0.9210162284 | BD184: -127.2296572 | BF184: -2.896330349 | BG184: -122.7166453 | BH184: 57.28335468 | BI184: 57.28335468 | BJ184: 0 | BK184: 0 | BM184: -13.94123214 | BN184: -175.4869881 | BQ184: 27.94686259 | BT184: 5495.409 | BU184: 1.35836 | BV184: -235.612
A185: 75500 | B185: 75.5 | C185: 1.000281257 | D185: 0.02371457796 | F185: 0.01320949562 | G185: 0.05483461527 | H185: -3.086758035 | J185: 15 | M185: 0.02439829275 | N185: -1.570796325 | O185: 17.90923854 | P185: 1.514930168 | Q185: 8.621282075 | R185: 1.454542615 | S185: 0.9997063202 | T185: -0.0242360966 | U185: 0.937088851 | V185: -0.3566008401 | X185: -3.104775042 | Y185: -117.1815539 | Z185: 62.81844612 | AC185: 1 | AD185: 17.8812982 | AE185: -0.0008482539003 | AF185: 0.002277026353 | AG185: 6752.259915 | AH185: -2954.568708 | AJ185: 18000 | AK185: 436.3351748 | AL185: 1 | AM185: 8.563089666 | AN185: 292.4444966 | AO185: -2067.893272 | AQ185: 0.4385580212 | AR185: -66.22226121 | AT185: -192696.963 | AU185: -448445.6696 | AV185: -1.976640906 | AW185: -131950.0089 | AX185: -33121.05022 | AY185: -2.895661643 | BA185: 3.587780475 | BB185: 11.09651724 | BC185: 0.9190207373 | BD185: -127.3439904 | BF185: -2.961490252 | BG185: -122.8434531 | BH185: 57.15654685 | BI185: 57.15654685 | BJ185: 0 | BK185: 0 | BM185: -14.05800749 | BN185: -175.4994627 | BQ185: 27.99847804 | BT185: 5623.413 | BU185: 1.07298 | BV185: -235.138
A186: 76000 | B186: 76 | C186: 1.000284994 | D186: 0.02387156869 | F186: 0.01303422807 | G186: 0.05446501121 | H186: -3.087127639 | J186: 15 | M186: 0.02423777767 | N186: -1.570796325 | O186: 18.0274742 | P186: 1.515296952 | Q186: 8.677610993 | R186: 1.455300636 | S186: 0.9997024192 | T186: -0.02439653708 | U186: 0.93633099 | V186: -0.3587655084 | X186: -3.171433469 | Y186: -117.2625081 | Z186: 62.73749194 | AC186: 1 | AD186: 17.99971739 | AE186: -0.0008595262537 | AF186: 0.002292105997 | AG186: 6741.342689 | AH186: -2964.243815 | AJ186: 18000 | AK186: 439.2248118 | AL186: 1 | AM186: 8.619798869 | AN186: 289.3195184 | AO186: -2054.651245 | AQ186: 0.4328067518 | AR186: -65.78662627 | AT186: -192089.9014 | AU186: -444773.1368 | AV186: -1.978482358 | AW186: -130197.7369 | AX186: -32704.4535 | AY186: -2.895493698 | BA186: 3.608999049 | BB186: 11.14773535 | BC186: 0.9170113403 | BD186: -127.4591204 | BF186: -3.026258077 | BG186: -122.970765 | BH186: 57.02923504 | BI186: 57.02923504 | BJ186: 0 | BK186: 0 | BM186: -14.17399343 | BN186: -175.5116446 | BQ186: 28.04969615 | BT186: 5754.399 | BU186: 0.869153 | BV186: -234.689
A187: 76500 | B187: 76.5 | C187: 1.000288755 | D187: 0.02402855824 | F187: 0.0128624388 | G187: 0.05410041295 | H187: -3.087492237 | J187: 15 | M187: 0.02407936082 | N187: -1.570796325 | O187: 18.14571225 | P187: 1.515658956 | Q187: 8.733944832 | R187: 1.45604888 | S187: 0.9996984926 | T187: -0.0245569763 | U187: 0.9355699806 | V187: -0.3609266682 | X187: -3.237705973 | Y187: -117.3438085 | Z187: 62.65619151 | AC187: 1 | AD187: 18.11813658 | AE187: -0.0008708730122 | AF187: 0.002307185642 | AG187: 6730.388997 | AH187: -2973.889059 | AJ187: 18000 | AK187: 442.1144487 | AL187: 1 | AM187: 8.676508072 | AN187: 286.2545428 | AO187: -2041.575402 | AQ187: 0.427167877 | AR187: -65.35668518 | AT187: -191488.525 | AU187: -441146.2647 | AV187: -1.980324511 | AW187: -128479.2194 | AX187: -32297.48103 | AY187: -2.895312845 | BA187: 3.630178926 | BB187: 11.19856062 | BC187: 0.9149883338 | BD187: -127.5750301 | BF187: -3.090640032 | BG187: -123.0985698 | BH187: 56.9014302 | BI187: 56.9014302 | BJ187: 0 | BK187: 0 | BM187: -14.28920066 | BN187: -175.5235397 | BQ187: 28.10052142 | BT187: 5888.437 | BU187: 0.803236 | BV187: -233.954
A188: 77000 | B188: 77 | C188: 1.000292542 | D188: 0.0241855466 | F188: 0.01269403605 | G188: 0.0537407184 | H188: -3.087851932 | J188: 15 | M188: 0.02392300133 | N188: -1.570796325 | O188: 18.26395265 | P188: 1.516016273 | Q188: 8.790283498 | R188: 1.456787532 | S188: 0.9996945403 | T188: -0.02471741426 | U188: 0.9348058517 | V188: -0.3630843078 | X188: -3.303598428 | Y188: -117.4254443 | Z188: 62.57455566 | AC188: 1 | AD188: 18.23655578 | AE188: -0.0008822941756 | AF188: 0.002322265287 | AG188: 6719.399366 | AH188: -2983.503635 | AJ188: 18000 | AK188: 445.0040856 | AL188: 1 | AM188: 8.733217275 | AN188: 283.2480501 | AO188: -2028.662679 | AQ188: 0.4216384872 | AR188: -64.93232702 | AT188: -190892.6763 | AU188: -437564.197 | AV188: -1.982167274 | AW188: -126793.603 | AX188: -31899.84081 | AY188: -2.895119281 | BA188: 3.651319813 | BB188: 11.24899747 | BC188: 0.912952007 | BD188: -127.691703 | BF188: -3.154642186 | BG188: -123.2268569 | BH188: 56.77314306 | BI188: 56.77314306 | BJ188: 0 | BK188: 0 | BM188: -14.40363966 | BN188: -175.5351539 | BQ188: 28.15095827 | BT188: 6025.596 | BU188: 0.769928 | BV188: -234.147
A189: 77500 | B189: 77.5 | C189: 1.000296353 | D189: 0.02434253377 | F189: 0.01252893107 | G189: 0.05338582827 | H189: -3.088206822 | J189: 15 | M189: 0.02376865939 | N189: -1.570796325 | O189: 18.38219536 | P189: 1.516368992 | Q189: 8.846626899 | R189: 1.457516777 | S189: 0.9996905622 | T189: -0.02487785095 | U189: 0.9340386323 | V189: -0.3652384157 | X189: -3.369116573 | Y189: -117.507405 | Z189: 62.49259499 | AC189: 1 | AD189: 18.35497497 | AE189: -0.000893789744 | AF189: 0.002337344932 | AG189: 6708.374322 | AH189: -2993.08676 | AJ189: 18000 | AK189: 447.8937225 | AL189: 1 | AM189: 8.789926478 | AN189: 280.2985683 | AO189: -2015.910085 | AQ189: 0.4162157663 | AR189: -64.51344377 | AT189: -190302.2032 | AU189: -434026.0995 | AV189: -1.984010553 | AW189: -125140.0609 | AX189: -31511.25161 | AY189: -2.894913195 | BA189: 3.672421422 | BB189: 11.29905024 | BC189: 0.9109026417 | BD189: -127.809123 | BF189: -3.218270478 | BG189: -123.3556159 | BH189: 56.64438407 | BI189: 56.64438407 | BJ189: 0 | BK189: 0 | BM189: -14.51732072 | BN189: -175.5464929 | BQ189: 28.20101104 | BT189: 6165.95 | BU189: 0.469478 | BV189: -232.056
A190: 78000 | B190: 78 | C190: 1.000300188 | D190: 0.02449951974 | F190: 0.012367038 | G190: 0.05303564595 | H190: -3.088557004 | J190: 15 | M190: 0.02361629619 | N190: -1.570796325 | O190: 18.50044032 | P190: 1.516717204 | Q190: 8.902974945 | R190: 1.45823679 | S190: 0.9996865585 | T190: -0.02503828636 | U190: 0.9332683514 | V190: -0.3673889807 | X190: -3.43426602 | Y190: -117.5896801 | Z190: 62.41031986 | AC190: 1 | AD190: 18.47339416 | AE190: -0.0009053597174 | AF190: 0.002352424576 | AG190: 6697.314389 | AH190: -3002.637676 | AJ190: 18000 | AK190: 450.7833594 | AL190: 1 | AM190: 8.846635681 | AN190: 277.4046712 | AO190: -2003.314703 | AQ190: 0.4108969881 | AR190: -64.09993015 | AT190: -189716.959 | AU190: -430531.1593 | AV190: -1.985854262 | AW190: -123517.7919 | AX190: -31131.44251 | AY190: -2.894694775 | BA190: 3.693483467 | BB190: 11.34872319 | BC190: 0.9088405131 | BD190: -127.9272743 | BF190: -3.281530717 | BG190: -123.4848365 | BH190: 56.51516347 | BI190: 56.51516347 | BJ190: 0 | BK190: 0 | BM190: -14.6302539 | BN190: -175.5575622 | BQ190: 28.25068399 | BT190: 6309.573 | BU190: 0.369853 | BV190: -231.369
A191: 78500 | B191: 78.5 | C191: 1.000304049 | D191: 0.0246565045 | F191: 0.01220827378 | G191: 0.05269007743 | H191: -3.088902573 | J191: 15 | M191: 0.02346587392 | N191: -1.570796325 | O191: 18.61868749 | P191: 1.517060992 | Q191: 8.959327549 | R191: 1.458947747 | S191: 0.999682529 | T191: -0.02519872047 | U191: 0.9324950378 | V191: -0.3695359917 | X191: -3.499052254 | Y191: -117.6722596 | Z191: 62.32774036 | AC191: 1 | AD191: 18.59181336 | AE191: -0.0009170040958 | AF191: 0.002367504221 | AG191: 6686.220092 | AH191: -3012.155647 | AJ191: 18000 | AK191: 453.6729964 | AL191: 1 | AM191: 8.903344884 | AN191: 274.5649766 | AO191: -1990.873683 | AQ191: 0.4056795132 | AR191: -63.69168357 | AT191: -189136.8018 | AU191: -427078.5842 | AV191: -1.987698313 | AW191: -121926.0199 | AX191: -30760.15242 | AY191: -2.894464203 | BA191: 3.714505664 | BB191: 11.3980205 | BC191: 0.9067658898 | BD191: -128.0461414 | BF191: -3.344428588 | BG191: -123.6145087 | BH191: 56.38549126 | BI191: 56.38549126 | BJ191: 0 | BK191: 0 | BM191: -14.74244908 | BN191: -175.5683673 | BQ191: 28.2999813 | BT191: 6456.542 | BU191: 0.127676 | BV191: -230.779
A192: 79000 | B192: 79 | C192: 1.000307934 | D192: 0.02481348805 | F192: 0.01205255802 | G192: 0.05234903119 | H192: -3.089243619 | J192: 15 | M192: 0.02331735573 | N192: -1.570796325 | O192: 18.73693684 | P192: 1.517400441 | Q192: 9.015684624 | R192: 1.459649815 | S192: 0.9996784739 | T192: -0.02535915329 | U192: 0.9317187205 | V192: -0.3716794376 | X192: -3.563480641 | Y192: -117.7551336 | Z192: 62.24486636 | AC192: 1 | AD192: 18.71023255 | AE192: -0.0009287228791 | AF192: 0.002382583866 | AG192: 6675.091952 | AH192: -3021.639959 | AJ192: 18000 | AK192: 456.5626333 | AL192: 1 | AM192: 8.960054087 | AN192: 271.778145 | AO192: -1978.584245 | AQ192: 0.4005607851 | AR192: -63.28860405 | AT192: -188561.5949 | AU192: -423667.602 | AV192: -1.989542621 | AW192: -120363.9921 | AX192: -30397.1297 | AY192: -2.894221655 | BA192: 3.735487729 | BB192: 11.44694628 | BC192: 0.9046790339 | BD192: -128.1657095 | BF192: -3.406969651 | BG192: -123.7446228 | BH192: 56.25537721 | BI192: 56.25537721 | BJ192: 0 | BK192: 0 | BM192: -14.85391593 | BN192: -175.5789133 | BQ192: 28.34890708 | BT192: 6606.934 | BU192: 0.0369381 | BV192: -229.609
A193: 79500 | B193: 79.5 | C193: 1.000311843 | D193: 0.02497047037 | F193: 0.01189981292 | G193: 0.05201241817 | H193: -3.089580232 | J193: 15 | M193: 0.02317070569 | N193: -1.570796325 | O193: 18.85518832 | P193: 1.517735632 | Q193: 9.072046089 | R193: 1.460343161 | S193: 0.9996743931 | T193: -0.02551958481 | U193: 0.9309394283 | V193: -0.3738193079 | X193: -3.627556426 | Y193: -117.8382925 | Z193: 62.1617075 | AC193: 1 | AD193: 18.82865174 | AE193: -0.0009405160674 | AF193: 0.00239766351 | AG193: 6663.93049 | AH193: -3031.08992 | AJ193: 18000 | AK193: 459.4522702 | AL193: 1 | AM193: 9.01676329 | AN193: 269.0428777 | AO193: -1966.443673 | AQ193: 0.3955383277 | AR193: -62.8905941 | AT193: -187991.2059 | AU193: -420297.4598 | AV193: -1.991387104 | AW193: -118830.9792 | AX193: -30042.13177 | AY193: -2.893967306 | BA193: 3.756429383 | BB193: 11.49550458 | BC193: 0.9025802012 | BD193: -128.2859637 | BF193: -3.469159353 | BG193: -123.8751691 | BH193: 56.12483088 | BI193: 56.12483088 | BJ193: 0 | BK193: 0 | BM193: -14.96466393 | BN193: -175.5892054 | BQ193: 28.39746538 | BT193: 6760.83 | BU193: -0.0490191 | BV193: -229.1
A194: 80000 | B194: 80 | C194: 1.000315777 | D194: 0.02512745147 | F194: 0.01174996311 | G194: 0.05168015162 | H194: -3.089912498 | J194: 15 | M194: 0.02302588878 | N194: -1.570796325 | O194: 18.97344189 | P194: 1.518066645 | Q194: 9.12841186 | R194: 1.461027944 | S194: 0.9996702865 | T194: -0.02568001501 | U194: 0.9301571901 | V194: -0.3759555918 | X194: -3.691284743 | Y194: -117.9217268 | Z194: 62.0782732 | AC194: 1 | AD194: 18.94707094 | AE194: -0.0009523836607 | AF194: 0.002412743155 | AG194: 6652.736225 | AH194: -3040.504856 | AJ194: 18000 | AK194: 462.3419071 | AL194: 1 | AM194: 9.073472494 | AN194: 266.3579156 | AO194: -1954.449313 | AQ194: 0.3906097418 | AR194: -62.49755869 | AT194: -187425.5071 | AU194: -416967.4235 | AV194: -1.993231682 | AW194: -117326.2737 | AX194: -29694.92467 | AY194: -2.893701324 | BA194: 3.777330348 | BB194: 11.54369936 | BC194: 0.9004696418 | BD194: -128.4068899 | BF194: -3.531003022 | BG194: -124.0061384 | BH194: 55.99386161 | BI194: 55.99386161 | BJ194: 0 | BK194: 0 | BM194: -15.07470238 | BN194: -175.5992485 | BQ194: 28.44566016 | BT194: 6918.31 | BU194: -0.217983 | BV194: -228.376
A195: 80500 | B195: 80.5 | C195: 1.000319736 | D195: 0.02528443132 | F195: 0.01160293566 | G195: 0.05135214709 | H195: -3.090240503 | J195: 15 | M195: 0.02288287084 | N195: -1.570796325 | O195: 19.09169751 | P195: 1.518393557 | Q195: 9.18478186 | R195: 1.461704322 | S195: 0.9996661543 | T195: -0.02584044389 | U195: 0.9293720347 | V195: -0.3780882788 | X195: -3.754670611 | Y195: -118.0054273 | Z195: 61.99457265 | AC195: 1 | AD195: 19.06549013 | AE195: -0.0009643256589 | AF195: 0.0024278228 | AG195: 6641.509677 | AH195: -3049.884116 | AJ195: 18000 | AK195: 465.231544 | AL195: 1 | AM195: 9.130181697 | AN195: 263.7220375 | AO195: -1942.598576 | AQ195: 0.3857727027 | AR195: -62.10940514 | AT195: -186864.3751 | AU195: -413676.7773 | AV195: -1.995076275 | AW195: -115849.1894 | AX195: -29355.28276 | AY195: -2.893423874 | BA195: 3.798190347 | BB195: 11.59153451 | BC195: 0.8983475995 | BD195: -128.528474 | BF195: -3.592505875 | BG195: -124.1375215 | BH195: 55.86247855 | BI195: 55.86247855 | BJ195: 0 | BK195: 0 | BM195: -15.18404039 | BN195: -175.6090475 | BQ195: 28.49349531 | BT195: 7079.458 | BU195: -0.384014 | BV195: -227.044
A196: 81000 | B196: 81 | C196: 1.00032372 | D196: 0.02544140993 | F196: 0.01145865988 | G196: 0.05102832231 | H196: -3.090564328 | J196: 15 | M196: 0.02274161855 | N196: -1.570796325 | O196: 19.20995515 | P196: 1.518716445 | Q196: 9.24115601 | R196: 1.462372448 | S196: 0.9996619964 | T196: -0.02600087143 | U196: 0.9285839908 | V196: -0.3802173588 | X196: -3.817718943 | Y196: -118.0893852 | Z196: 61.91061485 | AC196: 1 | AD196: 19.18390932 | AE196: -0.0009763420621 | AF196: 0.002442902445 | AG196: 6630.251361 | AH196: -3059.227069 | AJ196: 18000 | AK196: 468.121181 | AL196: 1 | AM196: 9.1868909 | AN196: 261.1340591 | AO196: -1930.88893 | AQ196: 0.3810249571 | AR196: -61.72604306 | AT196: -186307.6905 | AU196: -410424.8228 | AV196: -1.996920806 | AW196: -114399.0609 | AX196: -29022.98836 | AY196: -2.893135119 | BA196: 3.819009105 | BB196: 11.63901388 | BC196: 0.8962143127 | BD196: -128.6507023 | BF196: -3.653673024 | BG196: -124.2693094 | BH196: 55.73069064 | BI196: 55.73069064 | BJ196: 0 | BK196: 0 | BM196: -15.2926869 | BN196: -175.6186071 | BQ196: 28.54097468 | BT196: 7244.36 | BU196: -0.57486 | BV196: -226.239
A197: 81500 | B197: 81.5 | C197: 1.000327728 | D197: 0.02559838728 | F197: 0.01131706733 | G197: 0.05070859712 | H197: -3.090884053 | J197: 15 | M197: 0.02260209942 | N197: -1.570796325 | O197: 19.32821477 | P197: 1.519035381 | Q197: 9.297534235 | R197: 1.463032472 | S197: 0.9996578128 | T197: -0.02616129764 | U197: 0.9277930872 | V197: -0.3823428217 | X197: -3.880434547 | Y197: -118.1735914 | Z197: 61.82640856 | AC197: 1 | AD197: 19.30232852 | AE197: -0.0009884328703 | AF197: 0.002457982089 | AG197: 6618.961792 | AH197: -3068.533101 | AJ197: 18000 | AK197: 471.0108179 | AL197: 1 | AM197: 9.243600103 | AN197: 258.5928312 | AO197: -1919.317903 | AQ197: 0.3763643207 | AR197: -61.34738427 | AT197: -185755.3382 | AU197: -407210.8789 | AV197: -1.998765202 | AW197: -112975.2425 | AX197: -28697.83141 | AY197: -2.892835216 | BA197: 3.839786351 | BB197: 11.68614121 | BC197: 0.8940700144 | BD197: -128.7735615 | BF197: -3.714509471 | BG197: -124.4014934 | BH197: 55.59850663 | BI197: 55.59850663 | BJ197: 0 | BK197: 0 | BM197: -15.40065068 | BN197: -175.6279318 | BQ197: 28.58810201 | BT197: 7413.102 | BU197: -0.7333 | BV197: -225.834
A198: 82000 | B198: 82 | C198: 1.000331761 | D198: 0.02575536338 | F198: 0.01117809165 | G198: 0.05039289344 | H198: -3.091199757 | J198: 15 | M198: 0.02246428174 | N198: -1.570796325 | O198: 19.44647633 | P198: 1.519350438 | Q198: 9.353916462 | R198: 1.463684539 | S198: 0.9996536035 | T198: -0.02632172251 | U198: 0.9269993527 | V198: -0.3844646574 | X198: -3.942822127 | Y198: -118.2580376 | Z198: 61.74196239 | AC198: 1 | AD198: 19.42074771 | AE198: -0.001000598083 | AF198: 0.002473061734 | AG198: 6607.641485 | AH198: -3077.801618 | AJ198: 18000 | AK198: 473.9004548 | AL198: 1 | AM198: 9.300309306 | AN198: 256.0972389 | AO198: -1907.88308 | AQ198: 0.3717886753 | AR198: -60.97334275 | AT198: -185207.2067 | AU198: -404034.2808 | AV198: -2.000609387 | AW198: -111577.1076 | AX198: -28379.60913 | AY198: -2.892524319 | BA198: 3.860521814 | BB198: 11.73292021 | BC198: 0.891914932 | BD198: -128.8970387 | BF198: -3.775020118 | BG198: -124.5340649 | BH198: 55.46593508 | BI198: 55.46593508 | BJ198: 0 | BK198: 0 | BM198: -15.50794033 | BN198: -175.6370263 | BQ198: 28.63488102 | BT198: 7585.776 | BU198: -0.870902 | BV198: -224.429
A199: 82500 | B199: 82.5 | C199: 1.000335819 | D199: 0.0259123382 | F199: 0.01104166856 | G199: 0.05008113516 | H199: -3.091511515 | J199: 15 | M199: 0.02232813458 | N199: -1.570796325 | O199: 19.5647398 | P199: 1.519661687 | Q199: 9.410302619 | R199: 1.464328792 | S199: 0.9996493685 | T199: -0.02648214601 | U199: 0.9262028158 | V199: -0.3865828561 | X199: -4.004886289 | Y199: -118.3427153 | Z199: 61.65728471 | AC199: 1 | AD199: 19.5391669 | AE199: -0.001012837702 | AF199: 0.002488141379 | AG199: 6596.290951 | AH199: -3087.032044 | AJ199: 18000 | AK199: 476.7900917 | AL199: 1 | AM199: 9.357018509 | AN199: 253.6462002 | AO199: -1896.582099 | AQ199: 0.3672959671 | AR199: -60.60383457 | AT199: -184663.1882 | AU199: -400894.38 | AV199: -2.002453291 | AW199: -110204.0481 | AX199: -28068.1258 | AY199: -2.892202579 | BA199: 3.881215224 | BB199: 11.77935453 | BC199: 0.8897492879 | BD199: -129.0211209 | BF199: -3.835209767 | BG199: -124.6670156 | BH199: 55.33298438 | BI199: 55.33298438 | BJ199: 0 | BK199: 0 | BM199: -15.61456429 | BN199: -175.6458947 | BQ199: 28.68131533 | BT199: 7762.471 | BU199: -1.03486 | BV199: -223.255
A200: 83000 | B200: 83 | C200: 1.000339901 | D200: 0.02606931174 | F200: 0.01090773572 | G200: 0.04977324809 | H200: -3.091819402 | J200: 15 | M200: 0.02219362774 | N200: -1.570796325 | O200: 19.68300513 | P200: 1.519969195 | Q200: 9.466692634 | R200: 1.46496537 | S200: 0.9996451078 | T200: -0.02664256816 | U200: 0.9254035053 | V200: -0.3886974084 | X200: -4.066631542 | Y200: -118.4276163 | Z200: 61.57238373 | AC200: 1 | AD200: 19.6575861 | AE200: -0.001025151725 | AF200: 0.002503221024 | AG200: 6584.910701 | AH200: -3096.223821 | AJ200: 18000 | AK200: 479.6797286 | AL200: 1 | AM200: 9.413727712 | AN200: 251.2386648 | AO200: -1885.412652 | AQ200: 0.3628842037 | AR200: -60.23877781 | AT200: -184123.1787 | AU200: -397790.5433 | AV200: -2.004296843 | AW200: -108855.4737 | AX200: -27763.1924 | AY200: -2.891870143 | BA200: 3.901866317 | BB200: 11.82544772 | BC200: 0.8875732996 | BD200: -129.1457959 | BF200: -3.895083122 | BG200: -124.8003373 | BH200: 55.19966272 | BI200: 55.19966272 | BJ200: 0 | BK200: 0 | BM200: -15.72053084 | BN200: -175.6545414 | BQ200: 28.72740852 | BT200: 7943.282 | BU200: -1.2308 | BV200: -223.135
A201: =A200+500 -> 83500 | B201: 83.5 | C201: =SQRT((A201/Fesr)^2+1) -> 1.000344008 | D201: =ATAN(A201/Fesr) -> 0.026226284 | F201: =(Ro/(Ro+Rdcr))/SQRT((A201/(Q*Fo))^2+(1-(A201^2/Fo^2))^2) -> 0.01077623271 | G201: =-ATAN(A201*Fo/(Q*(Fo^2-A201^2))) -> 0.04946915993 | H201: =IF(G201>0,G201-Pi,G201) -> -3.09212349 | J201: =Vin/Vramp -> 15 | M201: =1/(2*Pi*_Rfb1*(Cc1ea_u+Cc2ea_u)*A201) -> 0.02206073177 | N201: =-Pi/2 -> -1.570796325 | O201: =SQRT(1+(A201/Fz1_u)^2) -> 19.80127231 | P201: =ATAN2(Fz1_u,A201) -> 1.52027303 | Q201: =SQRT(1+(A201/Fz2_u)^2) -> 9.523086441 | R201: =ATAN2(Fz2_u,A201) -> 1.465594409 | S201: =1/SQRT(1+(A201/Fp1_u)^2) -> 0.9996408214 | T201: =-ATAN2(Fp1_u,A201) -> -0.02680298893 | U201: =1/SQRT(1+(A201/Fp2_u)^2) -> 0.9246014497 | V201: =-ATAN2(Fp2_u,A201) -> -0.3908083047 | X201: -4.128062301 | Y201: =(180/Pi)*(D201+H201+N201+P201+R201+T201+V201) -> -118.5127325 | Z201: 61.48726746 | AC201: 1 | AD201: =Rcea1_u*Cc1ea_u*A201*2*Pi -> 19.77600529 | AE201: =-Rcea1_u*Cc1ea_u*Cc2ea_u*(A201*2*Pi)^2 -> -0.001037540153 | AF201: =(Cc2ea_u+Cc1ea_u)*A201*2*Pi -> 0.002518300668 | AG201: 6573.501244 | AH201: -3105.376409 | AJ201: =_Rfb1 -> 18000 | AK201: =_Rfb1*Rcea2_u*Cc3ea_u*A201*2*Pi -> 482.5693656 | AL201: 1 | AM201: =(_Rfb1+Rcea2_u)*Cc3ea_u*A201*2*Pi -> 9.470436915 | AN201: 248.873613 | AO201: -1874.372486 | AQ201: =Eadcg/(1+(Eadcg*A201/GBP)^2) -> 0.3585514521 | AR201: =-(A201*Eadcg*Eadcg/GBP)/(1+(Eadcg*A201/GBP)^2) -> -59.87809251 | AT201: -183587.0775 | AU201: -394722.1528 | AV201: -2.006139976 | AW201: -107530.8114 | AX201: -27464.62638 | AY201: -2.891527155 | BA201: =SQRT(AT201^2+AU201^2)/SQRT(AW201^2+AX201^2) -> 3.922474826 | BB201: 11.8712033 | BC201: 0.8853871794 | BD201: =BC201*180/Pi-180 -> -129.2710513 | BF201: =20*LOG(BA201*J201*F201*C201) -> -3.954644795 | BG201: =(180/Pi)*(D201+H201+BC201) -> -124.9340219 | BH201: 55.06597814 | BI201: 55.06597814 | BJ201: =SUM((BF202<0)*(BF201>0))*A201 -> 0 | BK201: 0 | BM201: -15.82584809 | BN201: =(H201+D201)*180/Pi -> -175.6629705 | BQ201: 28.7731641 | BT201: 8128.305 | BU201: -1.35261 | BV201: -221.982
... 491 more rows

Sheet Schematic Management (hidden)
A2: =IF(RDSON_sense=1, "SCH_RDSON", "SCH_SHUNT") -> SCH_RDSON

Sheet Power Calculations (hidden)
A1: BUCK CONTROLLER POWER TOOL
AG3: =VsdBot -> 0.9
A6: Enter the values of your design and FET datasheet specifications below. Note that thermal resistance ("Theta JA") will change when components are placed on the PCB | BH6: 80 | BI6: 100 | BJ6: 120 | BK6: 140 | BL6: 160 | BM6: 180 | BN6: 20 | BO6: 30 | BP6: 40 | BQ6: 50
G7: Currents | N7: INDUCTOR | R7: Cout | U7: Cin | X7: HIGH SIDE FET losses | AD7: LOW SIDE FET Losses | AH7: Shunt | AI7: External Diode | AJ7: Diod/eFET | AK7: Part Losses | AO7: RESULSTS
A8: Input Parameters | G8: Step | H8: Iout | I8: Duty Cycle | J8: Current Ripple p-p | K8: Peak Inductor Current | L8: Valley Inductor Current | M8: SW node voltage at Q1 turn-on | N8: IRMS | O8: DCR Loss | P8: Core | Q8: Total Inductor Loss/Diss | R8: Irms | S8: Cout Esr Loss | T8: Total Cout Loss/Diss | U8: Irms | V8: Cin Esr Loss | W8: Total Cin Loss/Diss | X8: Irms | Y8: RDSON Loss | Z8: Transitional Loss (not including capacitive loss) | AA8: MOSFET Output Capacitance Loss | AB8: Dead Time Loss | AC8: Total Top FET Loss/Diss | AD8: Irms | AE8: RDSON Loss | AF8: DeadTime Loss | AG8: Total Bottom FET Diss/Loss | AH8: Shunt Loss (if applicable) | AI8: DeadTime Loss | AJ8: Reverse Recovery Loss | AK8: IQ Loss | AL8: Switching Current Loss | AM8: Switching Current Diss | AN8: Total Part Loss | AO8: Total Loss | AP8: OUTPUT POWER | AQ8: EFF | AR8: Top FET Temp Rise | AS8: Bottom FET Temp Rise | BF8: Qg | BH8: θJA=80 | BI8: θJA=100 | BJ8: θJA=120 | BK8: θJA=140 | BL8: θJA=160 | BM8: θJA=180 | BN8: θJA=20 | BO8: θJA=30 | BP8: θJA=40 | BQ8: θJA=50
A9: Design | B9: Input Value | C9: Units | D9: Description | G9: 0 | H9: =Iout*(G9/200) -> 0 | I9: =(Vout+Rdcr*H9+RdsonBot*H9)/(Vin-RdsonTop*H9+RdsonBot*H9) -> 0.1621621622 | J9: =(Vin-Vout)*I9/(Fsw*Lout2) -> 2.587440382 | K9: =H9+J9/2 -> 1.293720191 | L9: =H9-J9/2 -> -1.293720191 | M9: =IF(MIN(Vin, -L9/(CossTop+CossBot)*0.00000002)<0, 0, MIN(Vin, -L9/(CossTop+CossBot)*0.00000002)) -> 29.33605875 | N9: =SQRT(H9^2+(J9^2)/12) -> 0.7469297004 | O9: =(N9^2*Rdcr*(1+Ltc*Ta-Ltc*25))/(1-N9^2*Rdcr*Ltc*ThetaCa) -> 0.006698435328 | P9: =Core_Loss -> 0.4 | Q9: =O9+P9 -> 0.4066984353 | R9: =J9/(2*SQRT(3)) -> 0.7469297004 | S9: =RCoutEsr*R9^2 -> 0.0005579039773 | T9: =S9 -> 0.0005579039773 | U9: =SQRT(I9)*SQRT(H9^2+(J9^2)/12) -> 0.3007838347 | V9: =RCinEsr*U9^2 -> 9.047091524e-05 | W9: =V9 -> 9.047091524e-05 | X9: =SQRT(I9)*SQRT(H9^2+(J9^2)/12) -> 0.3007838347 | Y9: =RdsonTop*X9^2 -> 0.001990360135 | Z9: =IF(L9<0, (Vin*K9*Tf/2)*Fsw, (Vin*L9*Tr/2+Vin*K9*Tf/2)*Fsw) -> 0.03079824781 | AA9: =(0.5*CossTop*(Vin-M9)^2-0.5*CossBot*(Vin-M9)^2+(QossBot*(Vin-M9)/Vin)*Vin)*Fsw -> 0.1516541767 | AB9: =IF(L9>0,0,-L9*VsdTop*Deadtime*Fsw) -> 0.01241971383 | AC9: =(AB9+AA9+Z9+Y9*(1+RdsonTopTc*Ta-RdsonTopTc*25))/(1-Y9*RdsonTopTc*ThetaJaTop) -> 0.1969283475 | AD9: =SQRT(1-I9)*SQRT(H9^2+(J9^2)/12) -> 0.683690765 | AE9: =RdsonBot*AD9^2 -> 0.004674330621 | AF9: =IF(L9<0, Deadtime*Fsw*IF(VfdSky>0,0,VsdBot)*K9, Deadtime*Fsw*IF(VfdSky>0,0,VsdBot)*(K9+L9)) -> 0.01397217806 | AG9: =(AF9+AE9*(1+RdsonBotTc*Ta-RdsonBotTc*25))/(1-AE9*RdsonBotTc*ThetaJaBot) -> 0.01866046471 | AH9: =IF(RDSON_sense=1, 0, AD9^2*Rshunt) -> 0 | AI9: =2*Deadtime*Fsw*IF(VfdSky>0,VfdSky,0)*H9 -> 0 | AJ9: =IF(QrrSky>0,QrrSky,QrrBot)*Fsw*(Vin-H9*RdsonTop) -> 1.036 | AK9: =Iq*Vin -> 0.1554 | AL9: =Vin*(QgTop+QgBot)*Fsw -> 0.48692 | AM9: =(Vin-Vdd)*Fsw*(QgTop+QgBot)+(RdsonDRT+RdsonDRT2)*Fsw*QgTop*Vdd/(RdsonDRT+2*RGateTop+RdsonDRT2)+(RdsonDRB+RdsonDRB2)*Fsw*QgBot*Vdd/(RdsonDRB+2*RGateBot+RdsonDRB2) -> 0.4455640678 | AN9: =SUM(AK9:AL9) -> 0.64232 | AO9: =SUM(Q9,T9,W9,AC9,AJ9,AI9,AG9,AN9, AH9) -> 2.301255622 | AP9: =Vout*H9 -> 0 | AQ9: =AP9/(AP9+AO9) -> 0 | AR9: =ThetaJaTop*AC9 -> 8.270990594 | AS9: =AG9*ThetaJaBot -> 0.7464185884 | AU9: =AQ9*100 -> 0 | BC9: 250kHz / 5-1.2V /25A | BD9: 70 | BE9: 70 | BF9: 70 | BG9: =250000*(5-Vdd)*BF9/1000000000+((250000*BF9/1000000000*Vdd)*2.5/(2*4)) -> -0.002734375 | BH9: =BH$6*$BG9 -> -0.21875 | BI9: -0.2734375 | BJ9: -0.328125 | BK9: -0.3828125 | BL9: -0.4375 | BM9: -0.4921875 | BN9: -0.0546875 | BO9: -0.08203125 | BP9: -0.109375 | BQ9: -0.13671875
G10: 1 | H10: 0.05 | I10: =(Vout+Rdcr*H10+RdsonBot*H10)/(Vin-RdsonTop*H10+RdsonBot*H10) -> 0.1621852763 | J10: 2.587809188 | K10: =H10+J10/2 -> 1.343904594 | L10: =H10-J10/2 -> -1.243904594 | M10: 28.20645337 | N10: 0.7487075749 | O10: =(N10^2*Rdcr*(1+Ltc*Ta-Ltc*25))/(1-N10^2*Rdcr*Ltc*ThetaCa) -> 0.006730378281 | P10: 0.4 | Q10: =O10+P10 -> 0.4067303783 | R10: =J10/(2*SQRT(3)) -> 0.7470361656 | S10: =RCoutEsr*R10^2 -> 0.0005580630326 | T10: =S10 -> 0.0005580630326 | U10: 0.3015212601 | V10: =RCinEsr*U10^2 -> 9.091507032e-05 | W10: =V10 -> 9.091507032e-05 | X10: 0.3015212601 | Y10: =RdsonTop*X10^2 -> 0.002000131547 | Z10: 0.03199293557 | AA10: 0.1577983304 | AB10: 0.0119414841 | AC10: 0.2038013634 | AD10: 0.6853086621 | AE10: =RdsonBot*AD10^2 -> 0.004696479623 | AF10: 0.01451416961 | AG10: 0.01922509568 | AH10: 0 | AI10: 0 | AJ10: 1.035978 | AK10: 0.1554 | AL10: 0.48692 | AM10: 0.4455640678 | AN10: =SUM(AK10:AL10) -> 0.64232 | AO10: 2.308703815 | AP10: 0.42 | AQ10: =AP10/(AP10+AO10) -> 0.1539192336 | AR10: 8.559657262 | AS10: =AG10*ThetaJaBot -> 0.7690038272 | AU10: =AQ10*100 -> 15.39192336
A11: Vin | B11: =Vin -> 51.8 | C11: V | D11: Vin | G11: 2 | H11: 0.1 | I11: 0.1622083909 | J11: 2.588178002 | K11: 1.394089001 | L11: -1.194089001 | M11: 27.0768481 | N11: 0.7538050904 | O11: 0.006822386938 | P11: 0.4 | Q11: 0.4068223869 | R11: =J11/(2*SQRT(3)) -> 0.7471426332 | S11: 0.0005582221143 | T11: =S11 -> 0.0005582221143 | U11: 0.3035957754 | V11: 9.217039485e-05 | W11: =V11 -> 9.217039485e-05 | X11: 0.3035957754 | Y11: 0.002027748687 | Z11: 0.03318762344 | AA11: 0.1638005915 | AB11: 0.01146325441 | AC11: 0.2105509447 | AD11: 0.6899650132 | AE11: 0.004760517195 | AF11: 0.01505616121 | AG11: 0.01983178393 | AH11: 0 | AI11: 0 | AJ11: 1.035956 | AK11: 0.1554 | AL11: 0.48692 | AM11: 0.4455640678 | AN11: =SUM(AK11:AL11) -> 0.64232 | AO11: 2.316131508 | AP11: 0.84 | AQ11: =AP11/(AP11+AO11) -> 0.2661486056 | AR11: 8.843139676 | AS11: =AG11*ThetaJaBot -> 0.7932713574 | AU11: =AQ11*100 -> 26.61486056 | BC11: 250kHz / 12-5V / 30A | BD11: 90 | BE11: 90 | BF11: 90 | BG11: =250000*(12-Vdd)*BF11/1000000000+((250000*BF9/1000000000*Vdd)*2.5/(2*4)) -> 0.142265625 | BH11: 11.38125 | BI11: 14.2265625 | BJ11: 17.071875 | BK11: 19.9171875 | BL11: 22.7625 | BM11: 25.6078125 | BN11: 2.8453125 | BO11: 4.26796875 | BP11: 5.690625 | BQ11: 7.11328125
